Workbook

Sheet Apresentação
J1: RC-RSU V.1.0 - 17/10/2020
I6: Objetivo | J6: Simular rotas tecnológicas para o gerenciamento de RSU, por meio da realização estruturada do balanço de massa e da estimativa dos custos associados.
I9: Escopo | J9: A Ferramenta pode ser utilizada para estudos de pré-viabilidade de soluções tecnológicas futuras (Rotas Tecnológicas) de manejo de RSU em municípios, consórcios ou regiões, apoiando os gestores no processo de tomada de decisão. Pode ainda ser útil na realização de estudos acadêmicos e em atividades de capacitação profissional.
I13: Funcionalidades | J13: A Ferramenta é composta por 17 abas. A primeira aba é de apresentação da Ferramenta. Na sequência, há cinco abas com a parte de definição da rota e seu balanço de massa. No balanço de massa, ficam definidas as capacidades operacionais das unidades de tratamento e as quantidades de subprodutos resultantes. Há uma aba chamada de "Saída GEE" e mais 10 abas para a simulação dos custos associados à Rota.
I18: Limitações | J18: Apenas as tecnologias consideradas consolidadas podem ser utilizadas na montagem de Rotas (triagens manual e mecanizada; produção de CDR; compostagem e biodigestão anaeróbia; incineração e aterro sanitário). Não é possível especificar quais sistemas de coleta seletiva serão usados, e apenas de maneira genérica é possível inserir as seletivas de recicláveis e de orgânicos. As eficiências de triagem são globais e não há como especificar eficiências diferentes por tipo de material. Na Ferramenta, sempre se assume que será uma única planta para determinada tecnologia.
B25: Elaborado por: | D25: Ministério do Desenvolvimento Regional
B26: Por meio do: | D26: Projeto de Cooperação para Proteção do Clima na Gestão de Resíduos Sólidos Urbanos (ProteGEEr) financiado pelo Ministério do Meio Ambiente, Proteção da Natureza e Segurança Nuclear da Alemanha (BMU)
D27: e implementado pela Deutsche Gesellschaft für Internationale Zusammenarbeit (GIZ) GmbH
C28: Desenvolvedores: | D28: Alaim Silva de Paula e Geraldo Antônio Reichert (Consórcio GOPAInfra-adelphi)
B29: Coordenador Técnico: | D29: Guilherme Gonçalves (Consórcio GOPAInfra-adelphi)
B30: Revisada por: | D30: Christiane Pereira (TUBs), Dogival de Oliveira Costa Júnior (MDR), Ernani Ciríaco de Miranda (MDR), Hélinah Cardoso Moreira (GIZ), Jamaci Avelino do Nascimento Junior (MDR),
D31: Jan Janssen (Consórcio GOPAInfra-adelphi), Paulo Celso Gomes dos Reis (Consórcio GOPAInfra-adelphi), Sergio Luis da Silva Cotrim (MDR), Silvano Silvério da Costa (ME)
C32: Contato: | D32: sanearbrasil@mdr.gov.br
B34: Acesse o Manual do Usuário para mais informações.
B35: Disponível para download no site: https://www.gov.br/mdr/pt-br/assuntos/saneamento/protegeer

Sheet R-Entrada
C2: Município | D2: São Judas Tadeu | H2: ATENÇÃO: Preencher/alterar somente as células em verde. | P2: Sim
C3: Rota | D3: Rota Futura 1 | P3: Não
L4: Ferramenta de Rotas e Custos
C5: Dados gerais de geração de RSU | H5: Legenda de cores das células: | L5: Versão 1.01 - Maio de 2022
I7: Verde - Informação a ser fornecida pelo usuário
D8: população atendida (hab.) | E8: 2,500,000 | I8: Vermelho - Erro de cálculo nesta célula | P8: per capita
D9: geração per capita de RSU (kg/hab.d) | E9: 1.20 | I9: Amarelo - Resultado de cálculo | P9: massa total
D10: massa total manejada por dia (t/d) | I10: Branco - Outros resultados de cálculo
D12: utilizar geração per capita ou massa total? | E12: per capita
D14: massa diária de RSU considerada na rota (t/d) | E14: =IF(E12="per capita",E9*E8/1000,E10) -> 3,000.0
C16: Composição gravimétrica dos resíduos que entram na rota (deve representar a massa total que consta em E14)
C17: (Utilizar dados primários, ou seja, a composição gravimétrica real do município ou consórcio em análise)
C18: (Dados "padrão Brasil", utilizar somente para simulações acadêmicas ou de treinamento, quando da ausência de dados primários)
F20: Utilizar dados gravimétricos fornecidos pelo usuário | G20: Sim | H20: =IF(AND(G20="Sim",E40=0)," Atenção: Você deve inserir os","") ->  | K20: =IF($G$21="Sim"," confirma a utilização de gravimetria 'padrão Brasil'?","") -> 
F21: Usar "padrão Brasil" | G21: =IF(G20="Não","Sim","Não") -> Não | H21: =IF(AND(G20="Sim",E40=0)," valores nas células D em verde!","") ->  | K21: =IF($G$21="Sim"," Se sim, continue alimentando os dados solicitados.","") -> 
K22: =IF($G$21="Sim"," Se não, volte em G20 escolha 'Sim' para 'dados do usuário'.","") -> 
C23: Componentes | D23: Composição — base úmida (%) | G23: Material | H23: Agrupamentos
D24: Dados do usuário | E24: Utilizados nos cálculos | F24: Padrão Brasil
G25: t/d | H25: (%) | I25: Tipo
C26: resíduos de alimentos | D26: 48.4 | E26: =IF($G$21<>"Não",F26,D26) -> 48.4 | F26: 48.4 | G26: =$E$14*E26/100 -> 1,452.00 | H26: =E26+E27 -> 51.4 | I26: Orgânicos
C27: resíduos verdes (jardins e parques) | D27: 3.0 | E27: 3.0 | F27: 3.0 | G27: 90.00
C28: papel, papelão | D28: 13.1 | E28: 13.1 | F28: 13.1 | G28: 393.00 | H28: =SUM(E28:E33) -> 31.9 | I28: Recicláveis
C29: plástico filme | D29: 8.9 | E29: 8.9 | F29: 8.9 | G29: 267.00
C30: plásticos rígidos | D30: 4.6 | E30: 4.6 | F30: 4.6 | G30: 138.00
C31: vidros | D31: 2.4 | E31: 2.4 | F31: 2.4 | G31: 72.00
C32: metais ferrosos | D32: 2.3 | E32: 2.3 | F32: 2.3 | G32: 69.00
C33: metais não ferrrosos | D33: 0.6 | E33: 0.6 | F33: 0.6 | G33: 18.00
C34: têxteis | D34: 2.6 | E34: 2.6 | F34: 2.6 | G34: 78.00 | H34: =SUM(E34:E37) -> 12.0 | I34: Outros combustíveis
C35: borracha, couro | D35: 0.7 | E35: 0.7 | F35: 0.7 | G35: 21.00
C36: fraldas descartáveis e similares | D36: 4.0 | E36: 4.0 | F36: 4.0 | G36: 120.00
C37: madeira | D37: 4.7 | E37: 4.7 | F37: 4.7 | G37: 141.00
C38: resíduos minerais | D38: 0.0 | E38: 0.0 | F38: 0.0 | G38: 0.00 | H38: =SUM(E38:E39) -> 4.7 | I38: Outros não combustiveis
C39: outros | D39: 4.7 | E39: 4.7 | F39: 4.7 | G39: 141.00
C40: Total (deve ser 100%) | D40: =SUM(D26:D39) -> 100.0 | E40: 100.0 | F40: 100.0 | G40: 3,000.00 | H40: 100.0
D41: =IF(AND(AND(G20="Sim",SUM(D26:D39)<>100)*(SUM(D26:D39)<>0))," Atenção: O total deve fechar 100%"," ") -> 
C42: Tipos de coleta
D43: % | E43: t/d
C44: coleta seletiva de recicláveis | D44: 15.0 | E44: =E14*D44/100 -> 450.00 | F44: =IF(D44>H28," Rever este valor que está maior que recicláveis disponíveis em H28.","") -> 
C45: coleta seletiva de orgânicos | D45: 5.0 | E45: =E14*D45/100 -> 150.00 | F45: =IF(D45>H26," Rever este valor que está maior que orgânicos disponíveis em H26.","") -> 
C46: coleta de mistos/rejeitos | D46: =100-(D44+D45) -> 80.0 | E46: =E14*D46/100 -> 2,400.00
C47: total de RSU a ser gerido pelo município | D47: =SUM(D44:D46) -> 100.0 | E47: 3,000.00
C49: Resumo de materiais por tipo de coleta
C51: Tipo de coleta | D51: Materiais ou resíduos disponíveis para tratamento em função do tipo de coleta (t/d)
D52: Orgânicos | F52: Papel e papelão | G52: Plástico | I52: Vidro | J52: Metais | L52: Rejeitos/mistos | N52: Total
D53: Alimentos | E53: Verdes | G53: Filme | H53: Rígido | J53: Ferrosos | K53: Não ferrosos | L53: Combustíveis | M53: Não combustíveis
C54: Seletiva de recicláveis | F54: =IF($H$28>0,E28/$H$28*$E$44,0) -> 184.80 | G54: =IF($H$28>0,E29/$H$28*$E$44,0) -> 125.55 | H54: =IF($H$28>0,E30/$H$28*$E$44,0) -> 64.89 | I54: =IF($H$28>0,E31/$H$28*$E$44,0) -> 33.86 | J54: =IF($H$28>0,E32/$H$28*$E$44,0) -> 32.45 | K54: =IF($H$28>0,E33/$H$28*$E$44,0) -> 8.46 | N54: =SUM(F54:K54) -> 450.00
C55: Seletiva de orgânicos | D55: =IF(E26>0,E45*E26/(E26+E27),0) -> 141.25 | E55: =IF(E27>0,E45*E27/(E26+E27),0) -> 8.75 | N55: =SUM(D55:E55) -> 150.00
C56: Mistos/rejeitos | D56: =G26-D55 -> 1,310.75 | E56: =G27-E55 -> 81.25 | F56: =G28-F54 -> 208.20 | G56: =G29-G54 -> 141.45 | H56: =G30-H54 -> 73.11 | I56: =G31-I54 -> 38.14 | J56: =G32-J54 -> 36.55 | K56: =G33-K54 -> 9.54 | L56: =SUM(G34:G37) -> 360.00 | M56: =SUM(G38:G39) -> 141.00 | N56: =SUM(D56:M56) -> 2,400.00
C57: Total | D57: =SUM(D55:D56) -> 1,452.00 | E57: 90.00 | F57: =SUM(F54:F56) -> 393.00 | G57: 267.00 | H57: 138.00 | I57: 72.00 | J57: 69.00 | K57: 18.00 | L57: 360.00 | M57: =M56 -> 141.00 | N57: =SUM(N54:N56) -> 3,000.00

Sheet R-Definição
J1: Legenda de cores das células:
C2: Município | D2: =IF('R-Entrada'!D2<>0,'R-Entrada'!D2,"") -> São Judas Tadeu | K2: Verde - Informação a ser fornecida pelo usuário
C3: Rota | D3: =IF('R-Entrada'!D3<>0,'R-Entrada'!D3,"") -> Rota Futura 1 | K3: Vermelho - Erro de cálculo nesta célula
K4: Amarelo - Resultados de cálculos
F5: ATENÇÃO: Preencher/alterar somente as células em verde. | K5: Branco - Outros resultados de cálculos | N5: Ferramenta de Rotas e Custos
K6: Telha - Subprodutos das etapas ou tecnologias | N6: ='R-Entrada'!L5 -> Versão 1.01 - Maio de 2022
K7: Azul - Massa perdida para a atmosfera
B8: Definição das tecnologias na ROTA — Balanço de massa
C10: Tipo de coleta | D10: Materiais ou resíduos disponíveis para tratamento em função do tipo de coleta (t/d)
D11: Orgânicos | F11: Papel e papelão | G11: Plástico | I11: Vidro | J11: Metais | L11: Rejeitos/mistos | N11: Total
D12: Alimentos | E12: Verdes | G12: Filme | H12: Rígido | J12: Ferrosos | K12: Não ferrosos | L12: Combustíveis | M12: Não combustíveis | R12: Sim | S12: Trat. Biológico | T12: Tratam. biológico
C13: Seletiva de recicláveis | F13: ='R-Entrada'!F54 -> 184.80 | G13: ='R-Entrada'!G54 -> 125.55 | H13: ='R-Entrada'!H54 -> 64.89 | I13: ='R-Entrada'!I54 -> 33.86 | J13: ='R-Entrada'!J54 -> 32.45 | K13: ='R-Entrada'!K54 -> 8.46 | N13: =SUM(F13:M13) -> 450.00 | R13: Não | S13: CDR | T13: Biosecagem CDR
C14: Seletiva de orgânicos | D14: ='R-Entrada'!D55 -> 141.25 | E14: ='R-Entrada'!E55 -> 8.75 | N14: =SUM(D14:E14) -> 150.00 | S14: Incineração | T14: Aterro sanitário
C15: Mistos/rejeitos | D15: ='R-Entrada'!D56 -> 1,310.75 | E15: ='R-Entrada'!E56 -> 81.25 | F15: ='R-Entrada'!F56 -> 208.20 | G15: ='R-Entrada'!G56 -> 141.45 | H15: ='R-Entrada'!H56 -> 73.11 | I15: ='R-Entrada'!I56 -> 38.14 | J15: ='R-Entrada'!J56 -> 36.55 | K15: ='R-Entrada'!K56 -> 9.54 | L15: ='R-Entrada'!L56 -> 360.00 | M15: ='R-Entrada'!M56 -> 141.00 | N15: =SUM(D15:M15) -> 2,400.00 | S15: Aterro Sanitário
C16: Total | D16: =SUM(D14:D15) -> 1,452.00 | E16: 90.00 | F16: =SUM(F13:F15) -> 393.00 | G16: 267.00 | H16: 138.00 | I16: 72.00 | J16: 69.00 | K16: 18.00 | L16: 360.00 | M16: =M15 -> 141.00 | N16: =SUM(N13:N15) -> 3,000.00
H18: Resíduos recicláveis ainda presentes na coleta de mistos (%) | I18: =IF(N15=0,0,SUM(F15:K15)/N15*100) -> 21.13 | J18: =IF(N15=0,0,SUM(D15:E15)/N15*100) -> 58.00 | K18: Resíduos orgânicos ainda presentes na coleta de mistos (%)
C21: Triagem e definição do destino dos materiais e rejeitos
M22: Subprodutos e rejeitos separados da triagem (t/d)
C23: Triagem dos seletivos | G23: Triagem dos resíduos da coleta de mistos | L23: Total | M23: Seletiva manual | N23: Seletiva mecanizada | O23: Mistos mecanizada
D24: massa disponível (t/d) | E24: =N13 -> 450.00 | H24: mecanizada de mistos | I24: Sim | K24: papel e papelão | L24: =SUM(M24:O24) -> 185.83 | M24: =IF($E$28="Sim",F$13*'R-Avançado'!$H$11/100*$E$29/$N$13,0) -> 11.09 | N24: =IF($E$32="Sim",F$13*'R-Avançado'!$G$11/100*$E$33/$N$13,0) -> 99.79 | O24: =IF(AND($I$25>0,$I$24="Sim"),$I$27/$N$15*F$15*'R-Avançado'!$F$11/100,0) -> 74.95
D25: triagem manual (%) | E25: 10.0 | H25: massa disponível (t/d) | I25: =IF(I24="Sim",N15,0) -> 2,400.00 | K25: plástico filme | L25: 126.25 | M25: =IF($E$28="Sim",G$13*'R-Avançado'!$H$11/100*$E$29/$N$13,0) -> 7.53 | N25: =IF($E$32="Sim",G$13*'R-Avançado'!$G$11/100*$E$33/$N$13,0) -> 67.80 | O25: =IF(AND($I$25>0,$I$24="Sim"),$I$27/$N$15*G$15*'R-Avançado'!$F$11/100,0) -> 50.92
D26: triagem mecanizada (%) | E26: =IF(N13<>0,100-E25,0) -> 90.0 | H26: porcentagem a ser triada (%) | I26: 60.0 | J26: =IF(AND(I24="Sim",I27<>0,I27<50),"Mín. é 50 t/d. Rever Célula I26","") ->  | K26: plástico rígido | L26: 65.25 | M26: =IF($E$28="Sim",H$13*'R-Avançado'!$H$11/100*$E$29/$N$13,0) -> 3.89 | N26: =IF($E$32="Sim",H$13*'R-Avançado'!$G$11/100*$E$33/$N$13,0) -> 35.04 | O26: =IF(AND($I$25>0,$I$24="Sim"),$I$27/$N$15*H$15*'R-Avançado'!$F$11/100,0) -> 26.32
H27: massa a ser triada (t/d) | I27: =I25*I26/100 -> 1,440.00 | K27: vidros | L27: 34.05 | M27: =IF($E$28="Sim",I$13*'R-Avançado'!$H$11/100*$E$29/$N$13,0) -> 2.03 | N27: =IF($E$32="Sim",I$13*'R-Avançado'!$G$11/100*$E$33/$N$13,0) -> 18.28 | O27: =IF(AND($I$25>0,$I$24="Sim"),$I$27/$N$15*I$15*'R-Avançado'!$F$11/100,0) -> 13.73
D28: manual de seletivos | E28: =IF(AND(E24>0,E25>0),"Sim","Não") -> Sim | F28: =IF(E29>50,"Máx. é 50 t/d. Rever Célula E25","") ->  | H28: destino dos rejeitos | I28: Incineração | K28: metais ferrosos | L28: 32.63 | M28: =IF($E$28="Sim",J$13*'R-Avançado'!$H$11/100*$E$29/$N$13,0) -> 1.95 | N28: =IF($E$32="Sim",J$13*'R-Avançado'!$G$11/100*$E$33/$N$13,0) -> 17.52 | O28: =IF(AND($I$25>0,$I$24="Sim"),$I$27/$N$15*J$15*'R-Avançado'!$F$11/100,0) -> 13.16
D29: massa (t/d) | E29: =E24*E25/100 -> 45.00 | H29: destino dos orgânicos | I29: Tratam. biológico | K29: metais não ferrosos | L29: 8.51 | M29: =IF($E$28="Sim",K$13*'R-Avançado'!$H$11/100*$E$29/$N$13,0) -> 0.51 | N29: =IF($E$32="Sim",K$13*'R-Avançado'!$G$11/100*$E$33/$N$13,0) -> 4.57 | O29: =IF(AND($I$25>0,$I$24="Sim"),$I$27/$N$15*K$15*'R-Avançado'!$F$11/100,0) -> 3.43
D30: destino dos rejeitos | E30: CDR | K30: Total de recicláveis | L30: =SUM(L24:L29) -> 452.52 | M30: 27.00 | N30: 243.00 | O30: 182.52
G31: Eficiência nas triagens | R31: Rejeitos seletivos
D32: mecanizada de seletivos | E32: =IF(AND(E24>0,E26>0),"Sim","Não") -> Sim | F32: =IF(AND(E24>0,E33<50,E33>0),"Mín. é 50 t/d. Rever Célula E25","") ->  | H32: manual de seletivos | I32: Baixa | K32: orgânicos triados | L32: =O32+O33 -> 709.92 | N32: Alimentos | O32: =IF(AND($I$25>0,$I$24="Sim"),I27/N15*D15*'R-Avançado'!E11/100,0) -> 668.48 | R32: Adotado: 90% comb. e 10% ñ comb.
D33: massa (t/d) | E33: =E24*E26/100 -> 405.00 | H33: mecanizada de seletivos | I33: Baixa | K33: orgânicos seletivos | L33: ='R-Entrada'!E45 -> 150.00 | N33: Verdes | O33: =IF(AND($I$25>0,$I$24="Sim"),I27/N15*E15*'R-Avançado'!E11/100,0) -> 41.44
D34: destino dos rejeitos | E34: CDR | H34: mecanizada de mistos secos | I34: Baixa | K34: rejeitos combustíveis | L34: =SUM(M34:O34) -> 604.74 | M34: =IF(E28="Sim",E29*(1-'R-Avançado'!H11/100)*0.9,0) -> 16.20 | N34: =IF(E32="Sim",E33*(1-'R-Avançado'!G11/100)*0.9,0) -> 145.80 | O34: =D43+E43+F43+G43+H43+L43 -> 442.74
H35: mecanizada de mistos orgânicos | I35: Baixa | K35: rejeitos não combust. | L35: =SUM(M35:O35) -> 122.82 | M35: =IF(E28="Sim",E29*(1-'R-Avançado'!H11/100)*0.1,0) -> 1.80 | N35: =IF(E32="Sim",E33*(1-'R-Avançado'!G11/100)*0.1,0) -> 16.20 | O35: =M43+K43+J43+I43 -> 104.82
D38: Rejeitos e mistos disponíveis após as etapas de triagem (t/d) — no fluxo de rejeitos mistos | S38: Rejeito para trat. Témico
D39: Orgânicos | F39: Papel e papelão | G39: Plástico | I39: Vidros | J39: Metais | L39: Rejeitos/mistos | N39: Total | S39: CDR | T39: =IF($E$30="CDR",M34,0) -> 16.2
D40: Alimentos | E40: Verdes | G40: Filme | H40: Rígido | J40: Ferrosos | K40: Não ferrosos | L40: Combustíveis | M40: Não combustíveis | R40: Man sel | S40: Incineração | T40: =IF($E$30="Incineração",M34+M35,0) -> 0
C41: mistos entrada p/ triagem | D41: =IF(AND($I$25>0,$I$24="Sim"),D15*$I$27/$N$15,0) -> 786.45 | E41: 48.75 | F41: 124.92 | G41: 84.87 | H41: 43.87 | I41: 22.89 | J41: 21.93 | K41: 5.72 | L41: 216.00 | M41: 84.60 | N41: =SUM(D41:M41) -> 1,440.00 | S41: CDR | T41: =IF($E$34="CDR",N34,0) -> 145.8
C42: mistos triados | D42: =O32 -> 668.48 | E42: =O33 -> 41.44 | F42: =O24 -> 74.95 | G42: =O25 -> 50.92 | H42: =O26 -> 26.32 | I42: =O27 -> 13.73 | J42: =O28 -> 13.16 | K42: =O29 -> 3.43 | L42: 0.00 | M42: 0.00 | N42: 892.44 | R42: Mecaniz. Sel | S42: Incineração | T42: =IF($E$34="Incineração",N34+N35,0) -> 0
C43: rejeitos — triagem de mistos | D43: =D41-D42 -> 117.97 | E43: 7.31 | F43: 49.97 | G43: 33.95 | H43: 17.55 | I43: 9.15 | J43: 8.77 | K43: 2.29 | L43: 216.00 | M43: 84.60 | N43: 547.56 | S43: CDR | T43: =IF($I$28="CDR",O34,0) -> 0 | U43: Total
C44: mistos não triados | D44: =D15-D41 -> 524.30 | E44: 32.50 | F44: 83.28 | G44: 56.58 | H44: 29.24 | I44: 15.26 | J44: 14.62 | K44: 3.81 | L44: 144.00 | M44: 56.40 | N44: 960.00 | R44: Mistos | S44: Incineração | T44: =IF($I$28="Incineração",O34+O35,0) -> 547.56
C47: Produção de CDR
C48: Resíduos disponíveis para CDR | N48: CDR produzido (t/d)
D49: rejeitos combustíveis seletivos (man.) (t/d) | E49: =IF(E30="CDR",M34,0) -> 16.20 | H49: massa disponível (t/d) | I49: =SUM(E49:E52) -> 162.00 | K49: % CDR fino produzido | L49: 0.0 | N49: CDR fino | O49: =(I49-O53-O55)*L49/100 -> 0.00
D50: rejeitos combustíveis seletivos (mecan.) (t/d) | E50: =IF(E34="CDR",N34,0) -> 145.80 | K50: % CDR grosso produzido | L50: =100-L49 -> 100.0 | N50: CDR grosso | O50: =(I49-O53-O55)*L50/100 -> 137.70
D51: rejeitos combustíveis triag. mecan. mistos (t/d) | E51: =IF(I28="CDR",O34,0) -> 0.00 | H51: produção de CDR TM (t/d) | I51: =IF(E52=0,I49,0) -> 162.00 | J51: =IF(AND(I51>0,I51<50),"Massa mín. é 50 t/d. Rever destino dos rejeitos das triagens","") -> 
D52: biossecagem — orgânicos de mistos (t/d) | E52: =IF(I29="Biosecagem CDR",L32,0) -> 0.00 | H52: produção de CDR TMB (t/d) | I52: =IF(E52>0,I49,0) -> 0.00 | J52: =IF(AND(I52>0,I52<250),"Massa mín. é 250 t/d","") ->  | L52: =IF(AND(I51>0,I51<50),"em E30, E34 e I28","") ->  | N52: Rejeito para aterro (t/d)
J53: =IF(AND(I52>0,I52<250),"Alterar I29 para 'Tratat. Biológico'","") ->  | N53: rejeito para aterro | O53: =I52*'R-Avançado'!M12/100+I51*'R-Avançado'!M11/100 -> 20.25
J54: =IF(AND(I52>0,I52<250),"ou aumentar massa triada em I26","") -> 
J55: =IF(AND(I52>0,I52<250),"ou rever destino dos rejeitos em E30 e E34","") ->  | N55: perda por evaporação / secagem (t/d) | O55: =I52*'R-Avançado'!L12/100+I51*'R-Avançado'!L11/100 -> 4.05
C57: Tratamento biológico
D58: orgânicos seletivos (t/d) | E58: =L33 -> 150.00 | F58: =IF(E58>0,E58/E60, " ") -> 17.4% | M58: Destinação do material disponível para tratamento biológico (%)
D59: orgânicos da triagem mecanizada (t/d) | E59: =IF(AND(I29<>"Biosecagem CDR",I29<>"Aterro sanitário"),L32,0) -> 709.92 | F59: =IF(E59>0,E59/E60,"") -> 82.6% | I59: biodigestão anaeróbia (%) | J59: 100.0 | K59: =IF(J59<>0,">>>>","") -> >>>> | L59: =IF(J59>0,J59/100*E60,"") -> 859.92 | M59: =IF(J59>0,"t/d","") -> t/d | N59: =IF(AND(L59>0,L59<50),"Capacidade mín. é de 50 t/d","") -> 
D60: total de orgânicos (t/d) | E60: =SUM(E58:E59) -> 859.92 | F60: =IF(E60>0,E60/E60,"") -> 100% | I60: compostagem (uso nobre) (%) | J60: 0.0 | L60: =IF(J60>0,J60/100*E60,"") ->  | N60: =IF(AND(L59>0,L59<50),"Rever valor em J59","") -> 
I61: compostagem (uso não nobre) (%) | J61: =IF(E60>0,100-J59-J60,0) -> 0.0 | K61: =IF(J61>0,">>>>","") ->  | L61: =IF(J61>0,J61/100*E60,"") ->  | N61: Capacidade (t/d) | S61: Compost. uso nobre
D62: Biodigestão anaeróbia | J62: =IF(AND(E60>0,SUM(J59:J60)>100)," Erro: valor em J61 não pode dar negativo!","") ->  | N62: biodigestão anaeróbia (t/d) | O62: =E60*J59/100 -> 859.92 | S62: Comp. uso não nobre
D63: perda de massa | E63: Alta | F63: =IF(E63="Alta",'R-Avançado'!I19/100,IF(E63="Baixa",'R-Avançado'!I21/100,'R-Avançado'!I20/100)) -> 15.0% | J63: Utilização do biogás | N63: compostagem para uso nobre (t/d) | O63: =IF(J67="Compost. Uso nobre",E60*J60/100+J68,E60*J60/100) -> 0.00
D64: potencial de geração do biodigestor | E64: Médio | I64: produção de biometano | J64: Sim | N64: compostagem para uso não nobre (t/d) | O64: =IF(J67<>"Compost. Uso nobre",E60*J61/100+J68,E60*J61/100) -> 730.93
E65: geração potencial de biogás (Nm³/t) | F65: =IF(E64="Alto",'R-Avançado'!E19,IF(E64="Baixo",'R-Avançado'!E21,'R-Avançado'!E20)) -> 100 | I65: geração de energia elétrica | J65: =IF(J64="Não","Sim","Não") -> Não | S65: Aplicação no solo (florestamento)
E66: geração potencial de energia (kWh/t) | F66: =IF(E64="Alto",'R-Avançado'!F19,IF(E64="Baixo",'R-Avançado'!F21,'R-Avançado'!F20)) -> 150 | N66: Subprodutos (t/d) | S66: Cobertura de aterro sanitário
I67: destino do digestado | J67: Comp. uso não nobre | N67: composto para uso nobre (t/d) | O67: =O63-O63*(F69+F71) -> 0.00
D68: Compostagem | I68: digestado a compostar (t/d) | J68: =E60*J59/100*(1-F63) -> 730.93 | N68: composto para uso não nobre (t/d) | O68: =O64-O64*(F69+F71) -> 402.01
D69: perda de massa | E69: Média | F69: =IF(E69="Alta",'R-Avançado'!J19/100,IF(E69="Baixa",'R-Avançado'!J21/100,'R-Avançado'!J20/100)) -> 40.0% | N69: energia elétrica (kWh/d) | O69: =IF(J65="Sim",O62*F66*'R-Avançado'!F23/100*'R-Avançado'!F24/100,0) -> 0
J70: Qual é a utilização do composto | N70: biometano (Nm³/d) | O70: =IF(J64="Sim",O62*F65*'R-Avançado'!F23/100*'R-Avançado'!F24/100,0) -> 50,305
D71: rejeito na peneira final | E71: Baixo | F71: =IF(E71="Alto",'R-Avançado'!M19/100,'R-Avançado'!M20/100) -> 5.0% | J71: "de uso não nobre" produzido?
I72: Aplicação no solo (florestamento) | N72: Perdas e rejeitos (t/d)
N73: rejeito na peneira — composto para aterro (t/d) | O73: =(O63+O64)*F71 -> 36.55
N74: perda por evaporação ou biodigestão (t/d) | O74: =O62*F63+O63*F69+O64*F69 -> 421.36
D77: Composição do fluxo de rejeitos após triagem, produção de CDR e tratamento biológico (t/d) — (sem os recicláveis secos e os orgânicos separados na triagem)
D78: Orgânicos | F78: Papel e papelão | G78: Plástico | I78: Vidro | J78: Metais | L78: Rejeitos/mistos | N78: Total
D79: Alimentos | E79: Verdes | G79: Filme | H79: Rígido | J79: Ferrosos | K79: Não ferrosos | L79: Combustíveis | M79: Não combustíveis
C80: resíduo pós-triagem | D80: =SUM(D81:D84) -> 642.27 | E80: 39.81 | F80: 133.25 | G80: 90.53 | H80: 46.79 | I80: 24.41 | J80: 23.40 | K80: 6.10 | L80: 522.00 | M80: 159.00 | N80: =SUM(D80:M80) -> 1,687.56
C81: mistos não triados | D81: =D44 -> 524.30 | E81: 32.50 | F81: 83.28 | G81: 56.58 | H81: 29.24 | I81: 15.26 | J81: 14.62 | K81: 3.81 | L81: 144.00 | M81: 56.40 | N81: 960.00
C82: rejeitos triagem de mistos | D82: =D43 -> 117.97 | E82: 7.31 | F82: 49.97 | G82: 33.95 | H82: 17.55 | I82: 9.15 | J82: 8.77 | K82: 2.29 | L82: 216.00 | M82: 84.60 | N82: 547.56
C83: rejeitos triagem mec. sel. | L83: =N34 -> 145.80 | M83: =N35 -> 16.20 | N83: 162.00
C84: rejeitos triagem man. sel. | L84: =M34 -> 16.20 | M84: =M35 -> 1.80 | N84: 18.00
C86: retirado pelo CDR | D86: =SUM(D87:D89) -> 0.00 | E86: 0.00 | F86: 0.00 | G86: 0.00 | H86: 0.00 | I86: 0.00 | J86: 0.00 | K86: 0.00 | L86: 162.00 | M86: 0.00 | N86: =SUM(D86:M86) -> 162.00
C87: rejeitos triagem de mistos | D87: =IF($E$51>0,D43,0) -> 0.00 | E87: 0.00 | F87: 0.00 | G87: 0.00 | H87: 0.00 | L87: =IF($E$51>0,L43,0) -> 0.00 | N87: 0.00
C88: rejeitos triagem mec. sel. | L88: =IF(E50>0,N34,0) -> 145.80 | N88: 145.80
C89: rejeitos triagem man. sel. | L89: =IF(E49>0,M34,0) -> 16.20 | N89: 16.20
C90: resíduo disponível pós-CDR | D90: =D80-D86 -> 642.27 | E90: 39.81 | F90: 133.25 | G90: 90.53 | H90: 46.79 | I90: 24.41 | J90: 23.40 | K90: 6.10 | L90: 360.00 | M90: 159.00 | N90: 1,525.56
C92: vai para incineração | D92: =D90-D94+D97 -> 117.97 | E92: 7.31 | F92: =F90-F94 -> 49.97 | G92: 33.95 | H92: 17.55 | I92: 9.15 | J92: 8.77 | K92: 2.29 | L92: 216.00 | M92: =M90-M94+M100+M101 -> 84.60 | N92: =SUM(D92:M93) -> 547.56
C94: vai para aterro sanitário | D94: =SUM(D95:D99) -> 524.30 | E94: 32.50 | F94: 83.28 | G94: 56.58 | H94: 29.24 | I94: 15.26 | J94: 14.62 | K94: 3.81 | L94: 144.00 | M94: =SUM(M95:M101) -> 240.71 | N94: =SUM(D94:M94) -> 1,144.31
C95: mistos não triados | D95: =IF($H$106<>"Sim",D81,0) -> 524.30 | E95: 32.50 | F95: 83.28 | G95: 56.58 | H95: 29.24 | I95: 15.26 | J95: 14.62 | K95: 3.81 | L95: =IF(H106<>"Sim",L81,0) -> 144.00 | M95: =IF(H106<>"Sim",M81,0) -> 56.40 | N95: 960.00
C96: rejeitos triagem de mistos | D96: =IF($E$110>0,0,D82-D86) -> 0.00 | E96: 0.00 | F96: 0.00 | G96: 0.00 | H96: 0.00 | I96: 0.00 | J96: 0.00 | K96: 0.00 | L96: =IF(OR($I$28="Incineração",I28="CDR"),0,L43) -> 0.00 | M96: =IF($I$28="Incineração",0,M43) -> 0.00 | N96: 0.00
C97: orgânicos triagem de mistos | D97: =IF(I29="Aterro sanitário",O32,0) -> 0.00 | E97: =IF(I29="Aterro sanitário",O33,0) -> 0.00 | N97: 0.00
C98: rejeitos triagem mec. sel. | L98: =IF(OR($E$34="Incineração",$E$34="CDR"),0,$N$34) -> 0.00 | M98: =IF($E$34="Incineração",0,$N$35) -> 16.20 | N98: 16.20
C99: rejeitos triagem man. sel. | L99: =IF(OR($E$30="Incineração",$E$30="CDR"),0,M34) -> 0.00 | M99: =IF($E$30="Incineração",0,$M$35) -> 1.80 | N99: 1.80
C100: rejeito compostagem e CDR | M100: =O73+O53 -> 56.80 | N100: 56.80
C101: cinzas da incineração | M101: =O110 -> 109.51 | N101: 109.51
C104: Tratamento térmico
D105: Incineração
G106: Incineração dos resíduos da coleta de mistos sem triagem? | H106: Não | N106: Subprodutos
D107: mistos sem triagem (t/d) | E107: =IF(AND(H106="Sim", I24="Sim"),N15-I27,IF(AND(H106="Sim", I24="Não"),N15,0)) -> 0.00 | F107: =IF(AND(H106="Sim",E107=0),"Valor '0,00', mesmo com 'Sim' porque não há mistos sem triagem disponíveis","") ->  | N107: metais ferrosos (t/d) | O107: =IF(E112>0,K112*J90*(E110/E112+E107/E112)*(E110+E107)/E112,0) -> 21.06
D108: rejeito — seletivos (man.) (t/d) | E108: =IF(E30="Incineração",M34+M35,0) -> 0.00 | F108: =IF(AND(H106="Sim",E107=0),"Neste caso assinale 'Não' acima.","") ->  | N108: metais não ferrosos (t/d) | O108: =IF(E112>0,K90*K112*(E107/E112+E110/E112)*(E107+E110)/E112,0) -> 5.49
D109: rejeito — seletivos (mecan.) (t/d) | E109: =IF(E34="Incineração",N34+N35,0) -> 0.00 | F109: =IF(AND(E112>0,E112<500),"Cap. mín. é 500 t/d. Rever envios à incineração em H106, E30, E34 ou I28","") ->  | I109: eficiência na geração de energia elétrica (%) | J109: ='R-Avançado'!F28 -> 21.6 | N109: cinzas de fundo para reaproveitamento (t/d) | O109: =E112*J111/100*J113/100 -> 0.00
D110: rejeito — triagem mec. mistos (t/d) | E110: =IF(I28="Incineração",N43,0) -> 547.56 | N110: cinzas de fundo para aterro (t/d) | O110: =(E112*J111/100)*(1-J113/100) -> 109.51
I111: geração de cinzas (%) | J111: ='R-Avançado'!F29 -> 20.0 | N111: energia elétrica (kWh/d) | O111: =E112*E114*J109/100 -> 269,295.1
D112: massa disponível total (t/d) | E112: =SUM(E107:E111) -> 547.56 | I112: recuperação de metais das cinzas | J112: Sim | K112: =IF(J112="Sim",'R-Avançado'!F30/100,0) -> 90%
I113: reaproveitamento das cinzas de fundo (%) | J113: 0.0 | N113: perda de massa por combustão (t/d) | O113: =E112*(1-J111/100)-O107-O108 -> 411.50
D114: PCI ponderado estimado (kWh/t) | E114: =IF(E112>0,277.78*((D92*'R-Avançado'!E36+E92*'R-Avançado'!F36+F92*'R-Avançado'!G36+G92*'R-Avançado'!H36+H92*'R-Avançado'!I36+I92*'R-Avançado'!J36+J92*'R-Avançado'!K36+K92*'R-Avançado'!L36+L92*'R-Avançado'!M36+M92*'R-Avançado'!N36)/N92),0) -> 2,276.9
C117: Disposição final
D118: Aterro sanitário | I118: Utilização do biogás
D119: total para aterro sanitário (t/d) | E119: =N94 -> 1,144.31 | I119: sem queima (%) | J119: =IF(AND(E122="Rota atual",E123="Disp. Inadequada"),100,0) -> 0 | N119: Estação de transbordo
I120: somente queima (%) | J120: =IF(J119=0,100-J121-J119,0) -> 0 | N120: há necessidade de estação de transbordo (ET)? | O120: Sim | R120: Novo | S120: Rota atual | T120: Disp. inadequada
D121: aterro novo ou já existente? | E121: Novo | I121: aproveitamento do biogás (%) | J121: 100 | N121: distância da ET ao aterro (km) | O121: 120 | R121: Existente | S121: Rota futura | T121: Aterro sanitário
D122: qual Rota está sendo simulada? | E122: Rota futura | I122: =IF(AND((J119+J121)>100,J119=100)," Erro: rever valor! J121 deve ser zero","") ->  | N122: porcentagem do resíduo que passa pela ET (%) | O122: 100
D123: =IF(E122="Rota Atual","qual o tipo de disposição final atual? ","") ->  | E123: Disp. inadequada | I123: geração de energia elétrica | J123: Não | R123: Alta
I124: produção de biometano | J124: =IF(J123="Não","Sim","Não") -> Sim | N124: capacidade da ET (t/d) | O124: =IF(O120<>"Sim",0,IF(AND(O122=0,O120="Sim"),E119,E119*O122/100)) -> 1,144.31 | R124: Média
D125: biogás gerado (Nm³/d) | E125: =D94*'R-Avançado'!E37+E94*'R-Avançado'!F37+F94*'R-Avançado'!G37+G94*'R-Avançado'!H37+H94*'R-Avançado'!I37+I94*'R-Avançado'!J37+J94*'R-Avançado'!K37+K94*'R-Avançado'!L37+L94*'R-Avançado'!M37+M94*'R-Avançado'!N37 -> 166,092 | R125: Baixa
D126: volume ocupado no aterro por ano (m³/d) | E126: =D94*'R-Avançado'!E38+E94*'R-Avançado'!F38+F94*'R-Avançado'!G38+G94*'R-Avançado'!H38+H94*'R-Avançado'!I38+I94*'R-Avançado'!J38+J94*'R-Avançado'!K38+K94*'R-Avançado'!L38+L94*'R-Avançado'!M38+M94*'R-Avançado'!N38 -> 1,139.1 | I126: Subprodutos | R126: Sem captação
D127: =IF(OR(AND(F128=0,AND(E122="Rota atual",E123<>"Disp. Inadequada")), AND(F128=0,E122="Rota futura")),"Atenção, escolha eficiência de captação Alta, Média ou Baixa!","") ->  | I127: energia elétrica (kWh/d) | J127: =IF(AND(J123<>"Não",J121>0,J119<>100),E129*'R-Avançado'!O28*'R-Avançado'!O29/100*J121/100*0.2777778,0) -> 0.0
D128: eficiência de captação do biogás | E128: Média | F128: =IF(E128="Alta",'R-Avançado'!H29/100,IF(E128="Baixa",'R-Avançado'!J29/100,IF(E128="Sem captação",0,'R-Avançado'!I29/100))) -> 30% | I128: produção de biometano (Nm³/d) | J128: =IF(AND(J124<>"Não",J121>0,J119<>100),E129*'R-Avançado'!O30/100*J121/100*0.2777778,0) -> 8,304.6
D129: biogás captado e disponível (Nm³/d) | E129: =E125*F128 -> 49,828
C132: Resumo da Rota — Capacidades das unidades e subprodutos gerados
D134: Ver figura-resumo na Aba 'Fluxo ROTA'
D136: Ver tabela-resumo na Aba 'Resumo bal. massa'
A137: =IF(AND(SUM(A116:A124)<>100)*(SUM(A116:A124)<>0)," Atenção: O total deve fechar 100%"," ") -> 

Sheet R-Avançado
C2: Município | D2: =IF('R-Entrada'!D2<>0,'R-Entrada'!D2,"") -> São Judas Tadeu
C3: Rota | D3: =IF('R-Entrada'!D3<>0,'R-Entrada'!D3,"") -> Rota Futura 1
C5: Ajuste de variáveis avançadas para realização do balanço de massa da Rota Tecnológica | N5: Ferramenta de Rotas e Custos
N6: ='R-Entrada'!L5 -> Versão 1.01 - Maio de 2022
C7: Triagem | J7: Produção de CDR
E8: Eficiência da triagem de resíduos (%) | L8: Perda de massa por secagem (%) | M8: Rejeito na produção de CDR (%)
E9: Orgânicos | F9: Recicláveis secos
E10: Mecanizada mistos | F10: Mecanizada mistos | G10: Mecanizada seletivos | H10: Manual seletivos
D11: Valor a usar | E11: =IF('R-Definição'!H34="Alta",E12,E13) -> 85.0 | F11: =IF('R-Definição'!I34="Alta",F12,F13) -> 60.0 | G11: =IF('R-Definição'!I33="Alta",G12,G13) -> 60.0 | H11: =IF('R-Definição'!I32="Alta",H12,H13) -> 60.0 | J11: CDR TM — seletivos | L11: 2.5 | M11: 12.5
D12: Alta | E12: 95.0 | F12: 90.0 | G12: 90.0 | H12: 80.0 | J12: CDR TMB — mistos | L12: 27.5 | M12: 30.0
D13: Baixa | E13: 85.0 | F13: 60.0 | G13: 60.0 | H13: 60.0
C15: Tratamento biológico
D16: Biodigestão | H16: Biodigestão e compostagem | L16: Compostagem
D17: Geração potencial | E17: Biogás | F17: Energia líquida | I17: Perda de massa (%) | L17: Rejeito na peneira pós-compostagem (%)
E18: Nm³/t | F18: kWh/t | I18: Biodigestão | J18: Compostagem
D19: Alto | E19: 120 | F19: 180 | H19: Alta | I19: 15.0 | J19: 50.0 | L19: Alto | M19: 10.0
D20: Médio | E20: 100 | F20: 150 | H20: Média | I20: 12.0 | J20: 40.0 | L20: Baixo | M20: 5.0
D21: Baixo | E21: 80 | F21: 120 | H21: Baixa | I21: 10.0 | J21: 30.0
D23: CH4/biogás (%) | F23: 65.0
D24: eficiência na utilização do biogás (%) | F24: 90.0
C26: Incineração | H26: Aterro sanitário | L26: Aterro sanitário
F27: % | H27: Eficiência na captação do biogás (%) | O27: Valor
C28: eficiência na geração de energia elétrica | F28: 21.6 | H28: Alta | I28: Média | J28: Baixa | N28: potencial energético do biogás (MJ/Nm³) | O28: 16.8
C29: geração de cinzas | F29: 20.0 | H29: 50.0 | I29: 30.0 | J29: 10.0 | L29: eficiência na geração elétrica (%) | O29: 35.0
C30: recuperação de metais das cinzas | F30: 90.0 | L30: CH4/biogás (%) | O30: 60.0
C32: Características das frações dos resíduos (para incineração e aterro sanitário)
E33: Características das frações dos resíduos
E34: Orgânicos | G34: Papel e papelão | H34: Plástico | J34: Vidro | K34: Metais | M34: Rejeitos/mistos
E35: Alimentos | F35: Parques/jardins | H35: Filme | I35: Rígido | K35: Ferrosos | L35: Não ferrosos | M35: Combustíveis | N35: Não combustíveis
B36: PCI — incineração (GJ/t) | E36: 3.7 | F36: 3.7 | G36: 10.5 | H36: 25.0 | I36: 28.0 | J36: 0.0 | K36: 0.0 | L36: 0.0 | M36: 10.0 | N36: 0.0
B37: geração de biogás no aterro (Nm³/t) | E37: 250.0 | F37: 250.0 | G37: 150.0 | H37: 0.0 | I37: 0.0 | J37: 0.0 | K37: 0.0 | L37: 0.0 | M37: 100.0 | N37: 0.0
B38: volume ocupado no aterro (m³/t) | E38: 1.11 | F38: 1.11 | G38: 1.05 | H38: 1.04 | I38: 1.04 | J38: 0.51 | K38: 0.32 | L38: 0.93 | M38: 1.11 | N38: 0.70
D39: Obs.: 1 GJ = 277,78 kWh

Sheet R-Fluxo Massa
B1: FLUXO DE MASSA DA ROTA | R1: Rota: | V1: =IF('R-Entrada'!D3<>0,'R-Entrada'!D3,"") -> Rota Futura 1 | AC1: Município: | AG1: =IF('R-Entrada'!D2<>0,'R-Entrada'!D2,"") -> São Judas Tadeu | AS1: G A R
C3: ='R-Entrada'!E14 -> 3,000.0 | E3: Total de RSU gerado
C5: ='R-Entrada'!E44 -> 450.0 | E5: Seletiva de recicláveis | AB5: Ferramenta de Rotas e Custos
C7: ='R-Entrada'!E45 -> 150.0 | E7: Seletiva de orgânicos | AB7: ='R-Entrada'!L5 -> Versão 1.01 - Maio de 2022
C9: ='R-Entrada'!E46 -> 2,400.0 | E9: Mistos ou rejeitos
C11: ='R-Entrada'!E47 -> 3,000.0 | E11: Total manejado | AO11: Materiais recuperados | AQ11: Evaporação | AS11: Aterro sanitário
F15: ='R-Resumo Bal. Massa'!D19 -> 45.0 | I15: Triagem manual seletivos | AO15: ='R-Resumo Bal. Massa'!E64 -> 27.0
AS17: ='R-Definição'!N99 -> 1.8
F19: ='R-Resumo Bal. Massa'!D20 -> 405.0 | L19: Triagem mecanizada selet. | AO19: ='R-Resumo Bal. Massa'!F64 -> 243.0
AS21: ='R-Definição'!N98 -> 16.2
F23: ='R-Resumo Bal. Massa'!D21 -> 1,440.0 | Q23: Triagem mecan. mistos | AO23: ='R-Resumo Bal. Massa'!G64 -> 182.5
J25: =F15+F19+F23-AO15-AO19-AO23-AS17-AS21-AS25-S25 -> 709.6 | S25: =IF('R-Definição'!I29<>"Aterro sanitário",'R-Resumo Bal. Massa'!F22,0) -> 709.9 | AS25: ='R-Definição'!N96+'R-Definição'!N97 -> 0.0
N27: ='R-Resumo Bal. Massa'!D29-'R-Resumo Bal. Massa'!D28 -> 162.0 | V27: ='R-Resumo Bal. Massa'!B25 -> 162.0 | Y27: Produção de CDR | AO27: ='R-Resumo Bal. Massa'!E29 -> 137.7
S29: ='R-Definição'!E59 -> 709.9 | AQ29: ='R-Resumo Bal. Massa'!H29 -> 4.1
J31: =SUM('R-Resumo Bal. Massa'!D40:D42) -> 547.6 | AS31: ='R-Resumo Bal. Massa'!G29 -> 20.3
F33: ='R-Resumo Bal. Massa'!D14 -> 150.0 | S33: ='R-Resumo Bal. Massa'!D36 -> 859.9 | Y33: ='R-Definição'!E60*'R-Definição'!J59/100 -> 859.9 | AB33: Biodigestão anaeróbia | AQ33: ='R-Definição'!O62*'R-Definição'!F63 -> 129.0
AD35: ='R-Definição'!J68 -> 730.9
S37: ='R-Resumo Bal. Massa'!D35 -> 0.0 | AD37: Compostagem | AO37: ='R-Resumo Bal. Massa'!F36-'R-Resumo Bal. Massa'!F33 -> 402.0
AQ39: ='R-Definição'!O63*'R-Definição'!F69+'R-Definição'!O64*'R-Definição'!F69 -> 292.4
AS41: ='R-Resumo Bal. Massa'!G36 -> 36.5
F43: ='R-Resumo Bal. Massa'!D39 -> 0.0 | J43: ='R-Resumo Bal. Massa'!D43 -> 547.6 | AH43: Inicineração | AO43: ='R-Resumo Bal. Massa'!E43 -> 26.5
AQ45: ='R-Resumo Bal. Massa'!H43 -> 411.5
AS47: ='R-Resumo Bal. Massa'!G43 -> 109.5
AS49: =IF('R-Definição'!I24="Sim",'R-Definição'!N15-'R-Definição'!I27-'R-Definição'!E107,'R-Definição'!N15-'R-Definição'!E107) -> 960.0
H51: Volume no aterro: | I51: ='R-Definição'!E126 -> 1,139.1 | K51: m³/d | AM51: Total por destinação final (t/d) | AO51: =AO15+AO19+AO23+AO27+AO33+AO37+AO43 -> 1,018.8 | AQ51: =AQ29+AQ33+AQ39+AQ45 -> 836.9 | AS51: ='R-Resumo Bal. Massa'!D52 -> 1,144.3
H53: Estação de transbordo: | I53: =IF('R-Definição'!O124>0,'R-Definição'!O124,"Não") -> 1,144.3 | K53: =IF(I53="Não","","t/d") -> t/d | AM53: Total em porcentagem da Rota (%) | AO53: =IF(C11<>0,ROUND(AO51/(AO51+AQ51+AS51)*100,1),0) -> 34.0 | AQ53: =IF(C11<>0,ROUND(100-AO53-AS53,1),0) -> 27.9 | AS53: =IF(C11<>0,ROUND(AS51/(AO51+AQ51+AS51)*100,1),0) -> 38.1

Sheet R-Resumo Bal. Massa
B2: Município | C2: =IF('R-Entrada'!D2<>0,'R-Entrada'!D2,"") -> São Judas Tadeu
B3: Rota | C3: =IF('R-Entrada'!D3<>0,'R-Entrada'!D3,"") -> Rota Futura 1
C5: Resumo da Rota — Capacidade das unidades e subprodutos gerados | J5: Ferramenta de Rotas e Custos
J6: ='R-Entrada'!L5 -> Versão 1.01 - Maio de 2022
B7: Resumo do fluxo de massa por etapa ou tecnologia na Rota (t/d)
B8: Capacidade de projeto da unidade | C8: Etapa ou tecnologia | D8: Entrada | E8: Saída
E9: Materias recicláveis | F9: Orgânicos | G9: Rejeito | H9: Perda por evaporação
C12: Coletas
C13: Seletiva de recicláveis | D13: ='R-Definição'!N13 -> 450.00
C14: Seletiva de orgânicos | D14: ='R-Definição'!N14 -> 150.00
C15: Mistos/rejeitos | D15: ='R-Definição'!N15 -> 2,400.00
C16: Total | D16: ='R-Definição'!N16 -> 3,000.00
C18: Triagem
B19: =D19 -> 45.00 | C19: Manual — seletivos | D19: =IF('R-Definição'!$E$28="Sim",'R-Definição'!$E$29,0) -> 45.00 | E19: ='R-Definição'!M30 -> 27.00 | G19: =SUM('R-Definição'!M34:'R-Definição'!M35) -> 18.00
B20: 405.00 | C20: Mecanizada — seletivos | D20: =IF('R-Definição'!$E$32="Sim",'R-Definição'!$E$33,0) -> 405.00 | E20: ='R-Definição'!N30 -> 243.00 | G20: =SUM('R-Definição'!N34:'R-Definição'!N35) -> 162.00
B21: 1,440.00 | C21: Mecanizada — mistos | D21: =IF('R-Definição'!$I$24="Sim",'R-Definição'!$I$27,0) -> 1,440.00 | E21: ='R-Definição'!O30 -> 182.52 | F21: ='R-Definição'!L32 -> 709.92 | G21: =SUM('R-Definição'!O34:'R-Definição'!O35) -> 547.56
C22: Subtotal | D22: =SUM(D19:D21) -> 1,890.00 | E22: 452.52 | F22: 709.92 | G22: 727.56
C24: Produção de CDR
B25: =D29 -> 162.00 | C25: Rejeitos seletiva — triagem manual | D25: ='R-Definição'!E49 -> 16.20 | E25: ='R-Definição'!O49+'R-Definição'!O50 -> 137.70 | G25: ='R-Definição'!O53 -> 20.25 | H25: ='R-Definição'!O55 -> 4.05
C26: Rejeitos seletiva — triagem mecanizada | D26: ='R-Definição'!E50 -> 145.80
C27: Rejeitos — triagem mistos | D27: ='R-Definição'!E51 -> 0.00
C28: Biossecagem — orgânicos | D28: ='R-Definição'!E52 -> 0.00
C29: Subtotal | D29: =SUM(D25:D28) -> 162.00 | E29: =E25 -> 137.70 | G29: =SUM(G25) -> 20.25 | H29: =SUM(H25:H28) -> 4.05
B30: ='R-Definição'!I51 -> 162.00 | C30: CDR TM
B31: ='R-Definição'!I52 -> 0.00 | C31: CDR TMB
C33: Tratamento biológico
B34: ='R-Definição'!O62 -> 859.92 | C34: Biodigestão + compostagem | D34: =IF('R-Definição'!$J$67<>"Uso agrícola dir.",'R-Definição'!$O$62,0) -> 859.92 | F34: ='R-Definição'!O67+'R-Definição'!O68 -> 402.01 | G34: ='R-Definição'!O73 -> 36.55 | H34: ='R-Definição'!O74 -> 421.36
B35: ='R-Definição'!O63+'R-Definição'!O64 -> 730.93 | C35: Compostagem | D35: ='R-Definição'!E60-'R-Definição'!O62 -> 0.00
C36: Subtotal | D36: =SUM(D33:D35) -> 859.92 | F36: =F34 -> 402.01 | G36: 36.55 | H36: 421.36
C38: Incineração
B39: ='R-Definição'!E112 -> 547.56 | C39: Mistos sem triagem | D39: ='R-Definição'!E107 -> 0.00 | E39: ='R-Definição'!O107+'R-Definição'!O108+'R-Definição'!O109 -> 26.55 | G39: ='R-Definição'!O110 -> 109.51 | H39: ='R-Definição'!O113 -> 411.50
C40: Rejeito — seletivos (manual) | D40: ='R-Definição'!E108 -> 0.00
C41: Rejeito — seletivos (mecanizada) | D41: ='R-Definição'!E109 -> 0.00
C42: Rejeito — triagem mecananizada mistos | D42: ='R-Definição'!E110 -> 547.56
C43: Subtotal | D43: =SUM(D39:D42) -> 547.56 | E43: =E39 -> 26.55 | G43: =SUM(G38:G42) -> 109.51 | H43: 411.50
C45: Aterro sanitário
B46: ='R-Definição'!E119 -> 1,144.31 | C46: Resíduos mistos não triados | D46: ='R-Definição'!N95 -> 960.00
C47: Rejeitos — triagem de seletivos | D47: ='R-Definição'!N96 -> 0.00 | F47: Resultado final do balanço de massa
C48: Rejeitos — triagem de mistos | D48: ='R-Definição'!N98+'R-Definição'!N99+'R-Definição'!N97 -> 18.00 | G48: Massa (t/d) | H48: (%)
C49: Rejeitos — produção de CDR | D49: ='R-Definição'!O53 -> 20.25 | F49: Aterro | G49: =D52 -> 1,144.31 | H49: =IF($G$52<>0,G49/$G$52*100,0) -> 38.14
C50: Rejeitos — tratamento biológico | D50: ='R-Definição'!O73 -> 36.55 | F50: Material reciclável | G50: =E43+F36+E29+E22 -> 1018.78 | H50: =IF($G$52<>0,G50/$G$52*100,0) -> 33.96
C51: Cinzas — incineração | D51: ='R-Definição'!O110 -> 109.51 | F51: Evaporação* | G51: =H29+H36+H43 -> 836.91 | H51: =IF($G$52<>0,G51/$G$52*100,0) -> 27.90
C52: Subtotal | D52: =SUM(D46:D51) -> 1,144.31 | F52: Total | G52: =SUM(G49:G51) -> 3,000.00 | H52: =IF($G$52<>0,G52/$G$52*100,0) -> 100.0
F53: * Por evaporação, combustão ou biodegradação
B55: Subprodutos | D55: Subprodutos por etapa da Rota
D56: Total | E56: Triagem | H56: CDR | I56: Tratamento biológico | J56: Incineração | K56: Aterro sanitário
B57: Recicláveis | C57: t/d | E57: Manual de seletivos | F57: Mecanizada de seletivos | G57: Mecanizada de mistos
C58: papel e papelão | D58: =SUM(E58:K58) -> 185.83 | E58: ='R-Definição'!M24 -> 11.09 | F58: ='R-Definição'!N24 -> 99.79 | G58: ='R-Definição'!O24 -> 74.95
C59: plástico filme | D59: 126.25 | E59: ='R-Definição'!M25 -> 7.53 | F59: ='R-Definição'!N25 -> 67.80 | G59: ='R-Definição'!O25 -> 50.92
C60: plástico rígido | D60: 65.25 | E60: ='R-Definição'!M26 -> 3.89 | F60: ='R-Definição'!N26 -> 35.04 | G60: ='R-Definição'!O26 -> 26.32
C61: vidros | D61: 34.05 | E61: ='R-Definição'!M27 -> 2.03 | F61: ='R-Definição'!N27 -> 18.28 | G61: ='R-Definição'!O27 -> 13.73
C62: metais ferrosos | D62: 53.68 | E62: ='R-Definição'!M28 -> 1.95 | F62: ='R-Definição'!N28 -> 17.52 | G62: ='R-Definição'!O28 -> 13.16 | J62: ='R-Definição'!O107 -> 21.06
C63: metais não ferrosos | D63: 14.00 | E63: ='R-Definição'!M29 -> 0.51 | F63: ='R-Definição'!N29 -> 4.57 | G63: ='R-Definição'!O29 -> 3.43 | J63: ='R-Definição'!O108 -> 5.49
C64: Total de recicláveis | D64: 479.07 | E64: =SUM(E58:E63) -> 27.00 | F64: 243.00 | G64: 182.52 | J64: =SUM(J58:J63) -> 26.55
C65: t/d
B66: Recicláveis orgânicos | C66: composto para uso nobre | D66: =SUM(E66:K66) -> 0.00 | I66: ='R-Definição'!O67 -> 0.00
C67: composto para uso não nobre florestal | D67: 402.01 | I67: =IF('R-Definição'!I72<>"Cobertura de aterro sanitário",'R-Definição'!O68,0) -> 402.01
C68: composto para uso não nobre — cobertura AS | D68: 0.00 | I68: =IF('R-Definição'!I72="Cobertura de aterro sanitário",'R-Definição'!O68,0) -> 0.00
C69: Total de orgânicos | D69: =SUM(D66:D67) -> 402.01 | I69: =SUM(I66:I68) -> 402.01
C70: t/d
B71: CDR | C71: fino | D71: =SUM(E71:K71) -> 0.00 | H71: ='R-Definição'!O49 -> 0.00
C72: grosso | D72: 137.70 | H72: ='R-Definição'!O50 -> 137.70
C73: Total de CDR | D73: =SUM(D71:D72) -> 137.70
B74: Energia elétrica | C74: kWh/d | D74: =SUM(E74:K74) -> 269,295.1 | I74: ='R-Definição'!O69 -> 0.0 | J74: ='R-Definição'!O111 -> 269,295.1 | K74: ='R-Definição'!J127 -> 0.0
B75: Biometano | C75: Nm3/d | D75: 58,609.9 | I75: ='R-Definição'!O70 -> 50,305.3 | K75: ='R-Definição'!J128 -> 8,304.6
B76: Cinzas recicladas | C76: t/d | D76: 0.00 | J76: ='R-Definição'!O109 -> 0.00
D130: =IF(AND(SUM(D111:D117)<>100)*(SUM(D111:D117)<>0)," Atenção: O total deve fechar 100%"," ") -> 

Sheet Saída GEE
C2: Município | D2: =IF('R-Entrada'!D2<>0,'R-Entrada'!D2,"") -> São Judas Tadeu
C3: Rota | D3: =IF('R-Entrada'!D3<>0,'R-Entrada'!D3,"") -> Rota Futura 1
B5: Saída de dados para entrada na Ferramenta GEE — Emissão de gases de efeito estufa | Q5: Ferramenta de Rotas e Custos
Q6: ='R-Entrada'!L5 -> Versão 1.01 - Maio de 2022
B8: Aba 'Início' da Ferramenta GEE | L8: Aba 'Reciclagem' da Ferramenta GEE
C9: E9 | D9: massa total resíduos sólidos (t/a) | I9: ='R-Entrada'!E14*313 -> 939,000 | J9: t/ano | M9: Materiais secos
M10: E13 | N10: Papel, papelão | Q10: =IF('R-Entrada'!G28<>0,S10/'R-Entrada'!G28*100,0) -> 47.3 | R10: % | S10: ='R-Definição'!L24 -> 185.83 | T10: t/d
D11: Composição (% massa úmida) | M11: E14 | N11: Plásticos | Q11: =IF(('R-Entrada'!G29+'R-Entrada'!G30)<>0,S11/('R-Entrada'!G29+'R-Entrada'!G30)*100,0) -> 47.3 | R11: % | S11: ='R-Definição'!L25+'R-Definição'!L26 -> 191.51 | T11: t/d
C12: E37 | D12: Resíduos de alimentos | I12: ='R-Entrada'!E26 -> 48.4 | J12: % | M12: E15 | N12: Vidros | Q12: =IF('R-Entrada'!G31<>0,S12/'R-Entrada'!G31*100,0) -> 47.3 | R12: % | S12: ='R-Definição'!L27 -> 34.05 | T12: t/d
C13: E38 | D13: Resíduos de jardins e parques | I13: ='R-Entrada'!E27 -> 3.0 | J13: % | M13: E16 | N13: Metais ferrosos | Q13: =IF('R-Entrada'!G32<>0,S13/'R-Entrada'!G32*100,0) -> 47.3 | R13: % | S13: ='R-Definição'!L28 -> 32.63 | T13: t/d
C14: E39 | D14: Papel, papelão | I14: ='R-Entrada'!E28 -> 13.1 | J14: % | M14: E17 | N14: Alumínio | Q14: =IF('R-Entrada'!G33<>0,S14/'R-Entrada'!G33*100,0) -> 47.3 | R14: % | S14: ='R-Definição'!L29 -> 8.51 | T14: t/d
C15: E40 | D15: Plásticos | I15: ='R-Entrada'!E29+'R-Entrada'!E30 -> 13.5 | J15: %
C16: E41 | D16: Vidros | I16: ='R-Entrada'!E31 -> 2.4 | J16: % | M16: Resíduos orgânicos (para reciclagem) - uso na agricultura ou florestamento | W16: Cálculo auxiliar de orgânicos - t/d | AB16: Cobertura AS
C17: E42 | D17: Metais ferrosos | I17: ='R-Entrada'!E32 -> 2.3 | J17: % | M17: E24 | N17: Resíduos de alimentos | Q17: =IF('R-Entrada'!G26<>0,S17/'R-Entrada'!G26*100,0) -> 55.8 | R17: % | S17: =Y18-(SUM(Z18:AC18)) -> 809.73 | T17: t/d | Y17: Disponível | Z17: Vai CDR | AA17: AS pós triagem | AB17: Org. triados | AC17: Org. seletivos
C18: E43 | D18: Alumínio | I18: ='R-Entrada'!E33 -> 0.6 | J18: % | M18: E25 | N18: Resíduos de jardins e poda | Q18: =IF('R-Entrada'!G27<>0,S18/'R-Entrada'!G27*100,0) -> 55.8 | R18: % | S18: =Y19-(SUM(Z19:AC19)) -> 50.19 | T18: t/d | W18: Resíduos de alimentos | Y18: ='R-Definição'!$D$14+'R-Definição'!$O$32 -> 809.73 | Z18: =IF('R-Definição'!I29="Biosecagem CDR",'R-Definição'!O32,0) -> 0.00 | AA18: =IF('R-Definição'!I29="Aterro sanitário",'R-Definição'!O32,0) -> 0.00 | AB18: =IF(AND(AND('R-Definição'!$I$29="Tratam. biológico",'R-Definição'!$I$72="Cobertura de aterro sanitário",Y18>0)),Y18*(1-('R-Definição'!$O$63/'R-Definição'!$E$60))*('R-Definição'!$E$59/($Y$18+$Y$19)),0) -> 0.00 | AC18: =IF(AND('R-Definição'!$I$72="Cobertura de aterro sanitário",Y18>0),Y18*(1-('R-Definição'!$O$63/'R-Definição'!$E$60))*('R-Definição'!$E$58/($Y$18+$Y$19)),0) -> 0.00
C19: E44 | D19: Têxteis | I19: ='R-Entrada'!E34 -> 2.6 | J19: % | M19: Tipo de tratamento de orgânicos - uso na agricultura ou florestamento | W19: Resíduos de jardins e poda | Y19: ='R-Definição'!$E$14+'R-Definição'!$O$33 -> 50.19 | Z19: =IF('R-Definição'!I29="Biosecagem CDR",'R-Definição'!O33,0) -> 0.00 | AA19: =IF('R-Definição'!I29="Aterro sanitário",'R-Definição'!O33,0) -> 0.00 | AB19: =IF(AND(AND('R-Definição'!$I$29="Tratam. biológico",'R-Definição'!$I$72="Cobertura de aterro sanitário",Y19>0)),Y19*(1-('R-Definição'!$O$63/'R-Definição'!$E$60))*('R-Definição'!$E$59/($Y$18+$Y$19)),0) -> 0.00 | AC19: =IF(AND('R-Definição'!$I$72="Cobertura de aterro sanitário",Y19>0),Y19*(1-('R-Definição'!$O$63/'R-Definição'!$E$60))*('R-Definição'!$E$58/($Y$18+$Y$19)),0) -> 0.00
C20: E45 | D20: Borracha, couro | I20: ='R-Entrada'!E35 -> 0.7 | J20: % | M20: E30 | N20: Compostagem | Q20: =('R-Definição'!J60+'R-Definição'!J61) -> 0.0 | R20: %
C21: E46 | D21: Fraldas (fraldas descartáveis) | I21: ='R-Entrada'!E36 -> 4.0 | J21: % | M21: E31 | N21: Digestão anaeróbia | Q21: ='R-Definição'!J59 -> 100.0 | R21: %
C22: E47 | D22: Madeira | I22: ='R-Entrada'!E37 -> 4.7 | J22: %
C23: E48 | D23: Resíduos minerais | I23: ='R-Entrada'!E38 -> 0.0 | J23: % | M23: Utilização do biogás
C24: E49 | D24: Outros | I24: ='R-Entrada'!E39 -> 4.7 | J24: % | M24: E34 | N24: Energia elétrica | Q24: =IF(S24="Sim",100,0) -> 100.0 | R24: % | S24: ='R-Definição'!J64 -> Sim
I25: =SUM(I12:I24) -> 100.0 | J25: % | M25: E35 | N25: Biometano | Q25: =IF(S24="Sim",0,100) -> 0.0 | R25: %
B27: Aba 'Disposição' da Ferramenta GEE
C28: Tipos de tratamento e descarte de resíduos - disposição no solo
C29: E7 | D29: Não coletado e não queimado | I29: =K29 -> 0.0 | J29: % | K29: 0.00 | L29: t/d | M29: Obs.: Saída de ROTAS sempre zero para 'Não coletado'
C30: E8 | D30: Queimado a céu aberto | I30: 0.0 | J30: % | K30: 0.00 | L30: t/d | M30: Obs.: Saída de ROTAS sempre zero para 'Queimado a céu aberto'
C31: E10 | D31: Disposição inadequada/lixão | I31: =IF($K$40<>0,K31/$K$40*100,0) -> 0.0 | J31: % | K31: =IF(AND('R-Definição'!E122="Rota Atual",'R-Definição'!E123="Disp. Inadequada"),'R-Definição'!N95+'R-Definição'!N96+'R-Definição'!N97+'R-Definição'!N98+'R-Definição'!N99,0) -> 0.00 | L31: t/d
C32: E11 | D32: Aterro controlado sem coleta de biogás | I32: =K32 -> 0.0 | J32: % | K32: 0.00 | L32: t/d | M32: Obs.: Saída de ROTAS sempre zero para 'Aterro controlado'
C33: E12 | D33: Aterro sanitário com coleta de biogás | I33: =IF($K$40<>0,K33/$K$40*100,0) -> 58.0 | J33: % | K33: =IF(OR(AND('R-Definição'!E122="Rota atual",'R-Definição'!E123="Aterro sanitário"),'R-Definição'!E122="Rota Futura"),'R-Definição'!N95+'R-Definição'!N96+'R-Definição'!N97+'R-Definição'!N98+'R-Definição'!N99,0) -> 978.00 | L33: t/d
C34: Outras opções de recuperação e destinação final
C35: E14 | D35: Tratamento biológ. + cobertura do aterro | I35: =IF($K$40<>0,K35/$K$40*100,0) -> 0.0 | J35: % | K35: =IF(AND('R-Definição'!E30<>"CDR",'R-Definição'!E34<>"CDR",'R-Definição'!I28<>"CDR"),SUM(AB18:AC19),0) -> 0.00 | L35: t/d
C36: E15 | D36: CDR seco + cimenteira + rejeito para aterro | I36: =IF($K$40<>0,K36/$K$40*100,0) -> 9.6 | J36: % | K36: =IF(K37<>0,0,'R-Definição'!I51) -> 162.00 | L36: t/d
C37: E16 | D37: CDR seco + cimenteira + trat. biol. + cobertura aterro | I37: =IF($K$40<>0,K37/$K$40*100,0) -> 0.0 | J37: % | K37: =IF(AND(AND('R-Definição'!I51>0,'R-Definição'!I72="Cobertura de aterro sanitário",'R-Definição'!O64<>0)),'R-Definição'!I51+SUM(AB18:AC19)-K35,0) -> 0.00 | L37: t/d
C38: E17 | D38: CDR seco + biosecagem CDR org. + cimenteira | I38: =IF($K$40<>0,K38/$K$40*100,0) -> 0.0 | J38: % | K38: =IF('R-Definição'!I29="Biosecagem CDR",'R-Definição'!I52+SUM(AC18:AC19),'R-Definição'!I52) -> 0.00 | L38: t/d
C39: E19 | D39: Incineração | I39: =IF($K$40<>0,K39/$K$40*100,0) -> 32.4 | J39: % | K39: ='R-Definição'!E112 -> 547.56 | L39: t/d
D40: Total | I40: =SUM(I29:I39) -> 100.0 | J40: % | K40: =SUM(K29:K39) -> 1,687.56 | L40: t/d
C42: E28 | D42: Eficiência na coleta do biogás de aterro | I42: =K42 -> 30.0 | J42: % | K42: ='R-Definição'!F128*100 -> 30.0 | L42: %
C44: Informações sobre o aterro sanitário - coleta e uso do biogás
C45: E32 | D45: Sem queima | I45: =K45 -> 0.0 | J45: % | K45: =IF('R-Definição'!J119=100,'R-Definição'!J119,0) -> 0.0 | L45: %
C46: E33 | D46: Queima | I46: 0.0 | J46: % | K46: =IF(K45<>100,'R-Definição'!J120,0) -> 0.0 | L46: %
C47: E34 | D47: Energia elétrica | I47: 0.0 | J47: % | K47: =IF(AND(K45<>100,'R-Definição'!J123="Sim"),'R-Definição'!J121,0) -> 0.0 | L47: %
C48: E35 | D48: Biometano | I48: 100.0 | J48: % | K48: =IF(AND(K45<>100,'R-Definição'!J124="Sim"),'R-Definição'!J121,0) -> 100.0 | L48: %
C50: Outras formas de tratamento e destinação final - utilização do biogás gerado
D51: Tratamento biollógico + cobertura de aterro
D52: E46 | E52: Energia elétrica | I52: =IF(K52="Sim",100,0) -> 100.0 | J52: % | K52: ='R-Definição'!J64 -> Sim
D53: E47 | E53: Biometano | I53: =IF(K52="Sim",0,100) -> 0.0 | J53: %
D54: CDR seco + cimenteira + trat. biol. + cobertura de aterro
D55: E51 | E55: Energia elétrica | I55: =IF(K55="Sim",100,0) -> 100.0 | J55: % | K55: ='R-Definição'!J64 -> Sim
D56: E52 | E56: Biometano | I56: =IF(K55="Sim",0,100) -> 0.0 | J56: %
C58: Informações sobre a planta de incineração
C59: E58 | D59: Energia elétrica | I59: =K59 -> 21.6 | J59: % | K59: ='R-Avançado'!F28 -> 21.6 | L59: %
C60: E59 | D60: Energia térmica | I60: 0.0 | J60: % | K60: 0.0 | L60: %

Sheet R&C-Painel de Controle
G1: Sim | H1: Não
C2: Ferramenta de Rotas e Custos | F2: Município | G2: =IF('R-Definição'!D2<>0,'R-Definição'!D2,"") -> São Judas Tadeu
C3: ='R-Entrada'!L5 -> Versão 1.01 - Maio de 2022 | F3: Rota | G3: =IF('R-Definição'!D3<>0,'R-Definição'!D3,"") -> Rota Futura 1
B5: RESUMO — GESTÃO DE QUANTITATIVOS | C5: Unid. | D5: Valor | F5: RESUMO — GESTÃO ECONÔMICA | G5: Unid. | H5: Valor
B6: População Atendida | C6: hab. | D6: =D37 -> 2,500,000 | F6: Custo Total da Coleta de RSU | G6: MR$/a | H6: =IF(D24="Sim",L91,0) -> 0.000 | R6: Legenda | S6: Custo Médio Total Coleta RSU | T6: Triag. Man | U6: Triag. Mec | V6: Prod. CDR - Trat. Mec | W6: Prod. CDR - Trat. Mec./Biol. | X6: Biodigestão Anaeróbia | Y6: Compostagem | Z6: Incineração | AA6: Aterro Sanitário
B7: Geração Diária de RSU | C7: t/d | D7: =D39 -> 3,000 | F7: Custo Total da Coleta de RSU | G7: R$/t RSU | H7: =H6*1000000/D8 -> 0.00 | R7: Capex (R$/t "Total Anual RSU") | S7: =IF(D24="Não",0,H21/D41) -> 0 | T7: =L54 -> 30 | U7: =L57 -> 261 | V7: =L60 -> 26 | W7: =L63 -> 0 | X7: =L66 -> 365 | Y7: =L69 -> 85 | Z7: =L72 -> 950 | AA7: =L75 -> 56
B8: Geração Anual de RSU | C8: t/a | D8: =D41 -> 939,000 | F8: Custo Total das Tecnologias de Tratamento | G8: MR$/a | H8: =O79 -> 190.189 | R8: Capex (R$/t "Entr. Anual Tecnol.") | S8: 0 | T8: =L53 -> 1,841 | U8: =L56 -> 354 | V8: =L59 -> 398 | W8: =L62 -> 0 | X8: =L65 -> 1,062 | Y8: =L68 -> 350 | Z8: =L71 -> 4,335 | AA8: =L74 -> 147
B9: Quantidade de Rejeito Disposto em Aterro | C9: t/a | D9: =D45 -> 358,169 | F9: Custo Serviço Transporte + Disposição Aterro Sanitário | G9: MR$/a | H9: =IF('R-Definição'!$E$121="Existente",((D88+D89)*D45+(D89*D11))/1000000,((D85+D88)*D45+(D89*D11))/1000000) -> 51.538 | R9: Opex (R$/t "Total Anual RSU") | S9: =L92 -> 218 | T9: =P54 -> 14 | U9: =P57 -> 49 | V9: =P60 -> 4 | W9: =P63 -> 0 | X9: =P66 -> 38 | Y9: =P69 -> 7 | Z9: =P72 -> 72 | AA9: =IF('R-Definição'!E121="Novo",P75,(D45+D47)*D89/D41) -> 18
B10: % Desvio do aterro sanitário | C10: % | D10: 61.9% | F10: =IF(D24="Sim","Custo Total Rota Tecnológica COM Coleta","Custo Total Rota Tecnológica SEM Coleta") -> Custo Total Rota Tecnológica SEM Coleta | G10: MR$/a | H10: =H6+H8+H9 -> 241.727 | R10: Opex (R$/t "Entr. Anual Tecnol.") | S10: 0 | T10: =P53 -> 848 | U10: =P56 -> 66 | V10: =P59 -> 60 | W10: =P62 -> 0 | X10: =P65 -> 110 | Y10: =P68 -> 30 | Z10: =P71 -> 331 | AA10: =IF('R-Definição'!E121="Novo",P74,D89) -> 48
B11: Qt. Mistos não triados | Direto para aterro | C11: t/a | D11: ='R-Fluxo Massa'!AS49*313 -> 300,480 | F11: Receita Acessória — Tratamento de RSU para Concessionária | G11: MR$/a | H11: =H91*(1-D26) -> 107.776 | R11: Receita Acessória (R$/t "Entr. Anual Tecnol") | S11: 0 | T11: =IF(T12>0,($P37*$D99+$P38*$D100+$P39*$D101+$P40*$D102+$P41*$D103+$P42*$D104)/(T12*313),0) -> 260 | U11: =IF(U12>0,($L37*$D99+$L38*$D100+$L39*$D101+$L40*$D102+$L41*$D103+$L42*$D104)/(U12*313),0) -> 91 | V11: =IF(V12>0,($L45*$D110+$L47*$D109)/(V12*313),0) -> 64 | W11: =IF(W12>0,($L46*$D110+$L48*$D109)/(W12*313),0) -> 0 | X11: =IF(X12>0,($P43*$D112+$P46*$D115)/(X12*313),0) -> 56 | Y11: =IF(Y12>0,($L49*$D106+$L50*$D107)/(Y12*313),0) -> 0 | Z11: =IF(Z12>0,($P44*$D112)/(Z12*313),0) -> 65 | AA11: =IF(AA12>0,($P45*$D112+$P47*$D115)/(AA12*313),0) -> 5
B12: Índice de reciclagem relativo ao total de RSU | C12: % | D12: =(D16)/D8 -> 16.0% | F12: =IF(AND(D24="Sim", D25="Sim"),"Custo Total Rota Tecnológica COM Coleta e COM Receita",IF(AND(D24="Não", D25="Sim"),"Custo Total Rota Tecnológica SEM Coleta e COM Receita",IF(AND(D24="Sim", D25="Não"),"Custo Total Rota Tecnológica COM Coleta e SEM Receita",IF(AND(D24="Não", D25="Não"),"Custo Total Rota Tecnológica SEM Coleta e SEM Receita","-")))) -> Custo Total Rota Tecnológica SEM Coleta e SEM Receita | G12: MR$/a | H12: =IF(D25="Sim",H10-H11,H10) -> 241.727 | R12: Qt (t/d "Entr. Tecnol") | S12: =D39 -> 3000 | T12: =$H53/313 -> 50 | U12: =$H56/313 -> 2214 | V12: =$H59/313 -> 194 | W12: =$H62/313 -> 0 | X12: =$H65/313 -> 1032 | Y12: =$H68/313 -> 731 | Z12: =$H71/313 -> 657 | AA12: =(D45+D47)/313 -> 2104
B13: Eficiência Reciclagem Secos sobre Potencial Total RSU | C13: % | D13: =D16/((SUM('R-Entrada'!G28:G33))*313) -> 50.1% | F13: =IF(AND(D24="Sim", D25="Sim"),"Custo Total Rota Tecnológica COM Coleta e COM Receita",IF(AND(D24="Não", D25="Sim"),"Custo Total Rota Tecnológica SEM Coleta e COM Receita",IF(AND(D24="Sim", D25="Não"),"Custo Total Rota Tecnológica COM Coleta e SEM Receita",IF(AND(D24="Não", D25="Não"),"Custo Total Rota Tecnológica SEM Coleta e SEM Receita","-")))) -> Custo Total Rota Tecnológica SEM Coleta e SEM Receita | G13: R$/t RSU | H13: =H12*1000000/D8 -> 257.43
B15: RESUMO — QUANTITATIVOS DE SUBPRODUTOS | C15: Unid. | D15: Valor | F15: RESUMO — INVESTIMENTO & CONTRATO | G15: Unid. | H15: Valor
B16: Total de Material Reciclável Recuperado | C16: t/a | D16: =H37 -> 149,948 | F16: Investimento Total — Tecnol. de Trat. de RSU | G16: MR$ | H16: =K79 -> 1,665.255
B17: Qt. Material Reciclável Recuperado — Triagem MAN | C17: t/a | D17: =SUM(P37:P42) -> 8,451 | F17: % Nacionalização do Total dos Investimentos | G17: % | H17: =G77 -> 34%
B18: Total de Composto para Uso Nobre Produzido | C18: t/a | D18: =H38+H39 -> 125,830 | F18: Investimento Total — Capex/t RSU | G18: R$/t anual RSU | H18: =H24*1000000/D41 -> 1,964
B19: Total de CDR Produzido | C19: t/a | D19: =H40+H41 -> 43,100 | F19: =J78 -> Reinvestimento Total Rota (cada 5 anos) | G19: MR$ | H19: =K78 -> 25.282
B20: Total de Energia Elétrica Produzida | C20: MWh/a | D20: =H42 -> 75,860 | F20: Provisão Capex — Fechamento do aterro após 20 anos | G20: MR$ | H20: =K76 -> 51.635
B21: Total de Biometano Produzido | C21: Nm³/a | D21: =H43 -> 18,344,909 | F21: Invest. Total — Infraestrutura de Coleta de RSU | G21: MR$ | H21: 0.000
B23: PREMISSAS PARA DEFINIÇÃO DO CONTRATO | C23: Unid. | D23: Valor | F23: ESTIM. TARIFA & RENTAB. INVESTIMENTO | G23: Unid. | H23: Valor
B24: Simulação de Contrato Incluindo Coleta | C24: Sim / Não | D24: Não | F24: VPI | Total Investimento no Prazo do Contrato | G24: MR$ | H24: ='C-FCL Real'!F11 -> 1,843.934
B25: Simulação de Contrato Incluindo Receitas Acessórias | C25: Sim / Não | D25: Não | F25: CMPC — Custo Médio Pond. Capital (WACC) | G25: % | H25: ='C-FCL Real'!C28 -> 10.6%
B26: Compartilhamento Receitas Acessórias com Concedente | C26: % | D26: 0% | F26: ='C-FCL Real'!J28 -> Índice de Retorno do Inv.: Pay Back | G26: a | H26: ='C-FCL Real'!L28 -> 26
B27: Estimativa de Crescimento Populacional Anual | C27: % | D27: 0.0% | F27: ='C-FCL Real'!J26 -> Índice de Retorno do Inv.: VPL | G27: MR$ | H27: ='C-FCL Real'!L26 -> 0.000
B28: Referência — Produto de Financiamento | C28: CEF/BNDES | D28: CEF | F28: ='C-FCL Real'!J27 -> Índice de Retorno do Inv.: TIR | G28: % | H28: ='C-FCL Real'!L27 -> 0.0%
B29: Despesa Anual Gestão/Administração do Contrato | C29: MR$/a | D29: 1.500 | F29: ='C-FCL Real'!N26 -> Taxa de Lucratividade do Investimento | G29: % | H29: ='C-FCL Real'!Q26 -> 100%
B30: Custos de Investimento | Programas Socioambientais | C30: MR$ | D30: 1.500
B31: Custos de Investimento | Itens Específicos do Contrato | C31: MR$ | D31: 1.500
B33: Prazo do Contrato | C33: a | D33: 25 | F33: Valor Total de Pagamentos no Prazo do Contrato | G33: 000 MR$ | H33: =D8*D33*D34/1000000000 -> 7.862
B34: Estimativa Preliminar de Tarifa — Contrato | C34: R$/t RSU | D34: 334.91 | F34: VBC — Valor Bás. Cálculo: Rec. Diretas/Nr Economias | G34: R$/Imov.-1.m-1 | H34: ='C-Calc Tarifa'!H25 -> 28.49
B36: Dados de Geração e Coleta de RSU | C36: Unid. | D36: Valor | F36: Resumo da Produção Total de Subprodutos | G36: Unid. | H36: Valor | J36: Dados da Produção de Subprodutos de RSU | K36: Unid. | L36: Valor | N36: Dados da Produção de Subprodutos de RSU | O36: Unid. | P36: Valor
B37: População Atendida | C37: hab. | D37: ='R-Entrada'!E8 -> 2,500,000 | F37: Material Reciclável | G37: t/a | H37: =SUM(L37:L44)+SUM(P37:P42) -> 149,948 | J37: Mat. Recicl.: Papel/Papelão — Triagem Mecanizada | K37: t/a | L37: =('R-Resumo Bal. Massa'!F58+'R-Resumo Bal. Massa'!G58)*313 -> 54,695 | N37: Mat. Recicl.: Papel/Papelão — Triagem Manual | O37: t/a | P37: ='R-Resumo Bal. Massa'!E58*313 -> 3,470
B38: Geração per capita de RSU | C38: kg.hab.-1.d-1 | D38: =D39*1000*313/D37/365 -> 1.03 | F38: Composto para Uso Nobre Produzido | G38: t/a | H38: =L49 -> 0 | J38: Mat. Recicl.: Plástico Filme — Triagem Mecanizada | K38: t/a | L38: =('R-Resumo Bal. Massa'!F59+'R-Resumo Bal. Massa'!G59)*313 -> 37,159 | N38: Mat. Recicl.: Plástico Filme — Triagem Manual | O38: t/a | P38: ='R-Resumo Bal. Massa'!E59*313 -> 2,358
B39: Geração Diária de RSU | C39: t/d | D39: ='R-Entrada'!E14 -> 3,000 | F39: Composto para Uso Não Nobre Produzido | G39: t/a | H39: 125,830 | J39: Mat. Recicl.: Plástico Rígido — Triagem Mecanizada | K39: t/a | L39: =('R-Resumo Bal. Massa'!F60+'R-Resumo Bal. Massa'!G60)*313 -> 19,206 | N39: Mat. Recicl.: Plástico Rígido — Triagem Manual | O39: t/a | P39: ='R-Resumo Bal. Massa'!E60*313 -> 1,219
B40: Geração Mensal de RSU | C40: t/mês | D40: =D41/12 -> 78,250 | F40: CDR Grosso Produzido | G40: t/a | H40: =L45+L46 -> 43,100 | J40: Mat. Recicl.: Vidros — Triagem Mecânica | K40: t/a | L40: =('R-Resumo Bal. Massa'!F61+'R-Resumo Bal. Massa'!G61)*313 -> 10,020 | N40: Mat. Recicl.: Vidros — Triagem Manual | O40: t/a | P40: ='R-Resumo Bal. Massa'!E61*313 -> 636
B41: Geração Anual de RSU | C41: t/a | D41: =D39*313 -> 939,000 | F41: CDR Fino Produzido | G41: t/a | H41: =L47+L48 -> 0 | J41: Mat. Recicl.: Metais Não Ferrosos — Triagem Mecanizada | K41: t/a | L41: =('R-Resumo Bal. Massa'!F63+'R-Resumo Bal. Massa'!G63)*313 -> 2,505 | N41: Mat. Recicl.: Metais Não Ferrosos — Triagem Manual | O41: t/a | P41: ='R-Resumo Bal. Massa'!E63*313 -> 159
B42: Coleta Seletiva — Secos Recicláveis | C42: t/a | D42: =IF('R-Resumo Bal. Massa'!D13>0,'R-Resumo Bal. Massa'!D13*313,"0") -> 140,850 | F42: Energia Elétrica Produzida | G42: MWh/a | H42: =P43+P44+P45 -> 75,860 | J42: Mat. Recicl.: Metais Ferrosos — Triagem Mecanizada | K42: t/a | L42: =('R-Resumo Bal. Massa'!F62+'R-Resumo Bal. Massa'!G62)*313 -> 9,603 | N42: Mat. Recicl.: Metais Ferrosos — Triagem Manual | O42: t/a | P42: ='R-Resumo Bal. Massa'!E62*313 -> 609
B43: Coleta Seletiva — Orgânicos | C43: t/a | D43: =IF('R-Resumo Bal. Massa'!D14>0,'R-Resumo Bal. Massa'!D14*313,"0") -> 46,950 | F43: Biometano Produzido | G43: Nm³/a | H43: =P46+P47 -> 18,344,909 | J43: Mat. Recicl.: Metais Não Ferrosos — Incineração | K43: t/a | L43: =('R-Resumo Bal. Massa'!J63)*313 -> 1,719 | N43: Energia Elétrica — Biodigestão | O43: MWh/a | P43: ='R-Resumo Bal. Massa'!I74*313*0.9/1000 -> 0
B44: Coleta Convencional — Mistos/rejeitos | C44: t/a | D44: =IF('R-Resumo Bal. Massa'!D15>0,'R-Resumo Bal. Massa'!D15*313,"0") -> 751,200 | J44: Mat. Recicl.: Metais Ferrosos — Incineração | K44: t/a | L44: =('R-Resumo Bal. Massa'!J62)*313 -> 6,590 | N44: Energia Elétrica — Incineração | O44: MWh/a | P44: ='R-Resumo Bal. Massa'!J74*313*0.9/1000 -> 75,860
B45: Quantidade de Rejeito Disposto em Aterro | C45: t/a | D45: ='R-Resumo Bal. Massa'!D52*313 -> 358,169 | J45: CDR Grosso Produzido — Trat. Mec. | K45: t/a | L45: =IF('R-Definição'!I51>0,('R-Definição'!I49-'R-Definição'!O53-'R-Definição'!O55)*'R-Definição'!L50/100*313,0) -> 43,100 | N45: Energia Elétrica — Biogás de Aterro | O45: MWh/a | P45: ='R-Resumo Bal. Massa'!K74*313*0.95/1000 -> 0
B46: % Desvio do Aterro Sanitário | C46: % | D46: =('R-Resumo Bal. Massa'!H50+'R-Resumo Bal. Massa'!H51)/100 -> 62% | J46: CDR Grosso Produzido — Trat. Mec. Biolológico | K46: t/a | L46: =IF('R-Definição'!I52>0,('R-Definição'!I49-'R-Definição'!O53-'R-Definição'!O55)*'R-Definição'!L50/100*313,0) -> 0 | N46: Biometano — Biodigestão | O46: Nm³/a | P46: ='R-Resumo Bal. Massa'!I75*313 -> 15,745,565
B47: Qt. Mistos não triados | Direto para aterro | C47: t/a | D47: ='R-Fluxo Massa'!AS49*313 -> 300,480 | J47: CDR Fino Produzido — Trat. Mec | K47: t/a | L47: =IF('R-Definição'!I51>0,('R-Definição'!I49-'R-Definição'!O53-'R-Definição'!O55)*'R-Definição'!L49/100*313,0) -> 0 | N47: Biometano — Aterro Sanitário | O47: Nm³/a | P47: ='R-Resumo Bal. Massa'!K75*313 -> 2,599,344
J48: CDR Fino Produzido — Trat. Mec. Biológico | K48: t/a | L48: =IF('R-Definição'!I52>0,('R-Definição'!I49-'R-Definição'!O53-'R-Definição'!O55)*'R-Definição'!L49/100*313,0) -> 0
J49: Composto para Uso Nobre Produzido — Compostagem | K49: t/a | L49: ='R-Resumo Bal. Massa'!I66*313 -> 0
J50: Composto para Uso Não Nobre Prod. — Compostagem | K50: t/a | L50: ='R-Resumo Bal. Massa'!I67*313 -> 125,830
G51: Sim | H51: Não
B52: Informações sobre Capex & Opex | Capex | C52: Unid. | D52: Valor | F52: Tecnologias de Tratamento & Disposição | G52: Uso (Sim/Não) | H52: Capac. (t/a) | J52: Tecnologias de Tratamento & Disposição | K52: Capex (MR$) | L52: Capex (R$/t entr) | N52: Tecnologias de Tratamento & Disposição | O52: Opex (MR$) | P52: Opex (R$/t entr)
B53: Custo de Câmbio: Real/Euro | C53: R$/€ | D53: 5.00 | F53: Triagem Manual — Seletivos | G53: ='C-Triagem Man'!L2 -> Sim | H53: =IF('C-Triagem Man'!D2>0,'C-Triagem Man'!H2,0) -> 15,494 | J53: Triagem Manual — Seletivos | K53: =IF('C-Triagem Man'!$E$7="SIM",'C-Triagem Man'!$E$19,IF('C-Triagem Man'!$I$7="SIM",'C-Triagem Man'!$I$19,IF('C-Triagem Man'!$M$7="SIM",'C-Triagem Man'!$M$19,IF('C-Triagem Man'!$Q$7="SIM",'C-Triagem Man'!$Q$19,IF('C-Triagem Man'!$U$7="SIM",'C-Triagem Man'!$U$19,0))))) -> 28.523 | L53: =IF('C-Triagem Man'!$E$7="SIM",'C-Triagem Man'!$E$20,IF('C-Triagem Man'!$I$7="SIM",'C-Triagem Man'!$I$20,IF('C-Triagem Man'!$M$7="SIM",'C-Triagem Man'!$M$20,IF('C-Triagem Man'!$Q$7="SIM",'C-Triagem Man'!$Q$20,IF('C-Triagem Man'!$U$7="SIM",'C-Triagem Man'!$U$20,0))))) -> 1,841 | N53: Triagem Manual — Seletivos | O53: =IF('C-Triagem Man'!$E$7="SIM",'C-Triagem Man'!$E$43,IF('C-Triagem Man'!$I$7="SIM",'C-Triagem Man'!$I$43,IF('C-Triagem Man'!$M$7="SIM",'C-Triagem Man'!$M$43,IF('C-Triagem Man'!$Q$7="SIM",'C-Triagem Man'!$Q$43,IF('C-Triagem Man'!$U$7="SIM",'C-Triagem Man'!$U$43,0))))) -> 13.142 | P53: =IF('C-Triagem Man'!$E$7="SIM",'C-Triagem Man'!$E$42,IF('C-Triagem Man'!$I$7="SIM",'C-Triagem Man'!$I$42,IF('C-Triagem Man'!$M$7="SIM",'C-Triagem Man'!$M$42,IF('C-Triagem Man'!$Q$7="SIM",'C-Triagem Man'!$Q$42,IF('C-Triagem Man'!$U$7="SIM",'C-Triagem Man'!$U$42,0))))) -> 848
B54: Custo de Câmbio: Real/Dólar Americano | C54: R$/US $ | D54: 4.50 | F54: % de Nacionaliz. Equipamentos | % Sobredimens. Projetos | G54: 100% | H54: 10% | K54: Capex /t RSU | L54: =IF(K53>0,K53*1000000/$D$41,0) -> 30 | N54: Receita Acess./ t RSU | Opex / t RSU | O54: =IF(H53>0,((P37*D99)+(P38*D100)+(P39*D101)+(P40*D102)+(P41*D104)+(P42*D103))/$D$41,0) -> 3.909 | P54: =IF(O53>0,O53*1000000/$D$41,0) -> 13.996
B55: Taxas + Impostos sobre Importação de Equipamentos | C55: % | D55: 50% | F55: Área da Unidade de Tratamento Industrial | G55: =IF('C-Triagem Man'!$E$7="SIM",'C-Triagem Man'!$D$17,IF('C-Triagem Man'!$I$7="SIM",'C-Triagem Man'!$H$17,IF('C-Triagem Man'!$M$7="SIM",'C-Triagem Man'!$L$17,IF('C-Triagem Man'!$Q$7="SIM",'C-Triagem Man'!$P$17,IF('C-Triagem Man'!$U$7="SIM",'C-Triagem Man'!$T$17,"0"))))) -> 19,918 | J55: Reinvestimento a cada 5 anos | K55: =IF('C-Triagem Man'!$E$7="SIM",'C-Triagem Man'!$E$23,IF('C-Triagem Man'!$I$7="SIM",'C-Triagem Man'!$I$23,IF('C-Triagem Man'!$M$7="SIM",'C-Triagem Man'!$M$23,IF('C-Triagem Man'!$Q$7="SIM",'C-Triagem Man'!$Q$23,IF('C-Triagem Man'!$U$7="SIM",'C-Triagem Man'!$U$23,"0"))))) -> 0.433 | N55: Custo Fixo | Custo Variável | O55: =IF('C-Triagem Man'!$E$7="SIM",'C-Triagem Man'!$E$44,IF('C-Triagem Man'!$I$7="SIM",'C-Triagem Man'!$I$44,IF('C-Triagem Man'!$M$7="SIM",'C-Triagem Man'!$M$44,IF('C-Triagem Man'!$Q$7="SIM",'C-Triagem Man'!$Q$44,IF('C-Triagem Man'!$U$7="SIM",'C-Triagem Man'!$U$44,0))))) -> 3.028 | P55: =IF('C-Triagem Man'!$E$7="SIM",'C-Triagem Man'!$E$45,IF('C-Triagem Man'!$I$7="SIM",'C-Triagem Man'!$I$45,IF('C-Triagem Man'!$M$7="SIM",'C-Triagem Man'!$M$45,IF('C-Triagem Man'!$Q$7="SIM",'C-Triagem Man'!$Q$45,IF('C-Triagem Man'!$U$7="SIM",'C-Triagem Man'!$U$45,0))))) -> 653
B56: Preço Médio do Terreno para Construção | C56: R$/m2 | D56: 90.00 | F56: Triagem Mecanizada | G56: ='C-Triagem Mec'!L2 -> Sim | H56: =IF('C-Triagem Mec'!D2>0,'C-Triagem Mec'!H2,0) -> 692,982 | J56: Triagem Mecanizada | K56: =IF('C-Triagem Mec'!$E$7="SIM",'C-Triagem Mec'!$E$19,IF('C-Triagem Mec'!$I$7="SIM",'C-Triagem Mec'!$I$19,IF('C-Triagem Mec'!$M$7="SIM",'C-Triagem Mec'!$M$19,IF('C-Triagem Mec'!$Q$7="SIM",'C-Triagem Mec'!$Q$19,IF('C-Triagem Mec'!$U$7="SIM",'C-Triagem Mec'!$U$19,0))))) -> 245.131 | L56: =IF('C-Triagem Mec'!$E$7="SIM",'C-Triagem Mec'!$E$20,IF('C-Triagem Mec'!$I$7="SIM",'C-Triagem Mec'!$I$20,IF('C-Triagem Mec'!$M$7="SIM",'C-Triagem Mec'!$M$20,IF('C-Triagem Mec'!$Q$7="SIM",'C-Triagem Mec'!$Q$20,IF('C-Triagem Mec'!$U$7="SIM",'C-Triagem Mec'!$U$20,0))))) -> 354 | N56: Triagem Mecanizada | O56: =IF('C-Triagem Mec'!$E$7="SIM",'C-Triagem Mec'!$E$43,IF('C-Triagem Mec'!$I$7="SIM",'C-Triagem Mec'!$I$43,IF('C-Triagem Mec'!$M$7="SIM",'C-Triagem Mec'!$M$43,IF('C-Triagem Mec'!$Q$7="SIM",'C-Triagem Mec'!$Q$43,IF('C-Triagem Mec'!$U$7="SIM",'C-Triagem Mec'!$U$43,0))))) -> 45.975 | P56: =IF('C-Triagem Mec'!$E$7="SIM",'C-Triagem Mec'!$E$42,IF('C-Triagem Mec'!$I$7="SIM",'C-Triagem Mec'!$I$42,IF('C-Triagem Mec'!$M$7="SIM",'C-Triagem Mec'!$M$42,IF('C-Triagem Mec'!$Q$7="SIM",'C-Triagem Mec'!$Q$42,IF('C-Triagem Mec'!$U$7="SIM",'C-Triagem Mec'!$U$42,0))))) -> 66
B57: Preço Médio do Terreno para Construção de Aterro Sanitário | C57: R$/m2 | D57: 25.00 | F57: % de Nacionaliz. Equipamentos | % Sobredimens. Projetos | G57: 45% | H57: 20% | K57: Capex /t RSU | L57: =IF(K56>0,K56*1000000/$D$41,0) -> 261 | N57: Receita Acess./ t RSU | Opex / t RSU | O57: =IF(H56>0,((L37*D99)+(L38*D100)+(L39*D101)+(L40*D102)+(L41*D104)+(L42*D103))/$D$41,0) -> 61.609 | P57: =IF(O56>0,O56*1000000/$D$41,0) -> 48.962
B58: Preço Médio de Paisagismo + Pavimentação em Concreto | C58: R$/m2 | D58: 500.00 | F58: Área da Unidade de Tratamento Industrial | G58: =IF('C-Triagem Mec'!$E$7="SIM",'C-Triagem Mec'!$D$17,IF('C-Triagem Mec'!$I$7="SIM",'C-Triagem Mec'!$H$17,IF('C-Triagem Mec'!$M$7="SIM",'C-Triagem Mec'!$L$17,IF('C-Triagem Mec'!$Q$7="SIM",'C-Triagem Mec'!$P$17,IF('C-Triagem Mec'!$U$7="SIM",'C-Triagem Mec'!$T$17,"0"))))) -> 35,121 | J58: Reinvestimento a cada 5 anos | K58: =IF('C-Triagem Mec'!$E$7="SIM",'C-Triagem Mec'!$E$23,IF('C-Triagem Mec'!$I$7="SIM",'C-Triagem Mec'!$I$23,IF('C-Triagem Mec'!$M$7="SIM",'C-Triagem Mec'!$M$23,IF('C-Triagem Mec'!$Q$7="SIM",'C-Triagem Mec'!$Q$23,IF('C-Triagem Mec'!$U$7="SIM",'C-Triagem Mec'!$U$23,"0"))))) -> 4.849 | N58: Custo Fixo | Custo Variável | O58: =IF('C-Triagem Mec'!$E$7="SIM",'C-Triagem Mec'!$E$44,IF('C-Triagem Mec'!$I$7="SIM",'C-Triagem Mec'!$I$44,IF('C-Triagem Mec'!$M$7="SIM",'C-Triagem Mec'!$M$44,IF('C-Triagem Mec'!$Q$7="SIM",'C-Triagem Mec'!$Q$44,IF('C-Triagem Mec'!$U$7="SIM",'C-Triagem Mec'!$U$44,0))))) -> 9.303 | P58: =IF('C-Triagem Mec'!$E$7="SIM",'C-Triagem Mec'!$E$45,IF('C-Triagem Mec'!$I$7="SIM",'C-Triagem Mec'!$I$45,IF('C-Triagem Mec'!$M$7="SIM",'C-Triagem Mec'!$M$45,IF('C-Triagem Mec'!$Q$7="SIM",'C-Triagem Mec'!$Q$45,IF('C-Triagem Mec'!$U$7="SIM",'C-Triagem Mec'!$U$45,0))))) -> 53
B59: Incineração: Origem Base Tecnológica | C59: Tecnologia Europeia | F59: Produção de CDR TM — Trat. Mec. | G59: ='C-Produção CDR-TM'!L2 -> Sim | H59: =IF('C-Produção CDR-TM'!D2>0,'C-Produção CDR-TM'!H2,0) -> 60,847 | J59: Produção de CDR TM — Trat. Mec. | K59: =IF('C-Produção CDR-TM'!$E$7="SIM",'C-Produção CDR-TM'!$E$19,IF('C-Produção CDR-TM'!$I$7="SIM",'C-Produção CDR-TM'!$I$19,IF('C-Produção CDR-TM'!$M$7="SIM",'C-Produção CDR-TM'!$M$19,IF('C-Produção CDR-TM'!$Q$7="SIM",'C-Produção CDR-TM'!$Q$19,IF('C-Produção CDR-TM'!$U$7="SIM",'C-Produção CDR-TM'!$U$19,0))))) -> 24.237 | L59: =IF('C-Produção CDR-TM'!$E$7="SIM",'C-Produção CDR-TM'!$E$20,IF('C-Produção CDR-TM'!$I$7="SIM",'C-Produção CDR-TM'!$I$20,IF('C-Produção CDR-TM'!$M$7="SIM",'C-Produção CDR-TM'!$M$20,IF('C-Produção CDR-TM'!$Q$7="SIM",'C-Produção CDR-TM'!$Q$20,IF('C-Produção CDR-TM'!$U$7="SIM",'C-Produção CDR-TM'!$U$20,0))))) -> 398 | N59: Produção de CDR TM — Trat. Mec. | O59: =IF('C-Produção CDR-TM'!$E$7="SIM",'C-Produção CDR-TM'!$E$43,IF('C-Produção CDR-TM'!$I$7="SIM",'C-Produção CDR-TM'!$I$43,IF('C-Produção CDR-TM'!$M$7="SIM",'C-Produção CDR-TM'!$M$43,IF('C-Produção CDR-TM'!$Q$7="SIM",'C-Produção CDR-TM'!$Q$43,IF('C-Produção CDR-TM'!$U$7="SIM",'C-Produção CDR-TM'!$U$43,0))))) -> 3.634 | P59: =IF('C-Produção CDR-TM'!$E$7="SIM",'C-Produção CDR-TM'!$E$42,IF('C-Produção CDR-TM'!$I$7="SIM",'C-Produção CDR-TM'!$I$42,IF('C-Produção CDR-TM'!$M$7="SIM",'C-Produção CDR-TM'!$M$42,IF('C-Produção CDR-TM'!$Q$7="SIM",'C-Produção CDR-TM'!$Q$42,IF('C-Produção CDR-TM'!$U$7="SIM",'C-Produção CDR-TM'!$U$42,0))))) -> 60
B60: Preço Médio do Concreto Usinado Ind. Aplicado | C60: R$/m³ | D60: 5,000.00 | F60: % de Nacionaliz. Equipamentos | % Sobredimens. Projetos | G60: 30% | H60: 20% | K60: Capex /t RSU | L60: =IF(K59>0,K59*1000000/$D$41,0) -> 26 | N60: Receita Acess./ t RSU | Opex / t RSU | O60: =IF(H59>0,((L45*D110)+(L47*D109))/$D$41,0) -> 4.131 | P60: =IF(O59>0,O59*1000000/$D$41,0) -> 3.870
B61: Preço Médio da Construção de Galpão Industrial com Piso | C61: R$/m2 | D61: 1,500.00 | F61: Área da Unidade de Tratamento Industrial | G61: =IF('C-Produção CDR-TM'!$E$7="SIM",'C-Produção CDR-TM'!$D$17,IF('C-Produção CDR-TM'!$I$7="SIM",'C-Produção CDR-TM'!$H$17,IF('C-Produção CDR-TM'!$M$7="SIM",'C-Produção CDR-TM'!$L$17,IF('C-Produção CDR-TM'!$Q$7="SIM",'C-Produção CDR-TM'!$P$17,IF('C-Produção CDR-TM'!$U$7="SIM",'C-Produção CDR-TM'!$T$17,"0"))))) -> 2,900 | J61: Reinvestimento a cada 5 anos | K61: =IF('C-Produção CDR-TM'!$E$7="SIM",'C-Produção CDR-TM'!$E$23,IF('C-Produção CDR-TM'!$I$7="SIM",'C-Produção CDR-TM'!$I$23,IF('C-Produção CDR-TM'!$M$7="SIM",'C-Produção CDR-TM'!$M$23,IF('C-Produção CDR-TM'!$Q$7="SIM",'C-Produção CDR-TM'!$Q$23,IF('C-Produção CDR-TM'!$U$7="SIM",'C-Produção CDR-TM'!$U$23,"0"))))) -> 0.502 | N61: Custo Fixo | Custo Variável | O61: =IF('C-Produção CDR-TM'!$E$7="SIM",'C-Produção CDR-TM'!$E$44,IF('C-Produção CDR-TM'!$I$7="SIM",'C-Produção CDR-TM'!$I$44,IF('C-Produção CDR-TM'!$M$7="SIM",'C-Produção CDR-TM'!$M$44,IF('C-Produção CDR-TM'!$Q$7="SIM",'C-Produção CDR-TM'!$Q$44,IF('C-Produção CDR-TM'!$U$7="SIM",'C-Produção CDR-TM'!$U$44,0))))) -> 0.523 | P61: =IF('C-Produção CDR-TM'!$E$7="SIM",'C-Produção CDR-TM'!$E$45,IF('C-Produção CDR-TM'!$I$7="SIM",'C-Produção CDR-TM'!$I$45,IF('C-Produção CDR-TM'!$M$7="SIM",'C-Produção CDR-TM'!$M$45,IF('C-Produção CDR-TM'!$Q$7="SIM",'C-Produção CDR-TM'!$Q$45,IF('C-Produção CDR-TM'!$U$7="SIM",'C-Produção CDR-TM'!$U$45,0))))) -> 51
B62: Reajuste de Preços Nacionais vs. Março/2020 | C62: % | D62: 0% | F62: Prod. CDR TMB — Trat. Mec./Biológ. | G62: ='C-Produção CDR-TMB'!L2 -> Não | H62: =IF('C-Produção CDR-TMB'!D2>0,'C-Produção CDR-TMB'!H2,0) -> 0 | J62: Produção de CDR TMB — Trat. Mec./Biológ. | K62: =IF('C-Produção CDR-TMB'!$E$7="SIM",'C-Produção CDR-TMB'!$E$19,IF('C-Produção CDR-TMB'!$I$7="SIM",'C-Produção CDR-TMB'!$I$19,IF('C-Produção CDR-TMB'!$M$7="SIM",'C-Produção CDR-TMB'!$M$19,IF('C-Produção CDR-TMB'!$Q$7="SIM",'C-Produção CDR-TMB'!$Q$19,IF('C-Produção CDR-TMB'!$U$7="SIM",'C-Produção CDR-TMB'!$U$19,0))))) -> 0 | L62: =IF('C-Produção CDR-TMB'!$E$7="SIM",'C-Produção CDR-TMB'!$E$20,IF('C-Produção CDR-TMB'!$I$7="SIM",'C-Produção CDR-TMB'!$I$20,IF('C-Produção CDR-TMB'!$M$7="SIM",'C-Produção CDR-TMB'!$M$20,IF('C-Produção CDR-TMB'!$Q$7="SIM",'C-Produção CDR-TMB'!$Q$20,IF('C-Produção CDR-TMB'!$U$7="SIM",'C-Produção CDR-TMB'!$U$20,0))))) -> 0.000 | N62: Produção de CDR TMB — Trat. Mec./Biológ. | O62: =IF('C-Produção CDR-TMB'!$E$7="SIM",'C-Produção CDR-TMB'!$E$43,IF('C-Produção CDR-TMB'!$I$7="SIM",'C-Produção CDR-TMB'!$I$43,IF('C-Produção CDR-TMB'!$M$7="SIM",'C-Produção CDR-TMB'!$M$43,IF('C-Produção CDR-TMB'!$Q$7="SIM",'C-Produção CDR-TMB'!$Q$43,IF('C-Produção CDR-TMB'!$U$7="SIM",'C-Produção CDR-TMB'!$U$43,0))))) -> 0 | P62: =IF('C-Produção CDR-TMB'!$E$7="SIM",'C-Produção CDR-TMB'!$E$42,IF('C-Produção CDR-TMB'!$I$7="SIM",'C-Produção CDR-TMB'!$I$42,IF('C-Produção CDR-TMB'!$M$7="SIM",'C-Produção CDR-TMB'!$M$42,IF('C-Produção CDR-TMB'!$Q$7="SIM",'C-Produção CDR-TMB'!$Q$42,IF('C-Produção CDR-TMB'!$U$7="SIM",'C-Produção CDR-TMB'!$U$42,0))))) -> 0.000
B63: Informações sobre Capex & Opex | Opex | C63: Unid. | D63: Valor | F63: % de Nacionaliz. Equipamentos | % Sobredimens. Projetos | G63: 20% | H63: 20% | K63: Capex /t RSU | L63: =IF(K62>0,K62*1000000/$D$41,0) -> 0 | N63: Receita Acess./ t RSU | Opex / t RSU | O63: =IF(H62>0,((L46*D110)+(L48*D109))/$D$41,0) -> 0.000 | P63: =IF(O62>0,O62*1000000/$D$41,0) -> 0.000
B64: Salário Médio — Nível Gerencial | C64: R$/mês | D64: 20,000 | F64: Área da Unidade de Tratamento Industrial | G64: =IF('C-Produção CDR-TMB'!$E$7="SIM",'C-Produção CDR-TMB'!$D$17,IF('C-Produção CDR-TMB'!$I$7="SIM",'C-Produção CDR-TMB'!$H$17,IF('C-Produção CDR-TMB'!$M$7="SIM",'C-Produção CDR-TMB'!$L$17,IF('C-Produção CDR-TMB'!$Q$7="SIM",'C-Produção CDR-TMB'!$P$17,IF('C-Produção CDR-TMB'!$U$7="SIM",'C-Produção CDR-TMB'!$T$17,"0"))))) -> 0 | J64: Reinvestimento a cada 5 anos | K64: =IF('C-Produção CDR-TMB'!$E$7="SIM",'C-Produção CDR-TMB'!$E$23,IF('C-Produção CDR-TMB'!$I$7="SIM",'C-Produção CDR-TMB'!$I$23,IF('C-Produção CDR-TMB'!$M$7="SIM",'C-Produção CDR-TMB'!$M$23,IF('C-Produção CDR-TMB'!$Q$7="SIM",'C-Produção CDR-TMB'!$Q$23,IF('C-Produção CDR-TMB'!$U$7="SIM",'C-Produção CDR-TMB'!$U$23,"0"))))) -> 0 | N64: Custo Fixo | Custo Variável | O64: =IF('C-Produção CDR-TMB'!$E$7="SIM",'C-Produção CDR-TMB'!$E$44,IF('C-Produção CDR-TMB'!$I$7="SIM",'C-Produção CDR-TMB'!$I$44,IF('C-Produção CDR-TMB'!$M$7="SIM",'C-Produção CDR-TMB'!$M$44,IF('C-Produção CDR-TMB'!$Q$7="SIM",'C-Produção CDR-TMB'!$Q$44,IF('C-Produção CDR-TMB'!$U$7="SIM",'C-Produção CDR-TMB'!$U$44,0))))) -> 0 | P64: =IF('C-Produção CDR-TMB'!$E$7="SIM",'C-Produção CDR-TMB'!$E$45,IF('C-Produção CDR-TMB'!$I$7="SIM",'C-Produção CDR-TMB'!$I$45,IF('C-Produção CDR-TMB'!$M$7="SIM",'C-Produção CDR-TMB'!$M$45,IF('C-Produção CDR-TMB'!$Q$7="SIM",'C-Produção CDR-TMB'!$Q$45,IF('C-Produção CDR-TMB'!$U$7="SIM",'C-Produção CDR-TMB'!$U$45,0))))) -> 0
B65: Salário Médio — Nível Supervisão | C65: R$/mês | D65: 10,000 | F65: Biodigestão Anaeróbia | G65: ='C-Biodigestão'!L2 -> Sim | H65: =IF('C-Biodigestão'!D2>0,'C-Biodigestão'!H2,0) -> 322,986 | J65: Biodigestão Anaeróbia | K65: =IF('C-Biodigestão'!$E$7="SIM",'C-Biodigestão'!$E$19,IF('C-Biodigestão'!$I$7="SIM",'C-Biodigestão'!$I$19,IF('C-Biodigestão'!$M$7="SIM",'C-Biodigestão'!$M$19,IF('C-Biodigestão'!$Q$7="SIM",'C-Biodigestão'!$Q$19,IF('C-Biodigestão'!$U$7="SIM",'C-Biodigestão'!$U$19,0))))) -> 343.017 | L65: =IF('C-Biodigestão'!$E$7="SIM",'C-Biodigestão'!$E$20,IF('C-Biodigestão'!$I$7="SIM",'C-Biodigestão'!$I$20,IF('C-Biodigestão'!$M$7="SIM",'C-Biodigestão'!$M$20,IF('C-Biodigestão'!$Q$7="SIM",'C-Biodigestão'!$Q$20,IF('C-Biodigestão'!$U$7="SIM",'C-Biodigestão'!$U$20,0))))) -> 1,062 | N65: Biodigestão Anaeróbia | O65: =IF('C-Biodigestão'!$E$7="SIM",'C-Biodigestão'!$E$46,IF('C-Biodigestão'!$I$7="SIM",'C-Biodigestão'!$I$46,IF('C-Biodigestão'!$M$7="SIM",'C-Biodigestão'!$M$46,IF('C-Biodigestão'!$Q$7="SIM",'C-Biodigestão'!$Q$46,IF('C-Biodigestão'!$U$7="SIM",'C-Biodigestão'!$U$46,0))))) -> 35.434 | P65: =IF('C-Biodigestão'!$E$7="SIM",'C-Biodigestão'!$E$45,IF('C-Biodigestão'!$I$7="SIM",'C-Biodigestão'!$I$45,IF('C-Biodigestão'!$M$7="SIM",'C-Biodigestão'!$M$45,IF('C-Biodigestão'!$Q$7="SIM",'C-Biodigestão'!$Q$45,IF('C-Biodigestão'!$U$7="SIM",'C-Biodigestão'!$U$45,0))))) -> 110
B66: Salário Médio — Nível Operacional | C66: R$/mês | D66: 1,500 | F66: % de Nacionaliz. Equipamentos | % Sobredimens. Projetos | G66: 50% | H66: 20% | K66: Capex /t RSU | L66: =IF(K65>0,K65*1000000/$D$41,0) -> 365 | N66: Receita Acess./ t RSU | Opex / t RSU | O66: =IF(H65>0,((P43*D112)+(P46*D115))/$D$41,0) -> 19.284 | P66: =IF(O65>0,O65*1000000/$D$41,0) -> 37.736
B67: Regime de Contratação Oper.Triagem Manual | C67: Regime Cooperativa | F67: Área da Unidade de Tratamento Industrial | G67: =IF('C-Biodigestão'!$E$7="SIM",'C-Biodigestão'!$D$17,IF('C-Biodigestão'!$I$7="SIM",'C-Biodigestão'!$H$17,IF('C-Biodigestão'!$M$7="SIM",'C-Biodigestão'!$L$17,IF('C-Biodigestão'!$Q$7="SIM",'C-Biodigestão'!$P$17,IF('C-Biodigestão'!$U$7="SIM",'C-Biodigestão'!$T$17,"0"))))) -> 162,759 | J67: Reinvestimento a cada 5 anos | K67: =IF('C-Biodigestão'!$E$7="SIM",'C-Biodigestão'!$E$26,IF('C-Biodigestão'!$I$7="SIM",'C-Biodigestão'!$I$26,IF('C-Biodigestão'!$M$7="SIM",'C-Biodigestão'!$M$26,IF('C-Biodigestão'!$Q$7="SIM",'C-Biodigestão'!$Q$26,IF('C-Biodigestão'!$U$7="SIM",'C-Biodigestão'!$U$26,"0"))))) -> 5.596 | N67: Custo Fixo | Custo Variável | O67: =IF('C-Biodigestão'!$E$7="SIM",'C-Biodigestão'!$E$47,IF('C-Biodigestão'!$I$7="SIM",'C-Biodigestão'!$I$47,IF('C-Biodigestão'!$M$7="SIM",'C-Biodigestão'!$M$47,IF('C-Biodigestão'!$Q$7="SIM",'C-Biodigestão'!$Q$47,IF('C-Biodigestão'!$U$7="SIM",'C-Biodigestão'!$U$47,0))))) -> 6.698 | P67: =IF('C-Biodigestão'!$E$7="SIM",'C-Biodigestão'!$E$48,IF('C-Biodigestão'!$I$7="SIM",'C-Biodigestão'!$I$48,IF('C-Biodigestão'!$M$7="SIM",'C-Biodigestão'!$M$48,IF('C-Biodigestão'!$Q$7="SIM",'C-Biodigestão'!$Q$48,IF('C-Biodigestão'!$U$7="SIM",'C-Biodigestão'!$U$48,0))))) -> 89
B68: Salário Médio — Triador/Operador Triagem Manual | C68: R$/mês | D68: 1,250 | F68: Compostagem | G68: ='C-Compostagem'!L2 -> Sim | H68: =IF('C-Compostagem'!D2>0,'C-Compostagem'!H2,0) -> 228,782 | J68: Compostagem | K68: =IF('C-Compostagem'!$E$7="SIM",'C-Compostagem'!$E$19,IF('C-Compostagem'!$I$7="SIM",'C-Compostagem'!$I$19,IF('C-Compostagem'!$M$7="SIM",'C-Compostagem'!$M$19,IF('C-Compostagem'!$Q$7="SIM",'C-Compostagem'!$Q$19,IF('C-Compostagem'!$U$7="SIM",'C-Compostagem'!$U$19,0))))) -> 79.975 | L68: =IF('C-Compostagem'!$E$7="SIM",'C-Compostagem'!$E$20,IF('C-Compostagem'!$I$7="SIM",'C-Compostagem'!$I$20,IF('C-Compostagem'!$M$7="SIM",'C-Compostagem'!$M$20,IF('C-Compostagem'!$Q$7="SIM",'C-Compostagem'!$Q$20,IF('C-Compostagem'!$U$7="SIM",'C-Compostagem'!$U$20,0))))) -> 350 | N68: Compostagem | O68: =IF('C-Compostagem'!$E$7="SIM",'C-Compostagem'!$E$43,IF('C-Compostagem'!$I$7="SIM",'C-Compostagem'!$I$43,IF('C-Compostagem'!$M$7="SIM",'C-Compostagem'!$M$43,IF('C-Compostagem'!$Q$7="SIM",'C-Compostagem'!$Q$43,IF('C-Compostagem'!$U$7="SIM",'C-Compostagem'!$U$43,0))))) -> 6.841 | P68: =IF('C-Compostagem'!$E$7="SIM",'C-Compostagem'!$E$42,IF('C-Compostagem'!$I$7="SIM",'C-Compostagem'!$I$42,IF('C-Compostagem'!$M$7="SIM",'C-Compostagem'!$M$42,IF('C-Compostagem'!$Q$7="SIM",'C-Compostagem'!$Q$42,IF('C-Compostagem'!$U$7="SIM",'C-Compostagem'!$U$42,0))))) -> 30
B69: Custo Médio de Consumo de Energia Elétrica | C69: R$/MWh | D69: 375.00 | F69: % de Nacionaliz. Equipamentos | % Sobredimens. Projetos | G69: 20% | H69: 0% | K69: Capex /t RSU | L69: =IF(K68>0,K68*1000000/$D$41,0) -> 85 | N69: Receita Acess./ t RSU | Opex / t RSU | O69: =IF(H68>0,((L49*D106)+(L50*D107))/$D$41,0) -> 0.000 | P69: =IF(O68>0,O68*1000000/$D$41,0) -> 7.285
B70: Custo Fixo — Demanda de Energia Elétrica Contratada Ind. | C70: R$.MW-1.mês-1 | D70: 25,000.00 | F70: Área da Unidade de Tratamento Industrial | G70: =IF('C-Compostagem'!$E$7="SIM",'C-Compostagem'!$D$17,IF('C-Compostagem'!$I$7="SIM",'C-Compostagem'!$H$17,IF('C-Compostagem'!$M$7="SIM",'C-Compostagem'!$L$17,IF('C-Compostagem'!$Q$7="SIM",'C-Compostagem'!$P$17,IF('C-Compostagem'!$U$7="SIM",'C-Compostagem'!$T$17,"0"))))) -> 44,516 | J70: Reinvestimento a cada 5 anos | K70: =IF('C-Compostagem'!$E$7="SIM",'C-Compostagem'!$E$23,IF('C-Compostagem'!$I$7="SIM",'C-Compostagem'!$I$23,IF('C-Compostagem'!$M$7="SIM",'C-Compostagem'!$M$23,IF('C-Compostagem'!$Q$7="SIM",'C-Compostagem'!$Q$23,IF('C-Compostagem'!$U$7="SIM",'C-Compostagem'!$U$23,"0"))))) -> 4.577 | N70: Custo Fixo | Custo Variável | O70: =IF('C-Compostagem'!$E$7="SIM",'C-Compostagem'!$E$44,IF('C-Compostagem'!$I$7="SIM",'C-Compostagem'!$I$44,IF('C-Compostagem'!$M$7="SIM",'C-Compostagem'!$M$44,IF('C-Compostagem'!$Q$7="SIM",'C-Compostagem'!$Q$44,IF('C-Compostagem'!$U$7="SIM",'C-Compostagem'!$U$44,0))))) -> 0.804 | P70: =IF('C-Compostagem'!$E$7="SIM",'C-Compostagem'!$E$45,IF('C-Compostagem'!$I$7="SIM",'C-Compostagem'!$I$45,IF('C-Compostagem'!$M$7="SIM",'C-Compostagem'!$M$45,IF('C-Compostagem'!$Q$7="SIM",'C-Compostagem'!$Q$45,IF('C-Compostagem'!$U$7="SIM",'C-Compostagem'!$U$45,0))))) -> 26
B71: Custo Médio de Serviço — Terceiros Auxiliares Fixos | C71: R$/mês | D71: 100,000.00 | F71: Incineração | G71: ='C-Incineração'!L2 -> Sim | H71: =IF('C-Incineração'!D2>0,'C-Incineração'!H2,0) -> 205,664 | J71: Incineração | K71: =IF('C-Incineração'!$E$7="SIM",'C-Incineração'!$E$19,IF('C-Incineração'!$I$7="SIM",'C-Incineração'!$I$19,IF('C-Incineração'!$M$7="SIM",'C-Incineração'!$M$19,IF('C-Incineração'!$Q$7="SIM",'C-Incineração'!$Q$19,IF('C-Incineração'!$U$7="SIM",'C-Incineração'!$U$19,0))))) -> 891.623 | L71: =IF('C-Incineração'!$E$7="SIM",'C-Incineração'!$E$20,IF('C-Incineração'!$I$7="SIM",'C-Incineração'!$I$20,IF('C-Incineração'!$M$7="SIM",'C-Incineração'!$M$20,IF('C-Incineração'!$Q$7="SIM",'C-Incineração'!$Q$20,IF('C-Incineração'!$U$7="SIM",'C-Incineração'!$U$20,0))))) -> 4,335 | N71: Incineração | O71: =IF('C-Incineração'!$E$7="SIM",'C-Incineração'!$E$51,IF('C-Incineração'!$I$7="SIM",'C-Incineração'!$I$51,IF('C-Incineração'!$M$7="SIM",'C-Incineração'!$M$51,IF('C-Incineração'!$Q$7="SIM",'C-Incineração'!$Q$51,IF('C-Incineração'!$U$7="SIM",'C-Incineração'!$U$51,0))))) -> 67.977 | P71: =IF('C-Incineração'!$E$7="SIM",'C-Incineração'!$E$50,IF('C-Incineração'!$I$7="SIM",'C-Incineração'!$I$50,IF('C-Incineração'!$M$7="SIM",'C-Incineração'!$M$50,IF('C-Incineração'!$Q$7="SIM",'C-Incineração'!$Q$50,IF('C-Incineração'!$U$7="SIM",'C-Incineração'!$U$50,0))))) -> 331
B72: Custo Médio de Aluguel de Pá Carregadeira com Oper. | C72: R$/Mês | D72: 25,000 | F72: % de Nacionaliz. Equipamentos | % Sobredimens. Projetos | G72: 20% | H72: 20% | K72: Capex /t RSU | L72: =IF(K71>0,K71*1000000/$D$41,0) -> 950 | N72: Receita Acess./ t RSU | Opex / t RSU | O72: =IF(H71>0,((P44*D112))/$D$41,0) -> 14.138 | P72: =IF(O71>0,O71*1000000/$D$41,0) -> 72.393
B73: Custo Médio de Aluguel de Equipamentos Móveis para Aterro | C73: R$/h | D73: 100.00 | F73: Área da Unidade de Tratamento Industrial | G73: =IF('C-Incineração'!$E$7="SIM",'C-Incineração'!$D$17,IF('C-Incineração'!$I$7="SIM",'C-Incineração'!$H$17,IF('C-Incineração'!$M$7="SIM",'C-Incineração'!$L$17,IF('C-Incineração'!$Q$7="SIM",'C-Incineração'!$P$17,IF('C-Incineração'!$U$7="SIM",'C-Incineração'!$T$17,"0"))))) -> 96,000 | J73: Reinvestimento a cada 5 anos | K73: =IF('C-Incineração'!$E$7="SIM",'C-Incineração'!$E$25,IF('C-Incineração'!$I$7="SIM",'C-Incineração'!$I$25,IF('C-Incineração'!$M$7="SIM",'C-Incineração'!$M$25,IF('C-Incineração'!$Q$7="SIM",'C-Incineração'!$Q$25,IF('C-Incineração'!$U$7="SIM",'C-Incineração'!$U$25,"0"))))) -> 9.326 | N73: Custo Fixo | Custo Variável | O73: =IF('C-Incineração'!$E$7="SIM",'C-Incineração'!$E$52,IF('C-Incineração'!$I$7="SIM",'C-Incineração'!$I$52,IF('C-Incineração'!$M$7="SIM",'C-Incineração'!$M$52,IF('C-Incineração'!$Q$7="SIM",'C-Incineração'!$Q$52,IF('C-Incineração'!$U$7="SIM",'C-Incineração'!$U$52,0))))) -> 10.729 | P73: =IF('C-Incineração'!$E$7="SIM",'C-Incineração'!$E$53,IF('C-Incineração'!$I$7="SIM",'C-Incineração'!$I$53,IF('C-Incineração'!$M$7="SIM",'C-Incineração'!$M$53,IF('C-Incineração'!$Q$7="SIM",'C-Incineração'!$Q$53,IF('C-Incineração'!$U$7="SIM",'C-Incineração'!$U$53,0))))) -> 278
B74: Custo Médio de Destinação de Efluente Líquido | C74: R$/m³ | D74: 35.00 | F74: Aterro Sanitário | G74: ='C-Aterro Sanitário'!L2 -> Sim | H74: =IF('C-Aterro Sanitário'!D2>0,'C-Aterro Sanitário'!H2,0) -> 358,169 | J74: Aterro Sanitário | K74: =IF('C-Aterro Sanitário'!$E$7="SIM",'C-Aterro Sanitário'!$E$18,IF('C-Aterro Sanitário'!$I$7="SIM",'C-Aterro Sanitário'!$I$18,IF('C-Aterro Sanitário'!$M$7="SIM",'C-Aterro Sanitário'!$M$18,IF('C-Aterro Sanitário'!$Q$7="SIM",'C-Aterro Sanitário'!$Q$18,IF('C-Aterro Sanitário'!$U$7="SIM",'C-Aterro Sanitário'!$U$18,0))))) -> 52.749 | L74: =IF('C-Aterro Sanitário'!$E$7="SIM",'C-Aterro Sanitário'!$E$19,IF('C-Aterro Sanitário'!$I$7="SIM",'C-Aterro Sanitário'!$I$19,IF('C-Aterro Sanitário'!$M$7="SIM",'C-Aterro Sanitário'!$M$19,IF('C-Aterro Sanitário'!$Q$7="SIM",'C-Aterro Sanitário'!$Q$19,IF('C-Aterro Sanitário'!$U$7="SIM",'C-Aterro Sanitário'!$U$19,0))))) -> 147 | N74: Aterro Sanitário | O74: =IF('C-Aterro Sanitário'!$E$7="SIM",'C-Aterro Sanitário'!$E$46,IF('C-Aterro Sanitário'!$I$7="SIM",'C-Aterro Sanitário'!$I$46,IF('C-Aterro Sanitário'!$M$7="SIM",'C-Aterro Sanitário'!$M$46,IF('C-Aterro Sanitário'!$Q$7="SIM",'C-Aterro Sanitário'!$Q$46,IF('C-Aterro Sanitário'!$U$7="SIM",'C-Aterro Sanitário'!$U$46,0))))) -> 17.185 | P74: =IF('C-Aterro Sanitário'!$E$7="SIM",'C-Aterro Sanitário'!$E$45,IF('C-Aterro Sanitário'!$I$7="SIM",'C-Aterro Sanitário'!$I$45,IF('C-Aterro Sanitário'!$M$7="SIM",'C-Aterro Sanitário'!$M$45,IF('C-Aterro Sanitário'!$Q$7="SIM",'C-Aterro Sanitário'!$Q$45,IF('C-Aterro Sanitário'!$U$7="SIM",'C-Aterro Sanitário'!$U$45,0))))) -> 48
B75: Custo Médio de Óleo Diesel para Movimentação Interna de Resíduos | C75: R$/L | D75: 3.00 | F75: % de Nacionaliz. Equipamentos | % Sobredimens. Projetos | G75: 100% | H75: 0% | K75: Capex /t RSU | L75: =IF(K74>0,K74*1000000/$D$41,0) -> 56 | N75: Receita Acess./ t RSU | Opex / t RSU | O75: =IF(H74>0,((P45*D112+P47*D115))/$D$41,0) -> 3.183 | P75: =IF(O74>0,O74*1000000/$D$41,0) -> 18.302
B76: Custo Médio de Ureia — Abatimento das Emissões — Inciner. | C76: R$/kg | D76: 150.00 | F76: Área Total Aterrro Sanitário | G76: =IF('C-Aterro Sanitário'!$E$7="SIM",'C-Aterro Sanitário'!$D$17*10000,IF('C-Aterro Sanitário'!$I$7="SIM",'C-Aterro Sanitário'!$H$17*10000,IF('C-Aterro Sanitário'!$M$7="SIM",'C-Aterro Sanitário'!$L$17*10000,IF('C-Aterro Sanitário'!$Q$7="SIM",'C-Aterro Sanitário'!$P$17*10000,IF('C-Aterro Sanitário'!$U$7="SIM",'C-Aterro Sanitário'!$T$17*10000,"0"))))) -> 360,375 | J76: Capex Encerramento Aterro Sanitário: após 20 anos | K76: =IF('C-Aterro Sanitário'!$E$7="SIM",'C-Aterro Sanitário'!$E$21+'C-Aterro Sanitário'!$E$22,IF('C-Aterro Sanitário'!$I$7="SIM",'C-Aterro Sanitário'!$I$21+'C-Aterro Sanitário'!$I$22,IF('C-Aterro Sanitário'!$M$7="SIM",'C-Aterro Sanitário'!$M$21+'C-Aterro Sanitário'!$M$22,IF('C-Aterro Sanitário'!$Q$7="SIM",'C-Aterro Sanitário'!$Q$21+'C-Aterro Sanitário'!$Q$22,IF('C-Aterro Sanitário'!$U$7="SIM",'C-Aterro Sanitário'!$U$21+'C-Aterro Sanitário'!$U$22,0))))) -> 51.635 | L76: =IF(K74>0,K76*1000000/(H74*20),0) -> 7 | N76: Custo Fixo | Custo Variável | O76: =IF('C-Aterro Sanitário'!$E$7="SIM",'C-Aterro Sanitário'!$E$47,IF('C-Aterro Sanitário'!$I$7="SIM",'C-Aterro Sanitário'!$I$47,IF('C-Aterro Sanitário'!$M$7="SIM",'C-Aterro Sanitário'!$M$47,IF('C-Aterro Sanitário'!$Q$7="SIM",'C-Aterro Sanitário'!$Q$47,IF('C-Aterro Sanitário'!$U$7="SIM",'C-Aterro Sanitário'!$U$47,0))))) -> 4.881 | P76: =IF('C-Aterro Sanitário'!$E$7="SIM",'C-Aterro Sanitário'!$E$48,IF('C-Aterro Sanitário'!$I$7="SIM",'C-Aterro Sanitário'!$I$48,IF('C-Aterro Sanitário'!$M$7="SIM",'C-Aterro Sanitário'!$M$48,IF('C-Aterro Sanitário'!$Q$7="SIM",'C-Aterro Sanitário'!$Q$48,IF('C-Aterro Sanitário'!$U$7="SIM",'C-Aterro Sanitário'!$U$48,0))))) -> 34
B77: Custo Médio de Cal Hidratada — Abatimento das Emissões — Inciner. | C77: R$/kg | D77: =0.3+0.15 -> 0.45 | F77: % de Nacionaliz. TOTAL dos Invest. | G77: =IF(K79<>0,(G54*K53+G57*K56+G60*K59+G63*K62+G66*K65+G69*K68+G72*K71+G75*K74)/K79,0) -> 34%
B78: Custo Médio de Carvão Ativado — Abatimento das Emissões — Inciner. | C78: R$/kg | D78: 100.00 | F78: Área Total da Unidade de Tratamento de Resíduos | G78: =G55+G58+G61+G64+G67+G70+G73 -> 361,214 | J78: Reinvestimento Total Rota (cada 5 anos) | K78: =K55+K58+K61+K64+K67+K70+K73 -> 25.282 | L78: -
B79: Custo Tarifa Média de Água Industrial para Inciner. | C79: R$/m³ | D79: 15.00 | F79: Total de RSU Manejado no Tratamento/Disposição | H79: ='R-Resumo Bal. Massa'!D16*313 -> 939,000 | J79: Total CAPEX do Trat. / Disp. do RSU | K79: =K53+K56+K59+K62+K65+K68+K71+K74 -> 1,665.255 | L79: =K79*1000000/H79 -> 1,773 | N79: Total OPEX do Tratamento/Disposição do RSU | O79: =O53+O56+O59+O62+O65+O68+O71+O74 -> 190.189 | P79: =O79*1000000/H79 -> 203
B81: Dados de Custos Econômicos | C81: Unid. | D81: Valor | F81: Receitas Acessórias | G81: Unid. | H81: Valor | J81: Custos de Coleta e Transbordo | K81: Unid. | L81: Valor | N81: Custos da Produção de Subprodutos | O81: Unid. | P81: Valor
B82: Custo de Coleta e Transporte — Seletiva Secos | C82: R$/t | D82: 450 | F82: Pot. Receita Acessória — Venda Materiais Recicláveis | G82: MR$/a | H82: =((L37)*D99+(L38)*D100+(L39)*D101+(L40)*D102+(L41+L43)*D103+(L42+L44)*D104)/1000000 -> 69.525 | J82: Custo da Coleta Seletiva — Secos | K82: MR$/a | L82: =D82*D42/1000000 -> 63.383 | N82: Custo Médio — Produção de CDR | O82: R$/t CDR | P82: =IF(AND(O59<>0,O62<>0),(O59+O62)*1000000/(H40+H41),IF(AND(O59<>0,O62=0),O59*1000000/(H40+H41),IF(AND(O62<>0,O59=0),O62*1000000/(H41+H40),0))) -> 84.32
B83: Custo de Coleta e Transporte — Seletiva Orgânicos | C83: R$/t | D83: 450 | F83: Pot. Receita Acessória — CDR | G83: MR$/a | H83: =((L45+L46)*D110+(L47+L48)*D109)/1000000 -> 3.879 | J83: Custo da Coleta Seletiva — Orgânicos | K83: MR$/a | L83: 21.128 | N83: Custo Médio — Produção de Composto para Uso Nobre | O83: R$/t composto | P83: =IF(O68<>0,O68*1000000/(H38+H39),0) -> 54.36
B84: Custo Coleta e Transporte — Mistos/Rejeitos | C84: R$/t | D84: 150 | F84: Pot. Receita Acessória — Composto Orgânico | G84: MR$/a | H84: =(L49*D106+L50*D107)/1000000 -> 0.000 | J84: Custo da Coleta Convencional Mistos/rejeitos | K84: MR$/a | L84: 112.680 | N84: Custo Médio — Segregação Reciclagem Manual | O84: R$/t Mat. recicl. | P84: =IF(O53<>0,O53*1000000/(SUM(P37:P42)),0) -> 1,555.13
B85: =IF('R-Definição'!$O$120="Sim","Custo Operação Estação Transbordo Coleta Mistos/Rejeitos","") -> Custo Operação Estação Transbordo Coleta Mistos/Rejeitos | C85: =IF('R-Definição'!$O$120="Sim","R$/t","") -> R$/t | D85: 10 | F85: Pot. Receita Acessória Energia Elétrica — Incineração | G85: MR$/a | H85: =P44*D112/1000000 -> 13.276 | J85: Custo da Operação — Estação Transbordo Col.Mistos/rejeitos | K85: MR$/a | L85: =IF('R-Definição'!O120="Sim",D85*D44/1000000,0) -> 7.512 | N85: Custo Médio — Segregação Reciclagem Mecânica | O85: R$/t Mat. recicl. | P85: =IF(O56<>0,O56*1000000/(SUM(L37:L42)),0) -> 345.19
F86: Pot. Receita Acessória Energia Elétrica — Biodigestão | G86: MR$/a | H86: =P43*D112/1000000 -> 0.000 | N86: Custo Médio — Produçãode Energia Elétrica — Biodigestão | O86: R$/MWh | P86: =IF(AND(O65<>0,'R-Definição'!$J$65="Sim"),O65*1000000/P43,0) -> 0.00
F87: Pot. Receita Acessória Energia Elétrica — Aterro | G87: MR$/a | H87: =P45*D113/1000000 -> 0.000 | N87: Custo Médio — Produção de Energia Elétrica — Incineração | O87: R$/MWh | P87: =IF(O71<>0,O71*1000000/P44,0) -> 896.08
B88: Custo Transporte Unidade Tratamento Resíduos até Aterro | C88: R$/t | D88: 50 | F88: Pot. Receita Acessória Biometano — Biodigestão | G88: MR$/a | H88: =P46*D115/1000000 -> 18.107 | N88: Custo Médio — Produção de Energia Elétrica — Aterro | O88: R$/MWh | P88: =IF(AND(O74<>0,'R-Definição'!$J$123="Sim"),O74*1000000/P45,0) -> 0.00
B89: =IF('R-Definição'!$E$121="Existente","Custo para Disposição Aterro Sanitário","Custo calculado na Aba 'Aterro Sanitário'") -> Custo calculado na Aba 'Aterro Sanitário' | C89: R$/t | D89: 100 | F89: Pot. Receita Acessória Biometano — Aterro | G89: MR$/a | H89: 2.989 | N89: Custo Médio — Produção Biometano — Biodigestão | O89: R$/Nm³ | P89: =IF(AND(O65<>0,'R-Definição'!$J$65="Não"),O65*1000000/P46,0) -> 2.25
B90: Custo Médio CIF para Disposição Aterro Resíduos Perigosos | C90: R$/t | D90: 250 | F90: Pot. Receita Acessória — Venda Mat. Recicl. — Triag MAN | G90: MR$/a | H90: =((P37)*D99+(P38)*D100+(P39)*D101+(P40)*D102+(P41)*D103+(P42)*D104)/1000000 -> 4.022 | N90: Custo Médio — Produção Biometano — Aterro | O90: R$/Nm³ | P90: =IF(AND(O74<>0,'R-Definição'!$J$124="Sim"),O74*1000000/P47,0) -> 6.61
F91: Pot. Receita Acessória Total — Tratamento RSU | G91: MR$/a | H91: =SUM(H82:H89) -> 107.776 | J91: Custo Total da Coleta de RSU | K91: MR$/a | L91: =SUM(L82:L85) -> 204.702
F92: Pot. Receita Acessória Total por t RSU | G92: R$/t | H92: =H91*1000000/D41 -> 115 | J92: Custo Total Unitário da Coleta de RSU | K92: R$/t | L92: =L91*1000000/D41 -> 218
F93: Pot. Receita Acessória Total per capita | G93: R$.hab.-1.mês-1 | H93: =H92*($D$7*30/$D$6) -> 4.1 | J93: Custo Total da Coleta de RSU per capita | K93: R$.hab.-1.mês-1 | L93: =L92*($D$7*30/$D$6) -> 7.8
B95: RECEITAS ACESSÓRIAS e CUSTOS OPERACIONAIS
B97: Dados — Receitas Acessórias Unitárias | C97: Unid. | D97: Valor | F97: Custo de Tratamento + Disposição sem Coleta | G97: Unid. | H97: Valor | J97: Custo da Rota Tecnológica com Coleta | K97: Unid. | L97: Valor
F98: Custo de Tratamento/Disposição do RSU sem Coleta | G98: MR$/a | H98: =O79+H9 -> 241.727 | J98: Custo Total da Rota Tecnológica com Coleta | K98: MR$/a | L98: =H98+L91 -> 446.429
B99: Preço Médio Líquido — Venda (FOB): Papel/Papelão | C99: R$/t | D99: 400.00 | F99: Custo de Tratamento/Disposição do RSU sem Coleta | G99: R$/t | H99: =H98*1000000/D41 -> 257.43 | J99: Custo Total Unitário da Rota Tecnológica com Coleta | K99: R$/t | L99: =L98*1000000/D41 -> 475.43
B100: Preço Médio Líquido — Venda (FOB): Plástico Filme | C100: R$/t | D100: 500.00 | F100: Custo de Tratamento/Disposição do RSU sem Coleta per capita | G100: R$.hab.-1.mês-1 | H100: =H99*($D$7*30/$D$6) -> 9.27 | J100: Custo Total da Rota Tecnológica com Coleta per capita | K100: R$.hab.-1.mês-1 | L100: =L99*($D$7*30/$D$6) -> 17.12
B101: Preço Médio Líquido — Venda (FOB): Plástico Rígido | C101: R$/t | D101: 650.00
B102: Preço Médio Líquido — Venda(FOB): Vidros | C102: R$/t | D102: 150.00
B103: Preço Médio Líquido — Venda (FOB): Metais Ferrosos | C103: R$/t | D103: 120.00
B104: Preço Médio Líquido — Venda (FOB): Metais Não Ferrosos | C104: R$/t | D104: 900.00
B106: Preço Médio Líquido — Venda (FOB): Composto para Uso Nobre | C106: R$/t | D106: 25.00
B107: Preço Médio Líquido — Venda (FOB): Composto Uso Não Nobre | C107: R$/t | D107: 0.00
B109: Preço Médio Líquido — Venda (FOB): CDR Fino | C109: R$/t | D109: =D110*1.4 -> 126.00
B110: Preço Médio Líquido — Venda (FOB): CDR Grosso | C110: R$/t | D110: 90.00
B112: Preço Médio Líquido —Venda (FOB): Energia Elétrica — UTR | C112: R$/MWh | D112: 175.00
B113: Preço Médio Líquido — Venda (FOB): Energia Elétrica — Aterro | C113: R$/MWh | D113: 175.00
B115: Preço Médio Líquido — Venda (FOB): Biometano — UTR | C115: R$/Nm³ | D115: 1.15
B116: Preço Médio Líquido —Venda (FOB): Biometano — Aterro | C116: R$/Nm³ | D116: 1.15

Sheet C-Calc Tarifa
B2: PREMISSAS DA METODOLOGIA DE CÁLCULO DA TARIFA/TAXA MÉDIA DE MANEJO DE RESÍDUOS SÓLIDOS URBANOS | O2: TABELAS DE RECONCILIAÇÃO PARA VERIFICAÇÃO DOS AJUSTES DOS FATORES PONDERADORES vs HISTÓRICOS DE CONSUMO DE ÁGUA vs GERAÇÃO DE RSU
B5: Variáveis Tarifárias | BÁSICAS | C5: Unidade | D5: Valor | F5: Tipos/Categ. | Economias | G5: Qt (Unit.) | H5: Qt (%) | J5: Qt. Imov. RESID. TOTAL | K5: % Imov. RESID. SOCIAL | O5: DIVERGÊNCIA % Qt. Economias / Imóveis | Q5: DIVERGÊNCIA % Receitas Anuais Faturamento | S5: DIVERGÊNCIA % Qt Anual RSU | U5: DIVERGÊNCIA % Qt Anual Consumo Água (de acordo c/ Fatura Água) | W5: DIVERGÊNCIA % Qt Anual Consumo Água (Estimado p/ Geração RSU) | Y5: DIVERGÊNCIA % Qt Economias Classificadas OK nas Faixas
B6: Rec. Anual para Remuner. Contrato | C6: MR$/a | D6: =D7*D8/1000000 -> 314.481 | F6: Imóveis Resid. — NORMAL | G6: =J7*(1-K7) -> 666,667 | H6: =G6/$G$11 -> 66.66%
B7: Preço Básico — Tarifa do Serviço | C7: R$/t | D7: ='R&C-Painel de Controle'!D34 -> 335 | F7: Imóveis Resid. — SOCIAL | G7: =J7*K7 -> 166,667 | H7: =G7/$G$11 -> 16.67% | J7: ='R&C-Painel de Controle'!D6/3 -> 833,333 | K7: 20.0% | O7: 1.0% | P7: <-- | Q7: 1.0% | R7: <-- | S7: 2.5% | T7: <-- Meta | U7: 2.5% | V7: <-- Meta | W7: 2.5% | X7: <-- Meta | Y7: 5.0% | Z7: <-- Meta
B8: Qt Anual de RSU para Tratamento | C8: t/a | D8: ='R&C-Painel de Controle'!D8 -> 939,000 | F8: Imóveis — Comerciais | G8: =J7/5 -> 166,667 | H8: =G8/$G$11 -> 16.67% | O8: =(O12-O10)/O10 -> -0.0% | Q8: =(Q12-Q10)/Q10 -> -0.5% | S8: =(S12-S10)/S10 -> -0.5% | U8: =(U12-U10)/U10 -> -0.5% | W8: =(W12-W10)/W10 -> -0.5% | Y8: -
B9: Ref. Histórica Consumo de Água/hab/dia | C9: L . hab-1 . d-1 | D9: 155 | F9: Imóveis — Públicos/Filantrôpicos | G9: 25 | H9: =G9/$G$11 -> 0.00% | O9: Definido | Q9: Definido | S9: Definido | U9: Definido | W9: Definido | Y9: Definido
B10: Ref. Histórica Consumo Total Anual de Água | C10: m³/a | D10: =D9*30*12*'R&C-Painel de Controle'!D6/1000 -> 139,500,000 | F10: Imóveis — Industriais | G10: 5 | H10: =G10/$G$11 -> 0.00% | O10: =G11 -> 1,000,030 | Q10: =D25 -> 341.845 | S10: =D8 -> 939,000 | U10: =D10*(1+D24) -> 139,500,000 | W10: =D10*(1+D24) -> 139,500,000 | Y10: =Y7 -> 5.0%
B11: Relação Básica Consumo de Água / Quantidade RSU | C11: m³/t | D11: =D10/D8 -> 148.562 | F11: Total Imóveis | G11: =SUM(G6:G10) -> 1,000,030 | H11: =SUM(H6:H10) -> 100.00% | O11: Estimativa | Q11: Estimado | S11: Estimado | U11: Estimado | W11: Estimado | Y11: Estimado
B12: Tarifa Serviço Manejo e Tratamento RSU/Consumo de Água | C12: R$/m³ | D12: =D7/D11 -> 2.254 | O12: =O33 -> 1,000,030 | Q12: =Q33 -> 340.014 | S12: =S33 -> 933,971 | U12: =U33 -> 138,752,879 | W12: =W33 -> 138,752,879 | Y12: =1-((AA39+AA41+AA42+AA43+AA44+AA45+AA52+AA54+AA55+AA56+AA57+AA58+AA65+AA67+AA68+AA69+AA70+AA71+AA78+AA80+AA81+AA82+AA83+AA84+AA91+AA93+AA94+AA95+AA96)/29) -> 0.0%
B14: Variáveis Tarifárias | SUBSÍDIOS | C14: Unidade | D14: Valor | F14: Variáveis Tarifárias | SUBSÍDIOS | G14: Unidade | H14: Valor
B15: Parcela do custo do serviço de manejo do RSU a ser cobrado dos usuários | C15: % | D15: 100% | F15: % Subvenção SOCIAL: Tar. Resid. SOC / Tar. Resid. NORM | G15: % | H15: 20%
B16: Valor Anual | Subsídio Público ao Serviço de Manejo do RSU | C16: MR$/a | D16: =D10*D12*(1-D15)/1000000 -> 0.000
B17: % Referente ao Custo Serviço Órgão Regulador | C17: % | D17: 1.0%
B18: % Referente à Inadimplência | Sistema Cobrança de Água | C18: % | D18: 5.0% | H18: Ferramenta de Rotas e Custos
B19: % Referente ao Custo pela Prestação do Serviço de Cobrança | C19: % | D19: 2.5% | H19: ='R&C-Painel de Controle'!C3 -> Versão 1.01 - Maio de 2022
B20: Faturamento Anual Serv. Manejo/Trat. RSU — (Pós-subsídio + Inadimplência) | C20: MR$/a | D20: =D10*D12*(1+D17)*(1+D18)*(1+D19)*D15/1000000 -> 341.845
B21: Tarifa Serv. Manejo/Trat. RSU/Consumo Água — (Pós-subsídio + Inadimpl.) | C21: R$/m³ | D21: =D20*1000000/D10 -> 2.451
B23: Var. Tarif. | AJUSTES Rel. Consumo Água/Geração RSU | C23: Unidade | D23: Valor | F23: Valor Básico de Cálculo (VBC): Receita Tot./Nr Economias Consumidor
B24: Expectativa Evolução % Relação Consumo Água(t)/Geração RSU(t) | C24: % | D24: 0.0% | F24: VBC Anual - Valor Anual/ Imóvel | G24: R$/a por Imóvel | H24: =D26*(D10)/G11 -> 342
B25: Faturamento Anual Serviço Manejo e Tratamento RSU — AJUSTADA | C25: MR$/a | D25: =D20 -> 341.845 | F25: VBC Mensal - Valor Mensal/Imóvel | G25: R$/m por Imóvel | H25: =H24/12 -> 28
B26: Preço Básico — Tarifa Serviço Manejo/Trat. RSU/Consumo Água — AJUSTADO | C26: R$/m³ | D26: =(D25*1000000/(D8*D11))*(1-D24) -> 2.451
B29: Fórmula de cálculo da TMRS = VBCTMRS x (Fator a x Fator b1,2 x Fator c) | K29: Valor Básico de Cálculo (VBC) | O29: ESTIMATIVAS & RECONCILIAÇÕES ANUAIS | Receitas de Faturamento | Quantitativo RSU Total | Quantitativo de Consumo Total de Água
B31: Estrutura Referencial do Cálculo da TMRS — com base: Categoria Imóveis, Frequência de Coleta e Consumo de Água | L31: Anual | M31: Mensal | O31: Economias / Imóveis na Faixa | Q31: Receita Anual Estimada (MR$) | S31: RSU Tarifada (t/a) | U31: Água Consumida (m³/a) | W31: Água Consumida (m³/a) | Y31: Tolerância (< 20%)
L32: =H24 -> 342 | M32: =H25 -> 28
O33: =O36+O49+O62+O75+O88 -> 1,000,030 | Q33: =(Q36+Q49+Q62+Q75+Q88)*12/1000000 -> 340 | S33: =12*S34 -> 933,971 | T33: t/a Total | U33: =12*U34 -> 138,752,879 | V33: Qt m³/a Total | W33: =12*W34 -> 138,752,879 | X33: Qt m³/a Total | Y33: 10.0%
B34: Categoria Pública e Filantrópica | S34: =S36+S49+S62+S75+S88 -> 77,831 | T34: t/mês Total | U34: =U36+U49+U62+U75+U88 -> 11,562,740 | V34: Qt m³/mês total | W34: =W36+W49+W62+W75+W88 -> 11,562,740 | X34: Qt m³/mês total
B35: Fatores de cálculo cumulativos | O35: =G9 -> 25
B36: Categoria de uso (a) | C36: Frequência da Coleta | F36: Consumo médio mensal de água (c) | J36: Cálculo Tarifa | Economia Limite Superior Faixa | O36: =O39+O41+O42+O43+O44+O45 -> 25 | Q36: =Q39+Q41+Q42+Q43+Q44+Q45 -> R$2,049 | S36: =IF(AND(Q36<>0,O36<>0),Q36/(($D$25*1000000/$D$8)),0) -> 6 | T36: t/mês Categoria | U36: =U39+U41+U42+U43+U44+U45 -> 836 | V36: Qt m³/mês da Categoria | W36: =W39*O39+W41*O41+W42*O42+W43*O43+W44*O44+W45*O45 -> 836 | X36: Qt m³/mês da Categoria | Y36: Tolerância
C37: Alternada (b1) | D37: Diária (b2) | J37: Coleta dias alternados | L37: Coleta Diária | O37: % Coleta Diária | Q37: 66% | Y37: =$Y$33 -> 10.0%
B38: 1.00 | C38: 1.00 | D38: 1.25 | F38: Faixa Min - Fator Fixo (m3/m) | G38: Faixa Max - Fator Fixo (m3/m) | H38: Fator Ponderador | J38: Anual | K38: Mensal | L38: Anual | M38: Mensal
F39: - | G39: 5 | H39: 0.3500 | J39: =$L$32*H39*$B$38*$C$38 -> R$119.64 | K39: =$M$32*H39*$B$38*$C$38 -> R$9.97 | L39: =J39*$D$38 -> R$149.55 | M39: R$12.46 | O39: 5 | Q39: =O39*$Q$37*M39+O39*(1-$Q$37)*K39 -> R$58.08 | S39: =IF(AND(Q39<>0,O39<>0),Q39/O39/30/(($D$25*1000000/$D$8))*1000,0) -> 1.1 | T39: Kg/d por Unid. da Categoria | U39: =S39*O39*30*$D$11*(1+$D$24)/1000 -> 24 | V39: Qt m³/m por faixa da Categoria | W39: =IF(O39<>0,U39/O39,0) -> 5 | X39: Qt m³/m por Unid. da Categoria | Y39: =IF(O39=0,"-", IF(W39<=(G39*(1+$Y$37)),"OK", "NOK")) -> OK | AA39: =IF(OR(Y39="OK",Y39="-"),1,0) -> 1
F40: Faixa Min - Fator Variav (m3/m) | G40: Faixa Max - Fator Variav (m3/m) | H40: Fator Ponderador
F41: =G39 -> 5 | G41: 15 | H41: 0.0600 | J41: =$L$32*(H39+(G41-F41)*H41)*$B$38*$C$38 -> R$324.74 | K41: =$M$32*(H39+(G41-F41)*H41)*$B$38*$C$38 -> R$27.06 | L41: =J41*$D$38 -> R$405.93 | M41: R$33.83 | O41: 0 | Q41: =O41*$Q$37*M41+O41*(1-$Q$37)*K41 -> R$0.00 | S41: =IF(AND(Q41<>0,O41<>0),Q41/O41/30/(($D$25*1000000/$D$8))*1000,0) -> 0.0 | T41: Kg/d por Unid. da Categoria | U41: =S41*O41*30*$D$11*(1+$D$24)/1000 -> 0 | V41: Qt m³/m por faixa da Categoria | W41: =IF(O41<>0,U41/O41,0) -> 0 | X41: Qt m³/m por Unid. da Categoria | Y41: =IF(O41=0,"-",IF(AND(((F41*(1-$Y$37))<W41),(W41<(G41*(1+$Y$37)))),"OK", "NOK")) -> - | AA41: =IF(OR(Y41="OK",Y41="-"),1,0) -> 1
F42: =G41 -> 15 | G42: 25 | H42: 0.0500 | J42: =$L$32*(H39+(G41-F41)*H41+(G42-F42)*H42)*$B$38*$C$38 -> R$495.66 | K42: =$M$32*(H39+(G41-F41)*H41+(G42-F42)*H42)*$B$38*$C$38 -> R$41.31 | L42: =J42*$D$38 -> R$619.58 | M42: R$51.63 | O42: 0 | Q42: R$0.00 | S42: =IF(AND(Q42<>0,O42<>0),Q42/O42/30/(($D$25*1000000/$D$8))*1000,0) -> 0.0 | T42: Kg/d por Unid. da Categoria | U42: =S42*O42*30*$D$11*(1+$D$24)/1000 -> 0 | V42: Qt m³/m por faixa da Categoria | W42: 0 | X42: Qt m³/m por Unid. da Categoria | Y42: - | AA42: 1
F43: 25 | G43: 35 | H43: 0.0350 | J43: =$L$32*(H39+(G41-F41)*H41+(G42-F42)*H42+(G43-F43)*H43)*$B$38*$C$38 -> R$615.30 | K43: =$M$32*(H39+(G41-F41)*H41+(G42-F42)*H42+(G43-F43)*H43)*$B$38*$C$38 -> R$51.28 | L43: =J43*$D$38 -> R$769.13 | M43: R$64.09 | O43: 0 | Q43: R$0.00 | S43: =IF(AND(Q43<>0,O43<>0),Q43/O43/30/(($D$25*1000000/$D$8))*1000,0) -> 0.0 | T43: Kg/d por Unid. da Categoria | U43: =S43*O43*30*$D$11*(1+$D$24)/1000 -> 0 | V43: Qt m³/m por faixa da Categoria | W43: 0 | X43: Qt m³/m por Unid. da Categoria | Y43: - | AA43: 1
F44: 35 | G44: 50 | H44: =0.03+0.05 -> 0.0800 | J44: =$L$32*(H39+(G41-F41)*H41+(G42-F42)*H42+(G43-F43)*H43+(G44-F44)*H44)*$B$38*$C$38 -> R$1,025.50 | K44: =$M$32*(H39+(G41-F41)*H41+(G42-F42)*H42+(G43-F43)*H43+(G44-F44)*H44)*$B$38*$C$38 -> R$85.46 | L44: =J44*$D$38 -> R$1,281.88 | M44: R$106.82 | O44: 20 | Q44: R$1,991.19 | S44: =IF(AND(Q44<>0,O44<>0),Q44/O44/30/(($D$25*1000000/$D$8))*1000,0) -> 9.1 | T44: Kg/d por Unid. da Categoria | U44: =S44*O44*30*$D$11*(1+$D$24)/1000 -> 813 | V44: Qt m³/m por faixa da Categoria | W44: 41 | X44: Qt m³/m por Unid. da Categoria | Y44: OK | AA44: 1
F45: 50 | G45: 100 | H45: 0.0250 | J45: =$L$32*(H39+(G41-F41)*H41+(G42-F42)*H42+(G43-F43)*H43+(G44-F44)*H44+(G45-F45)*H45)*$B$38*$C$38 -> R$1,452.80 | K45: =$M$32*(H39+(G41-F41)*H41+(G42-F42)*H42+(G43-F43)*H43+(G44-F44)*H44+(G45-F45)*H45)*$B$38*$C$38 -> R$121.07 | L45: =J45*$D$38 -> R$1,816.00 | M45: R$151.33 | O45: 0 | Q45: R$0.00 | S45: =IF(AND(Q45<>0,O45<>0),Q45/O45/30/(($D$25*1000000/$D$8))*1000,0) -> 0.0 | T45: Kg/d por Unid. da Categoria | U45: =S45*O45*30*$D$11*(1+$D$24)/1000 -> 0 | V45: Qt m³/m por faixa da Categoria | W45: 0 | X45: Qt m³/m por Unid. da Categoria | Y45: - | AA45: 1
B47: Categoria Residencial - NORMAL
B48: Fatores de cálculo cumulativos | O48: =G6 -> 666,667
B49: Categoria de uso (a) | C49: Frequência da Coleta | F49: Consumo médio mensal de água (c) | J49: Cálculo Tarifa | Economia Limite Superior Faixa | O49: =O52+O54+O55+O56+O57+O58 -> 666,666 | Q49: =Q52+Q54+Q55+Q56+Q57+Q58 -> R$17,164,634 | S49: =IF(AND(Q49<>0,O49<>0),Q49/(($D$25*1000000/$D$8)),0) -> 47,149 | T49: t/mês Categoria | U49: =U52+U54+U55+U56+U57+U58 -> 7,004,538 | V49: Qt m³/mês da Categoria | W49: =W52*O52+W54*O54+W55*O55+W56*O56+W57*O57+W58*O58 -> 7,004,538 | X49: Qt m³/mês da Categoria | Y49: Tolerância
C50: Alternada (b1) | D50: Diária (b2) | J50: Coleta dias alternados | L50: Coleta Diária | O50: % Coleta Diária | Q50: 66% | Y50: =$Y$33 -> 10.0%
B51: 1.08 | C51: 1.00 | D51: 1.25 | F51: Faixa Min - Fator Fixo (m3/m) | G51: Faixa Max - Fator Fixo (m3/m) | H51: Fator Ponderador | J51: Anual | K51: Mensal | L51: Anual | M51: Mensal
F52: - | G52: 5 | H52: 0.3500 | J52: =$L$32*H52*$B$51*$C$51 -> R$128.62 | K52: =$M$32*H52*$B$51*$C$51 -> R$10.72 | L52: =J52*$D$51 -> R$160.77 | M52: R$13.40 | O52: 346400 | Q52: =O52*$Q$50*M52+O52*(1-$Q$50)*K52 -> R$4,325,290.97 | S52: =IF(AND(Q52<>0,O52<>0),Q52/O52/30/(($D$25*1000000/$D$8))*1000,0) -> 1.1 | T52: Kg/d por Unid. da Categoria | U52: =S52*O52*30*$D$11*(1+$D$24)/1000 -> 1765063 | V52: Qt m³/m por faixa da Categoria | W52: =IF(O52<>0,U52/O52,0) -> 5 | X52: Qt m³/m por Unid. da Categoria | Y52: =IF(O52=0,"-", IF(W52<=(G52*(1+$Y$50)),"OK", "NOK")) -> OK | AA52: =IF(OR(Y52="OK",Y52="-"),1,0) -> 1
F53: Faixa Min - Fator Variav (m3/m) | G53: Faixa Max - Fator Variav (m3/m) | H53: Fator Ponderador
F54: =G52 -> 5 | G54: 15 | H54: =0.06 -> 0.0600 | J54: =$L$32*(H52+(G54-F54)*H54)*$B$51*$C$51 -> R$349.10 | K54: =$M$32*(H52+(G54-F54)*H54)*$B$51*$C$51 -> R$29.09 | L54: =J54*$D$51 -> R$436.37 | M54: R$36.36 | O54: 251500 | Q54: =O54*$Q$50*M54+O54*(1-$Q$50)*K54 -> R$8,523,755.73 | S54: =IF(AND(Q54<>0,O54<>0),Q54/O54/30/(($D$25*1000000/$D$8))*1000,0) -> 3.1 | T54: Kg/d por Unid. da Categoria | U54: =S54*O54*30*$D$11*(1+$D$24)/1000 -> 3478371 | V54: Qt m³/m por faixa da Categoria | W54: =IF(O54<>0,U54/O54,0) -> 14 | X54: Qt m³/m por Unid. da Categoria | Y54: =IF(O54=0,"-",IF(AND(((F54*(1-$Y$50))<W54),(W54<(G54*(1+$Y$50)))),"OK", "NOK")) -> OK | AA54: =IF(OR(Y54="OK",Y54="-"),1,0) -> 1
F55: =G54 -> 15 | G55: 25 | H55: =0.05-0 -> 0.0500 | J55: =$L$32*(H52+(G54-F54)*H54+(G55-F55)*H55)*$B$51*$C$51 -> R$532.83 | K55: =$M$32*(H52+(G54-F54)*H54+(G55-F55)*H55)*$B$51*$C$51 -> R$44.40 | L55: =J55*$D$51 -> R$666.04 | M55: R$55.50 | O55: 30000 | Q55: R$1,551,881.86 | S55: =IF(AND(Q55<>0,O55<>0),Q55/O55/30/(($D$25*1000000/$D$8))*1000,0) -> 4.7 | T55: Kg/d por Unid. da Categoria | U55: =S55*O55*30*$D$11*(1+$D$24)/1000 -> 633291 | V55: Qt m³/m por faixa da Categoria | W55: 21 | X55: Qt m³/m por Unid. da Categoria | Y55: OK | AA55: 1
F56: 25 | G56: 35 | H56: 0.0350 | J56: =$L$32*(H52+(G54-F54)*H54+(G55-F55)*H55+(G56-F56)*H56)*$B$51*$C$51 -> R$661.45 | K56: =$M$32*(H52+(G54-F54)*H54+(G55-F55)*H55+(G56-F56)*H56)*$B$51*$C$51 -> R$55.12 | L56: =J56*$D$51 -> R$826.81 | M56: R$68.90 | O56: 33400 | Q56: R$2,144,807.76 | S56: =IF(AND(Q56<>0,O56<>0),Q56/O56/30/(($D$25*1000000/$D$8))*1000,0) -> 5.9 | T56: Kg/d por Unid. da Categoria | U56: =S56*O56*30*$D$11*(1+$D$24)/1000 -> 875252 | V56: Qt m³/m por faixa da Categoria | W56: 26 | X56: Qt m³/m por Unid. da Categoria | Y56: OK | AA56: 1
F57: 35 | G57: 50 | H57: =0.03+0.05 -> 0.0800 | J57: =$L$32*(H52+(G54-F54)*H54+(G55-F55)*H55+(G56-F56)*H56+(G57-F57)*H57)*$B$51*$C$51 -> R$1,102.42 | K57: =$M$32*(H52+(G54-F54)*H54+(G55-F55)*H55+(G56-F56)*H56+(G57-F57)*H57)*$B$51*$C$51 -> R$91.87 | L57: =J57*$D$51 -> R$1,378.02 | M57: R$114.84 | O57: 4366 | Q57: R$467,276.98 | S57: =IF(AND(Q57<>0,O57<>0),Q57/O57/30/(($D$25*1000000/$D$8))*1000,0) -> 9.8 | T57: Kg/d por Unid. da Categoria | U57: =S57*O57*30*$D$11*(1+$D$24)/1000 -> 190686 | V57: Qt m³/m por faixa da Categoria | W57: 44 | X57: Qt m³/m por Unid. da Categoria | Y57: OK | AA57: 1
F58: 50 | G58: 100 | H58: 0.0250 | J58: =$L$32*(H52+(G54-F54)*H54+(G55-F55)*H55+(G56-F56)*H56+(G57-F57)*H57+(G58-F58)*H58)*$B$51*$C$51 -> R$1,561.76 | K58: =$M$32*(H52+(G54-F54)*H54+(G55-F55)*H55+(G56-F56)*H56+(G57-F57)*H57+(G58-F58)*H58)*$B$51*$C$51 -> R$130.15 | L58: =J58*$D$51 -> R$1,952.20 | M58: R$162.68 | O58: 1000 | Q58: R$151,620.64 | S58: =IF(AND(Q58<>0,O58<>0),Q58/O58/30/(($D$25*1000000/$D$8))*1000,0) -> 13.9 | T58: Kg/d por Unid. da Categoria | U58: =S58*O58*30*$D$11*(1+$D$24)/1000 -> 61873 | V58: Qt m³/m por faixa da Categoria | W58: 62 | X58: Qt m³/m por Unid. da Categoria | Y58: OK | AA58: 1
B60: Categoria Residencial - SOCIAL
B61: Fatores de cálculo cumulativos | O61: =G7 -> 166,667
B62: Categoria de uso (a) | C62: Frequência da Coleta | F62: Consumo médio mensal de água (c) | J62: Cálculo Tarifa | Economia Limite Superior Faixa | O62: =O65+O67+O68+O69+O70+O71 -> 166,667 | Q62: =Q65+Q67+Q68+Q69+Q70+Q71 -> R$955,546 | S62: =IF(AND(Q62<>0,O62<>0),Q62/(($D$25*1000000/$D$8)),0) -> 2,625 | T62: t/mês Categoria | U62: =U65+U67+U68+U69+U70+U71 -> 389,939 | V62: Qt m³/mês da Categoria | W62: =W65*O65+W67*O67+W68*O68+W69*O69+W70*O70+W71*O71 -> 389,939 | X62: Qt m³/mês da Categoria | Y62: Tolerância
C63: Alternada (b1) | D63: Diária (b2) | J63: Coleta dias alternados | L63: Coleta Diária | O63: % Coleta Diária | Q63: 66% | Y63: =$Y$33 -> 10.0%
B64: =B51*$H$15 -> 0.22 | C64: =C51 -> 1.00 | D64: 1.25 | F64: Faixa Min - Fator Fixo (m3/m) | G64: Faixa Max - Fator Fixo (m3/m) | H64: Fator Ponderador | J64: Anual | K64: Mensal | L64: Anual | M64: Mensal
F65: - | G65: =G52 -> 5 | H65: 0.3500 | J65: =$L$32*H65*$B$64*$C$64 -> R$25.72 | K65: =$M$32*H65*$B$64*$C$64 -> R$2.14 | L65: =J65*$D$51 -> R$32.15 | M65: R$2.68 | O65: =150000-64500 -> 85500 | Q65: =O65*$Q$63*M65+O65*(1-$Q$63)*K65 -> R$213,517.54 | S65: =IF(AND(Q65<>0,O65<>0),Q65/O65/30/(($D$25*1000000/$D$8))*1000,0) -> 0.2 | T65: Kg/d por Unid. da Categoria | U65: =S65*O65*30*$D$11*(1+$D$24)/1000 -> 87132 | V65: Qt m³/m por faixa da Categoria | W65: =IF(O65<>0,U65/O65,0) -> 1 | X65: Qt m³/m por Unid. da Categoria | Y65: =IF(O65=0,"-", IF((W65/($H$15))<=(G65*(1+$Y$63)),"OK", "NOK")) -> OK | Z65: =W65/$H$15 -> 5 | AA65: =IF(OR(Y65="OK",Y65="-"),1,0) -> 1
F66: Faixa Min - Fator Variav (m3/m) | G66: Faixa Max - Fator Variav (m3/m) | H66: Fator Ponderador
F67: =G65 -> 5 | G67: =G54 -> 15 | H67: 0.0600 | J67: =$L$32*(H65+(G67-F67)*H67)*$B$64*$C$64 -> R$69.82 | K67: =$M$32*(H65+(G67-F67)*H67)*$B$64*$C$64 -> R$5.82 | L67: =J67*$D$51 -> R$87.27 | M67: R$7.27 | O67: 40900 | Q67: =O67*$Q$63*M67+O67*(1-$Q$63)*K67 -> R$277,233.88 | S67: =IF(AND(Q67<>0,O67<>0),Q67/O67/30/(($D$25*1000000/$D$8))*1000,0) -> 0.6 | T67: Kg/d por Unid. da Categoria | U67: =S67*O67*30*$D$11*(1+$D$24)/1000 -> 113134 | V67: Qt m³/m por faixa da Categoria | W67: =IF(O67<>0,U67/O67,0) -> 3 | X67: Qt m³/m por Unid. da Categoria | Y67: =IF(O67=0,"-",IF(AND(((F67*(1-$Y$63))<(W67/$H$15)),((W67/$H$15)<(G67*(1+$Y$63)))),"OK", "NOK")) -> OK | Z67: =W67/$H$15 -> 14 | AA67: =IF(OR(Y67="OK",Y67="-"),1,0) -> 1
F68: =G67 -> 15 | G68: =G55 -> 25 | H68: 0.0500 | J68: =$L$32*(H65+(G67-F67)*H67+(G68-F68)*H68)*$B$64*$C$64 -> R$106.57 | K68: =$M$32*(H65+(G67-F67)*H67+(G68-F68)*H68)*$B$64*$C$64 -> R$8.88 | L68: =J68*$D$51 -> R$133.21 | M68: R$11.10 | O68: 37120 | Q68: R$384,039.03 | S68: =IF(AND(Q68<>0,O68<>0),Q68/O68/30/(($D$25*1000000/$D$8))*1000,0) -> 0.9 | T68: Kg/d por Unid. da Categoria | U68: =S68*O68*30*$D$11*(1+$D$24)/1000 -> 156719 | V68: Qt m³/m por faixa da Categoria | W68: 4 | X68: Qt m³/m por Unid. da Categoria | Y68: =IF(O68=0,"-",IF(AND(((F68*(1-$Y$63))<(W68/$H$15)),((W68/$H$15)<(G68*(1+$Y$63)))),"OK", "NOK")) -> OK | Z68: =W68/$H$15 -> 21 | AA68: 1
F69: 25 | G69: =G56 -> 35 | H69: 0.0350 | J69: =$L$32*(H65+(G67-F67)*H67+(G68-F68)*H68+(G69-F69)*H69)*$B$64*$C$64 -> R$132.29 | K69: =$M$32*(H65+(G67-F67)*H67+(G68-F68)*H68+(G69-F69)*H69)*$B$64*$C$64 -> R$11.02 | L69: =J69*$D$51 -> R$165.36 | M69: R$13.78 | O69: 693 | Q69: R$8,900.31 | S69: =IF(AND(Q69<>0,O69<>0),Q69/O69/30/(($D$25*1000000/$D$8))*1000,0) -> 1.2 | T69: Kg/d por Unid. da Categoria | U69: =S69*O69*30*$D$11*(1+$D$24)/1000 -> 3632 | V69: Qt m³/m por faixa da Categoria | W69: 5 | X69: Qt m³/m por Unid. da Categoria | Y69: =IF(O69=0,"-",IF(AND(((F69*(1-$Y$63))<(W69/$H$15)),((W69/$H$15)<(G69*(1+$Y$63)))),"OK", "NOK")) -> OK | Z69: =W69/$H$15 -> 26 | AA69: 1
F70: 35 | G70: =G57 -> 50 | H70: 0.0800 | J70: =$L$32*(H65+(G67-F67)*H67+(G68-F68)*H68+(G69-F69)*H69+(G70-F70)*H70)*$B$64*$C$64 -> R$220.48 | K70: =$M$32*(H65+(G67-F67)*H67+(G68-F68)*H68+(G69-F69)*H69+(G70-F70)*H70)*$B$64*$C$64 -> R$18.37 | L70: =J70*$D$51 -> R$275.60 | M70: R$22.97 | O70: 287 | Q70: R$6,143.31 | S70: =IF(AND(Q70<>0,O70<>0),Q70/O70/30/(($D$25*1000000/$D$8))*1000,0) -> 2.0 | T70: Kg/d por Unid. da Categoria | U70: =S70*O70*30*$D$11*(1+$D$24)/1000 -> 2507 | V70: Qt m³/m por faixa da Categoria | W70: 9 | X70: Qt m³/m por Unid. da Categoria | Y70: =IF(O70=0,"-",IF(AND(((F70*(1-$Y$63))<(W70/$H$15)),((W70/$H$15)<(G70*(1+$Y$63)))),"OK", "NOK")) -> OK | Z70: =W70/$H$15 -> 44 | AA70: 1
F71: 50 | G71: =G58 -> 100 | H71: 0.0250 | J71: =$L$32*(H65+(G67-F67)*H67+(G68-F68)*H68+(G69-F69)*H69+(G70-F70)*H70+(G71-F71)*H71)*$B$64*$C$64 -> R$312.35 | K71: =$M$32*(H65+(G67-F67)*H67+(G68-F68)*H68+(G69-F69)*H69+(G70-F70)*H70+(G71-F71)*H71)*$B$64*$C$64 -> R$26.03 | L71: =J71*$D$51 -> R$390.44 | M71: R$32.54 | O71: 2167 | Q71: R$65,712.39 | S71: =IF(AND(Q71<>0,O71<>0),Q71/O71/30/(($D$25*1000000/$D$8))*1000,0) -> 2.8 | T71: Kg/d por Unid. da Categoria | U71: =S71*O71*30*$D$11*(1+$D$24)/1000 -> 26816 | V71: Qt m³/m por faixa da Categoria | W71: 12 | X71: Qt m³/m por Unid. da Categoria | Y71: =IF(O71=0,"-",IF(AND(((F71*(1-$Y$63))<(W71/$H$15)),((W71/$H$15)<(G71*(1+$Y$63)))),"OK", "NOK")) -> OK | Z71: =W71/$H$15 -> 62 | AA71: 1
B73: Categoria Comercial (inclusive prestadores de serviços)
B74: Fatores de cálculo cumulativos | O74: =G8 -> 166,667
B75: Categoria de uso (a) | C75: Frequência da Coleta | F75: Consumo médio mensal de água (c) | J75: Cálculo Tarifa | Economia Limite Superior Faixa | O75: =O78+O80+O81+O82+O83+O84 -> 166,667 | Q75: =Q78+Q80+Q81+Q82+Q83+Q84 -> R$10,203,664 | S75: =IF(AND(Q75<>0,O75<>0),Q75/(($D$25*1000000/$D$8)),0) -> 28,028 | T75: t/mês Categoria | U75: =U78+U80+U81+U82+U83+U84 -> 4,163,908 | V75: Qt m³/mês da Categoria | W75: =W78*O78+W80*O80+W81*O81+W82*O82+W83*O83+W84*O84 -> 4,163,908 | X75: Qt m³/mês da Categoria | Y75: Tolerância
C76: Alternada (b1) | D76: Diária (b2) | J76: Coleta dias alternados | L76: Coleta Diária | O76: % Coleta Diária | Q76: 66% | Y76: =$Y$33 -> 10.0%
B77: 1.75 | C77: 1.00 | D77: 1.25 | F77: Faixa Min - Fator Fixo (m3/m) | G77: Faixa Max - Fator Fixo (m3/m) | H77: Fator Ponderador | J77: Anual | K77: Mensal | L77: Anual | M77: Mensal
F78: - | G78: 5 | H78: =0.35-0.125 -> 0.2250 | J78: =$L$32*H78*$B$77*$C$77 -> R$134.60 | K78: =$M$32*H78*$B$77*$C$77 -> R$11.22 | L78: =J78*$D$77 -> R$168.25 | M78: R$14.02 | O78: 15150 | Q78: =O78*$Q$76*M78+O78*(1-$Q$76)*K78 -> R$197,967.61 | S78: =IF(AND(Q78<>0,O78<>0),Q78/O78/30/(($D$25*1000000/$D$8))*1000,0) -> 1.2 | T78: Kg/d por Unid. da Categoria | U78: =S78*O78*30*$D$11*(1+$D$24)/1000 -> 80787 | V78: Qt m³/m por faixa da Categoria | W78: =IF(O78<>0,U78/O78,0) -> 5 | X78: Qt m³/m por faixa da Categoria | Y78: =IF(O78=0,"-", IF(W78<=(G78*(1+$Y$76)),"OK", "NOK")) -> OK | AA78: =IF(OR(Y78="OK",Y78="-"),1,0) -> 1
F79: Faixa Min - Fator Variav (m3/m) | G79: Faixa Max - Fator Variav (m3/m) | H79: Fator Ponderador
F80: =G78 -> 5 | G80: 20 | H80: =0.055-0.01 -> 0.0450 | J80: =$L$32*(H78+(G80-F80)*H80)*$B$77*$C$77 -> R$538.39 | K80: =$M$32*(H78+(G80-F80)*H80)*$B$77*$C$77 -> R$44.87 | L80: =J80*$D$77 -> R$672.99 | M80: R$56.08 | O80: 107000 | Q80: =O80*$Q$76*M80+O80*(1-$Q$76)*K80 -> R$5,592,748.27 | S80: =IF(AND(Q80<>0,O80<>0),Q80/O80/30/(($D$25*1000000/$D$8))*1000,0) -> 4.8 | T80: Kg/d por Unid. da Categoria | U80: =S80*O80*30*$D$11*(1+$D$24)/1000 -> 2282287 | V80: Qt m³/m por faixa da Categoria | W80: =IF(O80<>0,U80/O80,0) -> 21 | X80: Qt m³/m por faixa da Categoria | Y80: =IF(O80=0,"-",IF(AND(((F80*(1-$Y$76))<W80),(W80<(G80*(1+$Y$76)))),"OK", "NOK")) -> OK | AA80: =IF(OR(Y80="OK",Y80="-"),1,0) -> 1
F81: =G80 -> 20 | G81: 30 | H81: =0.05-0.005 -> 0.0450 | J81: =$L$32*(H78+(G80-F80)*H80+(G81-F81)*H81)*$B$77*$C$77 -> R$807.58 | K81: =$M$32*(H78+(G80-F80)*H80+(G81-F81)*H81)*$B$77*$C$77 -> R$67.30 | L81: =J81*$D$77 -> R$1,009.48 | M81: R$84.12 | O81: 30000 | Q81: R$2,352,090.40 | S81: =IF(AND(Q81<>0,O81<>0),Q81/O81/30/(($D$25*1000000/$D$8))*1000,0) -> 7.2 | T81: Kg/d por Unid. da Categoria | U81: =S81*O81*30*$D$11*(1+$D$24)/1000 -> 959840 | V81: Qt m³/m por faixa da Categoria | W81: 32 | X81: Qt m³/m por faixa da Categoria | Y81: OK | AA81: 1
F82: 30 | G82: 40 | H82: =0.04 -> 0.0400 | J82: =$L$32*(H78+(G80-F80)*H80+(G81-F81)*H81+(G82-F82)*H82)*$B$77*$C$77 -> R$1,046.87 | K82: =$M$32*(H78+(G80-F80)*H80+(G81-F81)*H81+(G82-F82)*H82)*$B$77*$C$77 -> R$87.24 | L82: =J82*$D$77 -> R$1,308.59 | M82: R$109.05 | O82: 73 | Q82: R$7,419.25 | S82: =IF(AND(Q82<>0,O82<>0),Q82/O82/30/(($D$25*1000000/$D$8))*1000,0) -> 9.3 | T82: Kg/d por Unid. da Categoria | U82: =S82*O82*30*$D$11*(1+$D$24)/1000 -> 3028 | V82: Qt m³/m por faixa da Categoria | W82: 41 | X82: Qt m³/m por faixa da Categoria | Y82: OK | AA82: 1
F83: 40 | G83: 55 | H83: =0.035 -> 0.0350 | J83: =$L$32*(H78+(G80-F80)*H80+(G81-F81)*H81+(G82-F82)*H82+(G83-F83)*H83)*$B$77*$C$77 -> R$1,360.93 | K83: =$M$32*(H78+(G80-F80)*H80+(G81-F81)*H81+(G82-F82)*H82+(G83-F83)*H83)*$B$77*$C$77 -> R$113.41 | L83: =J83*$D$77 -> R$1,701.16 | M83: R$141.76 | O83: 12594 | Q83: R$1,663,964.57 | S83: =IF(AND(Q83<>0,O83<>0),Q83/O83/30/(($D$25*1000000/$D$8))*1000,0) -> 12.1 | T83: Kg/d por Unid. da Categoria | U83: =S83*O83*30*$D$11*(1+$D$24)/1000 -> 679030 | V83: Qt m³/m por faixa da Categoria | W83: 54 | X83: Qt m³/m por faixa da Categoria | Y83: OK | AA83: 1
F84: 55 | G84: 100 | H84: =0.03 -> 0.0300 | J84: =$L$32*(H78+(G80-F80)*H80+(G81-F81)*H81+(G82-F82)*H82+(G83-F83)*H83+(G84-F84)*H84)*$B$77*$C$77 -> R$2,168.51 | K84: =$M$32*(H78+(G80-F80)*H80+(G81-F81)*H81+(G82-F82)*H82+(G83-F83)*H83+(G84-F84)*H84)*$B$77*$C$77 -> R$180.71 | L84: =J84*$D$77 -> R$2,710.64 | M84: R$225.89 | O84: 1850 | Q84: R$389,474.23 | S84: =IF(AND(Q84<>0,O84<>0),Q84/O84/30/(($D$25*1000000/$D$8))*1000,0) -> 19.3 | T84: Kg/d por Unid. da Categoria | U84: =S84*O84*30*$D$11*(1+$D$24)/1000 -> 158937 | V84: Qt m³/m por faixa da Categoria | W84: 86 | X84: Qt m³/m por faixa da Categoria | Y84: OK | AA84: 1
B86: Categoria Industrial
B87: Fatores de cálculo cumulativos | O87: =G10 -> 5
B88: Categoria de uso (a) | C88: Frequência da Coleta | F88: Consumo médio mensal de água (c) | J88: Cálculo Tarifa | Economia Limite Superior Faixa | O88: =O91+O93+O94+O95+O96 -> 5 | Q88: =Q91+Q93+Q94+Q95+Q96 -> R$8,624 | S88: =IF(AND(Q88<>0,O88<>0),Q88/(($D$25*1000000/$D$8)),0) -> 24 | T88: t/mês Categoria | U88: =U91+U93+U94+U95+U96+Z97 -> 3,519 | V88: Qt m³/mês da Categoria | W88: =W91*O91+W93*O93+W94*O94+W95*O95+W96*O96 -> 3,519 | X88: Qt m³/mês da Categoria | Y88: Tolerância
C89: Alternada (b1) | D89: Diária (b2) | J89: Coleta dias alternados | L89: Coleta Diária | O89: % Coleta Diária | Q89: 25% | Y89: =$Y$33 -> 10.0%
B90: 1.75 | C90: 1.00 | D90: 1.25 | F90: Faixa Min - Fator Fixo (m3/m) | G90: Faixa Max - Fator Fixo (m3/m) | H90: Fator Ponderador | J90: Anual | K90: Mensal | L90: Anual | M90: Mensal
F91: - | G91: 5 | H91: 0.3500 | J91: =$L$32*H91*$B$90*$C$90 -> R$209.37 | K91: =$M$32*H91*$B$90*$C$90 -> R$17.45 | L91: =J91*$D$90 -> R$261.72 | M91: R$21.81 | O91: 0 | Q91: =O91*$Q$76*M91+O91*(1-$Q$76)*K91 -> R$0.00 | S91: =IF(AND(Q91<>0,O91<>0),Q91/O91/30/(($D$25*1000000/$D$8))*1000,0) -> 0.0 | T91: Kg/d por Unid. da Categoria | U91: =S91*O91*30*$D$11*(1+$D$24)/1000 -> 0 | V91: Qt m³/m por faixa da Categoria | W91: =IF(O91<>0,U91/O91,0) -> 0 | X91: Qt m³/m por faixa da Categoria | Y91: =IF(O91=0,"-", IF(W91<=(G91*(1+$Y$89)),"OK", "NOK")) -> - | AA91: =IF(OR(Y91="OK",Y91="-"),1,0) -> 1
F92: Faixa Min - Fator Variav (m3/m) | G92: Faixa Max - Fator Variav (m3/m) | H92: Fator Ponderador
F93: =G91 -> 5 | G93: 30 | H93: 0.0500 | J93: =$L$32*(H91+(G93-F93)*H93)*$B$90*$C$90 -> R$957.14 | K93: =$M$32*(H91+(G93-F93)*H93)*$B$90*$C$90 -> R$79.76 | L93: =J93*$D$90 -> R$1,196.42 | M93: R$99.70 | O93: 0 | Q93: =O93*$Q$76*M93+O93*(1-$Q$76)*K93 -> R$0.00 | S93: =IF(AND(Q93<>0,O93<>0),Q93/O93/30/(($D$25*1000000/$D$8))*1000,0) -> 0.0 | T93: Kg/d por Unid. da Categoria | U93: =S93*O93*30*$D$11*(1+$D$24)/1000 -> 0 | V93: Qt m³/m por faixa da Categoria | W93: =IF(O93<>0,U93/O93,0) -> 0 | X93: Qt m³/m por faixa da Categoria | Y93: =IF(O93=0,"-",IF(AND(((F93*(1-$Y$89))<W93),(W93<(G93*(1+$Y$89)))),"OK", "NOK")) -> - | AA93: =IF(OR(Y93="OK",Y93="-"),1,0) -> 1
F94: =G93 -> 30 | G94: 100 | H94: 0.0300 | J94: =$L$32*(H91+(G93-F93)*H93+(G94-F94)*H94)*$B$90*$C$90 -> R$2,213.38 | K94: =$M$32*(H91+(G93-F93)*H93+(G94-F94)*H94)*$B$90*$C$90 -> R$184.45 | L94: =J94*$D$90 -> R$2,766.73 | M94: R$230.56 | O94: 0 | Q94: R$0.00 | S94: =IF(AND(Q94<>0,O94<>0),Q94/O94/30/(($D$25*1000000/$D$8))*1000,0) -> 0.0 | T94: Kg/d por Unid. da Categoria | U94: =S94*O94*30*$D$11*(1+$D$24)/1000 -> 0 | V94: Qt m³/m por faixa da Categoria | W94: 0 | X94: Qt m³/m por faixa da Categoria | Y94: - | AA94: 1
F95: 100 | G95: 500 | H95: 0.0150 | J95: =$L$32*(H91+(G93-F93)*H93+(G94-F94)*H94+(G95-F95)*H95)*$B$90*$C$90 -> R$5,802.65 | K95: =$M$32*(H91+(G93-F93)*H93+(G94-F94)*H94+(G95-F95)*H95)*$B$90*$C$90 -> R$483.55 | L95: =J95*$D$90 -> R$7,253.31 | M95: R$604.44 | O95: 1 | Q95: R$563.34 | S95: =IF(AND(Q95<>0,O95<>0),Q95/O95/30/(($D$25*1000000/$D$8))*1000,0) -> 51.6 | T95: Kg/d por Unid. da Categoria | U95: =S95*O95*30*$D$11*(1+$D$24)/1000 -> 230 | V95: Qt m³/m por faixa da Categoria | W95: 230 | X95: Qt m³/m por faixa da Categoria | Y95: OK | AA95: 1
F96: 500 | G96: 1000 | H96: 0.0500 | J96: =$L$32*(H91+(G93-F93)*H93+(G94-F94)*H94+(G95-F95)*H95+(G96-F96)*H96)*$B$90*$C$90 -> R$20,757.92 | K96: =$M$32*(H91+(G93-F93)*H93+(G94-F94)*H94+(G95-F95)*H95+(G96-F96)*H96)*$B$90*$C$90 -> R$1,729.83 | L96: =J96*$D$90 -> R$25,947.40 | M96: R$2,162.28 | O96: 4 | Q96: R$8,060.99 | S96: =IF(AND(Q96<>0,O96<>0),Q96/O96/30/(($D$25*1000000/$D$8))*1000,0) -> 184.5 | T96: Kg/d por Unid. da Categoria | U96: =S96*O96*30*$D$11*(1+$D$24)/1000 -> 3290 | V96: Qt m³/m por faixa da Categoria | W96: 822 | X96: Qt m³/m por faixa da Categoria | Y96: OK | AA96: 1

Sheet C-FCL Real
B2: Premissas da Modelagem Econômico-Financeira | H2: Ferramenta de Rotas e Custos
H3: ='C-Calc Tarifa'!H19 -> Versão 1.01 - Maio de 2022
B6: PREMISSAS Econômicas & Financeiras | E6: KPIs FINANCEIROS
B7: Premissas da Modelagem Econômica | C7: Valor | D7: % | F7: PROJETO | G7: ACIONISTA
B8: Crescimento Anual — Quantitativos de RSU | C8: ='R&C-Painel de Controle'!D27 -> 0.00% | D8: % | E8: VPL (R$ MM) | F8: =SUMIF(C33:BC33,1,C159:BC159) -> 0.0 | G8: =SUMIF(C33:BC33,1,C178:BC178) -> -555.4
B9: Projeção Anual da Inflação de Preços e Custos | C9: 0% | E9: TIR (%) | F9: =IF(C31=1,C165,IF(D31=1,D165,IF(E31=1,E165,IF(F31=1,F165,IF(G31=1,G165,IF(H31=1,H165,IF(I31=1,I165,IF(J31=1,J165,IF(K31=1,K165,IF(L31=1,L165,IF(M31=1,M165,IF(N31=1,N165,IF(O31=1,O165,IF(P31=1,P165,IF(Q31=1,Q165,IF(R31=1,R165,IF(S31=1,S165,IF(T31=1,T165,IF(U31=1,U165,IF(V31=1,V165,IF(X31=1,X165,IF(W31=1,W165,IF(Y31=1,Y165,IF(Z31=1,Z165,IF(AA31=1,AA165,IF(AB31=1,AB165,IF( AC31=1,AC165, IF(AD31=1,AD165,IF(AE31=1,AE165,IF(AF31=1,AF165,IF(AG31=1,AG165,IF(AH31=1,AH165,IF(AI31=1,AI165,IF(AJ31=1,AJ165,IF(AK31=1,AK165,IF(AL31=1,AL165,IF(AM31=1,AM165,IF(AN31=1,AN165,IF(AO31=1,AO165,IF(AP31=1,AP165,IF(AQ31=1,AQ165,IF(AR31=1,AR165,IF(AS31=1,AS165,IF(AT31=1,AT165,IF(AU31=1,AU165,IF(AV31=1,AV165,IF(AW31=1,AW165,IF(AX31=1,AX165,IF(AY31=1,AY165,IF(AZ31=1,AZ165, IF(BA31=1,BA165,IF(BB31=1,BB165,IF(BC31=1,BC165, "-"))))))))))))))))))))))))))))))))))))))))))))))))))))) -> 0.0% | G9: =IF(C31=1,C184,IF(D31=1,D184,IF(E31=1,E184,IF(F31=1,F184,IF(G31=1,G184,IF(H31=1,H184,IF(I31=1,I184,IF(J31=1,J184,IF(K31=1,K184,IF(L31=1,L184,IF(M31=1,M184,IF(N31=1,N184,IF(O31=1,O184,IF(P31=1,P184,IF(Q31=1,Q184,IF(R31=1,R184,IF(S31=1,S184,IF(T31=1,T184,IF(U31=1,U184,IF(V31=1,V184,IF(X31=1,X184,IF(W31=1,W184,IF(Y31=1,Y184,IF(Z31=1,Z184,IF(AA31=1,AA184,IF(AB31=1,AB184,IF( AC31=1,AC184, IF(AD31=1,AD184,IF(AE31=1,AE184,IF(AF31=1,AF184,IF(AG31=1,AG184,IF(AH31=1,AH184,IF(AI31=1,AI184,IF(AJ31=1,AJ184,IF(AK31=1,AK184,IF(AL31=1,AL184,IF(AM31=1,AM184,IF(AN31=1,AN184,IF(AO31=1,AO184,IF(AP31=1,AP184,IF(AQ31=1,AQ184,IF(AR31=1,AR184,IF(AS31=1,AS184,IF(AT31=1,AT184,IF(AU31=1,AU184,IF(AV31=1,AV184,IF(AW31=1,AW184,IF(AX31=1,AX184,IF(AY31=1,AY184,IF(AZ31=1,AZ184, IF(BA31=1,BA184,IF(BB31=1,BB184,IF(BC31=1,BC184, "-"))))))))))))))))))))))))))))))))))))))))))))))))))))) -> -6.7%
E10: Spread (pp) | F10: =F9-C28 -> -10.6% | G10: =G9-C28 -> -17.3%
B11: Premissas do Acionista: Estrutura do Capital | E11: VPI (R$ MM) | F11: =SUMIF(C33:BC33,1,C63:BC63) -> 1,843.9 | G11: =SUMIF(C33:BC33,1,C167:BC167) -> 553.2
B12: ACIONISTA: Estr. Capital & Prêmio Risco Invest. | C12: Valor | E12: VPL/VPI | F12: =F8/F11 -> 0.0% | G12: -100.4%
B13: % de Participação de Capital Próprio no Investimento | C13: 70.0% | D13: % | E13: Payback (anos) | F13: =IF(F8<0,SUM(C164:BC164),SUM(C164:BC164)) -> 26.0 | G13: =IF(G8<0,SUM(C183:BC183),SUM(C183:BC183)) -> 37.4
B14: O MPAF (Modelo de Precificação de Ativos Financeiros) ou CAPM (Capital Asset Pricing Model) representa o Custo do Capital Próprio | C14: 12.60% | D14: % aa | E14: Taxa de Lucratividade | F14: =(SUMIF(C33:BC33,1,C159:BC159)+SUMIF(C33:BC33,1,C63:BC63))/SUMIF(C33:BC33,1,C63:BC63) -> 100% | G14: =(SUMIF(C33:BC33,1,C178:BC178)+SUMIF(C33:BC33,1,C167:BC167))/SUMIF(C33:BC33,1,C167:BC167) -> -0%
B16: ACIONISTA: Estrut. Produto de Financiamento | C16: Valor | E16: Definição das PREMISSAS DOS PRODUTOS de Financiamento | F16: CEF | G16: BNDES
B17: % de Capital de Financiamento do Investimento | C17: =1-C13 -> 30.0% | D17: % | F17: SANEAMENTO PARA TODOS
B18: Referência do Produto de Financiamento: CEF ou BNDES | C18: ='R&C-Painel de Controle'!D28 -> CEF
B20: % Taxa Real de juros — Produto de Financimento | C20: =IF($C$18="CEF",F20,G20) -> 9.00% | D20: % aa | F20: 9.00% | G20: 9.00%
B21: Periodo de Amortização do Empréstimo | C21: 20 | D21: anos | F21: 20 | G21: 20
B22: Período de Carência para Início do Pagamento do Empréstimo | C22: 4 | D22: anos | F22: 4 | G22: 4
B23: Taxa de Juros durante o Período de Carência | C23: 9.00% | D23: % aa | F23: 9.00% | G23: 9.00%
B24: Contribuição Social sobre Lucro Líquido (CSLL) | C24: 9% | D24: %
B25: Imposto de Renda da Pessoa Jurídica (IRPJ) | C25: 25% | D25: % | E25: PRINCIPAIS INDICADORES DE RENTABILIDADE DOS INVESTIMENTOS
E26: Preço da Tarifa de Destinação do RSU | G26: ='R&C-Painel de Controle'!D34 -> 335 | H26: R$/t RSU | J26: Índice de Retorno do Inv.: VPL | L26: =F8 -> 0.0 | M26: MR$ | N26: Taxa de Lucratividade do Investimento | Q26: =F14 -> 100% | R26: %
B27: ACIONISTA: Ganho & Prêmio Risco Invest. | C27: Valor | E27: Prazo do Contrato | G27: ='R&C-Painel de Controle'!D33 -> 25 | H27: anos | J27: Índice de Retorno do Inv.: TIR | L27: =F9 -> 0.0% | M27: %
B28: CMPC — Custo Médio Ponderado Capital (WACC) | C28: =C13*C14+C17*C20*(1-(C24+C25)) -> 10.60% | D28: % aa | E28: Preço da Tarifa de Destinação de RSU | G28: =G26*('R&C-Painel de Controle'!D7*30/'R&C-Painel de Controle'!D6) -> 12 | H28: R$.hab.-1.mês-1 | J28: Índice de Retorno do Inv.: Pay Back | L28: =F13 -> 26.0 | M28: anos
B31: Término do Contrato | C31: =IF(AND(C33=1,D33=0,B33=1),1,0) -> 0 | D31: 0 | E31: 0 | F31: 0 | G31: 0 | H31: 0 | I31: 0 | J31: 0 | K31: 0 | L31: 0 | M31: 0 | N31: 0 | O31: 0 | P31: 0 | Q31: 0 | R31: 0 | S31: 0 | T31: 0 | U31: 0 | V31: 0 | W31: 0 | X31: 0 | Y31: 0 | Z31: 0 | AA31: 0 | AB31: 1 | AC31: 0 | AD31: 0 | AE31: 0 | AF31: 0 | AG31: 0 | AH31: 0 | AI31: 0 | AJ31: 0 | AK31: 0 | AL31: 0 | AM31: 0 | AN31: 0 | AO31: 0 | AP31: 0 | AQ31: 0 | AR31: 0 | AS31: 0 | AT31: 0 | AU31: 0 | AV31: 0 | AW31: 0 | AX31: 0 | AY31: 0 | AZ31: 0 | BA31: 0 | BB31: 0 | BC31: 0
B32: Ano do Contrato | C32: 0 | D32: =C32+1 -> 1 | E32: 2 | F32: 3 | G32: 4 | H32: 5 | I32: 6 | J32: 7 | K32: 8 | L32: 9 | M32: 10 | N32: 11 | O32: 12 | P32: 13 | Q32: 14 | R32: 15 | S32: 16 | T32: 17 | U32: 18 | V32: 19 | W32: 20 | X32: 21 | Y32: 22 | Z32: 23 | AA32: 24 | AB32: 25 | AC32: 26 | AD32: 27 | AE32: 28 | AF32: 29 | AG32: 30 | AH32: 31 | AI32: 32 | AJ32: 33 | AK32: 34 | AL32: 35 | AM32: 36 | AN32: 37 | AO32: 38 | AP32: 39 | AQ32: 40 | AR32: 41 | AS32: 42 | AT32: 43 | AU32: 44 | AV32: 45 | AW32: 46 | AX32: 47 | AY32: 48 | AZ32: 49 | BA32: 50 | BB32: 51 | BC32: 52
C33: =IF(C32<=$G$27,1,0) -> 1 | D33: 1 | E33: 1 | F33: 1 | G33: 1 | H33: 1 | I33: 1 | J33: 1 | K33: 1 | L33: 1 | M33: 1 | N33: 1 | O33: 1 | P33: 1 | Q33: 1 | R33: 1 | S33: 1 | T33: 1 | U33: 1 | V33: 1 | W33: 1 | X33: 1 | Y33: 1 | Z33: 1 | AA33: 1 | AB33: 1 | AC33: 0 | AD33: 0 | AE33: 0 | AF33: 0 | AG33: 0 | AH33: 0 | AI33: =IF(AI32<=$G$27,1,0) -> 0 | AJ33: 0 | AK33: 0 | AL33: 0 | AM33: 0 | AN33: 0 | AO33: 0 | AP33: 0 | AQ33: 0 | AR33: 0 | AS33: 0 | AT33: 0 | AU33: 0 | AV33: 0 | AW33: 0 | AX33: 0 | AY33: 0 | AZ33: 0 | BA33: 0 | BB33: 0 | BC33: 0
D34: 1.809202867e+55
B35: Dados Quantitativos RSU | C35: ='R&C-Painel de Controle'!D8 -> 939,000 | D35: =C35*(1+$C$8) -> 939,000 | E35: 939,000 | F35: 939,000 | G35: 939,000 | H35: 939,000 | I35: 939,000 | J35: 939,000 | K35: 939,000 | L35: 939,000 | M35: 939,000 | N35: 939,000 | O35: 939,000 | P35: 939,000 | Q35: 939,000 | R35: 939,000 | S35: 939,000 | T35: 939,000 | U35: 939,000 | V35: 939,000 | W35: 939,000 | X35: 939,000 | Y35: 939,000 | Z35: 939,000 | AA35: 939,000 | AB35: 939,000 | AC35: 939,000 | AD35: 939,000 | AE35: 939,000 | AF35: 939,000 | AG35: 939,000 | AH35: 939,000 | AI35: 939,000 | AJ35: =AI35*(1+$C$8) -> 939,000 | AK35: 939,000 | AL35: 939,000 | AM35: 939,000 | AN35: 939,000 | AO35: 939,000 | AP35: 939,000 | AQ35: 939,000 | AR35: 939,000 | AS35: 939,000 | AT35: 939,000 | AU35: 939,000 | AV35: 939,000 | AW35: 939,000 | AX35: 939,000 | AY35: 939,000 | AZ35: 939,000 | BA35: 939,000 | BB35: 939,000 | BC35: 939,000
B36: Tecnologias | C36: Sim/Não | D36: t/a
B37: =B65 -> Triagem Manual — Seletivos | C37: Sim | D37: ='R&C-Painel de Controle'!H53 -> 15,494
B38: Ano de Implementação | C38: =IF(SUM(C66)<100%,0,100%) -> 0% | D38: =IF(SUM($C66:D66)<100%,0,100%) -> 0% | E38: 50% | F38: =IF(SUM($C66:F66)<100%,0,100%) -> 100% | G38: 100% | H38: 100% | I38: 100% | J38: 100% | K38: 100% | L38: 100% | M38: 100% | N38: 100% | O38: 100% | P38: 100% | Q38: 100%
B39: Curva de Aprendizado da Tecnologia (t/a) | C39: =C38*$D$37 -> 0.0 | D39: =D38*$D$37*(1+$C$8) -> 0.0 | E39: 7,746.750 | F39: 15,493.500 | G39: 15,493.500 | H39: 15,493.500 | I39: 15,493.500 | J39: 15,493.500 | K39: 15,493.500 | L39: 15,493.500 | M39: 15,493.500 | N39: 15,493.500 | O39: 15,493.500 | P39: 15,493.500 | Q39: 15,493.500 | R39: =Q39*(1+$C$8) -> 15,493.500 | S39: 15,493.500 | T39: 15,493.500 | U39: 15,493.500 | V39: 15,493.500 | W39: 15,493.500 | X39: 15,493.500 | Y39: 15,493.500 | Z39: 15,493.500 | AA39: 15,493.500 | AB39: 15,493.500 | AC39: 15,493.500 | AD39: 15,493.500 | AE39: 15,493.500 | AF39: 15,493.500 | AG39: 15,493.500 | AH39: 15,493.500 | AI39: 15,493.500 | AJ39: 15,493.500 | AK39: 15,493.500 | AL39: 15,493.500 | AM39: 15,493.500 | AN39: 15,493.500 | AO39: 15,493.500 | AP39: 15,493.500 | AQ39: 15,493.500 | AR39: 15,493.500 | AS39: 15,493.500 | AT39: 15,493.500 | AU39: 15,493.500 | AV39: 15,493.500 | AW39: 15,493.500 | AX39: 15,493.500 | AY39: 15,493.500 | AZ39: 15,493.500 | BA39: 15,493.500 | BB39: 15,493.500 | BC39: 15,493.500
B40: =B68 -> Triagem Mecanizada | C40: Sim | D40: ='R&C-Painel de Controle'!H56 -> 692,982
B41: Ano de Implementação | C41: =IF(SUM(C69)<100%,0,100%) -> 0% | D41: =IF(SUM($C69:D69)<100%,0,100%) -> 0% | E41: 50% | F41: =IF(SUM($C69:F69)<100%,0,100%) -> 100% | G41: 100% | H41: 100% | I41: 100% | J41: 100% | K41: 100% | L41: 100% | M41: 100% | N41: 100% | O41: 100% | P41: 100% | Q41: 100%
B42: Curva de Aprendizado da Tecnologia (t/a) | C42: =C41*$D$40 -> 0.0 | D42: =D41*$D$40*(1+$C$8) -> 0.0 | E42: 346,491.000 | F42: 692,982.000 | G42: 692,982.000 | H42: 692,982.000 | I42: 692,982.000 | J42: 692,982.000 | K42: 692,982.000 | L42: 692,982.000 | M42: 692,982.000 | N42: 692,982.000 | O42: 692,982.000 | P42: 692,982.000 | Q42: 692,982.000 | R42: =Q42*(1+$C$8) -> 692,982.000 | S42: 692,982.000 | T42: 692,982.000 | U42: 692,982.000 | V42: 692,982.000 | W42: 692,982.000 | X42: 692,982.000 | Y42: 692,982.000 | Z42: 692,982.000 | AA42: 692,982.000 | AB42: 692,982.000 | AC42: 692,982.000 | AD42: 692,982.000 | AE42: 692,982.000 | AF42: 692,982.000 | AG42: 692,982.000 | AH42: 692,982.000 | AI42: 692,982.000 | AJ42: 692,982.000 | AK42: 692,982.000 | AL42: 692,982.000 | AM42: 692,982.000 | AN42: 692,982.000 | AO42: 692,982.000 | AP42: 692,982.000 | AQ42: 692,982.000 | AR42: 692,982.000 | AS42: 692,982.000 | AT42: 692,982.000 | AU42: 692,982.000 | AV42: 692,982.000 | AW42: 692,982.000 | AX42: 692,982.000 | AY42: 692,982.000 | AZ42: 692,982.000 | BA42: 692,982.000 | BB42: 692,982.000 | BC42: 692,982.000
B43: =B71 -> Produção de CDR TM — Trat. Mec. | C43: Sim | D43: ='R&C-Painel de Controle'!H59 -> 60,847
B44: Ano de Implementação | C44: =IF(SUM($C72:C72)<100%,0,100%) -> 0% | D44: 0% | E44: 50% | F44: =IF(SUM($C72:F72)<100%,0,100%) -> 100% | G44: 100% | H44: 100% | I44: =IF(SUM($C72:H72)<100%,0,100%) -> 100% | J44: =IF(SUM($C72:H72)<100%,0,100%) -> 100% | K44: =IF(SUM($C72:H72)<100%,0,100%) -> 100% | L44: =IF(SUM($C72:L72)<100%,0,100%) -> 100% | M44: 100% | N44: 100% | O44: 100% | P44: 100% | Q44: 100%
B45: Curva de Aprendizado da Tecnologia (t/a) | C45: =C44*$D$43 -> 0.0 | D45: =D44*$D$43*(1+$C$8) -> 0.0 | E45: 30,423.600 | F45: 60,847.200 | G45: 60,847.200 | H45: 60,847.200 | I45: 60,847.200 | J45: 60,847.200 | K45: 60,847.200 | L45: 60,847.200 | M45: 60,847.200 | N45: 60,847.200 | O45: 60,847.200 | P45: 60,847.200 | Q45: 60,847.200 | R45: =Q45*(1+$C$8) -> 60,847.200 | S45: 60,847.200 | T45: 60,847.200 | U45: 60,847.200 | V45: 60,847.200 | W45: 60,847.200 | X45: 60,847.200 | Y45: 60,847.200 | Z45: 60,847.200 | AA45: 60,847.200 | AB45: 60,847.200 | AC45: 60,847.200 | AD45: 60,847.200 | AE45: 60,847.200 | AF45: 60,847.200 | AG45: 60,847.200 | AH45: 60,847.200 | AI45: 60,847.200 | AJ45: 60,847.200 | AK45: 60,847.200 | AL45: 60,847.200 | AM45: 60,847.200 | AN45: 60,847.200 | AO45: 60,847.200 | AP45: 60,847.200 | AQ45: 60,847.200 | AR45: 60,847.200 | AS45: 60,847.200 | AT45: 60,847.200 | AU45: 60,847.200 | AV45: 60,847.200 | AW45: 60,847.200 | AX45: 60,847.200 | AY45: 60,847.200 | AZ45: 60,847.200 | BA45: 60,847.200 | BB45: 60,847.200 | BC45: 60,847.200
B46: =B74 -> Prod. CDR TMB — Trat. Mec./Biológ. | C46: Não | D46: ='R&C-Painel de Controle'!H62 -> 0
B47: Ano de Implementação | C47: =IF(SUM(C75)<100%,0,100%) -> 0% | D47: =IF(SUM($C75:D75)<100%,0,100%) -> 0% | E47: 50% | F47: =IF(SUM($C75:F75)<100%,0,100%) -> 100% | G47: 100% | H47: 100% | I47: 100% | J47: 100% | K47: 100% | L47: 100% | M47: 100% | N47: 100% | O47: 100% | P47: 100% | Q47: 100%
B48: Curva de Aprendizado da Tecnologia (t/a) | C48: =C47*$D$46 -> 0.0 | D48: =D47*$D$46*(1+$C$8) -> 0.0 | E48: 0.000 | F48: 0.000 | G48: 0.000 | H48: 0.000 | I48: 0.000 | J48: 0.000 | K48: 0.000 | L48: 0.000 | M48: 0.000 | N48: 0.000 | O48: 0.000 | P48: 0.000 | Q48: 0.000 | R48: =Q48*(1+$C$8) -> 0.000 | S48: 0.000 | T48: 0.000 | U48: 0.000 | V48: 0.000 | W48: 0.000 | X48: 0.000 | Y48: 0.000 | Z48: 0.000 | AA48: 0.000 | AB48: 0.000 | AC48: 0.000 | AD48: 0.000 | AE48: 0.000 | AF48: 0.000 | AG48: 0.000 | AH48: 0.000 | AI48: 0.000 | AJ48: 0.000 | AK48: 0.000 | AL48: 0.000 | AM48: 0.000 | AN48: 0.000 | AO48: 0.000 | AP48: 0.000 | AQ48: 0.000 | AR48: 0.000 | AS48: 0.000 | AT48: 0.000 | AU48: 0.000 | AV48: 0.000 | AW48: 0.000 | AX48: 0.000 | AY48: 0.000 | AZ48: 0.000 | BA48: 0.000 | BB48: 0.000 | BC48: 0.000
B49: =B77 -> Biodigestão Anaeróbia | C49: Sim | D49: ='R&C-Painel de Controle'!H65 -> 322,986
B50: Ano de Implementação | C50: =IF(SUM(C78)<100%,0,100%) -> 0% | D50: =IF(SUM($C78:D78)<100%,0,100%) -> 0% | E50: 50% | F50: =IF(SUM($C78:F78)<100%,0,100%) -> 100% | G50: 100% | H50: 100% | I50: 100% | J50: 100% | K50: 100% | L50: 100% | M50: 100% | N50: 100% | O50: 100% | P50: 100% | Q50: 100%
B51: Curva de Aprendizado da Tecnologia (t/a) | C51: =C50*$D$49 -> 0.0 | D51: =D50*$D$49*(1+$C$8) -> 0.0 | E51: 161,492.976 | F51: 322,985.952 | G51: 322,985.952 | H51: 322,985.952 | I51: 322,985.952 | J51: 322,985.952 | K51: 322,985.952 | L51: 322,985.952 | M51: 322,985.952 | N51: 322,985.952 | O51: 322,985.952 | P51: 322,985.952 | Q51: 322,985.952 | R51: =Q51*(1+$C$8) -> 322,985.952 | S51: 322,985.952 | T51: 322,985.952 | U51: 322,985.952 | V51: 322,985.952 | W51: 322,985.952 | X51: 322,985.952 | Y51: 322,985.952 | Z51: 322,985.952 | AA51: 322,985.952 | AB51: 322,985.952 | AC51: 322,985.952 | AD51: 322,985.952 | AE51: 322,985.952 | AF51: 322,985.952 | AG51: 322,985.952 | AH51: 322,985.952 | AI51: 322,985.952 | AJ51: 322,985.952 | AK51: 322,985.952 | AL51: 322,985.952 | AM51: 322,985.952 | AN51: 322,985.952 | AO51: 322,985.952 | AP51: 322,985.952 | AQ51: 322,985.952 | AR51: 322,985.952 | AS51: 322,985.952 | AT51: 322,985.952 | AU51: 322,985.952 | AV51: 322,985.952 | AW51: 322,985.952 | AX51: 322,985.952 | AY51: 322,985.952 | AZ51: 322,985.952 | BA51: 322,985.952 | BB51: 322,985.952 | BC51: 322,985.952
B52: =B80 -> Compostagem | C52: Sim | D52: ='R&C-Painel de Controle'!H68 -> 228,782
B53: Ano de Implementação | C53: =IF(SUM(C81)<100%,0,100%) -> 0% | D53: =IF(SUM($C81:D81)<100%,0,100%) -> 0% | E53: 50% | F53: =IF(SUM($C81:F81)<100%,0,100%) -> 100% | G53: 100% | H53: 100% | I53: 100% | J53: 100% | K53: 100% | L53: 100% | M53: 100% | N53: 100% | O53: 100% | P53: 100% | Q53: 100%
B54: Curva de Aprendizado da Tecnologia (t/a) | C54: =C53*$D$52 -> 0.0 | D54: =D53*$D$52*(1+$C$8) -> 0.0 | E54: 114,390.858 | F54: 228,781.716 | G54: 228,781.716 | H54: 228,781.716 | I54: 228,781.716 | J54: 228,781.716 | K54: 228,781.716 | L54: 228,781.716 | M54: 228,781.716 | N54: 228,781.716 | O54: 228,781.716 | P54: 228,781.716 | Q54: 228,781.716 | R54: =Q54*(1+$C$8) -> 228,781.716 | S54: 228,781.716 | T54: 228,781.716 | U54: 228,781.716 | V54: 228,781.716 | W54: 228,781.716 | X54: 228,781.716 | Y54: 228,781.716 | Z54: 228,781.716 | AA54: 228,781.716 | AB54: 228,781.716 | AC54: 228,781.716 | AD54: 228,781.716 | AE54: 228,781.716 | AF54: 228,781.716 | AG54: 228,781.716 | AH54: 228,781.716 | AI54: 228,781.716 | AJ54: 228,781.716 | AK54: 228,781.716 | AL54: 228,781.716 | AM54: 228,781.716 | AN54: 228,781.716 | AO54: 228,781.716 | AP54: 228,781.716 | AQ54: 228,781.716 | AR54: 228,781.716 | AS54: 228,781.716 | AT54: 228,781.716 | AU54: 228,781.716 | AV54: 228,781.716 | AW54: 228,781.716 | AX54: 228,781.716 | AY54: 228,781.716 | AZ54: 228,781.716 | BA54: 228,781.716 | BB54: 228,781.716 | BC54: 228,781.716
B55: =B83 -> Incineração | C55: Sim | D55: ='R&C-Painel de Controle'!H71 -> 205,664
B56: Ano de Implementação | C56: =IF(SUM(C84)<100%,0,100%) -> 0% | D56: =IF(SUM($C84:D84)<100%,0,100%) -> 0% | E56: 50% | F56: =IF(SUM($C84:F84)<100%,0,100%) -> 100% | G56: 100% | H56: 100% | I56: 100% | J56: 100% | K56: 100% | L56: 100% | M56: 100% | N56: 100% | O56: 100% | P56: 100% | Q56: 100%
B57: Curva de Aprendizado da Tecnologia (t/a) | C57: =C56*$D$55 -> 0.0 | D57: =D56*$D$55*(1+$C$8) -> 0.0 | E57: 102,831.768 | F57: 205,663.536 | G57: 205,663.536 | H57: 205,663.536 | I57: 205,663.536 | J57: 205,663.536 | K57: 205,663.536 | L57: 205,663.536 | M57: 205,663.536 | N57: 205,663.536 | O57: 205,663.536 | P57: 205,663.536 | Q57: 205,663.536 | R57: =Q57*(1+$C$8) -> 205,663.536 | S57: 205,663.536 | T57: 205,663.536 | U57: 205,663.536 | V57: 205,663.536 | W57: 205,663.536 | X57: 205,663.536 | Y57: 205,663.536 | Z57: 205,663.536 | AA57: 205,663.536 | AB57: 205,663.536 | AC57: 205,663.536 | AD57: 205,663.536 | AE57: 205,663.536 | AF57: 205,663.536 | AG57: 205,663.536 | AH57: 205,663.536 | AI57: 205,663.536 | AJ57: 205,663.536 | AK57: 205,663.536 | AL57: 205,663.536 | AM57: 205,663.536 | AN57: 205,663.536 | AO57: 205,663.536 | AP57: 205,663.536 | AQ57: 205,663.536 | AR57: 205,663.536 | AS57: 205,663.536 | AT57: 205,663.536 | AU57: 205,663.536 | AV57: 205,663.536 | AW57: 205,663.536 | AX57: 205,663.536 | AY57: 205,663.536 | AZ57: 205,663.536 | BA57: 205,663.536 | BB57: 205,663.536 | BC57: 205,663.536
B58: =B86 -> Aterro Sanitário | C58: Sim | D58: ='R&C-Painel de Controle'!H74 -> 358,169
B59: Ano de Implementação | C59: =IF(SUM(C87)<100%,0,100%) -> 0% | D59: =IF(SUM($C87:D87)<100%,0,100%) -> 0% | E59: 50% | F59: =IF(SUM($C87:F87)<100%,0,100%) -> 100% | G59: 100% | H59: 100% | I59: 100% | J59: 100% | K59: 100% | L59: 100% | M59: 100% | N59: 100% | O59: 100% | P59: 100% | Q59: 100%
B60: Curva de Aprendizado da Tecnologia (t/a) | C60: =C59*$D$58 -> 0.0 | D60: =D59*$D$58*(1+$C$8) -> 0.0 | E60: 179,084.296 | F60: 358,168.592 | G60: 358,168.592 | H60: 358,168.592 | I60: 358,168.592 | J60: 358,168.592 | K60: 358,168.592 | L60: 358,168.592 | M60: 358,168.592 | N60: 358,168.592 | O60: 358,168.592 | P60: 358,168.592 | Q60: 358,168.592 | R60: =Q60*(1+$C$8) -> 358,168.592 | S60: 358,168.592 | T60: 358,168.592 | U60: 358,168.592 | V60: 358,168.592 | W60: 358,168.592 | X60: 358,168.592 | Y60: 358,168.592 | Z60: 358,168.592 | AA60: 358,168.592 | AB60: 358,168.592 | AC60: 358,168.592 | AD60: 358,168.592 | AE60: 358,168.592 | AF60: 358,168.592 | AG60: 358,168.592 | AH60: 358,168.592 | AI60: 358,168.592 | AJ60: 358,168.592 | AK60: 358,168.592 | AL60: 358,168.592 | AM60: 358,168.592 | AN60: 358,168.592 | AO60: 358,168.592 | AP60: 358,168.592 | AQ60: 358,168.592 | AR60: 358,168.592 | AS60: 358,168.592 | AT60: 358,168.592 | AU60: 358,168.592 | AV60: 358,168.592 | AW60: 358,168.592 | AX60: 358,168.592 | AY60: 358,168.592 | AZ60: 358,168.592 | BA60: 358,168.592 | BB60: 358,168.592 | BC60: 358,168.592
B61: Qt Mistos Enviados Direto para ATERRO EXISTENTE | C61: =C35 -> 939,000 | D61: 939,000 | E61: ='R&C-Painel de Controle'!D47 -> 300,480 | F61: =E61*(1+$C$8) -> 300,480 | G61: 300,480 | H61: 300,480 | I61: 300,480 | J61: 300,480 | K61: 300,480 | L61: 300,480 | M61: 300,480 | N61: 300,480 | O61: 300,480 | P61: 300,480 | Q61: 300,480 | R61: =Q61*(1+$C$8) -> 300,480 | S61: 300,480 | T61: 300,480 | U61: 300,480 | V61: 300,480 | W61: 300,480 | X61: 300,480 | Y61: 300,480 | Z61: 300,480 | AA61: 300,480 | AB61: 300,480 | AC61: 300,480 | AD61: 300,480 | AE61: 300,480 | AF61: 300,480 | AG61: 300,480 | AH61: 300,480 | AI61: 300,480 | AJ61: 300,480 | AK61: 300,480 | AL61: 300,480 | AM61: 300,480 | AN61: 300,480 | AO61: 300,480 | AP61: 300,480 | AQ61: 300,480 | AR61: 300,480 | AS61: 300,480 | AT61: 300,480 | AU61: 300,480 | AV61: 300,480 | AW61: 300,480 | AX61: 300,480 | AY61: 300,480 | AZ61: 300,480 | BA61: 300,480 | BB61: 300,480 | BC61: 300,480
B63: Dados de Capex | C63: =C67+C70+C73+C76+C79+C82+C85+C88+'R&C-Painel de Controle'!H21 -> 357.564 | D63: =D67+D70+D73+D76+D79+D82+D85+D88 -> 759.088 | E63: 548.603 | F63: =F67+F70+F73+F76+F79+F82+F85+F88+'R&C-Painel de Controle'!$K$78/5+'R&C-Painel de Controle'!$K$76/20+'R&C-Painel de Controle'!D30+'R&C-Painel de Controle'!D31 -> 10.638 | G63: =G67+G70+G73+G76+G79+G82+G85+G88+'R&C-Painel de Controle'!$K$78/5+'R&C-Painel de Controle'!$K$76/20 -> 7.638 | H63: =H67+H70+H73+H76+H79+H82+H85+H88+'R&C-Painel de Controle'!$K$78/5+'R&C-Painel de Controle'!$K$76/20 -> 7.638 | I63: =I67+I70+I73+I76+I79+I82+I85+I88+'R&C-Painel de Controle'!$K$78/5+'R&C-Painel de Controle'!$K$76/20 -> 7.638 | J63: =J67+J70+J73+J76+J79+J82+J85+J88+'R&C-Painel de Controle'!$K$78/5+'R&C-Painel de Controle'!$K$76/20 -> 7.638 | K63: =K67+K70+K73+K76+K79+K82+K85+K88+'R&C-Painel de Controle'!$K$78/5+'R&C-Painel de Controle'!$K$76/20 -> 7.638 | L63: =L67+L70+L73+L76+L79+L82+L85+L88+'R&C-Painel de Controle'!$K$78/5+'R&C-Painel de Controle'!$K$76/20 -> 7.638 | M63: =M67+M70+M73+M76+M79+M82+M85+M88+'R&C-Painel de Controle'!$K$78/5+'R&C-Painel de Controle'!$K$76/20 -> 7.638 | N63: =N67+N70+N73+N76+N79+N82+N85+N88+'R&C-Painel de Controle'!$K$78/5+'R&C-Painel de Controle'!$K$76/20 -> 7.638 | O63: =O67+O70+O73+O76+O79+O82+O85+O88+'R&C-Painel de Controle'!$K$78/5+'R&C-Painel de Controle'!$K$76/20 -> 7.638 | P63: =P67+P70+P73+P76+P79+P82+P85+P88+'R&C-Painel de Controle'!$K$78/5+'R&C-Painel de Controle'!$K$76/20 -> 7.638 | Q63: =Q67+Q70+Q73+Q76+Q79+Q82+Q85+Q88+'R&C-Painel de Controle'!$K$78/5+'R&C-Painel de Controle'!$K$76/20 -> 7.638 | R63: =R67+R70+R73+R76+R79+R82+R85+R88+'R&C-Painel de Controle'!$K$78/5+'R&C-Painel de Controle'!$K$76/20 -> 7.638 | S63: =S67+S70+S73+S76+S79+S82+S85+S88+'R&C-Painel de Controle'!$K$78/5+'R&C-Painel de Controle'!$K$76/20 -> 7.638 | T63: =T67+T70+T73+T76+T79+T82+T85+T88+'R&C-Painel de Controle'!$K$78/5+'R&C-Painel de Controle'!$K$76/20 -> 7.638 | U63: =U67+U70+U73+U76+U79+U82+U85+U88+'R&C-Painel de Controle'!$K$78/5+'R&C-Painel de Controle'!$K$76/20 -> 7.638 | V63: =V67+V70+V73+V76+V79+V82+V85+V88+'R&C-Painel de Controle'!$K$78/5+'R&C-Painel de Controle'!$K$76/20 -> 7.638 | W63: =W67+W70+W73+W76+W79+W82+W85+W88+'R&C-Painel de Controle'!$K$78/5+'R&C-Painel de Controle'!$K$76/20 -> 7.638 | X63: =X67+X70+X73+X76+X79+X82+X85+X88+'R&C-Painel de Controle'!$K$78/5+'R&C-Painel de Controle'!$K$76/20 -> 7.638 | Y63: =Y67+Y70+Y73+Y76+Y79+Y82+Y85+Y88+'R&C-Painel de Controle'!$K$78/5+'R&C-Painel de Controle'!$K$76/20 -> 7.638 | Z63: =Z67+Z70+Z73+Z76+Z79+Z82+Z85+Z88+'R&C-Painel de Controle'!$K$78/5+'R&C-Painel de Controle'!$K$76/20 -> 7.638 | AA63: =AA67+AA70+AA73+AA76+AA79+AA82+AA85+AA88+'R&C-Painel de Controle'!$K$78/5+'R&C-Painel de Controle'!$K$76/20 -> 7.638 | AB63: =AB67+AB70+AB73+AB76+AB79+AB82+AB85+AB88+'R&C-Painel de Controle'!$K$78/5+'R&C-Painel de Controle'!$K$76/20 -> 7.638 | AC63: =AC67+AC70+AC73+AC76+AC79+AC82+AC85+AC88+'R&C-Painel de Controle'!$K$78/5+'R&C-Painel de Controle'!$K$76/20 -> 7.638 | AD63: =AD67+AD70+AD73+AD76+AD79+AD82+AD85+AD88+'R&C-Painel de Controle'!$K$78/5+'R&C-Painel de Controle'!$K$76/20 -> 7.638 | AE63: =AE67+AE70+AE73+AE76+AE79+AE82+AE85+AE88+'R&C-Painel de Controle'!$K$78/5+'R&C-Painel de Controle'!$K$76/20 -> 7.638 | AF63: =AF67+AF70+AF73+AF76+AF79+AF82+AF85+AF88+'R&C-Painel de Controle'!$K$78/5+'R&C-Painel de Controle'!$K$76/20 -> 7.638 | AG63: =AG67+AG70+AG73+AG76+AG79+AG82+AG85+AG88+'R&C-Painel de Controle'!$K$78/5+'R&C-Painel de Controle'!$K$76/20 -> 7.638 | AH63: =AH67+AH70+AH73+AH76+AH79+AH82+AH85+AH88+'R&C-Painel de Controle'!$K$78/5+'R&C-Painel de Controle'!$K$76/20 -> 7.638 | AI63: =AI67+AI70+AI73+AI76+AI79+AI82+AI85+AI88+'R&C-Painel de Controle'!$K$78/5+'R&C-Painel de Controle'!$K$76/20 -> 7.638 | AJ63: =AJ67+AJ70+AJ73+AJ76+AJ79+AJ82+AJ85+AJ88+'R&C-Painel de Controle'!$K$78/5+'R&C-Painel de Controle'!$K$76/20 -> 7.638 | AK63: =AK67+AK70+AK73+AK76+AK79+AK82+AK85+AK88+'R&C-Painel de Controle'!$K$78/5+'R&C-Painel de Controle'!$K$76/20 -> 7.638 | AL63: =AL67+AL70+AL73+AL76+AL79+AL82+AL85+AL88+'R&C-Painel de Controle'!$K$78/5+'R&C-Painel de Controle'!$K$76/20 -> 7.638 | AM63: =AM67+AM70+AM73+AM76+AM79+AM82+AM85+AM88+'R&C-Painel de Controle'!$K$78/5+'R&C-Painel de Controle'!$K$76/20 -> 7.638 | AN63: =AN67+AN70+AN73+AN76+AN79+AN82+AN85+AN88+'R&C-Painel de Controle'!$K$78/5+'R&C-Painel de Controle'!$K$76/20 -> 7.638 | AO63: =AO67+AO70+AO73+AO76+AO79+AO82+AO85+AO88+'R&C-Painel de Controle'!$K$78/5+'R&C-Painel de Controle'!$K$76/20 -> 7.638 | AP63: =AP67+AP70+AP73+AP76+AP79+AP82+AP85+AP88+'R&C-Painel de Controle'!$K$78/5+'R&C-Painel de Controle'!$K$76/20 -> 7.638 | AQ63: =AQ67+AQ70+AQ73+AQ76+AQ79+AQ82+AQ85+AQ88+'R&C-Painel de Controle'!$K$78/5+'R&C-Painel de Controle'!$K$76/20 -> 7.638 | AR63: =AR67+AR70+AR73+AR76+AR79+AR82+AR85+AR88+'R&C-Painel de Controle'!$K$78/5+'R&C-Painel de Controle'!$K$76/20 -> 7.638 | AS63: =AS67+AS70+AS73+AS76+AS79+AS82+AS85+AS88+'R&C-Painel de Controle'!$K$78/5+'R&C-Painel de Controle'!$K$76/20 -> 7.638 | AT63: =AT67+AT70+AT73+AT76+AT79+AT82+AT85+AT88+'R&C-Painel de Controle'!$K$78/5+'R&C-Painel de Controle'!$K$76/20 -> 7.638 | AU63: =AU67+AU70+AU73+AU76+AU79+AU82+AU85+AU88+'R&C-Painel de Controle'!$K$78/5+'R&C-Painel de Controle'!$K$76/20 -> 7.638 | AV63: =AV67+AV70+AV73+AV76+AV79+AV82+AV85+AV88+'R&C-Painel de Controle'!$K$78/5+'R&C-Painel de Controle'!$K$76/20 -> 7.638 | AW63: =AW67+AW70+AW73+AW76+AW79+AW82+AW85+AW88+'R&C-Painel de Controle'!$K$78/5+'R&C-Painel de Controle'!$K$76/20 -> 7.638 | AX63: =AX67+AX70+AX73+AX76+AX79+AX82+AX85+AX88+'R&C-Painel de Controle'!$K$78/5+'R&C-Painel de Controle'!$K$76/20 -> 7.638 | AY63: =AY67+AY70+AY73+AY76+AY79+AY82+AY85+AY88+'R&C-Painel de Controle'!$K$78/5+'R&C-Painel de Controle'!$K$76/20 -> 7.638 | AZ63: =AZ67+AZ70+AZ73+AZ76+AZ79+AZ82+AZ85+AZ88+'R&C-Painel de Controle'!$K$78/5+'R&C-Painel de Controle'!$K$76/20 -> 7.638 | BA63: =BA67+BA70+BA73+BA76+BA79+BA82+BA85+BA88+'R&C-Painel de Controle'!$K$78/5+'R&C-Painel de Controle'!$K$76/20 -> 7.638 | BB63: =BB67+BB70+BB73+BB76+BB79+BB82+BB85+BB88+'R&C-Painel de Controle'!$K$78/5+'R&C-Painel de Controle'!$K$76/20 -> 7.638 | BC63: =BC67+BC70+BC73+BC76+BC79+BC82+BC85+BC88+'R&C-Painel de Controle'!$K$78/5+'R&C-Painel de Controle'!$K$76/20 -> 7.638
B64: Tecnologias | C64: Sim/Não | D64: MR$
B65: ='R&C-Painel de Controle'!F53 -> Triagem Manual — Seletivos | C65: ='R&C-Painel de Controle'!G53 -> Sim | D65: ='R&C-Painel de Controle'!K53 -> 28.523
B66: Ano de Implementação | C66: 20% | D66: 50% | E66: 30% | F66: 0% | G66: 0% | H66: 0% | I66: 0% | J66: 0% | K66: 0% | L66: 0% | M66: 0% | N66: 0% | O66: 0% | P66: 0% | Q66: 0% | R66: 0% | S66: 0% | T66: 0% | U66: 0% | V66: 0% | W66: 0% | X66: 0% | Y66: 0% | Z66: 0% | AA66: 0% | AB66: 0% | AC66: 0% | AD66: 0% | AE66: 0% | AF66: 0% | AG66: 0% | AH66: 0% | AI66: 0% | AJ66: 0% | AK66: 0% | AL66: 0% | AM66: 0% | AN66: 0% | AO66: 0% | AP66: 0% | AQ66: 0% | AR66: 0% | AS66: 0% | AT66: 0% | AU66: 0% | AV66: 0% | AW66: 0% | AX66: 0% | AY66: 0% | AZ66: 0% | BA66: 0% | BB66: 0% | BC66: 0%
B67: Capex da Tecnologia | C67: =C66*$D$65 -> 5.705 | D67: 14.261 | E67: 8.557 | F67: 0.000 | G67: 0.000 | H67: 0.000 | I67: 0.000 | J67: 0.000 | K67: 0.000 | L67: 0.000 | M67: 0.000 | N67: 0.000 | O67: 0.000 | P67: 0.000 | Q67: 0.000 | R67: 0.000 | S67: 0.000 | T67: 0.000 | U67: 0.000 | V67: 0.000 | W67: 0.000 | X67: 0.000 | Y67: 0.000 | Z67: 0.000 | AA67: 0.000 | AB67: 0.000 | AC67: 0.000 | AD67: 0.000 | AE67: 0.000 | AF67: 0.000 | AG67: 0.000 | AH67: 0.000 | AI67: 0.000 | AJ67: 0.000 | AK67: 0.000 | AL67: 0.000 | AM67: 0.000 | AN67: 0.000 | AO67: 0.000 | AP67: 0.000 | AQ67: 0.000 | AR67: 0.000 | AS67: 0.000 | AT67: 0.000 | AU67: 0.000 | AV67: 0.000 | AW67: 0.000 | AX67: 0.000 | AY67: 0.000 | AZ67: 0.000 | BA67: 0.000 | BB67: 0.000 | BC67: 0.000
B68: ='R&C-Painel de Controle'!F56 -> Triagem Mecanizada | C68: ='R&C-Painel de Controle'!G56 -> Sim | D68: ='R&C-Painel de Controle'!K56 -> 245.131
B69: Ano de Implementação | C69: 30% | D69: 20% | E69: 50% | F69: 0% | G69: 0% | H69: 0% | I69: 0% | J69: 0% | K69: 0% | L69: 0% | M69: 0% | N69: 0% | O69: 0% | P69: 0% | Q69: 0% | R69: 0% | S69: 0% | T69: 0% | U69: 0% | V69: 0% | W69: 0% | X69: 0% | Y69: 0% | Z69: 0% | AA69: 0% | AB69: 0% | AC69: 0% | AD69: 0% | AE69: 0% | AF69: 0% | AG69: 0% | AH69: 0% | AI69: 0% | AJ69: 0% | AK69: 0% | AL69: 0% | AM69: 0% | AN69: 0% | AO69: 0% | AP69: 0% | AQ69: 0% | AR69: 0% | AS69: 0% | AT69: 0% | AU69: 0% | AV69: 0% | AW69: 0% | AX69: 0% | AY69: 0% | AZ69: 0% | BA69: 0% | BB69: 0% | BC69: 0%
B70: Capex da Tecnologia | C70: =C69*$D$68 -> 73.539 | D70: 49.026 | E70: 122.566 | F70: =F69*$D$65 -> 0.000 | G70: 0.000 | H70: 0.000 | I70: 0.000 | J70: 0.000 | K70: 0.000 | L70: 0.000 | M70: 0.000 | N70: 0.000 | O70: 0.000 | P70: 0.000 | Q70: 0.000 | R70: 0.000 | S70: 0.000 | T70: 0.000 | U70: 0.000 | V70: 0.000 | W70: 0.000 | X70: 0.000 | Y70: 0.000 | Z70: 0.000 | AA70: 0.000 | AB70: 0.000 | AC70: 0.000 | AD70: 0.000 | AE70: 0.000 | AF70: 0.000 | AG70: 0.000 | AH70: 0.000 | AI70: 0.000 | AJ70: 0.000 | AK70: 0.000 | AL70: 0.000 | AM70: 0.000 | AN70: 0.000 | AO70: 0.000 | AP70: 0.000 | AQ70: 0.000 | AR70: 0.000 | AS70: 0.000 | AT70: 0.000 | AU70: 0.000 | AV70: 0.000 | AW70: 0.000 | AX70: 0.000 | AY70: 0.000 | AZ70: 0.000 | BA70: 0.000 | BB70: 0.000 | BC70: 0.000
B71: ='R&C-Painel de Controle'!F59 -> Produção de CDR TM — Trat. Mec. | C71: ='R&C-Painel de Controle'!G59 -> Sim | D71: ='R&C-Painel de Controle'!K59 -> 24.237
B72: Ano de Implementação | C72: 20% | D72: 50% | E72: 30% | F72: 0% | G72: 0% | H72: 0% | I72: 0% | J72: 0% | K72: 0% | L72: 0% | M72: 0% | N72: 0% | O72: 0% | P72: 0% | Q72: 0% | R72: 0% | S72: 0% | T72: 0% | U72: 0% | V72: 0% | W72: 0% | X72: 0% | Y72: 0% | Z72: 0% | AA72: 0% | AB72: 0% | AC72: 0% | AD72: 0% | AE72: 0% | AF72: 0% | AG72: 0% | AH72: 0% | AI72: 0% | AJ72: 0% | AK72: 0% | AL72: 0% | AM72: 0% | AN72: 0% | AO72: 0% | AP72: 0% | AQ72: 0% | AR72: 0% | AS72: 0% | AT72: 0% | AU72: 0% | AV72: 0% | AW72: 0% | AX72: 0% | AY72: 0% | AZ72: 0% | BA72: 0% | BB72: 0% | BC72: 0%
B73: Capex da Tecnologia | C73: =C72*$D$71 -> 4.847 | D73: 12.118 | E73: 7.271 | F73: 0.000 | G73: 0.000 | H73: 0.000 | I73: 0.000 | J73: 0.000 | K73: 0.000 | L73: 0.000 | M73: 0.000 | N73: 0.000 | O73: 0.000 | P73: 0.000 | Q73: 0.000 | R73: 0.000 | S73: 0.000 | T73: 0.000 | U73: 0.000 | V73: 0.000 | W73: 0.000 | X73: 0.000 | Y73: 0.000 | Z73: 0.000 | AA73: 0.000 | AB73: 0.000 | AC73: 0.000 | AD73: 0.000 | AE73: 0.000 | AF73: 0.000 | AG73: 0.000 | AH73: 0.000 | AI73: 0.000 | AJ73: 0.000 | AK73: 0.000 | AL73: 0.000 | AM73: 0.000 | AN73: 0.000 | AO73: 0.000 | AP73: 0.000 | AQ73: 0.000 | AR73: 0.000 | AS73: 0.000 | AT73: 0.000 | AU73: 0.000 | AV73: 0.000 | AW73: 0.000 | AX73: 0.000 | AY73: 0.000 | AZ73: 0.000 | BA73: 0.000 | BB73: 0.000 | BC73: 0.000
B74: ='R&C-Painel de Controle'!F62 -> Prod. CDR TMB — Trat. Mec./Biológ. | C74: ='R&C-Painel de Controle'!G62 -> Não | D74: ='R&C-Painel de Controle'!K62 -> 0.000
B75: Ano de Implementação | C75: 20% | D75: 50% | E75: 30% | F75: 0% | G75: 0% | H75: 0% | I75: 0% | J75: 0% | K75: 0% | L75: 0% | M75: 0% | N75: 0% | O75: 0% | P75: 0% | Q75: 0% | R75: 0% | S75: 0% | T75: 0% | U75: 0% | V75: 0% | W75: 0% | X75: 0% | Y75: 0% | Z75: 0% | AA75: 0% | AB75: 0% | AC75: 0% | AD75: 0% | AE75: 0% | AF75: 0% | AG75: 0% | AH75: 0% | AI75: 0% | AJ75: 0% | AK75: 0% | AL75: 0% | AM75: 0% | AN75: 0% | AO75: 0% | AP75: 0% | AQ75: 0% | AR75: 0% | AS75: 0% | AT75: 0% | AU75: 0% | AV75: 0% | AW75: 0% | AX75: 0% | AY75: 0% | AZ75: 0% | BA75: 0% | BB75: 0% | BC75: 0%
B76: Capex da Tecnologia | C76: =C75*$D$74 -> 0.000 | D76: 0.000 | E76: 0.000 | F76: 0.000 | G76: 0.000 | H76: 0.000 | I76: 0.000 | J76: 0.000 | K76: 0.000 | L76: 0.000 | M76: 0.000 | N76: 0.000 | O76: 0.000 | P76: 0.000 | Q76: 0.000 | R76: 0.000 | S76: 0.000 | T76: 0.000 | U76: 0.000 | V76: 0.000 | W76: 0.000 | X76: 0.000 | Y76: 0.000 | Z76: 0.000 | AA76: 0.000 | AB76: 0.000 | AC76: 0.000 | AD76: 0.000 | AE76: 0.000 | AF76: 0.000 | AG76: 0.000 | AH76: 0.000 | AI76: 0.000 | AJ76: 0.000 | AK76: 0.000 | AL76: 0.000 | AM76: 0.000 | AN76: 0.000 | AO76: 0.000 | AP76: 0.000 | AQ76: 0.000 | AR76: 0.000 | AS76: 0.000 | AT76: 0.000 | AU76: 0.000 | AV76: 0.000 | AW76: 0.000 | AX76: 0.000 | AY76: 0.000 | AZ76: 0.000 | BA76: 0.000 | BB76: 0.000 | BC76: 0.000
B77: ='R&C-Painel de Controle'!F65 -> Biodigestão Anaeróbia | C77: ='R&C-Painel de Controle'!G65 -> Sim | D77: ='R&C-Painel de Controle'!K65 -> 343.017
B78: Ano de Implementação | C78: 20% | D78: 50% | E78: 30% | F78: 0% | G78: 0% | H78: 0% | I78: 0% | J78: 0% | K78: 0% | L78: 0% | M78: 0% | N78: 0% | O78: 0% | P78: 0% | Q78: 0% | R78: 0% | S78: 0% | T78: 0% | U78: 0% | V78: 0% | W78: 0% | X78: 0% | Y78: 0% | Z78: 0% | AA78: 0% | AB78: 0% | AC78: 0% | AD78: 0% | AE78: 0% | AF78: 0% | AG78: 0% | AH78: 0% | AI78: 0% | AJ78: 0% | AK78: 0% | AL78: 0% | AM78: 0% | AN78: 0% | AO78: 0% | AP78: 0% | AQ78: 0% | AR78: 0% | AS78: 0% | AT78: 0% | AU78: 0% | AV78: 0% | AW78: 0% | AX78: 0% | AY78: 0% | AZ78: 0% | BA78: 0% | BB78: 0% | BC78: 0%
B79: Capex da Tecnologia | C79: =C78*$D$77 -> 68.603 | D79: 171.509 | E79: 102.905 | F79: 0.000 | G79: 0.000 | H79: 0.000 | I79: 0.000 | J79: 0.000 | K79: 0.000 | L79: 0.000 | M79: 0.000 | N79: 0.000 | O79: 0.000 | P79: 0.000 | Q79: 0.000 | R79: 0.000 | S79: 0.000 | T79: 0.000 | U79: 0.000 | V79: 0.000 | W79: 0.000 | X79: 0.000 | Y79: 0.000 | Z79: 0.000 | AA79: 0.000 | AB79: 0.000 | AC79: 0.000 | AD79: 0.000 | AE79: 0.000 | AF79: 0.000 | AG79: 0.000 | AH79: 0.000 | AI79: 0.000 | AJ79: 0.000 | AK79: 0.000 | AL79: 0.000 | AM79: 0.000 | AN79: 0.000 | AO79: 0.000 | AP79: 0.000 | AQ79: 0.000 | AR79: 0.000 | AS79: 0.000 | AT79: 0.000 | AU79: 0.000 | AV79: 0.000 | AW79: 0.000 | AX79: 0.000 | AY79: 0.000 | AZ79: 0.000 | BA79: 0.000 | BB79: 0.000 | BC79: 0.000
B80: ='R&C-Painel de Controle'!F68 -> Compostagem | C80: ='R&C-Painel de Controle'!G68 -> Sim | D80: ='R&C-Painel de Controle'!K68 -> 79.975
B81: Ano de Implementação | C81: 20% | D81: 50% | E81: 30% | F81: 0% | G81: 0% | H81: 0% | I81: 0% | J81: 0% | K81: 0% | L81: 0% | M81: 0% | N81: 0% | O81: 0% | P81: 0% | Q81: 0% | R81: 0% | S81: 0% | T81: 0% | U81: 0% | V81: 0% | W81: 0% | X81: 0% | Y81: 0% | Z81: 0% | AA81: 0% | AB81: 0% | AC81: 0% | AD81: 0% | AE81: 0% | AF81: 0% | AG81: 0% | AH81: 0% | AI81: 0% | AJ81: 0% | AK81: 0% | AL81: 0% | AM81: 0% | AN81: 0% | AO81: 0% | AP81: 0% | AQ81: 0% | AR81: 0% | AS81: 0% | AT81: 0% | AU81: 0% | AV81: 0% | AW81: 0% | AX81: 0% | AY81: 0% | AZ81: 0% | BA81: 0% | BB81: 0% | BC81: 0%
B82: Capex da Tecnologia | C82: =C81*$D$80 -> 15.995 | D82: 39.988 | E82: 23.993 | F82: 0.000 | G82: 0.000 | H82: 0.000 | I82: 0.000 | J82: 0.000 | K82: 0.000 | L82: 0.000 | M82: 0.000 | N82: 0.000 | O82: 0.000 | P82: 0.000 | Q82: 0.000 | R82: 0.000 | S82: 0.000 | T82: 0.000 | U82: 0.000 | V82: 0.000 | W82: 0.000 | X82: 0.000 | Y82: 0.000 | Z82: 0.000 | AA82: 0.000 | AB82: 0.000 | AC82: 0.000 | AD82: 0.000 | AE82: 0.000 | AF82: 0.000 | AG82: 0.000 | AH82: 0.000 | AI82: 0.000 | AJ82: 0.000 | AK82: 0.000 | AL82: 0.000 | AM82: 0.000 | AN82: 0.000 | AO82: 0.000 | AP82: 0.000 | AQ82: 0.000 | AR82: 0.000 | AS82: 0.000 | AT82: 0.000 | AU82: 0.000 | AV82: 0.000 | AW82: 0.000 | AX82: 0.000 | AY82: 0.000 | AZ82: 0.000 | BA82: 0.000 | BB82: 0.000 | BC82: 0.000
B83: ='R&C-Painel de Controle'!F71 -> Incineração | C83: ='R&C-Painel de Controle'!G71 -> Sim | D83: ='R&C-Painel de Controle'!K71 -> 891.623
B84: Ano de Implementação | C84: 20% | D84: 50% | E84: 30% | F84: 0% | G84: 0% | H84: 0% | I84: 0% | J84: 0% | K84: 0% | L84: 0% | M84: 0% | N84: 0% | O84: 0% | P84: 0% | Q84: 0% | R84: 0% | S84: 0% | T84: 0% | U84: 0% | V84: 0% | W84: 0% | X84: 0% | Y84: 0% | Z84: 0% | AA84: 0% | AB84: 0% | AC84: 0% | AD84: 0% | AE84: 0% | AF84: 0% | AG84: 0% | AH84: 0% | AI84: 0% | AJ84: 0% | AK84: 0% | AL84: 0% | AM84: 0% | AN84: 0% | AO84: 0% | AP84: 0% | AQ84: 0% | AR84: 0% | AS84: 0% | AT84: 0% | AU84: 0% | AV84: 0% | AW84: 0% | AX84: 0% | AY84: 0% | AZ84: 0% | BA84: 0% | BB84: 0% | BC84: 0%
B85: Capex da Tecnologia | C85: =C84*$D$83 -> 178.325 | D85: 445.811 | E85: 267.487 | F85: 0.000 | G85: 0.000 | H85: 0.000 | I85: 0.000 | J85: 0.000 | K85: 0.000 | L85: 0.000 | M85: 0.000 | N85: 0.000 | O85: 0.000 | P85: 0.000 | Q85: 0.000 | R85: 0.000 | S85: 0.000 | T85: 0.000 | U85: 0.000 | V85: 0.000 | W85: 0.000 | X85: 0.000 | Y85: 0.000 | Z85: 0.000 | AA85: 0.000 | AB85: 0.000 | AC85: 0.000 | AD85: 0.000 | AE85: 0.000 | AF85: 0.000 | AG85: 0.000 | AH85: 0.000 | AI85: 0.000 | AJ85: 0.000 | AK85: 0.000 | AL85: 0.000 | AM85: 0.000 | AN85: 0.000 | AO85: 0.000 | AP85: 0.000 | AQ85: 0.000 | AR85: 0.000 | AS85: 0.000 | AT85: 0.000 | AU85: 0.000 | AV85: 0.000 | AW85: 0.000 | AX85: 0.000 | AY85: 0.000 | AZ85: 0.000 | BA85: 0.000 | BB85: 0.000 | BC85: 0.000
B86: ='R&C-Painel de Controle'!F74 -> Aterro Sanitário | C86: ='R&C-Painel de Controle'!G74 -> Sim | D86: ='R&C-Painel de Controle'!K74 -> 52.749
B87: Ano de Implementação | C87: 20% | D87: 50% | E87: 30% | F87: 0% | G87: 0% | H87: 0% | I87: 0% | J87: 0% | K87: 0% | L87: 0% | M87: 0% | N87: 0% | O87: 0% | P87: 0% | Q87: 0% | R87: 0% | S87: 0% | T87: 0% | U87: 0% | V87: 0% | W87: 0% | X87: 0% | Y87: 0% | Z87: 0% | AA87: 0% | AB87: 0% | AC87: 0% | AD87: 0% | AE87: 0% | AF87: 0% | AG87: 0% | AH87: 0% | AI87: 0% | AJ87: 0% | AK87: 0% | AL87: 0% | AM87: 0% | AN87: 0% | AO87: 0% | AP87: 0% | AQ87: 0% | AR87: 0% | AS87: 0% | AT87: 0% | AU87: 0% | AV87: 0% | AW87: 0% | AX87: 0% | AY87: 0% | AZ87: 0% | BA87: 0% | BB87: 0% | BC87: 0%
B88: Capex da Tecnologia | C88: =C87*$D$86 -> 10.550 | D88: 26.375 | E88: 15.825 | F88: 0.000 | G88: 0.000 | H88: 0.000 | I88: 0.000 | J88: 0.000 | K88: 0.000 | L88: 0.000 | M88: 0.000 | N88: 0.000 | O88: 0.000 | P88: 0.000 | Q88: 0.000 | R88: 0.000 | S88: 0.000 | T88: 0.000 | U88: 0.000 | V88: 0.000 | W88: 0.000 | X88: 0.000 | Y88: 0.000 | Z88: 0.000 | AA88: 0.000 | AB88: 0.000 | AC88: 0.000 | AD88: 0.000 | AE88: 0.000 | AF88: 0.000 | AG88: 0.000 | AH88: 0.000 | AI88: 0.000 | AJ88: 0.000 | AK88: 0.000 | AL88: 0.000 | AM88: 0.000 | AN88: 0.000 | AO88: 0.000 | AP88: 0.000 | AQ88: 0.000 | AR88: 0.000 | AS88: 0.000 | AT88: 0.000 | AU88: 0.000 | AV88: 0.000 | AW88: 0.000 | AX88: 0.000 | AY88: 0.000 | AZ88: 0.000 | BA88: 0.000 | BB88: 0.000 | BC88: 0.000
B90: Dados de Opex + Coleta | C90: =IF('R&C-Painel de Controle'!$D$24="Não",C94+C97+C100+C103+C106+C109+C112+C115,C94+C97+C100+C103+C106+C109+C112+C115+'R&C-Painel de Controle'!$L$91) -> 0.000 | D90: =IF('R&C-Painel de Controle'!$D$24="Não",D94+D97+D100+D103+D106+D109+D112+D115,D94+D97+D100+D103+D106+D109+D112+D115+'R&C-Painel de Controle'!$L$91) -> 0.000 | E90: =IF('R&C-Painel de Controle'!$D$24="Não",E94+E97+E100+E103+E106+E109+E112+E115,E94+E97+E100+E103+E106+E109+E112+E115+'R&C-Painel de Controle'!$L$91) -> 113.078 | F90: =IF('R&C-Painel de Controle'!$D$24="Não",F94+F97+F100+F103+F106+F109+F112+F115,F94+F97+F100+F103+F106+F109+F112+F115+'R&C-Painel de Controle'!$L$91) -> 190.189 | G90: =IF('R&C-Painel de Controle'!$D$24="Não",G94+G97+G100+G103+G106+G109+G112+G115,G94+G97+G100+G103+G106+G109+G112+G115+'R&C-Painel de Controle'!$L$91) -> 190.189 | H90: =IF('R&C-Painel de Controle'!$D$24="Não",H94+H97+H100+H103+H106+H109+H112+H115,H94+H97+H100+H103+H106+H109+H112+H115+'R&C-Painel de Controle'!$L$91) -> 190.189 | I90: =IF('R&C-Painel de Controle'!$D$24="Não",I94+I97+I100+I103+I106+I109+I112+I115,I94+I97+I100+I103+I106+I109+I112+I115+'R&C-Painel de Controle'!$L$91) -> 190.189 | J90: =IF('R&C-Painel de Controle'!$D$24="Não",J94+J97+J100+J103+J106+J109+J112+J115,J94+J97+J100+J103+J106+J109+J112+J115+'R&C-Painel de Controle'!$L$91) -> 190.189 | K90: =IF('R&C-Painel de Controle'!$D$24="Não",K94+K97+K100+K103+K106+K109+K112+K115,K94+K97+K100+K103+K106+K109+K112+K115+'R&C-Painel de Controle'!$L$91) -> 190.189 | L90: =IF('R&C-Painel de Controle'!$D$24="Não",L94+L97+L100+L103+L106+L109+L112+L115,L94+L97+L100+L103+L106+L109+L112+L115+'R&C-Painel de Controle'!$L$91) -> 190.189 | M90: =IF('R&C-Painel de Controle'!$D$24="Não",M94+M97+M100+M103+M106+M109+M112+M115,M94+M97+M100+M103+M106+M109+M112+M115+'R&C-Painel de Controle'!$L$91) -> 190.189 | N90: =IF('R&C-Painel de Controle'!$D$24="Não",N94+N97+N100+N103+N106+N109+N112+N115,N94+N97+N100+N103+N106+N109+N112+N115+'R&C-Painel de Controle'!$L$91) -> 190.189 | O90: =IF('R&C-Painel de Controle'!$D$24="Não",O94+O97+O100+O103+O106+O109+O112+O115,O94+O97+O100+O103+O106+O109+O112+O115+'R&C-Painel de Controle'!$L$91) -> 190.189 | P90: =IF('R&C-Painel de Controle'!$D$24="Não",P94+P97+P100+P103+P106+P109+P112+P115,P94+P97+P100+P103+P106+P109+P112+P115+'R&C-Painel de Controle'!$L$91) -> 190.189 | Q90: =IF('R&C-Painel de Controle'!$D$24="Não",Q94+Q97+Q100+Q103+Q106+Q109+Q112+Q115,Q94+Q97+Q100+Q103+Q106+Q109+Q112+Q115+'R&C-Painel de Controle'!$L$91) -> 190.189 | R90: =IF('R&C-Painel de Controle'!$D$24="Não",R94+R97+R100+R103+R106+R109+R112+R115,R94+R97+R100+R103+R106+R109+R112+R115+'R&C-Painel de Controle'!$L$91) -> 190.189 | S90: =IF('R&C-Painel de Controle'!$D$24="Não",S94+S97+S100+S103+S106+S109+S112+S115,S94+S97+S100+S103+S106+S109+S112+S115+'R&C-Painel de Controle'!$L$91) -> 190.189 | T90: =IF('R&C-Painel de Controle'!$D$24="Não",T94+T97+T100+T103+T106+T109+T112+T115,T94+T97+T100+T103+T106+T109+T112+T115+'R&C-Painel de Controle'!$L$91) -> 190.189 | U90: =IF('R&C-Painel de Controle'!$D$24="Não",U94+U97+U100+U103+U106+U109+U112+U115,U94+U97+U100+U103+U106+U109+U112+U115+'R&C-Painel de Controle'!$L$91) -> 190.189 | V90: =IF('R&C-Painel de Controle'!$D$24="Não",V94+V97+V100+V103+V106+V109+V112+V115,V94+V97+V100+V103+V106+V109+V112+V115+'R&C-Painel de Controle'!$L$91) -> 190.189 | W90: =IF('R&C-Painel de Controle'!$D$24="Não",W94+W97+W100+W103+W106+W109+W112+W115,W94+W97+W100+W103+W106+W109+W112+W115+'R&C-Painel de Controle'!$L$91) -> 190.189 | X90: =IF('R&C-Painel de Controle'!$D$24="Não",X94+X97+X100+X103+X106+X109+X112+X115,X94+X97+X100+X103+X106+X109+X112+X115+'R&C-Painel de Controle'!$L$91) -> 190.189 | Y90: =IF('R&C-Painel de Controle'!$D$24="Não",Y94+Y97+Y100+Y103+Y106+Y109+Y112+Y115,Y94+Y97+Y100+Y103+Y106+Y109+Y112+Y115+'R&C-Painel de Controle'!$L$91) -> 190.189 | Z90: =IF('R&C-Painel de Controle'!$D$24="Não",Z94+Z97+Z100+Z103+Z106+Z109+Z112+Z115,Z94+Z97+Z100+Z103+Z106+Z109+Z112+Z115+'R&C-Painel de Controle'!$L$91) -> 190.189 | AA90: =IF('R&C-Painel de Controle'!$D$24="Não",AA94+AA97+AA100+AA103+AA106+AA109+AA112+AA115,AA94+AA97+AA100+AA103+AA106+AA109+AA112+AA115+'R&C-Painel de Controle'!$L$91) -> 190.189 | AB90: =IF('R&C-Painel de Controle'!$D$24="Não",AB94+AB97+AB100+AB103+AB106+AB109+AB112+AB115,AB94+AB97+AB100+AB103+AB106+AB109+AB112+AB115+'R&C-Painel de Controle'!$L$91) -> 190.189 | AC90: =IF('R&C-Painel de Controle'!$D$24="Não",AC94+AC97+AC100+AC103+AC106+AC109+AC112+AC115,AC94+AC97+AC100+AC103+AC106+AC109+AC112+AC115+'R&C-Painel de Controle'!$L$91) -> 190.189 | AD90: =IF('R&C-Painel de Controle'!$D$24="Não",AD94+AD97+AD100+AD103+AD106+AD109+AD112+AD115,AD94+AD97+AD100+AD103+AD106+AD109+AD112+AD115+'R&C-Painel de Controle'!$L$91) -> 190.189 | AE90: =IF('R&C-Painel de Controle'!$D$24="Não",AE94+AE97+AE100+AE103+AE106+AE109+AE112+AE115,AE94+AE97+AE100+AE103+AE106+AE109+AE112+AE115+'R&C-Painel de Controle'!$L$91) -> 190.189 | AF90: =IF('R&C-Painel de Controle'!$D$24="Não",AF94+AF97+AF100+AF103+AF106+AF109+AF112+AF115,AF94+AF97+AF100+AF103+AF106+AF109+AF112+AF115+'R&C-Painel de Controle'!$L$91) -> 190.189 | AG90: =IF('R&C-Painel de Controle'!$D$24="Não",AG94+AG97+AG100+AG103+AG106+AG109+AG112+AG115,AG94+AG97+AG100+AG103+AG106+AG109+AG112+AG115+'R&C-Painel de Controle'!$L$91) -> 190.189 | AH90: =IF('R&C-Painel de Controle'!$D$24="Não",AH94+AH97+AH100+AH103+AH106+AH109+AH112+AH115,AH94+AH97+AH100+AH103+AH106+AH109+AH112+AH115+'R&C-Painel de Controle'!$L$91) -> 190.189 | AI90: =IF('R&C-Painel de Controle'!$D$24="Não",AI94+AI97+AI100+AI103+AI106+AI109+AI112+AI115,AI94+AI97+AI100+AI103+AI106+AI109+AI112+AI115+'R&C-Painel de Controle'!$L$91) -> 190.189 | AJ90: =IF('R&C-Painel de Controle'!$D$24="Não",AJ94+AJ97+AJ100+AJ103+AJ106+AJ109+AJ112+AJ115,AJ94+AJ97+AJ100+AJ103+AJ106+AJ109+AJ112+AJ115+'R&C-Painel de Controle'!$L$91) -> 190.189 | AK90: =IF('R&C-Painel de Controle'!$D$24="Não",AK94+AK97+AK100+AK103+AK106+AK109+AK112+AK115,AK94+AK97+AK100+AK103+AK106+AK109+AK112+AK115+'R&C-Painel de Controle'!$L$91) -> 190.189 | AL90: =IF('R&C-Painel de Controle'!$D$24="Não",AL94+AL97+AL100+AL103+AL106+AL109+AL112+AL115,AL94+AL97+AL100+AL103+AL106+AL109+AL112+AL115+'R&C-Painel de Controle'!$L$91) -> 190.189 | AM90: =IF('R&C-Painel de Controle'!$D$24="Não",AM94+AM97+AM100+AM103+AM106+AM109+AM112+AM115,AM94+AM97+AM100+AM103+AM106+AM109+AM112+AM115+'R&C-Painel de Controle'!$L$91) -> 190.189 | AN90: =IF('R&C-Painel de Controle'!$D$24="Não",AN94+AN97+AN100+AN103+AN106+AN109+AN112+AN115,AN94+AN97+AN100+AN103+AN106+AN109+AN112+AN115+'R&C-Painel de Controle'!$L$91) -> 190.189 | AO90: =IF('R&C-Painel de Controle'!$D$24="Não",AO94+AO97+AO100+AO103+AO106+AO109+AO112+AO115,AO94+AO97+AO100+AO103+AO106+AO109+AO112+AO115+'R&C-Painel de Controle'!$L$91) -> 190.189 | AP90: =IF('R&C-Painel de Controle'!$D$24="Não",AP94+AP97+AP100+AP103+AP106+AP109+AP112+AP115,AP94+AP97+AP100+AP103+AP106+AP109+AP112+AP115+'R&C-Painel de Controle'!$L$91) -> 190.189 | AQ90: =IF('R&C-Painel de Controle'!$D$24="Não",AQ94+AQ97+AQ100+AQ103+AQ106+AQ109+AQ112+AQ115,AQ94+AQ97+AQ100+AQ103+AQ106+AQ109+AQ112+AQ115+'R&C-Painel de Controle'!$L$91) -> 190.189 | AR90: =IF('R&C-Painel de Controle'!$D$24="Não",AR94+AR97+AR100+AR103+AR106+AR109+AR112+AR115,AR94+AR97+AR100+AR103+AR106+AR109+AR112+AR115+'R&C-Painel de Controle'!$L$91) -> 190.189 | AS90: =IF('R&C-Painel de Controle'!$D$24="Não",AS94+AS97+AS100+AS103+AS106+AS109+AS112+AS115,AS94+AS97+AS100+AS103+AS106+AS109+AS112+AS115+'R&C-Painel de Controle'!$L$91) -> 190.189 | AT90: =IF('R&C-Painel de Controle'!$D$24="Não",AT94+AT97+AT100+AT103+AT106+AT109+AT112+AT115,AT94+AT97+AT100+AT103+AT106+AT109+AT112+AT115+'R&C-Painel de Controle'!$L$91) -> 190.189 | AU90: =IF('R&C-Painel de Controle'!$D$24="Não",AU94+AU97+AU100+AU103+AU106+AU109+AU112+AU115,AU94+AU97+AU100+AU103+AU106+AU109+AU112+AU115+'R&C-Painel de Controle'!$L$91) -> 190.189 | AV90: =IF('R&C-Painel de Controle'!$D$24="Não",AV94+AV97+AV100+AV103+AV106+AV109+AV112+AV115,AV94+AV97+AV100+AV103+AV106+AV109+AV112+AV115+'R&C-Painel de Controle'!$L$91) -> 190.189 | AW90: =IF('R&C-Painel de Controle'!$D$24="Não",AW94+AW97+AW100+AW103+AW106+AW109+AW112+AW115,AW94+AW97+AW100+AW103+AW106+AW109+AW112+AW115+'R&C-Painel de Controle'!$L$91) -> 190.189 | AX90: =IF('R&C-Painel de Controle'!$D$24="Não",AX94+AX97+AX100+AX103+AX106+AX109+AX112+AX115,AX94+AX97+AX100+AX103+AX106+AX109+AX112+AX115+'R&C-Painel de Controle'!$L$91) -> 190.189 | AY90: =IF('R&C-Painel de Controle'!$D$24="Não",AY94+AY97+AY100+AY103+AY106+AY109+AY112+AY115,AY94+AY97+AY100+AY103+AY106+AY109+AY112+AY115+'R&C-Painel de Controle'!$L$91) -> 190.189 | AZ90: =IF('R&C-Painel de Controle'!$D$24="Não",AZ94+AZ97+AZ100+AZ103+AZ106+AZ109+AZ112+AZ115,AZ94+AZ97+AZ100+AZ103+AZ106+AZ109+AZ112+AZ115+'R&C-Painel de Controle'!$L$91) -> 190.189 | BA90: =IF('R&C-Painel de Controle'!$D$24="Não",BA94+BA97+BA100+BA103+BA106+BA109+BA112+BA115,BA94+BA97+BA100+BA103+BA106+BA109+BA112+BA115+'R&C-Painel de Controle'!$L$91) -> 190.189 | BB90: =IF('R&C-Painel de Controle'!$D$24="Não",BB94+BB97+BB100+BB103+BB106+BB109+BB112+BB115,BB94+BB97+BB100+BB103+BB106+BB109+BB112+BB115+'R&C-Painel de Controle'!$L$91) -> 190.189 | BC90: =IF('R&C-Painel de Controle'!$D$24="Não",BC94+BC97+BC100+BC103+BC106+BC109+BC112+BC115,BC94+BC97+BC100+BC103+BC106+BC109+BC112+BC115+'R&C-Painel de Controle'!$L$91) -> 190.189
B91: Tecnologias | C91: Sim/Não | D91: t/a
B92: =B65 -> Triagem Manual — Seletivos | C92: =C37 -> Sim | D92: 15,494
B94: Custo Operacional MR$/a | C94: =IF(C39>0,'R&C-Painel de Controle'!$O$55+'R&C-Painel de Controle'!$P$55*C39/1000000,0) -> 0.0 | D94: =IF(D39>0,'R&C-Painel de Controle'!$O$55+'R&C-Painel de Controle'!$P$55*D39/1000000,0) -> 0.0 | E94: =IF(E39>0,'R&C-Painel de Controle'!O55+'R&C-Painel de Controle'!$P$55*E39/1000000,0) -> 8.1 | F94: =IF(F39>0,'R&C-Painel de Controle'!$O$55+'R&C-Painel de Controle'!$P$55*F39/1000000,0) -> 13.1 | G94: =IF(G39>0,'R&C-Painel de Controle'!$O$55+'R&C-Painel de Controle'!$P$55*G39/1000000,0) -> 13.1 | H94: =IF(H39>0,'R&C-Painel de Controle'!$O$55+'R&C-Painel de Controle'!$P$55*H39/1000000,0) -> 13.1 | I94: =IF(I39>0,'R&C-Painel de Controle'!$O$55+'R&C-Painel de Controle'!$P$55*I39/1000000,0) -> 13.1 | J94: =IF(J39>0,'R&C-Painel de Controle'!$O$55+'R&C-Painel de Controle'!$P$55*J39/1000000,0) -> 13.1 | K94: =IF(K39>0,'R&C-Painel de Controle'!$O$55+'R&C-Painel de Controle'!$P$55*K39/1000000,0) -> 13.1 | L94: =IF(L39>0,'R&C-Painel de Controle'!$O$55+'R&C-Painel de Controle'!$P$55*L39/1000000,0) -> 13.1 | M94: =IF(M39>0,'R&C-Painel de Controle'!$O$55+'R&C-Painel de Controle'!$P$55*M39/1000000,0) -> 13.1 | N94: =IF(N39>0,'R&C-Painel de Controle'!$O$55+'R&C-Painel de Controle'!$P$55*N39/1000000,0) -> 13.1 | O94: =IF(O39>0,'R&C-Painel de Controle'!$O$55+'R&C-Painel de Controle'!$P$55*O39/1000000,0) -> 13.1 | P94: =IF(P39>0,'R&C-Painel de Controle'!$O$55+'R&C-Painel de Controle'!$P$55*P39/1000000,0) -> 13.1 | Q94: =IF(Q39>0,'R&C-Painel de Controle'!$O$55+'R&C-Painel de Controle'!$P$55*Q39/1000000,0) -> 13.1 | R94: =Q94 -> 13.1 | S94: 13.1 | T94: 13.1 | U94: 13.1 | V94: 13.1 | W94: 13.1 | X94: 13.1 | Y94: 13.1 | Z94: 13.1 | AA94: 13.1 | AB94: 13.1 | AC94: 13.1 | AD94: 13.1 | AE94: 13.1 | AF94: 13.1 | AG94: 13.1 | AH94: 13.1 | AI94: 13.1 | AJ94: 13.1 | AK94: 13.1 | AL94: 13.1 | AM94: 13.1 | AN94: 13.1 | AO94: 13.1 | AP94: 13.1 | AQ94: 13.1 | AR94: 13.1 | AS94: 13.1 | AT94: 13.1 | AU94: 13.1 | AV94: 13.1 | AW94: 13.1 | AX94: 13.1 | AY94: 13.1 | AZ94: 13.1 | BA94: 13.1 | BB94: 13.1 | BC94: 13.1
B95: =B68 -> Triagem Mecanizada | C95: =C40 -> Sim | D95: 692,982
B97: Custo Operacional MR$/a | C97: =IF(C42>0,'R&C-Painel de Controle'!$O58+'R&C-Painel de Controle'!$P58*C42/1000000,0) -> 0.0 | D97: =IF(D42>0,'R&C-Painel de Controle'!$O58+'R&C-Painel de Controle'!$P58*D42/1000000,0) -> 0.0 | E97: =IF(E42>0,'R&C-Painel de Controle'!$O58+'R&C-Painel de Controle'!$P58*E42/1000000,0) -> 27.6 | F97: =IF(F42>0,'R&C-Painel de Controle'!$O58+'R&C-Painel de Controle'!$P58*F42/1000000,0) -> 46.0 | G97: =IF(G42>0,'R&C-Painel de Controle'!$O58+'R&C-Painel de Controle'!$P58*G42/1000000,0) -> 46.0 | H97: =IF(H42>0,'R&C-Painel de Controle'!$O58+'R&C-Painel de Controle'!$P58*H42/1000000,0) -> 46.0 | I97: =IF(I42>0,'R&C-Painel de Controle'!$O58+'R&C-Painel de Controle'!$P58*I42/1000000,0) -> 46.0 | J97: =IF(J42>0,'R&C-Painel de Controle'!$O58+'R&C-Painel de Controle'!$P58*J42/1000000,0) -> 46.0 | K97: =IF(K42>0,'R&C-Painel de Controle'!$O58+'R&C-Painel de Controle'!$P58*K42/1000000,0) -> 46.0 | L97: =IF(L42>0,'R&C-Painel de Controle'!$O58+'R&C-Painel de Controle'!$P58*L42/1000000,0) -> 46.0 | M97: =IF(M42>0,'R&C-Painel de Controle'!$O58+'R&C-Painel de Controle'!$P58*M42/1000000,0) -> 46.0 | N97: =IF(N42>0,'R&C-Painel de Controle'!$O58+'R&C-Painel de Controle'!$P58*N42/1000000,0) -> 46.0 | O97: =IF(O42>0,'R&C-Painel de Controle'!$O58+'R&C-Painel de Controle'!$P58*O42/1000000,0) -> 46.0 | P97: =IF(P42>0,'R&C-Painel de Controle'!$O58+'R&C-Painel de Controle'!$P58*P42/1000000,0) -> 46.0 | Q97: =IF(Q42>0,'R&C-Painel de Controle'!$O58+'R&C-Painel de Controle'!$P58*Q42/1000000,0) -> 46.0 | R97: =Q97 -> 46.0 | S97: 46.0 | T97: 46.0 | U97: 46.0 | V97: 46.0 | W97: 46.0 | X97: 46.0 | Y97: 46.0 | Z97: 46.0 | AA97: 46.0 | AB97: 46.0 | AC97: 46.0 | AD97: 46.0 | AE97: 46.0 | AF97: 46.0 | AG97: 46.0 | AH97: 46.0 | AI97: 46.0 | AJ97: 46.0 | AK97: 46.0 | AL97: 46.0 | AM97: 46.0 | AN97: 46.0 | AO97: 46.0 | AP97: 46.0 | AQ97: 46.0 | AR97: 46.0 | AS97: 46.0 | AT97: 46.0 | AU97: 46.0 | AV97: 46.0 | AW97: 46.0 | AX97: 46.0 | AY97: 46.0 | AZ97: 46.0 | BA97: 46.0 | BB97: 46.0 | BC97: 46.0
B98: =B71 -> Produção de CDR TM — Trat. Mec. | C98: =C43 -> Sim | D98: 60,847
B100: Custo Operacional MR$/a | C100: =IF(C45>0,'R&C-Painel de Controle'!$O61+'R&C-Painel de Controle'!$P61*C45/1000000,0) -> 0.0 | D100: =IF(D45>0,'R&C-Painel de Controle'!$O61+'R&C-Painel de Controle'!$P61*D45/1000000,0) -> 0.0 | E100: =IF(E45>0,'R&C-Painel de Controle'!$O61+'R&C-Painel de Controle'!$P61*E45/1000000,0) -> 2.1 | F100: =IF(F45>0,'R&C-Painel de Controle'!$O61+'R&C-Painel de Controle'!$P61*F45/1000000,0) -> 3.6 | G100: =IF(G45>0,'R&C-Painel de Controle'!$O61+'R&C-Painel de Controle'!$P61*G45/1000000,0) -> 3.6 | H100: =IF(H45>0,'R&C-Painel de Controle'!$O61+'R&C-Painel de Controle'!$P61*H45/1000000,0) -> 3.6 | I100: =IF(I45>0,'R&C-Painel de Controle'!$O61+'R&C-Painel de Controle'!$P61*I45/1000000,0) -> 3.6 | J100: =IF(J45>0,'R&C-Painel de Controle'!$O61+'R&C-Painel de Controle'!$P61*J45/1000000,0) -> 3.6 | K100: =IF(K45>0,'R&C-Painel de Controle'!$O61+'R&C-Painel de Controle'!$P61*K45/1000000,0) -> 3.6 | L100: =IF(L45>0,'R&C-Painel de Controle'!$O61+'R&C-Painel de Controle'!$P61*L45/1000000,0) -> 3.6 | M100: =IF(M45>0,'R&C-Painel de Controle'!$O61+'R&C-Painel de Controle'!$P61*M45/1000000,0) -> 3.6 | N100: =IF(N45>0,'R&C-Painel de Controle'!$O61+'R&C-Painel de Controle'!$P61*N45/1000000,0) -> 3.6 | O100: =IF(O45>0,'R&C-Painel de Controle'!$O61+'R&C-Painel de Controle'!$P61*O45/1000000,0) -> 3.6 | P100: =IF(P45>0,'R&C-Painel de Controle'!$O61+'R&C-Painel de Controle'!$P61*P45/1000000,0) -> 3.6 | Q100: =IF(Q45>0,'R&C-Painel de Controle'!$O61+'R&C-Painel de Controle'!$P61*Q45/1000000,0) -> 3.6 | R100: =Q100 -> 3.6 | S100: 3.6 | T100: 3.6 | U100: 3.6 | V100: 3.6 | W100: 3.6 | X100: 3.6 | Y100: 3.6 | Z100: 3.6 | AA100: 3.6 | AB100: 3.6 | AC100: 3.6 | AD100: 3.6 | AE100: 3.6 | AF100: 3.6 | AG100: 3.6 | AH100: 3.6 | AI100: 3.6 | AJ100: 3.6 | AK100: 3.6 | AL100: 3.6 | AM100: 3.6 | AN100: 3.6 | AO100: 3.6 | AP100: 3.6 | AQ100: 3.6 | AR100: 3.6 | AS100: 3.6 | AT100: 3.6 | AU100: 3.6 | AV100: 3.6 | AW100: 3.6 | AX100: 3.6 | AY100: 3.6 | AZ100: 3.6 | BA100: 3.6 | BB100: 3.6 | BC100: 3.6
B101: =B74 -> Prod. CDR TMB — Trat. Mec./Biológ. | C101: =C46 -> Não | D101: 0
B103: Custo Operacional MR$/a | C103: =IF(C48>0,'R&C-Painel de Controle'!$O64+'R&C-Painel de Controle'!$P64*C48/1000000,0) -> 0.0 | D103: =IF(D48>0,'R&C-Painel de Controle'!$O64+'R&C-Painel de Controle'!$P64*D48/1000000,0) -> 0.0 | E103: =IF(E48>0,'R&C-Painel de Controle'!$O64+'R&C-Painel de Controle'!$P64*E48/1000000,0) -> 0.0 | F103: =IF(F48>0,'R&C-Painel de Controle'!$O64+'R&C-Painel de Controle'!$P64*F48/1000000,0) -> 0.0 | G103: =IF(G48>0,'R&C-Painel de Controle'!$O64+'R&C-Painel de Controle'!$P64*G48/1000000,0) -> 0.0 | H103: =IF(H48>0,'R&C-Painel de Controle'!$O64+'R&C-Painel de Controle'!$P64*H48/1000000,0) -> 0.0 | I103: =IF(I48>0,'R&C-Painel de Controle'!$O64+'R&C-Painel de Controle'!$P64*I48/1000000,0) -> 0.0 | J103: =IF(J48>0,'R&C-Painel de Controle'!$O64+'R&C-Painel de Controle'!$P64*J48/1000000,0) -> 0.0 | K103: =IF(K48>0,'R&C-Painel de Controle'!$O64+'R&C-Painel de Controle'!$P64*K48/1000000,0) -> 0.0 | L103: =IF(L48>0,'R&C-Painel de Controle'!$O64+'R&C-Painel de Controle'!$P64*L48/1000000,0) -> 0.0 | M103: =IF(M48>0,'R&C-Painel de Controle'!$O64+'R&C-Painel de Controle'!$P64*M48/1000000,0) -> 0.0 | N103: =IF(N48>0,'R&C-Painel de Controle'!$O64+'R&C-Painel de Controle'!$P64*N48/1000000,0) -> 0.0 | O103: =IF(O48>0,'R&C-Painel de Controle'!$O64+'R&C-Painel de Controle'!$P64*O48/1000000,0) -> 0.0 | P103: =IF(P48>0,'R&C-Painel de Controle'!$O64+'R&C-Painel de Controle'!$P64*P48/1000000,0) -> 0.0 | Q103: =IF(Q48>0,'R&C-Painel de Controle'!$O64+'R&C-Painel de Controle'!$P64*Q48/1000000,0) -> 0.0 | R103: =Q103 -> 0.0 | S103: 0.0 | T103: 0.0 | U103: 0.0 | V103: 0.0 | W103: 0.0 | X103: 0.0 | Y103: 0.0 | Z103: 0.0 | AA103: 0.0 | AB103: 0.0 | AC103: 0.0 | AD103: 0.0 | AE103: 0.0 | AF103: 0.0 | AG103: 0.0 | AH103: 0.0 | AI103: 0.0 | AJ103: 0.0 | AK103: 0.0 | AL103: 0.0 | AM103: 0.0 | AN103: 0.0 | AO103: 0.0 | AP103: 0.0 | AQ103: 0.0 | AR103: 0.0 | AS103: 0.0 | AT103: 0.0 | AU103: 0.0 | AV103: 0.0 | AW103: 0.0 | AX103: 0.0 | AY103: 0.0 | AZ103: 0.0 | BA103: 0.0 | BB103: 0.0 | BC103: 0.0
B104: =B77 -> Biodigestão Anaeróbia | C104: =C49 -> Sim | D104: 322,986
B106: Custo Operacional MR$/a | C106: =IF(C51>0,'R&C-Painel de Controle'!$O67+'R&C-Painel de Controle'!$P67*C51/1000000,0) -> 0.0 | D106: =IF(D51>0,'R&C-Painel de Controle'!$O67+'R&C-Painel de Controle'!$P67*D51/1000000,0) -> 0.0 | E106: =IF(E51>0,'R&C-Painel de Controle'!$O67+'R&C-Painel de Controle'!$P67*E51/1000000,0) -> 21.1 | F106: =IF(F51>0,'R&C-Painel de Controle'!$O67+'R&C-Painel de Controle'!$P67*F51/1000000,0) -> 35.4 | G106: =IF(G51>0,'R&C-Painel de Controle'!$O67+'R&C-Painel de Controle'!$P67*G51/1000000,0) -> 35.4 | H106: =IF(H51>0,'R&C-Painel de Controle'!$O67+'R&C-Painel de Controle'!$P67*H51/1000000,0) -> 35.4 | I106: =IF(I51>0,'R&C-Painel de Controle'!$O67+'R&C-Painel de Controle'!$P67*I51/1000000,0) -> 35.4 | J106: =IF(J51>0,'R&C-Painel de Controle'!$O67+'R&C-Painel de Controle'!$P67*J51/1000000,0) -> 35.4 | K106: =IF(K51>0,'R&C-Painel de Controle'!$O67+'R&C-Painel de Controle'!$P67*K51/1000000,0) -> 35.4 | L106: =IF(L51>0,'R&C-Painel de Controle'!$O67+'R&C-Painel de Controle'!$P67*L51/1000000,0) -> 35.4 | M106: =IF(M51>0,'R&C-Painel de Controle'!$O67+'R&C-Painel de Controle'!$P67*M51/1000000,0) -> 35.4 | N106: =IF(N51>0,'R&C-Painel de Controle'!$O67+'R&C-Painel de Controle'!$P67*N51/1000000,0) -> 35.4 | O106: =IF(O51>0,'R&C-Painel de Controle'!$O67+'R&C-Painel de Controle'!$P67*O51/1000000,0) -> 35.4 | P106: =IF(P51>0,'R&C-Painel de Controle'!$O67+'R&C-Painel de Controle'!$P67*P51/1000000,0) -> 35.4 | Q106: =IF(Q51>0,'R&C-Painel de Controle'!$O67+'R&C-Painel de Controle'!$P67*Q51/1000000,0) -> 35.4 | R106: =Q106 -> 35.4 | S106: 35.4 | T106: 35.4 | U106: 35.4 | V106: 35.4 | W106: 35.4 | X106: 35.4 | Y106: 35.4 | Z106: 35.4 | AA106: 35.4 | AB106: 35.4 | AC106: 35.4 | AD106: 35.4 | AE106: 35.4 | AF106: 35.4 | AG106: 35.4 | AH106: 35.4 | AI106: 35.4 | AJ106: 35.4 | AK106: 35.4 | AL106: 35.4 | AM106: 35.4 | AN106: 35.4 | AO106: 35.4 | AP106: 35.4 | AQ106: 35.4 | AR106: 35.4 | AS106: 35.4 | AT106: 35.4 | AU106: 35.4 | AV106: 35.4 | AW106: 35.4 | AX106: 35.4 | AY106: 35.4 | AZ106: 35.4 | BA106: 35.4 | BB106: 35.4 | BC106: 35.4
B107: =B80 -> Compostagem | C107: =C52 -> Sim | D107: 228,782
B109: Custo Operacional MR$/a | C109: =IF(C54>0,'R&C-Painel de Controle'!$O70+'R&C-Painel de Controle'!$P70*C54/1000000,0) -> 0.0 | D109: =IF(D54>0,'R&C-Painel de Controle'!$O70+'R&C-Painel de Controle'!$P70*D54/1000000,0) -> 0.0 | E109: =IF(E54>0,'R&C-Painel de Controle'!$O70+'R&C-Painel de Controle'!$P70*E54/1000000,0) -> 3.8 | F109: =IF(F54>0,'R&C-Painel de Controle'!$O70+'R&C-Painel de Controle'!$P70*F54/1000000,0) -> 6.8 | G109: =IF(G54>0,'R&C-Painel de Controle'!$O70+'R&C-Painel de Controle'!$P70*G54/1000000,0) -> 6.8 | H109: =IF(H54>0,'R&C-Painel de Controle'!$O70+'R&C-Painel de Controle'!$P70*H54/1000000,0) -> 6.8 | I109: =IF(I54>0,'R&C-Painel de Controle'!$O70+'R&C-Painel de Controle'!$P70*I54/1000000,0) -> 6.8 | J109: =IF(J54>0,'R&C-Painel de Controle'!$O70+'R&C-Painel de Controle'!$P70*J54/1000000,0) -> 6.8 | K109: =IF(K54>0,'R&C-Painel de Controle'!$O70+'R&C-Painel de Controle'!$P70*K54/1000000,0) -> 6.8 | L109: =IF(L54>0,'R&C-Painel de Controle'!$O70+'R&C-Painel de Controle'!$P70*L54/1000000,0) -> 6.8 | M109: =IF(M54>0,'R&C-Painel de Controle'!$O70+'R&C-Painel de Controle'!$P70*M54/1000000,0) -> 6.8 | N109: =IF(N54>0,'R&C-Painel de Controle'!$O70+'R&C-Painel de Controle'!$P70*N54/1000000,0) -> 6.8 | O109: =IF(O54>0,'R&C-Painel de Controle'!$O70+'R&C-Painel de Controle'!$P70*O54/1000000,0) -> 6.8 | P109: =IF(P54>0,'R&C-Painel de Controle'!$O70+'R&C-Painel de Controle'!$P70*P54/1000000,0) -> 6.8 | Q109: =IF(Q54>0,'R&C-Painel de Controle'!$O70+'R&C-Painel de Controle'!$P70*Q54/1000000,0) -> 6.8 | R109: =Q109 -> 6.8 | S109: 6.8 | T109: 6.8 | U109: 6.8 | V109: 6.8 | W109: 6.8 | X109: 6.8 | Y109: 6.8 | Z109: 6.8 | AA109: 6.8 | AB109: 6.8 | AC109: 6.8 | AD109: 6.8 | AE109: 6.8 | AF109: 6.8 | AG109: 6.8 | AH109: 6.8 | AI109: 6.8 | AJ109: 6.8 | AK109: 6.8 | AL109: 6.8 | AM109: 6.8 | AN109: 6.8 | AO109: 6.8 | AP109: 6.8 | AQ109: 6.8 | AR109: 6.8 | AS109: 6.8 | AT109: 6.8 | AU109: 6.8 | AV109: 6.8 | AW109: 6.8 | AX109: 6.8 | AY109: 6.8 | AZ109: 6.8 | BA109: 6.8 | BB109: 6.8 | BC109: 6.8
B110: =B83 -> Incineração | C110: =C55 -> Sim | D110: 205,664
B112: Custo Operacional MR$/a | C112: =IF(C57>0,'R&C-Painel de Controle'!$O73+'R&C-Painel de Controle'!$P73*C57/1000000,0) -> 0.0 | D112: =IF(D57>0,'R&C-Painel de Controle'!$O73+'R&C-Painel de Controle'!$P73*D57/1000000,0) -> 0.0 | E112: =IF(E57>0,'R&C-Painel de Controle'!$O73+'R&C-Painel de Controle'!$P73*E57/1000000,0) -> 39.4 | F112: =IF(F57>0,'R&C-Painel de Controle'!$O73+'R&C-Painel de Controle'!$P73*F57/1000000,0) -> 68.0 | G112: =IF(G57>0,'R&C-Painel de Controle'!$O73+'R&C-Painel de Controle'!$P73*G57/1000000,0) -> 68.0 | H112: =IF(H57>0,'R&C-Painel de Controle'!$O73+'R&C-Painel de Controle'!$P73*H57/1000000,0) -> 68.0 | I112: =IF(I57>0,'R&C-Painel de Controle'!$O73+'R&C-Painel de Controle'!$P73*I57/1000000,0) -> 68.0 | J112: =IF(J57>0,'R&C-Painel de Controle'!$O73+'R&C-Painel de Controle'!$P73*J57/1000000,0) -> 68.0 | K112: =IF(K57>0,'R&C-Painel de Controle'!$O73+'R&C-Painel de Controle'!$P73*K57/1000000,0) -> 68.0 | L112: =IF(L57>0,'R&C-Painel de Controle'!$O73+'R&C-Painel de Controle'!$P73*L57/1000000,0) -> 68.0 | M112: =IF(M57>0,'R&C-Painel de Controle'!$O73+'R&C-Painel de Controle'!$P73*M57/1000000,0) -> 68.0 | N112: =IF(N57>0,'R&C-Painel de Controle'!$O73+'R&C-Painel de Controle'!$P73*N57/1000000,0) -> 68.0 | O112: =IF(O57>0,'R&C-Painel de Controle'!$O73+'R&C-Painel de Controle'!$P73*O57/1000000,0) -> 68.0 | P112: =IF(P57>0,'R&C-Painel de Controle'!$O73+'R&C-Painel de Controle'!$P73*P57/1000000,0) -> 68.0 | Q112: =IF(Q57>0,'R&C-Painel de Controle'!$O73+'R&C-Painel de Controle'!$P73*Q57/1000000,0) -> 68.0 | R112: =Q112 -> 68.0 | S112: 68.0 | T112: 68.0 | U112: 68.0 | V112: 68.0 | W112: 68.0 | X112: 68.0 | Y112: 68.0 | Z112: 68.0 | AA112: 68.0 | AB112: 68.0 | AC112: 68.0 | AD112: 68.0 | AE112: 68.0 | AF112: 68.0 | AG112: 68.0 | AH112: 68.0 | AI112: 68.0 | AJ112: 68.0 | AK112: 68.0 | AL112: 68.0 | AM112: 68.0 | AN112: 68.0 | AO112: 68.0 | AP112: 68.0 | AQ112: 68.0 | AR112: 68.0 | AS112: 68.0 | AT112: 68.0 | AU112: 68.0 | AV112: 68.0 | AW112: 68.0 | AX112: 68.0 | AY112: 68.0 | AZ112: 68.0 | BA112: 68.0 | BB112: 68.0 | BC112: 68.0
B113: =B86 -> Aterro Sanitário | C113: =C58 -> Sim | D113: 358,169
B115: Custo Operacional MR$/a | C115: =IF(C60>0,'R&C-Painel de Controle'!$O76+'R&C-Painel de Controle'!$P76*C60/1000000,0) -> 0.0 | D115: =IF(D60>0,'R&C-Painel de Controle'!$O76+'R&C-Painel de Controle'!$P76*D60/1000000,0) -> 0.0 | E115: =IF(E60>0,'R&C-Painel de Controle'!$O76+'R&C-Painel de Controle'!$P76*E60/1000000,0) -> 11.0 | F115: =IF(F60>0,'R&C-Painel de Controle'!$O76+'R&C-Painel de Controle'!$P76*F60/1000000,0) -> 17.2 | G115: =IF(G60>0,'R&C-Painel de Controle'!$O76+'R&C-Painel de Controle'!$P76*G60/1000000,0) -> 17.2 | H115: =IF(H60>0,'R&C-Painel de Controle'!$O76+'R&C-Painel de Controle'!$P76*H60/1000000,0) -> 17.2 | I115: =IF(I60>0,'R&C-Painel de Controle'!$O76+'R&C-Painel de Controle'!$P76*I60/1000000,0) -> 17.2 | J115: =IF(J60>0,'R&C-Painel de Controle'!$O76+'R&C-Painel de Controle'!$P76*J60/1000000,0) -> 17.2 | K115: =IF(K60>0,'R&C-Painel de Controle'!$O76+'R&C-Painel de Controle'!$P76*K60/1000000,0) -> 17.2 | L115: =IF(L60>0,'R&C-Painel de Controle'!$O76+'R&C-Painel de Controle'!$P76*L60/1000000,0) -> 17.2 | M115: =IF(M60>0,'R&C-Painel de Controle'!$O76+'R&C-Painel de Controle'!$P76*M60/1000000,0) -> 17.2 | N115: =IF(N60>0,'R&C-Painel de Controle'!$O76+'R&C-Painel de Controle'!$P76*N60/1000000,0) -> 17.2 | O115: =IF(O60>0,'R&C-Painel de Controle'!$O76+'R&C-Painel de Controle'!$P76*O60/1000000,0) -> 17.2 | P115: =IF(P60>0,'R&C-Painel de Controle'!$O76+'R&C-Painel de Controle'!$P76*P60/1000000,0) -> 17.2 | Q115: =IF(Q60>0,'R&C-Painel de Controle'!$O76+'R&C-Painel de Controle'!$P76*Q60/1000000,0) -> 17.2 | R115: =Q115 -> 17.2 | S115: 17.2 | T115: 17.2 | U115: 17.2 | V115: 17.2 | W115: 17.2 | X115: 17.2 | Y115: 17.2 | Z115: 17.2 | AA115: 17.2 | AB115: 17.2 | AC115: 17.2 | AD115: 17.2 | AE115: 17.2 | AF115: 17.2 | AG115: 17.2 | AH115: 17.2 | AI115: 17.2 | AJ115: 17.2 | AK115: 17.2 | AL115: 17.2 | AM115: 17.2 | AN115: 17.2 | AO115: 17.2 | AP115: 17.2 | AQ115: 17.2 | AR115: 17.2 | AS115: 17.2 | AT115: 17.2 | AU115: 17.2 | AV115: 17.2 | AW115: 17.2 | AX115: 17.2 | AY115: 17.2 | AZ115: 17.2 | BA115: 17.2 | BB115: 17.2 | BC115: 17.2
B117: Dados de Opex (Custo Op. + Coleta + Disp. Aterro) | C117: =IF('R-Definição'!$E$121="Existente",C90+((('R&C-Painel de Controle'!$D$88+'R&C-Painel de Controle'!$D$89)*('R&C-Painel de Controle'!$D$45+'R&C-Painel de Controle'!$D$47))/1000000),C90+((('R&C-Painel de Controle'!$D$88)*('R&C-Painel de Controle'!$D$45+'R&C-Painel de Controle'!$D$47))/1000000)) -> 32.932 | D117: =IF('R-Definição'!$E$121="Existente",D90+((('R&C-Painel de Controle'!$D$88+'R&C-Painel de Controle'!$D$89)*('R&C-Painel de Controle'!$D$45+'R&C-Painel de Controle'!$D$47))/1000000),D90+((('R&C-Painel de Controle'!$D$88)*('R&C-Painel de Controle'!$D$45+'R&C-Painel de Controle'!$D$47))/1000000)) -> 32.932 | E117: =IF('R-Definição'!$E$121="Existente",E90+((('R&C-Painel de Controle'!$D$88+'R&C-Painel de Controle'!$D$89)*('R&C-Painel de Controle'!$D$45+'R&C-Painel de Controle'!$D$47))/1000000),E90+((('R&C-Painel de Controle'!$D$88)*('R&C-Painel de Controle'!$D$45+'R&C-Painel de Controle'!$D$47))/1000000)) -> 146.010 | F117: =IF('R-Definição'!$E$121="Existente",F90+((('R&C-Painel de Controle'!$D$88+'R&C-Painel de Controle'!$D$89)*('R&C-Painel de Controle'!$D$45+'R&C-Painel de Controle'!$D$47))/1000000),F90+((('R&C-Painel de Controle'!$D$88)*('R&C-Painel de Controle'!$D$45+'R&C-Painel de Controle'!$D$47))/1000000)) -> 223.122 | G117: =IF('R-Definição'!$E$121="Existente",G90+((('R&C-Painel de Controle'!$D$88+'R&C-Painel de Controle'!$D$89)*('R&C-Painel de Controle'!$D$45+'R&C-Painel de Controle'!$D$47))/1000000),G90+((('R&C-Painel de Controle'!$D$88)*('R&C-Painel de Controle'!$D$45+'R&C-Painel de Controle'!$D$47))/1000000)) -> 223.122 | H117: =IF('R-Definição'!$E$121="Existente",H90+((('R&C-Painel de Controle'!$D$88+'R&C-Painel de Controle'!$D$89)*('R&C-Painel de Controle'!$D$45+'R&C-Painel de Controle'!$D$47))/1000000),H90+((('R&C-Painel de Controle'!$D$88)*('R&C-Painel de Controle'!$D$45+'R&C-Painel de Controle'!$D$47))/1000000)) -> 223.122 | I117: =IF('R-Definição'!$E$121="Existente",I90+((('R&C-Painel de Controle'!$D$88+'R&C-Painel de Controle'!$D$89)*('R&C-Painel de Controle'!$D$45+'R&C-Painel de Controle'!$D$47))/1000000),I90+((('R&C-Painel de Controle'!$D$88)*('R&C-Painel de Controle'!$D$45+'R&C-Painel de Controle'!$D$47))/1000000)) -> 223.122 | J117: =IF('R-Definição'!$E$121="Existente",J90+((('R&C-Painel de Controle'!$D$88+'R&C-Painel de Controle'!$D$89)*('R&C-Painel de Controle'!$D$45+'R&C-Painel de Controle'!$D$47))/1000000),J90+((('R&C-Painel de Controle'!$D$88)*('R&C-Painel de Controle'!$D$45+'R&C-Painel de Controle'!$D$47))/1000000)) -> 223.122 | K117: =IF('R-Definição'!$E$121="Existente",K90+((('R&C-Painel de Controle'!$D$88+'R&C-Painel de Controle'!$D$89)*('R&C-Painel de Controle'!$D$45+'R&C-Painel de Controle'!$D$47))/1000000),K90+((('R&C-Painel de Controle'!$D$88)*('R&C-Painel de Controle'!$D$45+'R&C-Painel de Controle'!$D$47))/1000000)) -> 223.122 | L117: =IF('R-Definição'!$E$121="Existente",L90+((('R&C-Painel de Controle'!$D$88+'R&C-Painel de Controle'!$D$89)*('R&C-Painel de Controle'!$D$45+'R&C-Painel de Controle'!$D$47))/1000000),L90+((('R&C-Painel de Controle'!$D$88)*('R&C-Painel de Controle'!$D$45+'R&C-Painel de Controle'!$D$47))/1000000)) -> 223.122 | M117: =IF('R-Definição'!$E$121="Existente",M90+((('R&C-Painel de Controle'!$D$88+'R&C-Painel de Controle'!$D$89)*('R&C-Painel de Controle'!$D$45+'R&C-Painel de Controle'!$D$47))/1000000),M90+((('R&C-Painel de Controle'!$D$88)*('R&C-Painel de Controle'!$D$45+'R&C-Painel de Controle'!$D$47))/1000000)) -> 223.122 | N117: =IF('R-Definição'!$E$121="Existente",N90+((('R&C-Painel de Controle'!$D$88+'R&C-Painel de Controle'!$D$89)*('R&C-Painel de Controle'!$D$45+'R&C-Painel de Controle'!$D$47))/1000000),N90+((('R&C-Painel de Controle'!$D$88)*('R&C-Painel de Controle'!$D$45+'R&C-Painel de Controle'!$D$47))/1000000)) -> 223.122 | O117: =IF('R-Definição'!$E$121="Existente",O90+((('R&C-Painel de Controle'!$D$88+'R&C-Painel de Controle'!$D$89)*('R&C-Painel de Controle'!$D$45+'R&C-Painel de Controle'!$D$47))/1000000),O90+((('R&C-Painel de Controle'!$D$88)*('R&C-Painel de Controle'!$D$45+'R&C-Painel de Controle'!$D$47))/1000000)) -> 223.122 | P117: =IF('R-Definição'!$E$121="Existente",P90+((('R&C-Painel de Controle'!$D$88+'R&C-Painel de Controle'!$D$89)*('R&C-Painel de Controle'!$D$45+'R&C-Painel de Controle'!$D$47))/1000000),P90+((('R&C-Painel de Controle'!$D$88)*('R&C-Painel de Controle'!$D$45+'R&C-Painel de Controle'!$D$47))/1000000)) -> 223.122 | Q117: =IF('R-Definição'!$E$121="Existente",Q90+((('R&C-Painel de Controle'!$D$88+'R&C-Painel de Controle'!$D$89)*('R&C-Painel de Controle'!$D$45+'R&C-Painel de Controle'!$D$47))/1000000),Q90+((('R&C-Painel de Controle'!$D$88)*('R&C-Painel de Controle'!$D$45+'R&C-Painel de Controle'!$D$47))/1000000)) -> 223.122 | R117: =IF('R-Definição'!$E$121="Existente",R90+((('R&C-Painel de Controle'!$D$88+'R&C-Painel de Controle'!$D$89)*('R&C-Painel de Controle'!$D$45+'R&C-Painel de Controle'!$D$47))/1000000),R90+((('R&C-Painel de Controle'!$D$88)*('R&C-Painel de Controle'!$D$45+'R&C-Painel de Controle'!$D$47))/1000000)) -> 223.122 | S117: =IF('R-Definição'!$E$121="Existente",S90+((('R&C-Painel de Controle'!$D$88+'R&C-Painel de Controle'!$D$89)*('R&C-Painel de Controle'!$D$45+'R&C-Painel de Controle'!$D$47))/1000000),S90+((('R&C-Painel de Controle'!$D$88)*('R&C-Painel de Controle'!$D$45+'R&C-Painel de Controle'!$D$47))/1000000)) -> 223.122 | T117: =IF('R-Definição'!$E$121="Existente",T90+((('R&C-Painel de Controle'!$D$88+'R&C-Painel de Controle'!$D$89)*('R&C-Painel de Controle'!$D$45+'R&C-Painel de Controle'!$D$47))/1000000),T90+((('R&C-Painel de Controle'!$D$88)*('R&C-Painel de Controle'!$D$45+'R&C-Painel de Controle'!$D$47))/1000000)) -> 223.122 | U117: =IF('R-Definição'!$E$121="Existente",U90+((('R&C-Painel de Controle'!$D$88+'R&C-Painel de Controle'!$D$89)*('R&C-Painel de Controle'!$D$45+'R&C-Painel de Controle'!$D$47))/1000000),U90+((('R&C-Painel de Controle'!$D$88)*('R&C-Painel de Controle'!$D$45+'R&C-Painel de Controle'!$D$47))/1000000)) -> 223.122 | V117: =IF('R-Definição'!$E$121="Existente",V90+((('R&C-Painel de Controle'!$D$88+'R&C-Painel de Controle'!$D$89)*('R&C-Painel de Controle'!$D$45+'R&C-Painel de Controle'!$D$47))/1000000),V90+((('R&C-Painel de Controle'!$D$88)*('R&C-Painel de Controle'!$D$45+'R&C-Painel de Controle'!$D$47))/1000000)) -> 223.122 | W117: =IF('R-Definição'!$E$121="Existente",W90+((('R&C-Painel de Controle'!$D$88+'R&C-Painel de Controle'!$D$89)*('R&C-Painel de Controle'!$D$45+'R&C-Painel de Controle'!$D$47))/1000000),W90+((('R&C-Painel de Controle'!$D$88)*('R&C-Painel de Controle'!$D$45+'R&C-Painel de Controle'!$D$47))/1000000)) -> 223.122 | X117: =IF('R-Definição'!$E$121="Existente",X90+((('R&C-Painel de Controle'!$D$88+'R&C-Painel de Controle'!$D$89)*('R&C-Painel de Controle'!$D$45+'R&C-Painel de Controle'!$D$47))/1000000),X90+((('R&C-Painel de Controle'!$D$88)*('R&C-Painel de Controle'!$D$45+'R&C-Painel de Controle'!$D$47))/1000000)) -> 223.122 | Y117: =IF('R-Definição'!$E$121="Existente",Y90+((('R&C-Painel de Controle'!$D$88+'R&C-Painel de Controle'!$D$89)*('R&C-Painel de Controle'!$D$45+'R&C-Painel de Controle'!$D$47))/1000000),Y90+((('R&C-Painel de Controle'!$D$88)*('R&C-Painel de Controle'!$D$45+'R&C-Painel de Controle'!$D$47))/1000000)) -> 223.122 | Z117: =IF('R-Definição'!$E$121="Existente",Z90+((('R&C-Painel de Controle'!$D$88+'R&C-Painel de Controle'!$D$89)*('R&C-Painel de Controle'!$D$45+'R&C-Painel de Controle'!$D$47))/1000000),Z90+((('R&C-Painel de Controle'!$D$88)*('R&C-Painel de Controle'!$D$45+'R&C-Painel de Controle'!$D$47))/1000000)) -> 223.122 | AA117: =IF('R-Definição'!$E$121="Existente",AA90+((('R&C-Painel de Controle'!$D$88+'R&C-Painel de Controle'!$D$89)*('R&C-Painel de Controle'!$D$45+'R&C-Painel de Controle'!$D$47))/1000000),AA90+((('R&C-Painel de Controle'!$D$88)*('R&C-Painel de Controle'!$D$45+'R&C-Painel de Controle'!$D$47))/1000000)) -> 223.122 | AB117: =IF('R-Definição'!$E$121="Existente",AB90+((('R&C-Painel de Controle'!$D$88+'R&C-Painel de Controle'!$D$89)*('R&C-Painel de Controle'!$D$45+'R&C-Painel de Controle'!$D$47))/1000000),AB90+((('R&C-Painel de Controle'!$D$88)*('R&C-Painel de Controle'!$D$45+'R&C-Painel de Controle'!$D$47))/1000000)) -> 223.122 | AC117: =IF('R-Definição'!$E$121="Existente",AC90+((('R&C-Painel de Controle'!$D$88+'R&C-Painel de Controle'!$D$89)*('R&C-Painel de Controle'!$D$45+'R&C-Painel de Controle'!$D$47))/1000000),AC90+((('R&C-Painel de Controle'!$D$88)*('R&C-Painel de Controle'!$D$45+'R&C-Painel de Controle'!$D$47))/1000000)) -> 223.122 | AD117: =IF('R-Definição'!$E$121="Existente",AD90+((('R&C-Painel de Controle'!$D$88+'R&C-Painel de Controle'!$D$89)*('R&C-Painel de Controle'!$D$45+'R&C-Painel de Controle'!$D$47))/1000000),AD90+((('R&C-Painel de Controle'!$D$88)*('R&C-Painel de Controle'!$D$45+'R&C-Painel de Controle'!$D$47))/1000000)) -> 223.122 | AE117: =IF('R-Definição'!$E$121="Existente",AE90+((('R&C-Painel de Controle'!$D$88+'R&C-Painel de Controle'!$D$89)*('R&C-Painel de Controle'!$D$45+'R&C-Painel de Controle'!$D$47))/1000000),AE90+((('R&C-Painel de Controle'!$D$88)*('R&C-Painel de Controle'!$D$45+'R&C-Painel de Controle'!$D$47))/1000000)) -> 223.122 | AF117: =IF('R-Definição'!$E$121="Existente",AF90+((('R&C-Painel de Controle'!$D$88+'R&C-Painel de Controle'!$D$89)*('R&C-Painel de Controle'!$D$45+'R&C-Painel de Controle'!$D$47))/1000000),AF90+((('R&C-Painel de Controle'!$D$88)*('R&C-Painel de Controle'!$D$45+'R&C-Painel de Controle'!$D$47))/1000000)) -> 223.122 | AG117: =IF('R-Definição'!$E$121="Existente",AG90+((('R&C-Painel de Controle'!$D$88+'R&C-Painel de Controle'!$D$89)*('R&C-Painel de Controle'!$D$45+'R&C-Painel de Controle'!$D$47))/1000000),AG90+((('R&C-Painel de Controle'!$D$88)*('R&C-Painel de Controle'!$D$45+'R&C-Painel de Controle'!$D$47))/1000000)) -> 223.122 | AH117: =IF('R-Definição'!$E$121="Existente",AH90+((('R&C-Painel de Controle'!$D$88+'R&C-Painel de Controle'!$D$89)*('R&C-Painel de Controle'!$D$45+'R&C-Painel de Controle'!$D$47))/1000000),AH90+((('R&C-Painel de Controle'!$D$88)*('R&C-Painel de Controle'!$D$45+'R&C-Painel de Controle'!$D$47))/1000000)) -> 223.122 | AI117: =IF('R-Definição'!$E$121="Existente",AI90+((('R&C-Painel de Controle'!$D$88+'R&C-Painel de Controle'!$D$89)*('R&C-Painel de Controle'!$D$45+'R&C-Painel de Controle'!$D$47))/1000000),AI90+((('R&C-Painel de Controle'!$D$88)*('R&C-Painel de Controle'!$D$45+'R&C-Painel de Controle'!$D$47))/1000000)) -> 223.122 | AJ117: =IF('R-Definição'!$E$121="Existente",AJ90+((('R&C-Painel de Controle'!$D$88+'R&C-Painel de Controle'!$D$89)*('R&C-Painel de Controle'!$D$45+'R&C-Painel de Controle'!$D$47))/1000000),AJ90+((('R&C-Painel de Controle'!$D$88)*('R&C-Painel de Controle'!$D$45+'R&C-Painel de Controle'!$D$47))/1000000)) -> 223.122 | AK117: =IF('R-Definição'!$E$121="Existente",AK90+((('R&C-Painel de Controle'!$D$88+'R&C-Painel de Controle'!$D$89)*('R&C-Painel de Controle'!$D$45+'R&C-Painel de Controle'!$D$47))/1000000),AK90+((('R&C-Painel de Controle'!$D$88)*('R&C-Painel de Controle'!$D$45+'R&C-Painel de Controle'!$D$47))/1000000)) -> 223.122 | AL117: =IF('R-Definição'!$E$121="Existente",AL90+((('R&C-Painel de Controle'!$D$88+'R&C-Painel de Controle'!$D$89)*('R&C-Painel de Controle'!$D$45+'R&C-Painel de Controle'!$D$47))/1000000),AL90+((('R&C-Painel de Controle'!$D$88)*('R&C-Painel de Controle'!$D$45+'R&C-Painel de Controle'!$D$47))/1000000)) -> 223.122 | AM117: =IF('R-Definição'!$E$121="Existente",AM90+((('R&C-Painel de Controle'!$D$88+'R&C-Painel de Controle'!$D$89)*('R&C-Painel de Controle'!$D$45+'R&C-Painel de Controle'!$D$47))/1000000),AM90+((('R&C-Painel de Controle'!$D$88)*('R&C-Painel de Controle'!$D$45+'R&C-Painel de Controle'!$D$47))/1000000)) -> 223.122 | AN117: =IF('R-Definição'!$E$121="Existente",AN90+((('R&C-Painel de Controle'!$D$88+'R&C-Painel de Controle'!$D$89)*('R&C-Painel de Controle'!$D$45+'R&C-Painel de Controle'!$D$47))/1000000),AN90+((('R&C-Painel de Controle'!$D$88)*('R&C-Painel de Controle'!$D$45+'R&C-Painel de Controle'!$D$47))/1000000)) -> 223.122 | AO117: =IF('R-Definição'!$E$121="Existente",AO90+((('R&C-Painel de Controle'!$D$88+'R&C-Painel de Controle'!$D$89)*('R&C-Painel de Controle'!$D$45+'R&C-Painel de Controle'!$D$47))/1000000),AO90+((('R&C-Painel de Controle'!$D$88)*('R&C-Painel de Controle'!$D$45+'R&C-Painel de Controle'!$D$47))/1000000)) -> 223.122 | AP117: =IF('R-Definição'!$E$121="Existente",AP90+((('R&C-Painel de Controle'!$D$88+'R&C-Painel de Controle'!$D$89)*('R&C-Painel de Controle'!$D$45+'R&C-Painel de Controle'!$D$47))/1000000),AP90+((('R&C-Painel de Controle'!$D$88)*('R&C-Painel de Controle'!$D$45+'R&C-Painel de Controle'!$D$47))/1000000)) -> 223.122 | AQ117: =IF('R-Definição'!$E$121="Existente",AQ90+((('R&C-Painel de Controle'!$D$88+'R&C-Painel de Controle'!$D$89)*('R&C-Painel de Controle'!$D$45+'R&C-Painel de Controle'!$D$47))/1000000),AQ90+((('R&C-Painel de Controle'!$D$88)*('R&C-Painel de Controle'!$D$45+'R&C-Painel de Controle'!$D$47))/1000000)) -> 223.122 | AR117: =IF('R-Definição'!$E$121="Existente",AR90+((('R&C-Painel de Controle'!$D$88+'R&C-Painel de Controle'!$D$89)*('R&C-Painel de Controle'!$D$45+'R&C-Painel de Controle'!$D$47))/1000000),AR90+((('R&C-Painel de Controle'!$D$88)*('R&C-Painel de Controle'!$D$45+'R&C-Painel de Controle'!$D$47))/1000000)) -> 223.122 | AS117: =IF('R-Definição'!$E$121="Existente",AS90+((('R&C-Painel de Controle'!$D$88+'R&C-Painel de Controle'!$D$89)*('R&C-Painel de Controle'!$D$45+'R&C-Painel de Controle'!$D$47))/1000000),AS90+((('R&C-Painel de Controle'!$D$88)*('R&C-Painel de Controle'!$D$45+'R&C-Painel de Controle'!$D$47))/1000000)) -> 223.122 | AT117: =IF('R-Definição'!$E$121="Existente",AT90+((('R&C-Painel de Controle'!$D$88+'R&C-Painel de Controle'!$D$89)*('R&C-Painel de Controle'!$D$45+'R&C-Painel de Controle'!$D$47))/1000000),AT90+((('R&C-Painel de Controle'!$D$88)*('R&C-Painel de Controle'!$D$45+'R&C-Painel de Controle'!$D$47))/1000000)) -> 223.122 | AU117: =IF('R-Definição'!$E$121="Existente",AU90+((('R&C-Painel de Controle'!$D$88+'R&C-Painel de Controle'!$D$89)*('R&C-Painel de Controle'!$D$45+'R&C-Painel de Controle'!$D$47))/1000000),AU90+((('R&C-Painel de Controle'!$D$88)*('R&C-Painel de Controle'!$D$45+'R&C-Painel de Controle'!$D$47))/1000000)) -> 223.122 | AV117: =IF('R-Definição'!$E$121="Existente",AV90+((('R&C-Painel de Controle'!$D$88+'R&C-Painel de Controle'!$D$89)*('R&C-Painel de Controle'!$D$45+'R&C-Painel de Controle'!$D$47))/1000000),AV90+((('R&C-Painel de Controle'!$D$88)*('R&C-Painel de Controle'!$D$45+'R&C-Painel de Controle'!$D$47))/1000000)) -> 223.122 | AW117: =IF('R-Definição'!$E$121="Existente",AW90+((('R&C-Painel de Controle'!$D$88+'R&C-Painel de Controle'!$D$89)*('R&C-Painel de Controle'!$D$45+'R&C-Painel de Controle'!$D$47))/1000000),AW90+((('R&C-Painel de Controle'!$D$88)*('R&C-Painel de Controle'!$D$45+'R&C-Painel de Controle'!$D$47))/1000000)) -> 223.122 | AX117: =IF('R-Definição'!$E$121="Existente",AX90+((('R&C-Painel de Controle'!$D$88+'R&C-Painel de Controle'!$D$89)*('R&C-Painel de Controle'!$D$45+'R&C-Painel de Controle'!$D$47))/1000000),AX90+((('R&C-Painel de Controle'!$D$88)*('R&C-Painel de Controle'!$D$45+'R&C-Painel de Controle'!$D$47))/1000000)) -> 223.122 | AY117: =IF('R-Definição'!$E$121="Existente",AY90+((('R&C-Painel de Controle'!$D$88+'R&C-Painel de Controle'!$D$89)*('R&C-Painel de Controle'!$D$45+'R&C-Painel de Controle'!$D$47))/1000000),AY90+((('R&C-Painel de Controle'!$D$88)*('R&C-Painel de Controle'!$D$45+'R&C-Painel de Controle'!$D$47))/1000000)) -> 223.122 | AZ117: =IF('R-Definição'!$E$121="Existente",AZ90+((('R&C-Painel de Controle'!$D$88+'R&C-Painel de Controle'!$D$89)*('R&C-Painel de Controle'!$D$45+'R&C-Painel de Controle'!$D$47))/1000000),AZ90+((('R&C-Painel de Controle'!$D$88)*('R&C-Painel de Controle'!$D$45+'R&C-Painel de Controle'!$D$47))/1000000)) -> 223.122 | BA117: =IF('R-Definição'!$E$121="Existente",BA90+((('R&C-Painel de Controle'!$D$88+'R&C-Painel de Controle'!$D$89)*('R&C-Painel de Controle'!$D$45+'R&C-Painel de Controle'!$D$47))/1000000),BA90+((('R&C-Painel de Controle'!$D$88)*('R&C-Painel de Controle'!$D$45+'R&C-Painel de Controle'!$D$47))/1000000)) -> 223.122 | BB117: =IF('R-Definição'!$E$121="Existente",BB90+((('R&C-Painel de Controle'!$D$88+'R&C-Painel de Controle'!$D$89)*('R&C-Painel de Controle'!$D$45+'R&C-Painel de Controle'!$D$47))/1000000),BB90+((('R&C-Painel de Controle'!$D$88)*('R&C-Painel de Controle'!$D$45+'R&C-Painel de Controle'!$D$47))/1000000)) -> 223.122 | BC117: =IF('R-Definição'!$E$121="Existente",BC90+((('R&C-Painel de Controle'!$D$88+'R&C-Painel de Controle'!$D$89)*('R&C-Painel de Controle'!$D$45+'R&C-Painel de Controle'!$D$47))/1000000),BC90+((('R&C-Painel de Controle'!$D$88)*('R&C-Painel de Controle'!$D$45+'R&C-Painel de Controle'!$D$47))/1000000)) -> 223.122
B119: Dados de Opex + Gestão do Contrato | C119: =C117+'R&C-Painel de Controle'!$D$29 -> 34.432 | D119: =D117+'R&C-Painel de Controle'!$D$29 -> 34.432 | E119: =E117+'R&C-Painel de Controle'!$D$29 -> 147.510 | F119: =F117+'R&C-Painel de Controle'!$D$29 -> 224.622 | G119: =G117+'R&C-Painel de Controle'!$D$29 -> 224.622 | H119: =H117+'R&C-Painel de Controle'!$D$29 -> 224.622 | I119: =I117+'R&C-Painel de Controle'!$D$29 -> 224.622 | J119: =J117+'R&C-Painel de Controle'!$D$29 -> 224.622 | K119: =K117+'R&C-Painel de Controle'!$D$29 -> 224.622 | L119: =L117+'R&C-Painel de Controle'!$D$29 -> 224.622 | M119: =M117+'R&C-Painel de Controle'!$D$29 -> 224.622 | N119: =N117+'R&C-Painel de Controle'!$D$29 -> 224.622 | O119: =O117+'R&C-Painel de Controle'!$D$29 -> 224.622 | P119: =P117+'R&C-Painel de Controle'!$D$29 -> 224.622 | Q119: =Q117+'R&C-Painel de Controle'!$D$29 -> 224.622 | R119: =R117+'R&C-Painel de Controle'!$D$29 -> 224.622 | S119: =S117+'R&C-Painel de Controle'!$D$29 -> 224.622 | T119: =T117+'R&C-Painel de Controle'!$D$29 -> 224.622 | U119: =U117+'R&C-Painel de Controle'!$D$29 -> 224.622 | V119: =V117+'R&C-Painel de Controle'!$D$29 -> 224.622 | W119: =W117+'R&C-Painel de Controle'!$D$29 -> 224.622 | X119: =X117+'R&C-Painel de Controle'!$D$29 -> 224.622 | Y119: =Y117+'R&C-Painel de Controle'!$D$29 -> 224.622 | Z119: =Z117+'R&C-Painel de Controle'!$D$29 -> 224.622 | AA119: =AA117+'R&C-Painel de Controle'!$D$29 -> 224.622 | AB119: =AB117+'R&C-Painel de Controle'!$D$29 -> 224.622 | AC119: =AC117+'R&C-Painel de Controle'!$D$29 -> 224.622 | AD119: =AD117+'R&C-Painel de Controle'!$D$29 -> 224.622 | AE119: =AE117+'R&C-Painel de Controle'!$D$29 -> 224.622 | AF119: =AF117+'R&C-Painel de Controle'!$D$29 -> 224.622 | AG119: =AG117+'R&C-Painel de Controle'!$D$29 -> 224.622 | AH119: =AH117+'R&C-Painel de Controle'!$D$29 -> 224.622 | AI119: =AI117+'R&C-Painel de Controle'!$D$29 -> 224.622 | AJ119: =AJ117+'R&C-Painel de Controle'!$D$29 -> 224.622 | AK119: =AK117+'R&C-Painel de Controle'!$D$29 -> 224.622 | AL119: =AL117+'R&C-Painel de Controle'!$D$29 -> 224.622 | AM119: =AM117+'R&C-Painel de Controle'!$D$29 -> 224.622 | AN119: =AN117+'R&C-Painel de Controle'!$D$29 -> 224.622 | AO119: =AO117+'R&C-Painel de Controle'!$D$29 -> 224.622 | AP119: =AP117+'R&C-Painel de Controle'!$D$29 -> 224.622 | AQ119: =AQ117+'R&C-Painel de Controle'!$D$29 -> 224.622 | AR119: =AR117+'R&C-Painel de Controle'!$D$29 -> 224.622 | AS119: =AS117+'R&C-Painel de Controle'!$D$29 -> 224.622 | AT119: =AT117+'R&C-Painel de Controle'!$D$29 -> 224.622 | AU119: =AU117+'R&C-Painel de Controle'!$D$29 -> 224.622 | AV119: =AV117+'R&C-Painel de Controle'!$D$29 -> 224.622 | AW119: =AW117+'R&C-Painel de Controle'!$D$29 -> 224.622 | AX119: =AX117+'R&C-Painel de Controle'!$D$29 -> 224.622 | AY119: =AY117+'R&C-Painel de Controle'!$D$29 -> 224.622 | AZ119: =AZ117+'R&C-Painel de Controle'!$D$29 -> 224.622 | BA119: =BA117+'R&C-Painel de Controle'!$D$29 -> 224.622 | BB119: =BB117+'R&C-Painel de Controle'!$D$29 -> 224.622 | BC119: =BC117+'R&C-Painel de Controle'!$D$29 -> 224.622
B121: Dados de Receita Acessória | C121: =IF('R&C-Painel de Controle'!$D$25="Sim",(C125+C128+C131+C134+C137+C140+C143+C146)*('R&C-Painel de Controle'!$D$26),0) -> 0.000 | D121: =IF('R&C-Painel de Controle'!$D$25="Sim",(D125+D128+D131+D134+D137+D140+D143+D146)*('R&C-Painel de Controle'!$D$26),0) -> 0.000 | E121: =IF('R&C-Painel de Controle'!$D$25="Sim",(E125+E128+E131+E134+E137+E140+E143+E146)*('R&C-Painel de Controle'!$D$26),0) -> 0.000 | F121: =IF('R&C-Painel de Controle'!$D$25="Sim",(F125+F128+F131+F134+F137+F140+F143+F146)*('R&C-Painel de Controle'!$D$26),0) -> 0.000 | G121: =IF('R&C-Painel de Controle'!$D$25="Sim",(G125+G128+G131+G134+G137+G140+G143+G146)*('R&C-Painel de Controle'!$D$26),0) -> 0.000 | H121: =IF('R&C-Painel de Controle'!$D$25="Sim",(H125+H128+H131+H134+H137+H140+H143+H146)*('R&C-Painel de Controle'!$D$26),0) -> 0.000 | I121: =IF('R&C-Painel de Controle'!$D$25="Sim",(I125+I128+I131+I134+I137+I140+I143+I146)*('R&C-Painel de Controle'!$D$26),0) -> 0.000 | J121: =IF('R&C-Painel de Controle'!$D$25="Sim",(J125+J128+J131+J134+J137+J140+J143+J146)*('R&C-Painel de Controle'!$D$26),0) -> 0.000 | K121: =IF('R&C-Painel de Controle'!$D$25="Sim",(K125+K128+K131+K134+K137+K140+K143+K146)*('R&C-Painel de Controle'!$D$26),0) -> 0.000 | L121: =IF('R&C-Painel de Controle'!$D$25="Sim",(L125+L128+L131+L134+L137+L140+L143+L146)*('R&C-Painel de Controle'!$D$26),0) -> 0.000 | M121: =IF('R&C-Painel de Controle'!$D$25="Sim",(M125+M128+M131+M134+M137+M140+M143+M146)*('R&C-Painel de Controle'!$D$26),0) -> 0.000 | N121: =IF('R&C-Painel de Controle'!$D$25="Sim",(N125+N128+N131+N134+N137+N140+N143+N146)*('R&C-Painel de Controle'!$D$26),0) -> 0.000 | O121: =IF('R&C-Painel de Controle'!$D$25="Sim",(O125+O128+O131+O134+O137+O140+O143+O146)*('R&C-Painel de Controle'!$D$26),0) -> 0.000 | P121: =IF('R&C-Painel de Controle'!$D$25="Sim",(P125+P128+P131+P134+P137+P140+P143+P146)*('R&C-Painel de Controle'!$D$26),0) -> 0.000 | Q121: =IF('R&C-Painel de Controle'!$D$25="Sim",(Q125+Q128+Q131+Q134+Q137+Q140+Q143+Q146)*('R&C-Painel de Controle'!$D$26),0) -> 0.000 | R121: =IF('R&C-Painel de Controle'!$D$25="Sim",(R125+R128+R131+R134+R137+R140+R143+R146)*('R&C-Painel de Controle'!$D$26),0) -> 0.000 | S121: =IF('R&C-Painel de Controle'!$D$25="Sim",(S125+S128+S131+S134+S137+S140+S143+S146)*('R&C-Painel de Controle'!$D$26),0) -> 0.000 | T121: =IF('R&C-Painel de Controle'!$D$25="Sim",(T125+T128+T131+T134+T137+T140+T143+T146)*('R&C-Painel de Controle'!$D$26),0) -> 0.000 | U121: =IF('R&C-Painel de Controle'!$D$25="Sim",(U125+U128+U131+U134+U137+U140+U143+U146)*('R&C-Painel de Controle'!$D$26),0) -> 0.000 | V121: =IF('R&C-Painel de Controle'!$D$25="Sim",(V125+V128+V131+V134+V137+V140+V143+V146)*('R&C-Painel de Controle'!$D$26),0) -> 0.000 | W121: =IF('R&C-Painel de Controle'!$D$25="Sim",(W125+W128+W131+W134+W137+W140+W143+W146)*('R&C-Painel de Controle'!$D$26),0) -> 0.000 | X121: =IF('R&C-Painel de Controle'!$D$25="Sim",(X125+X128+X131+X134+X137+X140+X143+X146)*('R&C-Painel de Controle'!$D$26),0) -> 0.000 | Y121: =IF('R&C-Painel de Controle'!$D$25="Sim",(Y125+Y128+Y131+Y134+Y137+Y140+Y143+Y146)*('R&C-Painel de Controle'!$D$26),0) -> 0.000 | Z121: =IF('R&C-Painel de Controle'!$D$25="Sim",(Z125+Z128+Z131+Z134+Z137+Z140+Z143+Z146)*('R&C-Painel de Controle'!$D$26),0) -> 0.000 | AA121: =IF('R&C-Painel de Controle'!$D$25="Sim",(AA125+AA128+AA131+AA134+AA137+AA140+AA143+AA146)*('R&C-Painel de Controle'!$D$26),0) -> 0.000 | AB121: =IF('R&C-Painel de Controle'!$D$25="Sim",(AB125+AB128+AB131+AB134+AB137+AB140+AB143+AB146)*('R&C-Painel de Controle'!$D$26),0) -> 0.000 | AC121: =IF('R&C-Painel de Controle'!$D$25="Sim",(AC125+AC128+AC131+AC134+AC137+AC140+AC143+AC146)*('R&C-Painel de Controle'!$D$26),0) -> 0.000 | AD121: =IF('R&C-Painel de Controle'!$D$25="Sim",(AD125+AD128+AD131+AD134+AD137+AD140+AD143+AD146)*('R&C-Painel de Controle'!$D$26),0) -> 0.000 | AE121: =IF('R&C-Painel de Controle'!$D$25="Sim",(AE125+AE128+AE131+AE134+AE137+AE140+AE143+AE146)*('R&C-Painel de Controle'!$D$26),0) -> 0.000 | AF121: =IF('R&C-Painel de Controle'!$D$25="Sim",(AF125+AF128+AF131+AF134+AF137+AF140+AF143+AF146)*('R&C-Painel de Controle'!$D$26),0) -> 0.000 | AG121: =IF('R&C-Painel de Controle'!$D$25="Sim",(AG125+AG128+AG131+AG134+AG137+AG140+AG143+AG146)*('R&C-Painel de Controle'!$D$26),0) -> 0.000 | AH121: =IF('R&C-Painel de Controle'!$D$25="Sim",(AH125+AH128+AH131+AH134+AH137+AH140+AH143+AH146)*('R&C-Painel de Controle'!$D$26),0) -> 0.000 | AI121: =IF('R&C-Painel de Controle'!$D$25="Sim",(AI125+AI128+AI131+AI134+AI137+AI140+AI143+AI146)*('R&C-Painel de Controle'!$D$26),0) -> 0.000 | AJ121: =IF('R&C-Painel de Controle'!$D$25="Sim",(AJ125+AJ128+AJ131+AJ134+AJ137+AJ140+AJ143+AJ146)*('R&C-Painel de Controle'!$D$26),0) -> 0.000 | AK121: =IF('R&C-Painel de Controle'!$D$25="Sim",(AK125+AK128+AK131+AK134+AK137+AK140+AK143+AK146)*('R&C-Painel de Controle'!$D$26),0) -> 0.000 | AL121: =IF('R&C-Painel de Controle'!$D$25="Sim",(AL125+AL128+AL131+AL134+AL137+AL140+AL143+AL146)*('R&C-Painel de Controle'!$D$26),0) -> 0.000 | AM121: =IF('R&C-Painel de Controle'!$D$25="Sim",(AM125+AM128+AM131+AM134+AM137+AM140+AM143+AM146)*('R&C-Painel de Controle'!$D$26),0) -> 0.000 | AN121: =IF('R&C-Painel de Controle'!$D$25="Sim",(AN125+AN128+AN131+AN134+AN137+AN140+AN143+AN146)*('R&C-Painel de Controle'!$D$26),0) -> 0.000 | AO121: =IF('R&C-Painel de Controle'!$D$25="Sim",(AO125+AO128+AO131+AO134+AO137+AO140+AO143+AO146)*('R&C-Painel de Controle'!$D$26),0) -> 0.000 | AP121: =IF('R&C-Painel de Controle'!$D$25="Sim",(AP125+AP128+AP131+AP134+AP137+AP140+AP143+AP146)*('R&C-Painel de Controle'!$D$26),0) -> 0.000 | AQ121: =IF('R&C-Painel de Controle'!$D$25="Sim",(AQ125+AQ128+AQ131+AQ134+AQ137+AQ140+AQ143+AQ146)*('R&C-Painel de Controle'!$D$26),0) -> 0.000 | AR121: =IF('R&C-Painel de Controle'!$D$25="Sim",(AR125+AR128+AR131+AR134+AR137+AR140+AR143+AR146)*('R&C-Painel de Controle'!$D$26),0) -> 0.000 | AS121: =IF('R&C-Painel de Controle'!$D$25="Sim",(AS125+AS128+AS131+AS134+AS137+AS140+AS143+AS146)*('R&C-Painel de Controle'!$D$26),0) -> 0.000 | AT121: =IF('R&C-Painel de Controle'!$D$25="Sim",(AT125+AT128+AT131+AT134+AT137+AT140+AT143+AT146)*('R&C-Painel de Controle'!$D$26),0) -> 0.000 | AU121: =IF('R&C-Painel de Controle'!$D$25="Sim",(AU125+AU128+AU131+AU134+AU137+AU140+AU143+AU146)*('R&C-Painel de Controle'!$D$26),0) -> 0.000 | AV121: =IF('R&C-Painel de Controle'!$D$25="Sim",(AV125+AV128+AV131+AV134+AV137+AV140+AV143+AV146)*('R&C-Painel de Controle'!$D$26),0) -> 0.000 | AW121: =IF('R&C-Painel de Controle'!$D$25="Sim",(AW125+AW128+AW131+AW134+AW137+AW140+AW143+AW146)*('R&C-Painel de Controle'!$D$26),0) -> 0.000 | AX121: =IF('R&C-Painel de Controle'!$D$25="Sim",(AX125+AX128+AX131+AX134+AX137+AX140+AX143+AX146)*('R&C-Painel de Controle'!$D$26),0) -> 0.000 | AY121: =IF('R&C-Painel de Controle'!$D$25="Sim",(AY125+AY128+AY131+AY134+AY137+AY140+AY143+AY146)*('R&C-Painel de Controle'!$D$26),0) -> 0.000 | AZ121: =IF('R&C-Painel de Controle'!$D$25="Sim",(AZ125+AZ128+AZ131+AZ134+AZ137+AZ140+AZ143+AZ146)*('R&C-Painel de Controle'!$D$26),0) -> 0.000 | BA121: =IF('R&C-Painel de Controle'!$D$25="Sim",(BA125+BA128+BA131+BA134+BA137+BA140+BA143+BA146)*('R&C-Painel de Controle'!$D$26),0) -> 0.000 | BB121: =IF('R&C-Painel de Controle'!$D$25="Sim",(BB125+BB128+BB131+BB134+BB137+BB140+BB143+BB146)*('R&C-Painel de Controle'!$D$26),0) -> 0.000 | BC121: =IF('R&C-Painel de Controle'!$D$25="Sim",(BC125+BC128+BC131+BC134+BC137+BC140+BC143+BC146)*('R&C-Painel de Controle'!$D$26),0) -> 0.000
B122: Tecnologias | C122: Sim/Não | D122: t/a
B123: =B92 -> Triagem Manual — Seletivos | C123: Sim | D123: 15,494
B125: Receita Acessória MR$/a | C125: 0.000 | D125: 0.000 | E125: 0.000 | F125: 0.000 | G125: 0.000 | H125: 0.000 | I125: 0.000 | J125: 0.000 | K125: 0.000 | L125: 0.000 | M125: 0.000 | N125: 0.000 | O125: 0.000 | P125: 0.000 | Q125: 0.000 | R125: 0.000 | S125: 0.000 | T125: 0.000 | U125: 0.000 | V125: 0.000 | W125: 0.000 | X125: 0.000 | Y125: 0.000 | Z125: 0.000 | AA125: 0.000 | AB125: 0.000 | AC125: 0.000 | AD125: 0.000 | AE125: 0.000 | AF125: 0.000 | AG125: 0.000 | AH125: 0.000 | AI125: 0.000 | AJ125: 0.000 | AK125: 0.000 | AL125: 0.000 | AM125: 0.000 | AN125: 0.000 | AO125: 0.000 | AP125: 0.000 | AQ125: 0.000 | AR125: 0.000 | AS125: 0.000 | AT125: 0.000 | AU125: 0.000 | AV125: 0.000 | AW125: 0.000 | AX125: 0.000 | AY125: 0.000 | AZ125: 0.000 | BA125: 0.000 | BB125: 0.000 | BC125: 0.000
B126: =B95 -> Triagem Mecanizada | C126: Sim | D126: 692,982
B128: Receita Acessória MR$/a | C128: 0.000 | D128: =IF(D42>0,'R&C-Painel de Controle'!$O$57*D35/1000000,0) -> 0.000 | E128: =IF(E42>0,'R&C-Painel de Controle'!$O$57*E35/1000000,0) -> 57.851 | F128: =IF(F42>0,'R&C-Painel de Controle'!$O$57*F35/1000000,0) -> 57.851 | G128: =IF(G42>0,'R&C-Painel de Controle'!$O$57*G35/1000000,0) -> 57.851 | H128: =IF(H42>0,'R&C-Painel de Controle'!$O$57*H35/1000000,0) -> 57.851 | I128: =IF(I42>0,'R&C-Painel de Controle'!$O$57*I35/1000000,0) -> 57.851 | J128: =IF(J42>0,'R&C-Painel de Controle'!$O$57*J35/1000000,0) -> 57.851 | K128: =IF(K42>0,'R&C-Painel de Controle'!$O$57*K35/1000000,0) -> 57.851 | L128: =IF(L42>0,'R&C-Painel de Controle'!$O$57*L35/1000000,0) -> 57.851 | M128: =IF(M42>0,'R&C-Painel de Controle'!$O$57*M35/1000000,0) -> 57.851 | N128: =IF(N42>0,'R&C-Painel de Controle'!$O$57*N35/1000000,0) -> 57.851 | O128: =IF(O42>0,'R&C-Painel de Controle'!$O$57*O35/1000000,0) -> 57.851 | P128: =IF(P42>0,'R&C-Painel de Controle'!$O$57*P35/1000000,0) -> 57.851 | Q128: =IF(Q42>0,'R&C-Painel de Controle'!$O$57*Q35/1000000,0) -> 57.851 | R128: =IF(R42>0,'R&C-Painel de Controle'!$O$57*R35/1000000,0) -> 57.851 | S128: =IF(S42>0,'R&C-Painel de Controle'!$O$57*S35/1000000,0) -> 57.851 | T128: =IF(T42>0,'R&C-Painel de Controle'!$O$57*T35/1000000,0) -> 57.851 | U128: =IF(U42>0,'R&C-Painel de Controle'!$O$57*U35/1000000,0) -> 57.851 | V128: =IF(V42>0,'R&C-Painel de Controle'!$O$57*V35/1000000,0) -> 57.851 | W128: =IF(W42>0,'R&C-Painel de Controle'!$O$57*W35/1000000,0) -> 57.851 | X128: =IF(X42>0,'R&C-Painel de Controle'!$O$57*X35/1000000,0) -> 57.851 | Y128: =IF(Y42>0,'R&C-Painel de Controle'!$O$57*Y35/1000000,0) -> 57.851 | Z128: =IF(Z42>0,'R&C-Painel de Controle'!$O$57*Z35/1000000,0) -> 57.851 | AA128: =IF(AA42>0,'R&C-Painel de Controle'!$O$57*AA35/1000000,0) -> 57.851 | AB128: =IF(AB42>0,'R&C-Painel de Controle'!$O$57*AB35/1000000,0) -> 57.851 | AC128: =IF(AC42>0,'R&C-Painel de Controle'!$O$57*AC35/1000000,0) -> 57.851 | AD128: =IF(AD42>0,'R&C-Painel de Controle'!$O$57*AD35/1000000,0) -> 57.851 | AE128: =IF(AE42>0,'R&C-Painel de Controle'!$O$57*AE35/1000000,0) -> 57.851 | AF128: =IF(AF42>0,'R&C-Painel de Controle'!$O$57*AF35/1000000,0) -> 57.851 | AG128: =IF(AG42>0,'R&C-Painel de Controle'!$O$57*AG35/1000000,0) -> 57.851 | AH128: =IF(AH42>0,'R&C-Painel de Controle'!$O$57*AH35/1000000,0) -> 57.851 | AI128: =IF(AI42>0,'R&C-Painel de Controle'!$O$57*AI35/1000000,0) -> 57.851 | AJ128: =IF(AJ42>0,'R&C-Painel de Controle'!$O$57*AJ35/1000000,0) -> 57.851 | AK128: =IF(AK42>0,'R&C-Painel de Controle'!$O$57*AK35/1000000,0) -> 57.851 | AL128: =IF(AL42>0,'R&C-Painel de Controle'!$O$57*AL35/1000000,0) -> 57.851 | AM128: =IF(AM42>0,'R&C-Painel de Controle'!$O$57*AM35/1000000,0) -> 57.851 | AN128: =IF(AN42>0,'R&C-Painel de Controle'!$O$57*AN35/1000000,0) -> 57.851 | AO128: =IF(AO42>0,'R&C-Painel de Controle'!$O$57*AO35/1000000,0) -> 57.851 | AP128: =IF(AP42>0,'R&C-Painel de Controle'!$O$57*AP35/1000000,0) -> 57.851 | AQ128: =IF(AQ42>0,'R&C-Painel de Controle'!$O$57*AQ35/1000000,0) -> 57.851 | AR128: =IF(AR42>0,'R&C-Painel de Controle'!$O$57*AR35/1000000,0) -> 57.851 | AS128: =IF(AS42>0,'R&C-Painel de Controle'!$O$57*AS35/1000000,0) -> 57.851 | AT128: =IF(AT42>0,'R&C-Painel de Controle'!$O$57*AT35/1000000,0) -> 57.851 | AU128: =IF(AU42>0,'R&C-Painel de Controle'!$O$57*AU35/1000000,0) -> 57.851 | AV128: =IF(AV42>0,'R&C-Painel de Controle'!$O$57*AV35/1000000,0) -> 57.851 | AW128: =IF(AW42>0,'R&C-Painel de Controle'!$O$57*AW35/1000000,0) -> 57.851 | AX128: =IF(AX42>0,'R&C-Painel de Controle'!$O$57*AX35/1000000,0) -> 57.851 | AY128: =IF(AY42>0,'R&C-Painel de Controle'!$O$57*AY35/1000000,0) -> 57.851 | AZ128: =IF(AZ42>0,'R&C-Painel de Controle'!$O$57*AZ35/1000000,0) -> 57.851 | BA128: =IF(BA42>0,'R&C-Painel de Controle'!$O$57*BA35/1000000,0) -> 57.851 | BB128: =IF(BB42>0,'R&C-Painel de Controle'!$O$57*BB35/1000000,0) -> 57.851 | BC128: =IF(BC42>0,'R&C-Painel de Controle'!$O$57*BC35/1000000,0) -> 57.851
B129: =B98 -> Produção de CDR TM — Trat. Mec. | C129: Sim | D129: 60,847
B131: Receita Acessória MR$/a | C131: 0.000 | D131: =IF(D45>0,'R&C-Painel de Controle'!$O$60*D35/1000000,0) -> 0.000 | E131: =IF(E45>0,'R&C-Painel de Controle'!$O$60*E35/1000000,0) -> 3.879 | F131: =IF(F45>0,'R&C-Painel de Controle'!$O$60*F35/1000000,0) -> 3.879 | G131: =IF(G45>0,'R&C-Painel de Controle'!$O$60*G35/1000000,0) -> 3.879 | H131: =IF(H45>0,'R&C-Painel de Controle'!$O$60*H35/1000000,0) -> 3.879 | I131: =IF(I45>0,'R&C-Painel de Controle'!$O$60*I35/1000000,0) -> 3.879 | J131: =IF(J45>0,'R&C-Painel de Controle'!$O$60*J35/1000000,0) -> 3.879 | K131: =IF(K45>0,'R&C-Painel de Controle'!$O$60*K35/1000000,0) -> 3.879 | L131: =IF(L45>0,'R&C-Painel de Controle'!$O$60*L35/1000000,0) -> 3.879 | M131: =IF(M45>0,'R&C-Painel de Controle'!$O$60*M35/1000000,0) -> 3.879 | N131: =IF(N45>0,'R&C-Painel de Controle'!$O$60*N35/1000000,0) -> 3.879 | O131: =IF(O45>0,'R&C-Painel de Controle'!$O$60*O35/1000000,0) -> 3.879 | P131: =IF(P45>0,'R&C-Painel de Controle'!$O$60*P35/1000000,0) -> 3.879 | Q131: =IF(Q45>0,'R&C-Painel de Controle'!$O$60*Q35/1000000,0) -> 3.879 | R131: =IF(R45>0,'R&C-Painel de Controle'!$O$60*R35/1000000,0) -> 3.879 | S131: =IF(S45>0,'R&C-Painel de Controle'!$O$60*S35/1000000,0) -> 3.879 | T131: =IF(T45>0,'R&C-Painel de Controle'!$O$60*T35/1000000,0) -> 3.879 | U131: =IF(U45>0,'R&C-Painel de Controle'!$O$60*U35/1000000,0) -> 3.879 | V131: =IF(V45>0,'R&C-Painel de Controle'!$O$60*V35/1000000,0) -> 3.879 | W131: =IF(W45>0,'R&C-Painel de Controle'!$O$60*W35/1000000,0) -> 3.879 | X131: =IF(X45>0,'R&C-Painel de Controle'!$O$60*X35/1000000,0) -> 3.879 | Y131: =IF(Y45>0,'R&C-Painel de Controle'!$O$60*Y35/1000000,0) -> 3.879 | Z131: =IF(Z45>0,'R&C-Painel de Controle'!$O$60*Z35/1000000,0) -> 3.879 | AA131: =IF(AA45>0,'R&C-Painel de Controle'!$O$60*AA35/1000000,0) -> 3.879 | AB131: =IF(AB45>0,'R&C-Painel de Controle'!$O$60*AB35/1000000,0) -> 3.879 | AC131: =IF(AC45>0,'R&C-Painel de Controle'!$O$60*AC35/1000000,0) -> 3.879 | AD131: =IF(AD45>0,'R&C-Painel de Controle'!$O$60*AD35/1000000,0) -> 3.879 | AE131: =IF(AE45>0,'R&C-Painel de Controle'!$O$60*AE35/1000000,0) -> 3.879 | AF131: =IF(AF45>0,'R&C-Painel de Controle'!$O$60*AF35/1000000,0) -> 3.879 | AG131: =IF(AG45>0,'R&C-Painel de Controle'!$O$60*AG35/1000000,0) -> 3.879 | AH131: =IF(AH45>0,'R&C-Painel de Controle'!$O$60*AH35/1000000,0) -> 3.879 | AI131: =IF(AI45>0,'R&C-Painel de Controle'!$O$60*AI35/1000000,0) -> 3.879 | AJ131: =IF(AJ45>0,'R&C-Painel de Controle'!$O$60*AJ35/1000000,0) -> 3.879 | AK131: =IF(AK45>0,'R&C-Painel de Controle'!$O$60*AK35/1000000,0) -> 3.879 | AL131: =IF(AL45>0,'R&C-Painel de Controle'!$O$60*AL35/1000000,0) -> 3.879 | AM131: =IF(AM45>0,'R&C-Painel de Controle'!$O$60*AM35/1000000,0) -> 3.879 | AN131: =IF(AN45>0,'R&C-Painel de Controle'!$O$60*AN35/1000000,0) -> 3.879 | AO131: =IF(AO45>0,'R&C-Painel de Controle'!$O$60*AO35/1000000,0) -> 3.879 | AP131: =IF(AP45>0,'R&C-Painel de Controle'!$O$60*AP35/1000000,0) -> 3.879 | AQ131: =IF(AQ45>0,'R&C-Painel de Controle'!$O$60*AQ35/1000000,0) -> 3.879 | AR131: =IF(AR45>0,'R&C-Painel de Controle'!$O$60*AR35/1000000,0) -> 3.879 | AS131: =IF(AS45>0,'R&C-Painel de Controle'!$O$60*AS35/1000000,0) -> 3.879 | AT131: =IF(AT45>0,'R&C-Painel de Controle'!$O$60*AT35/1000000,0) -> 3.879 | AU131: =IF(AU45>0,'R&C-Painel de Controle'!$O$60*AU35/1000000,0) -> 3.879 | AV131: =IF(AV45>0,'R&C-Painel de Controle'!$O$60*AV35/1000000,0) -> 3.879 | AW131: =IF(AW45>0,'R&C-Painel de Controle'!$O$60*AW35/1000000,0) -> 3.879 | AX131: =IF(AX45>0,'R&C-Painel de Controle'!$O$60*AX35/1000000,0) -> 3.879 | AY131: =IF(AY45>0,'R&C-Painel de Controle'!$O$60*AY35/1000000,0) -> 3.879 | AZ131: =IF(AZ45>0,'R&C-Painel de Controle'!$O$60*AZ35/1000000,0) -> 3.879 | BA131: =IF(BA45>0,'R&C-Painel de Controle'!$O$60*BA35/1000000,0) -> 3.879 | BB131: =IF(BB45>0,'R&C-Painel de Controle'!$O$60*BB35/1000000,0) -> 3.879 | BC131: =IF(BC45>0,'R&C-Painel de Controle'!$O$60*BC35/1000000,0) -> 3.879
B132: =B101 -> Prod. CDR TMB — Trat. Mec./Biológ. | C132: Não | D132: 0
B134: Receita Acessória MR$/a | C134: 0.000 | D134: =IF(D48>0,'R&C-Painel de Controle'!$O$63*D35/1000000,0) -> 0.000 | E134: =IF(E48>0,'R&C-Painel de Controle'!$O$63*E35/1000000,0) -> 0.000 | F134: =IF(F48>0,'R&C-Painel de Controle'!$O$63*F35/1000000,0) -> 0.000 | G134: =IF(G48>0,'R&C-Painel de Controle'!$O$63*G35/1000000,0) -> 0.000 | H134: =IF(H48>0,'R&C-Painel de Controle'!$O$63*H35/1000000,0) -> 0.000 | I134: =IF(I48>0,'R&C-Painel de Controle'!$O$63*I35/1000000,0) -> 0.000 | J134: =IF(J48>0,'R&C-Painel de Controle'!$O$63*J35/1000000,0) -> 0.000 | K134: =IF(K48>0,'R&C-Painel de Controle'!$O$63*K35/1000000,0) -> 0.000 | L134: =IF(L48>0,'R&C-Painel de Controle'!$O$63*L35/1000000,0) -> 0.000 | M134: =IF(M48>0,'R&C-Painel de Controle'!$O$63*M35/1000000,0) -> 0.000 | N134: =IF(N48>0,'R&C-Painel de Controle'!$O$63*N35/1000000,0) -> 0.000 | O134: =IF(O48>0,'R&C-Painel de Controle'!$O$63*O35/1000000,0) -> 0.000 | P134: =IF(P48>0,'R&C-Painel de Controle'!$O$63*P35/1000000,0) -> 0.000 | Q134: =IF(Q48>0,'R&C-Painel de Controle'!$O$63*Q35/1000000,0) -> 0.000 | R134: =IF(R48>0,'R&C-Painel de Controle'!$O$63*R35/1000000,0) -> 0.000 | S134: =IF(S48>0,'R&C-Painel de Controle'!$O$63*S35/1000000,0) -> 0.000 | T134: =IF(T48>0,'R&C-Painel de Controle'!$O$63*T35/1000000,0) -> 0.000 | U134: =IF(U48>0,'R&C-Painel de Controle'!$O$63*U35/1000000,0) -> 0.000 | V134: =IF(V48>0,'R&C-Painel de Controle'!$O$63*V35/1000000,0) -> 0.000 | W134: =IF(W48>0,'R&C-Painel de Controle'!$O$63*W35/1000000,0) -> 0.000 | X134: =IF(X48>0,'R&C-Painel de Controle'!$O$63*X35/1000000,0) -> 0.000 | Y134: =IF(Y48>0,'R&C-Painel de Controle'!$O$63*Y35/1000000,0) -> 0.000 | Z134: =IF(Z48>0,'R&C-Painel de Controle'!$O$63*Z35/1000000,0) -> 0.000 | AA134: =IF(AA48>0,'R&C-Painel de Controle'!$O$63*AA35/1000000,0) -> 0.000 | AB134: =IF(AB48>0,'R&C-Painel de Controle'!$O$63*AB35/1000000,0) -> 0.000 | AC134: =IF(AC48>0,'R&C-Painel de Controle'!$O$63*AC35/1000000,0) -> 0.000 | AD134: =IF(AD48>0,'R&C-Painel de Controle'!$O$63*AD35/1000000,0) -> 0.000 | AE134: =IF(AE48>0,'R&C-Painel de Controle'!$O$63*AE35/1000000,0) -> 0.000 | AF134: =IF(AF48>0,'R&C-Painel de Controle'!$O$63*AF35/1000000,0) -> 0.000 | AG134: =IF(AG48>0,'R&C-Painel de Controle'!$O$63*AG35/1000000,0) -> 0.000 | AH134: =IF(AH48>0,'R&C-Painel de Controle'!$O$63*AH35/1000000,0) -> 0.000 | AI134: =IF(AI48>0,'R&C-Painel de Controle'!$O$63*AI35/1000000,0) -> 0.000 | AJ134: =IF(AJ48>0,'R&C-Painel de Controle'!$O$63*AJ35/1000000,0) -> 0.000 | AK134: =IF(AK48>0,'R&C-Painel de Controle'!$O$63*AK35/1000000,0) -> 0.000 | AL134: =IF(AL48>0,'R&C-Painel de Controle'!$O$63*AL35/1000000,0) -> 0.000 | AM134: =IF(AM48>0,'R&C-Painel de Controle'!$O$63*AM35/1000000,0) -> 0.000 | AN134: =IF(AN48>0,'R&C-Painel de Controle'!$O$63*AN35/1000000,0) -> 0.000 | AO134: =IF(AO48>0,'R&C-Painel de Controle'!$O$63*AO35/1000000,0) -> 0.000 | AP134: =IF(AP48>0,'R&C-Painel de Controle'!$O$63*AP35/1000000,0) -> 0.000 | AQ134: =IF(AQ48>0,'R&C-Painel de Controle'!$O$63*AQ35/1000000,0) -> 0.000 | AR134: =IF(AR48>0,'R&C-Painel de Controle'!$O$63*AR35/1000000,0) -> 0.000 | AS134: =IF(AS48>0,'R&C-Painel de Controle'!$O$63*AS35/1000000,0) -> 0.000 | AT134: =IF(AT48>0,'R&C-Painel de Controle'!$O$63*AT35/1000000,0) -> 0.000 | AU134: =IF(AU48>0,'R&C-Painel de Controle'!$O$63*AU35/1000000,0) -> 0.000 | AV134: =IF(AV48>0,'R&C-Painel de Controle'!$O$63*AV35/1000000,0) -> 0.000 | AW134: =IF(AW48>0,'R&C-Painel de Controle'!$O$63*AW35/1000000,0) -> 0.000 | AX134: =IF(AX48>0,'R&C-Painel de Controle'!$O$63*AX35/1000000,0) -> 0.000 | AY134: =IF(AY48>0,'R&C-Painel de Controle'!$O$63*AY35/1000000,0) -> 0.000 | AZ134: =IF(AZ48>0,'R&C-Painel de Controle'!$O$63*AZ35/1000000,0) -> 0.000 | BA134: =IF(BA48>0,'R&C-Painel de Controle'!$O$63*BA35/1000000,0) -> 0.000 | BB134: =IF(BB48>0,'R&C-Painel de Controle'!$O$63*BB35/1000000,0) -> 0.000 | BC134: =IF(BC48>0,'R&C-Painel de Controle'!$O$63*BC35/1000000,0) -> 0.000
B135: =B104 -> Biodigestão Anaeróbia | C135: Sim | D135: 322,986
B137: Receita Acessória MR$/a | C137: 0.000 | D137: =IF(D51>0,'R&C-Painel de Controle'!$O$66*D35/1000000,0) -> 0.000 | E137: =IF(E51>0,'R&C-Painel de Controle'!$O$66*E35/1000000,0) -> 18.107 | F137: =IF(F51>0,'R&C-Painel de Controle'!$O$66*F35/1000000,0) -> 18.107 | G137: =IF(G51>0,'R&C-Painel de Controle'!$O$66*G35/1000000,0) -> 18.107 | H137: =IF(H51>0,'R&C-Painel de Controle'!$O$66*H35/1000000,0) -> 18.107 | I137: =IF(I51>0,'R&C-Painel de Controle'!$O$66*I35/1000000,0) -> 18.107 | J137: =IF(J51>0,'R&C-Painel de Controle'!$O$66*J35/1000000,0) -> 18.107 | K137: =IF(K51>0,'R&C-Painel de Controle'!$O$66*K35/1000000,0) -> 18.107 | L137: =IF(L51>0,'R&C-Painel de Controle'!$O$66*L35/1000000,0) -> 18.107 | M137: =IF(M51>0,'R&C-Painel de Controle'!$O$66*M35/1000000,0) -> 18.107 | N137: =IF(N51>0,'R&C-Painel de Controle'!$O$66*N35/1000000,0) -> 18.107 | O137: =IF(O51>0,'R&C-Painel de Controle'!$O$66*O35/1000000,0) -> 18.107 | P137: =IF(P51>0,'R&C-Painel de Controle'!$O$66*P35/1000000,0) -> 18.107 | Q137: =IF(Q51>0,'R&C-Painel de Controle'!$O$66*Q35/1000000,0) -> 18.107 | R137: =IF(R51>0,'R&C-Painel de Controle'!$O$66*R35/1000000,0) -> 18.107 | S137: =IF(S51>0,'R&C-Painel de Controle'!$O$66*S35/1000000,0) -> 18.107 | T137: =IF(T51>0,'R&C-Painel de Controle'!$O$66*T35/1000000,0) -> 18.107 | U137: =IF(U51>0,'R&C-Painel de Controle'!$O$66*U35/1000000,0) -> 18.107 | V137: =IF(V51>0,'R&C-Painel de Controle'!$O$66*V35/1000000,0) -> 18.107 | W137: =IF(W51>0,'R&C-Painel de Controle'!$O$66*W35/1000000,0) -> 18.107 | X137: =IF(X51>0,'R&C-Painel de Controle'!$O$66*X35/1000000,0) -> 18.107 | Y137: =IF(Y51>0,'R&C-Painel de Controle'!$O$66*Y35/1000000,0) -> 18.107 | Z137: =IF(Z51>0,'R&C-Painel de Controle'!$O$66*Z35/1000000,0) -> 18.107 | AA137: =IF(AA51>0,'R&C-Painel de Controle'!$O$66*AA35/1000000,0) -> 18.107 | AB137: =IF(AB51>0,'R&C-Painel de Controle'!$O$66*AB35/1000000,0) -> 18.107 | AC137: =IF(AC51>0,'R&C-Painel de Controle'!$O$66*AC35/1000000,0) -> 18.107 | AD137: =IF(AD51>0,'R&C-Painel de Controle'!$O$66*AD35/1000000,0) -> 18.107 | AE137: =IF(AE51>0,'R&C-Painel de Controle'!$O$66*AE35/1000000,0) -> 18.107 | AF137: =IF(AF51>0,'R&C-Painel de Controle'!$O$66*AF35/1000000,0) -> 18.107 | AG137: =IF(AG51>0,'R&C-Painel de Controle'!$O$66*AG35/1000000,0) -> 18.107 | AH137: =IF(AH51>0,'R&C-Painel de Controle'!$O$66*AH35/1000000,0) -> 18.107 | AI137: =IF(AI51>0,'R&C-Painel de Controle'!$O$66*AI35/1000000,0) -> 18.107 | AJ137: =IF(AJ51>0,'R&C-Painel de Controle'!$O$66*AJ35/1000000,0) -> 18.107 | AK137: =IF(AK51>0,'R&C-Painel de Controle'!$O$66*AK35/1000000,0) -> 18.107 | AL137: =IF(AL51>0,'R&C-Painel de Controle'!$O$66*AL35/1000000,0) -> 18.107 | AM137: =IF(AM51>0,'R&C-Painel de Controle'!$O$66*AM35/1000000,0) -> 18.107 | AN137: =IF(AN51>0,'R&C-Painel de Controle'!$O$66*AN35/1000000,0) -> 18.107 | AO137: =IF(AO51>0,'R&C-Painel de Controle'!$O$66*AO35/1000000,0) -> 18.107 | AP137: =IF(AP51>0,'R&C-Painel de Controle'!$O$66*AP35/1000000,0) -> 18.107 | AQ137: =IF(AQ51>0,'R&C-Painel de Controle'!$O$66*AQ35/1000000,0) -> 18.107 | AR137: =IF(AR51>0,'R&C-Painel de Controle'!$O$66*AR35/1000000,0) -> 18.107 | AS137: =IF(AS51>0,'R&C-Painel de Controle'!$O$66*AS35/1000000,0) -> 18.107 | AT137: =IF(AT51>0,'R&C-Painel de Controle'!$O$66*AT35/1000000,0) -> 18.107 | AU137: =IF(AU51>0,'R&C-Painel de Controle'!$O$66*AU35/1000000,0) -> 18.107 | AV137: =IF(AV51>0,'R&C-Painel de Controle'!$O$66*AV35/1000000,0) -> 18.107 | AW137: =IF(AW51>0,'R&C-Painel de Controle'!$O$66*AW35/1000000,0) -> 18.107 | AX137: =IF(AX51>0,'R&C-Painel de Controle'!$O$66*AX35/1000000,0) -> 18.107 | AY137: =IF(AY51>0,'R&C-Painel de Controle'!$O$66*AY35/1000000,0) -> 18.107 | AZ137: =IF(AZ51>0,'R&C-Painel de Controle'!$O$66*AZ35/1000000,0) -> 18.107 | BA137: =IF(BA51>0,'R&C-Painel de Controle'!$O$66*BA35/1000000,0) -> 18.107 | BB137: =IF(BB51>0,'R&C-Painel de Controle'!$O$66*BB35/1000000,0) -> 18.107 | BC137: =IF(BC51>0,'R&C-Painel de Controle'!$O$66*BC35/1000000,0) -> 18.107
B138: =B107 -> Compostagem | C138: Sim | D138: 228,782
B140: Receita Acessória MR$/a | C140: 0.000 | D140: =IF(D54>0,'R&C-Painel de Controle'!$O$69*D35/1000000,0) -> 0.000 | E140: =IF(E54>0,'R&C-Painel de Controle'!$O$69*E35/1000000,0) -> 0.000 | F140: =IF(F54>0,'R&C-Painel de Controle'!$O$69*F35/1000000,0) -> 0.000 | G140: =IF(G54>0,'R&C-Painel de Controle'!$O$69*G35/1000000,0) -> 0.000 | H140: =IF(H54>0,'R&C-Painel de Controle'!$O$69*H35/1000000,0) -> 0.000 | I140: =IF(I54>0,'R&C-Painel de Controle'!$O$69*I35/1000000,0) -> 0.000 | J140: =IF(J54>0,'R&C-Painel de Controle'!$O$69*J35/1000000,0) -> 0.000 | K140: =IF(K54>0,'R&C-Painel de Controle'!$O$69*K35/1000000,0) -> 0.000 | L140: =IF(L54>0,'R&C-Painel de Controle'!$O$69*L35/1000000,0) -> 0.000 | M140: =IF(M54>0,'R&C-Painel de Controle'!$O$69*M35/1000000,0) -> 0.000 | N140: =IF(N54>0,'R&C-Painel de Controle'!$O$69*N35/1000000,0) -> 0.000 | O140: =IF(O54>0,'R&C-Painel de Controle'!$O$69*O35/1000000,0) -> 0.000 | P140: =IF(P54>0,'R&C-Painel de Controle'!$O$69*P35/1000000,0) -> 0.000 | Q140: =IF(Q54>0,'R&C-Painel de Controle'!$O$69*Q35/1000000,0) -> 0.000 | R140: =IF(R54>0,'R&C-Painel de Controle'!$O$69*R35/1000000,0) -> 0.000 | S140: =IF(S54>0,'R&C-Painel de Controle'!$O$69*S35/1000000,0) -> 0.000 | T140: =IF(T54>0,'R&C-Painel de Controle'!$O$69*T35/1000000,0) -> 0.000 | U140: =IF(U54>0,'R&C-Painel de Controle'!$O$69*U35/1000000,0) -> 0.000 | V140: =IF(V54>0,'R&C-Painel de Controle'!$O$69*V35/1000000,0) -> 0.000 | W140: =IF(W54>0,'R&C-Painel de Controle'!$O$69*W35/1000000,0) -> 0.000 | X140: =IF(X54>0,'R&C-Painel de Controle'!$O$69*X35/1000000,0) -> 0.000 | Y140: =IF(Y54>0,'R&C-Painel de Controle'!$O$69*Y35/1000000,0) -> 0.000 | Z140: =IF(Z54>0,'R&C-Painel de Controle'!$O$69*Z35/1000000,0) -> 0.000 | AA140: =IF(AA54>0,'R&C-Painel de Controle'!$O$69*AA35/1000000,0) -> 0.000 | AB140: =IF(AB54>0,'R&C-Painel de Controle'!$O$69*AB35/1000000,0) -> 0.000 | AC140: =IF(AC54>0,'R&C-Painel de Controle'!$O$69*AC35/1000000,0) -> 0.000 | AD140: =IF(AD54>0,'R&C-Painel de Controle'!$O$69*AD35/1000000,0) -> 0.000 | AE140: =IF(AE54>0,'R&C-Painel de Controle'!$O$69*AE35/1000000,0) -> 0.000 | AF140: =IF(AF54>0,'R&C-Painel de Controle'!$O$69*AF35/1000000,0) -> 0.000 | AG140: =IF(AG54>0,'R&C-Painel de Controle'!$O$69*AG35/1000000,0) -> 0.000 | AH140: =IF(AH54>0,'R&C-Painel de Controle'!$O$69*AH35/1000000,0) -> 0.000 | AI140: =IF(AI54>0,'R&C-Painel de Controle'!$O$69*AI35/1000000,0) -> 0.000 | AJ140: =IF(AJ54>0,'R&C-Painel de Controle'!$O$69*AJ35/1000000,0) -> 0.000 | AK140: =IF(AK54>0,'R&C-Painel de Controle'!$O$69*AK35/1000000,0) -> 0.000 | AL140: =IF(AL54>0,'R&C-Painel de Controle'!$O$69*AL35/1000000,0) -> 0.000 | AM140: =IF(AM54>0,'R&C-Painel de Controle'!$O$69*AM35/1000000,0) -> 0.000 | AN140: =IF(AN54>0,'R&C-Painel de Controle'!$O$69*AN35/1000000,0) -> 0.000 | AO140: =IF(AO54>0,'R&C-Painel de Controle'!$O$69*AO35/1000000,0) -> 0.000 | AP140: =IF(AP54>0,'R&C-Painel de Controle'!$O$69*AP35/1000000,0) -> 0.000 | AQ140: =IF(AQ54>0,'R&C-Painel de Controle'!$O$69*AQ35/1000000,0) -> 0.000 | AR140: =IF(AR54>0,'R&C-Painel de Controle'!$O$69*AR35/1000000,0) -> 0.000 | AS140: =IF(AS54>0,'R&C-Painel de Controle'!$O$69*AS35/1000000,0) -> 0.000 | AT140: =IF(AT54>0,'R&C-Painel de Controle'!$O$69*AT35/1000000,0) -> 0.000 | AU140: =IF(AU54>0,'R&C-Painel de Controle'!$O$69*AU35/1000000,0) -> 0.000 | AV140: =IF(AV54>0,'R&C-Painel de Controle'!$O$69*AV35/1000000,0) -> 0.000 | AW140: =IF(AW54>0,'R&C-Painel de Controle'!$O$69*AW35/1000000,0) -> 0.000 | AX140: =IF(AX54>0,'R&C-Painel de Controle'!$O$69*AX35/1000000,0) -> 0.000 | AY140: =IF(AY54>0,'R&C-Painel de Controle'!$O$69*AY35/1000000,0) -> 0.000 | AZ140: =IF(AZ54>0,'R&C-Painel de Controle'!$O$69*AZ35/1000000,0) -> 0.000 | BA140: =IF(BA54>0,'R&C-Painel de Controle'!$O$69*BA35/1000000,0) -> 0.000 | BB140: =IF(BB54>0,'R&C-Painel de Controle'!$O$69*BB35/1000000,0) -> 0.000 | BC140: =IF(BC54>0,'R&C-Painel de Controle'!$O$69*BC35/1000000,0) -> 0.000
B141: =B110 -> Incineração | C141: Sim | D141: 205,664
B143: Receita Acessória MR$/a | C143: 0.000 | D143: =IF(D57>0,'R&C-Painel de Controle'!$O$72*D35/1000000,0) -> 0.000 | E143: =IF(E57>0,'R&C-Painel de Controle'!$O$72*E35/1000000,0) -> 13.276 | F143: =IF(F57>0,'R&C-Painel de Controle'!$O$72*F35/1000000,0) -> 13.276 | G143: =IF(G57>0,'R&C-Painel de Controle'!$O$72*G35/1000000,0) -> 13.276 | H143: =IF(H57>0,'R&C-Painel de Controle'!$O$72*H35/1000000,0) -> 13.276 | I143: =IF(I57>0,'R&C-Painel de Controle'!$O$72*I35/1000000,0) -> 13.276 | J143: =IF(J57>0,'R&C-Painel de Controle'!$O$72*J35/1000000,0) -> 13.276 | K143: =IF(K57>0,'R&C-Painel de Controle'!$O$72*K35/1000000,0) -> 13.276 | L143: =IF(L57>0,'R&C-Painel de Controle'!$O$72*L35/1000000,0) -> 13.276 | M143: =IF(M57>0,'R&C-Painel de Controle'!$O$72*M35/1000000,0) -> 13.276 | N143: =IF(N57>0,'R&C-Painel de Controle'!$O$72*N35/1000000,0) -> 13.276 | O143: =IF(O57>0,'R&C-Painel de Controle'!$O$72*O35/1000000,0) -> 13.276 | P143: =IF(P57>0,'R&C-Painel de Controle'!$O$72*P35/1000000,0) -> 13.276 | Q143: =IF(Q57>0,'R&C-Painel de Controle'!$O$72*Q35/1000000,0) -> 13.276 | R143: =IF(R57>0,'R&C-Painel de Controle'!$O$72*R35/1000000,0) -> 13.276 | S143: =IF(S57>0,'R&C-Painel de Controle'!$O$72*S35/1000000,0) -> 13.276 | T143: =IF(T57>0,'R&C-Painel de Controle'!$O$72*T35/1000000,0) -> 13.276 | U143: =IF(U57>0,'R&C-Painel de Controle'!$O$72*U35/1000000,0) -> 13.276 | V143: =IF(V57>0,'R&C-Painel de Controle'!$O$72*V35/1000000,0) -> 13.276 | W143: =IF(W57>0,'R&C-Painel de Controle'!$O$72*W35/1000000,0) -> 13.276 | X143: =IF(X57>0,'R&C-Painel de Controle'!$O$72*X35/1000000,0) -> 13.276 | Y143: =IF(Y57>0,'R&C-Painel de Controle'!$O$72*Y35/1000000,0) -> 13.276 | Z143: =IF(Z57>0,'R&C-Painel de Controle'!$O$72*Z35/1000000,0) -> 13.276 | AA143: =IF(AA57>0,'R&C-Painel de Controle'!$O$72*AA35/1000000,0) -> 13.276 | AB143: =IF(AB57>0,'R&C-Painel de Controle'!$O$72*AB35/1000000,0) -> 13.276 | AC143: =IF(AC57>0,'R&C-Painel de Controle'!$O$72*AC35/1000000,0) -> 13.276 | AD143: =IF(AD57>0,'R&C-Painel de Controle'!$O$72*AD35/1000000,0) -> 13.276 | AE143: =IF(AE57>0,'R&C-Painel de Controle'!$O$72*AE35/1000000,0) -> 13.276 | AF143: =IF(AF57>0,'R&C-Painel de Controle'!$O$72*AF35/1000000,0) -> 13.276 | AG143: =IF(AG57>0,'R&C-Painel de Controle'!$O$72*AG35/1000000,0) -> 13.276 | AH143: =IF(AH57>0,'R&C-Painel de Controle'!$O$72*AH35/1000000,0) -> 13.276 | AI143: =IF(AI57>0,'R&C-Painel de Controle'!$O$72*AI35/1000000,0) -> 13.276 | AJ143: =IF(AJ57>0,'R&C-Painel de Controle'!$O$72*AJ35/1000000,0) -> 13.276 | AK143: =IF(AK57>0,'R&C-Painel de Controle'!$O$72*AK35/1000000,0) -> 13.276 | AL143: =IF(AL57>0,'R&C-Painel de Controle'!$O$72*AL35/1000000,0) -> 13.276 | AM143: =IF(AM57>0,'R&C-Painel de Controle'!$O$72*AM35/1000000,0) -> 13.276 | AN143: =IF(AN57>0,'R&C-Painel de Controle'!$O$72*AN35/1000000,0) -> 13.276 | AO143: =IF(AO57>0,'R&C-Painel de Controle'!$O$72*AO35/1000000,0) -> 13.276 | AP143: =IF(AP57>0,'R&C-Painel de Controle'!$O$72*AP35/1000000,0) -> 13.276 | AQ143: =IF(AQ57>0,'R&C-Painel de Controle'!$O$72*AQ35/1000000,0) -> 13.276 | AR143: =IF(AR57>0,'R&C-Painel de Controle'!$O$72*AR35/1000000,0) -> 13.276 | AS143: =IF(AS57>0,'R&C-Painel de Controle'!$O$72*AS35/1000000,0) -> 13.276 | AT143: =IF(AT57>0,'R&C-Painel de Controle'!$O$72*AT35/1000000,0) -> 13.276 | AU143: =IF(AU57>0,'R&C-Painel de Controle'!$O$72*AU35/1000000,0) -> 13.276 | AV143: =IF(AV57>0,'R&C-Painel de Controle'!$O$72*AV35/1000000,0) -> 13.276 | AW143: =IF(AW57>0,'R&C-Painel de Controle'!$O$72*AW35/1000000,0) -> 13.276 | AX143: =IF(AX57>0,'R&C-Painel de Controle'!$O$72*AX35/1000000,0) -> 13.276 | AY143: =IF(AY57>0,'R&C-Painel de Controle'!$O$72*AY35/1000000,0) -> 13.276 | AZ143: =IF(AZ57>0,'R&C-Painel de Controle'!$O$72*AZ35/1000000,0) -> 13.276 | BA143: =IF(BA57>0,'R&C-Painel de Controle'!$O$72*BA35/1000000,0) -> 13.276 | BB143: =IF(BB57>0,'R&C-Painel de Controle'!$O$72*BB35/1000000,0) -> 13.276 | BC143: =IF(BC57>0,'R&C-Painel de Controle'!$O$72*BC35/1000000,0) -> 13.276
B144: =B113 -> Aterro Sanitário | C144: Sim | D144: 358,169
B146: Receita Acessória MR$/a | C146: 0.000 | D146: =IF(D60>0,'R&C-Painel de Controle'!$O$75*D35/1000000,0) -> 0.000 | E146: =IF(E60>0,'R&C-Painel de Controle'!$O$75*E35/1000000,0) -> 2.989 | F146: =IF(F60>0,'R&C-Painel de Controle'!$O$75*F35/1000000,0) -> 2.989 | G146: =IF(G60>0,'R&C-Painel de Controle'!$O$75*G35/1000000,0) -> 2.989 | H146: =IF(H60>0,'R&C-Painel de Controle'!$O$75*H35/1000000,0) -> 2.989 | I146: =IF(I60>0,'R&C-Painel de Controle'!$O$75*I35/1000000,0) -> 2.989 | J146: =IF(J60>0,'R&C-Painel de Controle'!$O$75*J35/1000000,0) -> 2.989 | K146: =IF(K60>0,'R&C-Painel de Controle'!$O$75*K35/1000000,0) -> 2.989 | L146: =IF(L60>0,'R&C-Painel de Controle'!$O$75*L35/1000000,0) -> 2.989 | M146: =IF(M60>0,'R&C-Painel de Controle'!$O$75*M35/1000000,0) -> 2.989 | N146: =IF(N60>0,'R&C-Painel de Controle'!$O$75*N35/1000000,0) -> 2.989 | O146: =IF(O60>0,'R&C-Painel de Controle'!$O$75*O35/1000000,0) -> 2.989 | P146: =IF(P60>0,'R&C-Painel de Controle'!$O$75*P35/1000000,0) -> 2.989 | Q146: =IF(Q60>0,'R&C-Painel de Controle'!$O$75*Q35/1000000,0) -> 2.989 | R146: =IF(R60>0,'R&C-Painel de Controle'!$O$75*R35/1000000,0) -> 2.989 | S146: =IF(S60>0,'R&C-Painel de Controle'!$O$75*S35/1000000,0) -> 2.989 | T146: =IF(T60>0,'R&C-Painel de Controle'!$O$75*T35/1000000,0) -> 2.989 | U146: =IF(U60>0,'R&C-Painel de Controle'!$O$75*U35/1000000,0) -> 2.989 | V146: =IF(V60>0,'R&C-Painel de Controle'!$O$75*V35/1000000,0) -> 2.989 | W146: =IF(W60>0,'R&C-Painel de Controle'!$O$75*W35/1000000,0) -> 2.989 | X146: =IF(X60>0,'R&C-Painel de Controle'!$O$75*X35/1000000,0) -> 2.989 | Y146: =IF(Y60>0,'R&C-Painel de Controle'!$O$75*Y35/1000000,0) -> 2.989 | Z146: =IF(Z60>0,'R&C-Painel de Controle'!$O$75*Z35/1000000,0) -> 2.989 | AA146: =IF(AA60>0,'R&C-Painel de Controle'!$O$75*AA35/1000000,0) -> 2.989 | AB146: =IF(AB60>0,'R&C-Painel de Controle'!$O$75*AB35/1000000,0) -> 2.989 | AC146: =IF(AC60>0,'R&C-Painel de Controle'!$O$75*AC35/1000000,0) -> 2.989 | AD146: =IF(AD60>0,'R&C-Painel de Controle'!$O$75*AD35/1000000,0) -> 2.989 | AE146: =IF(AE60>0,'R&C-Painel de Controle'!$O$75*AE35/1000000,0) -> 2.989 | AF146: =IF(AF60>0,'R&C-Painel de Controle'!$O$75*AF35/1000000,0) -> 2.989 | AG146: =IF(AG60>0,'R&C-Painel de Controle'!$O$75*AG35/1000000,0) -> 2.989 | AH146: =IF(AH60>0,'R&C-Painel de Controle'!$O$75*AH35/1000000,0) -> 2.989 | AI146: =IF(AI60>0,'R&C-Painel de Controle'!$O$75*AI35/1000000,0) -> 2.989 | AJ146: =IF(AJ60>0,'R&C-Painel de Controle'!$O$75*AJ35/1000000,0) -> 2.989 | AK146: =IF(AK60>0,'R&C-Painel de Controle'!$O$75*AK35/1000000,0) -> 2.989 | AL146: =IF(AL60>0,'R&C-Painel de Controle'!$O$75*AL35/1000000,0) -> 2.989 | AM146: =IF(AM60>0,'R&C-Painel de Controle'!$O$75*AM35/1000000,0) -> 2.989 | AN146: =IF(AN60>0,'R&C-Painel de Controle'!$O$75*AN35/1000000,0) -> 2.989 | AO146: =IF(AO60>0,'R&C-Painel de Controle'!$O$75*AO35/1000000,0) -> 2.989 | AP146: =IF(AP60>0,'R&C-Painel de Controle'!$O$75*AP35/1000000,0) -> 2.989 | AQ146: =IF(AQ60>0,'R&C-Painel de Controle'!$O$75*AQ35/1000000,0) -> 2.989 | AR146: =IF(AR60>0,'R&C-Painel de Controle'!$O$75*AR35/1000000,0) -> 2.989 | AS146: =IF(AS60>0,'R&C-Painel de Controle'!$O$75*AS35/1000000,0) -> 2.989 | AT146: =IF(AT60>0,'R&C-Painel de Controle'!$O$75*AT35/1000000,0) -> 2.989 | AU146: =IF(AU60>0,'R&C-Painel de Controle'!$O$75*AU35/1000000,0) -> 2.989 | AV146: =IF(AV60>0,'R&C-Painel de Controle'!$O$75*AV35/1000000,0) -> 2.989 | AW146: =IF(AW60>0,'R&C-Painel de Controle'!$O$75*AW35/1000000,0) -> 2.989 | AX146: =IF(AX60>0,'R&C-Painel de Controle'!$O$75*AX35/1000000,0) -> 2.989 | AY146: =IF(AY60>0,'R&C-Painel de Controle'!$O$75*AY35/1000000,0) -> 2.989 | AZ146: =IF(AZ60>0,'R&C-Painel de Controle'!$O$75*AZ35/1000000,0) -> 2.989 | BA146: =IF(BA60>0,'R&C-Painel de Controle'!$O$75*BA35/1000000,0) -> 2.989 | BB146: =IF(BB60>0,'R&C-Painel de Controle'!$O$75*BB35/1000000,0) -> 2.989 | BC146: =IF(BC60>0,'R&C-Painel de Controle'!$O$75*BC35/1000000,0) -> 2.989
B148: Dados de Receitas Diretas | C148: =C35*$G$26/1000000 -> 314.481 | D148: 314.481 | E148: 314.481 | F148: 314.481 | G148: 314.481 | H148: 314.481 | I148: 314.481 | J148: 314.481 | K148: 314.481 | L148: 314.481 | M148: 314.481 | N148: 314.481 | O148: 314.481 | P148: 314.481 | Q148: 314.481 | R148: 314.481 | S148: 314.481 | T148: 314.481 | U148: 314.481 | V148: 314.481 | W148: 314.481 | X148: 314.481 | Y148: 314.481 | Z148: 314.481 | AA148: 314.481 | AB148: 314.481 | AC148: 314.481 | AD148: 314.481 | AE148: 314.481 | AF148: 314.481 | AG148: 314.481 | AH148: 314.481 | AI148: =AI35*$G$26/1000000 -> 314.481 | AJ148: 314.481 | AK148: 314.481 | AL148: 314.481 | AM148: 314.481 | AN148: 314.481 | AO148: 314.481 | AP148: 314.481 | AQ148: 314.481 | AR148: 314.481 | AS148: 314.481 | AT148: 314.481 | AU148: 314.481 | AV148: 314.481 | AW148: 314.481 | AX148: 314.481 | AY148: 314.481 | AZ148: 314.481 | BA148: 314.481 | BB148: 314.481 | BC148: 314.481
B150: Cálculos das Métricas Financeiras do Projeto
B151: Margem Operacional do Negócio | C151: =C148+C121-C119 -> 280.049 | D151: 280.049 | E151: 166.971 | F151: 89.860 | G151: 89.860 | H151: 89.860 | I151: 89.860 | J151: 89.860 | K151: 89.860 | L151: 89.860 | M151: 89.860 | N151: 89.860 | O151: 89.860 | P151: 89.860 | Q151: 89.860 | R151: 89.860 | S151: 89.860 | T151: 89.860 | U151: 89.860 | V151: 89.860 | W151: 89.860 | X151: 89.860 | Y151: 89.860 | Z151: 89.860 | AA151: 89.860 | AB151: 89.860 | AC151: 89.860 | AD151: 89.860 | AE151: 89.860 | AF151: 89.860 | AG151: 89.860 | AH151: 89.860 | AI151: 89.860 | AJ151: 89.860 | AK151: 89.860 | AL151: 89.860 | AM151: 89.860 | AN151: 89.860 | AO151: 89.860 | AP151: 89.860 | AQ151: 89.860 | AR151: 89.860 | AS151: 89.860 | AT151: 89.860 | AU151: 89.860 | AV151: 89.860 | AW151: 89.860 | AX151: 89.860 | AY151: 89.860 | AZ151: 89.860 | BA151: 89.860 | BB151: 89.860 | BC151: 89.860
B152: Depreciação
B153: Lucro Operacional Bruto | C153: =C151-C152 -> 280.049 | D153: 280.049 | E153: 166.971 | F153: 89.860 | G153: 89.860 | H153: 89.860 | I153: 89.860 | J153: 89.860 | K153: 89.860 | L153: 89.860 | M153: 89.860 | N153: 89.860 | O153: 89.860 | P153: 89.860 | Q153: 89.860 | R153: 89.860 | S153: 89.860 | T153: 89.860 | U153: 89.860 | V153: 89.860 | W153: 89.860 | X153: 89.860 | Y153: 89.860 | Z153: 89.860 | AA153: 89.860 | AB153: 89.860 | AC153: 89.860 | AD153: 89.860 | AE153: 89.860 | AF153: 89.860 | AG153: 89.860 | AH153: 89.860 | AI153: 89.860 | AJ153: 89.860 | AK153: 89.860 | AL153: 89.860 | AM153: 89.860 | AN153: 89.860 | AO153: 89.860 | AP153: 89.860 | AQ153: 89.860 | AR153: 89.860 | AS153: 89.860 | AT153: 89.860 | AU153: 89.860 | AV153: 89.860 | AW153: 89.860 | AX153: 89.860 | AY153: 89.860 | AZ153: 89.860 | BA153: 89.860 | BB153: 89.860 | BC153: 89.860
B154: Lucro Operacional Líquido | C154: =C153*(1-($C$25+$C$24)) -> 184.832 | D154: 184.832 | E154: 110.201 | F154: 59.307 | G154: 59.307 | H154: 59.307 | I154: 59.307 | J154: 59.307 | K154: 59.307 | L154: 59.307 | M154: 59.307 | N154: 59.307 | O154: 59.307 | P154: 59.307 | Q154: 59.307 | R154: 59.307 | S154: 59.307 | T154: 59.307 | U154: 59.307 | V154: 59.307 | W154: 59.307 | X154: 59.307 | Y154: 59.307 | Z154: 59.307 | AA154: 59.307 | AB154: 59.307 | AC154: 59.307 | AD154: 59.307 | AE154: 59.307 | AF154: 59.307 | AG154: 59.307 | AH154: 59.307 | AI154: 59.307 | AJ154: 59.307 | AK154: 59.307 | AL154: 59.307 | AM154: 59.307 | AN154: 59.307 | AO154: 59.307 | AP154: 59.307 | AQ154: 59.307 | AR154: 59.307 | AS154: 59.307 | AT154: 59.307 | AU154: 59.307 | AV154: 59.307 | AW154: 59.307 | AX154: 59.307 | AY154: 59.307 | AZ154: 59.307 | BA154: 59.307 | BB154: 59.307 | BC154: 59.307
B156: FCL Projeto (MR$) | C156: =C154-C63 -> -172.732 | D156: -574.256 | E156: -438.402 | F156: 48.669 | G156: 51.669 | H156: 51.669 | I156: 51.669 | J156: 51.669 | K156: 51.669 | L156: 51.669 | M156: 51.669 | N156: 51.669 | O156: 51.669 | P156: 51.669 | Q156: 51.669 | R156: 51.669 | S156: 51.669 | T156: 51.669 | U156: 51.669 | V156: 51.669 | W156: 51.669 | X156: 51.669 | Y156: 51.669 | Z156: 51.669 | AA156: 51.669 | AB156: 51.669 | AC156: 51.669 | AD156: 51.669 | AE156: 51.669 | AF156: 51.669 | AG156: 51.669 | AH156: 51.669 | AI156: 51.669 | AJ156: 51.669 | AK156: 51.669 | AL156: 51.669 | AM156: 51.669 | AN156: 51.669 | AO156: 51.669 | AP156: 51.669 | AQ156: 51.669 | AR156: 51.669 | AS156: 51.669 | AT156: 51.669 | AU156: 51.669 | AV156: 51.669 | AW156: 51.669 | AX156: 51.669 | AY156: 51.669 | AZ156: 51.669 | BA156: 51.669 | BB156: 51.669 | BC156: 51.669
B157: FCL Projeto Acc (MR$) | C157: =C156 -> -172.732 | D157: =C157+D156 -> -746.988 | E157: -1,185.390 | F157: -1,136.720 | G157: -1,085.051 | H157: -1,033.382 | I157: -981.713 | J157: -930.044 | K157: -878.375 | L157: -826.706 | M157: -775.037 | N157: -723.368 | O157: -671.698 | P157: -620.029 | Q157: -568.360 | R157: -516.691 | S157: -465.022 | T157: -413.353 | U157: -361.684 | V157: -310.015 | W157: -258.346 | X157: -206.676 | Y157: -155.007 | Z157: -103.338 | AA157: -51.669 | AB157: 0.000 | AC157: 51.669 | AD157: 103.338 | AE157: 155.007 | AF157: 206.676 | AG157: 258.346 | AH157: 310.015 | AI157: 361.684 | AJ157: 413.353 | AK157: 465.022 | AL157: 516.691 | AM157: 568.360 | AN157: 620.029 | AO157: 671.698 | AP157: 723.368 | AQ157: 775.037 | AR157: 826.706 | AS157: 878.375 | AT157: 930.044 | AU157: 981.713 | AV157: 1,033.382 | AW157: 1,085.051 | AX157: 1,136.720 | AY157: 1,188.390 | AZ157: 1,240.059 | BA157: 1,291.728 | BB157: 1,343.397 | BC157: 1,395.066
B159: VPL Projeto (MR$) | C159: =NPV($C$28,C156) -> -156.174 | D159: -519.209 | E159: -396.378 | F159: 44.004 | G159: 46.716 | H159: 46.716 | I159: 46.716 | J159: 46.716 | K159: 46.716 | L159: 46.716 | M159: 46.716 | N159: 46.716 | O159: 46.716 | P159: 46.716 | Q159: 46.716 | R159: 46.716 | S159: 46.716 | T159: 46.716 | U159: 46.716 | V159: 46.716 | W159: 46.716 | X159: 46.716 | Y159: 46.716 | Z159: 46.716 | AA159: 46.716 | AB159: 46.716 | AC159: 46.716 | AD159: 46.716 | AE159: 46.716 | AF159: 46.716 | AG159: 46.716 | AH159: 46.716 | AI159: 46.716 | AJ159: 46.716 | AK159: 46.716 | AL159: 46.716 | AM159: 46.716 | AN159: 46.716 | AO159: 46.716 | AP159: 46.716 | AQ159: 46.716 | AR159: 46.716 | AS159: 46.716 | AT159: 46.716 | AU159: 46.716 | AV159: 46.716 | AW159: 46.716 | AX159: 46.716 | AY159: 46.716 | AZ159: 46.716 | BA159: 46.716 | BB159: 46.716 | BC159: 46.716
B160: VPL Projeto Acc. (MR$) | C160: =C159 -> -156.174 | D160: =C160+D159 -> -675.384 | E160: -1,071.761 | F160: -1,027.758 | G160: -981.041 | H160: -934.325 | I160: -887.609 | J160: -840.893 | K160: -794.176 | L160: -747.460 | M160: -700.744 | N160: -654.028 | O160: -607.311 | P160: -560.595 | Q160: -513.879 | R160: -467.163 | S160: -420.446 | T160: -373.730 | U160: -327.014 | V160: -280.298 | W160: -233.581 | X160: -186.865 | Y160: -140.149 | Z160: -93.433 | AA160: -46.716 | AB160: 0.000 | AC160: 46.716 | AD160: 93.433 | AE160: 140.149 | AF160: 186.865 | AG160: 233.581 | AH160: 280.298 | AI160: 327.014 | AJ160: 373.730 | AK160: 420.446 | AL160: 467.163 | AM160: 513.879 | AN160: 560.595 | AO160: 607.311 | AP160: 654.028 | AQ160: 700.744 | AR160: 747.460 | AS160: 794.176 | AT160: 840.893 | AU160: 887.609 | AV160: 934.325 | AW160: 981.041 | AX160: 1,027.758 | AY160: 1,074.474 | AZ160: 1,121.190 | BA160: 1,167.906 | BB160: 1,214.623 | BC160: 1,261.339
B161: VPL (R$) | C161: =C156/(1+$C$28)^C32 -> -172.732 | D161: -519.209 | E161: -358.382 | F161: 35.972 | G161: 34.529 | H161: 31.219 | I161: 28.226 | J161: 25.521 | K161: 23.074 | L161: 20.862 | M161: 18.863 | N161: 17.054 | O161: 15.420 | P161: 13.942 | Q161: 12.605 | R161: 11.397 | S161: 10.304 | T161: 9.317 | U161: 8.424 | V161: 7.616 | W161: 6.886 | X161: 6.226 | Y161: 5.629 | Z161: 5.090 | AA161: 4.602 | AB161: 4.161 | AC161: 3.762 | AD161: 3.401 | AE161: 3.075 | AF161: 2.780 | AG161: 2.514 | AH161: 2.273 | AI161: 2.055 | AJ161: 1.858 | AK161: 1.680 | AL161: 1.519 | AM161: 1.373 | AN161: 1.242 | AO161: 1.123 | AP161: 1.015 | AQ161: 0.918 | AR161: 0.830 | AS161: 0.750 | AT161: 0.678 | AU161: 0.613 | AV161: 0.554 | AW161: 0.501 | AX161: 0.453 | AY161: 0.410 | AZ161: 0.371 | BA161: 0.335 | BB161: 0.303 | BC161: 0.274
B162: VPL Acc. (R$) | C162: =C161 -> -172.732 | D162: =C162+D161 -> -691.941 | E162: -1,050.323 | F162: -1,014.351 | G162: -979.823 | H162: -948.604 | I162: -920.378 | J162: -894.857 | K162: -871.783 | L162: -850.920 | M162: -832.058 | N162: -815.003 | O162: -799.584 | P162: -785.642 | Q162: -773.037 | R162: -761.640 | S162: -751.336 | T162: -742.019 | U162: -733.595 | V162: -725.979 | W162: -719.093 | X162: -712.867 | Y162: -707.238 | Z162: -702.148 | AA162: -697.547 | AB162: -693.386 | AC162: -689.624 | AD162: -686.223 | AE162: -683.148 | AF162: -680.368 | AG162: -677.854 | AH162: -675.581 | AI162: -673.526 | AJ162: -671.668 | AK162: -669.988 | AL162: -668.469 | AM162: -667.096 | AN162: -665.854 | AO162: -664.731 | AP162: -663.716 | AQ162: -662.799 | AR162: -661.969 | AS162: -661.219 | AT162: -660.540 | AU162: -659.927 | AV162: -659.373 | AW162: -658.871 | AX162: -658.418 | AY162: -658.008 | AZ162: -657.638 | BA162: -657.303 | BB162: -657.000 | BC162: -656.726
B163: VPI (R$) | C163: =C63/(1+$C$28)^C32 -> 357.564 | D163: 686.324 | E163: 448.468 | F163: 7.863 | G163: 5.104 | H163: 4.615 | I163: 4.173 | J163: 3.773 | K163: 3.411 | L163: 3.084 | M163: 2.788 | N163: 2.521 | O163: 2.279 | P163: 2.061 | Q163: 1.863 | R163: 1.685 | S163: 1.523 | T163: 1.377 | U163: 1.245 | V163: 1.126 | W163: 1.018 | X163: 0.920 | Y163: 0.832 | Z163: 0.752 | AA163: 0.680 | AB163: 0.615 | AC163: 0.556 | AD163: 0.503 | AE163: 0.455 | AF163: 0.411 | AG163: 0.372 | AH163: 0.336 | AI163: 0.304 | AJ163: 0.275 | AK163: 0.248 | AL163: 0.225 | AM163: 0.203 | AN163: 0.184 | AO163: 0.166 | AP163: 0.150 | AQ163: 0.136 | AR163: 0.123 | AS163: 0.111 | AT163: 0.100 | AU163: 0.091 | AV163: 0.082 | AW163: 0.074 | AX163: 0.067 | AY163: 0.061 | AZ163: 0.055 | BA163: 0.050 | BB163: 0.045 | BC163: 0.040
B164: Payback | C164: =IF(C$32<=3,1,IF(C157<0,1,IF(B164=1,1-(C157/C156),0))) -> 1.0 | D164: 1.0 | E164: 1.0 | F164: 1.0 | G164: 1.0 | H164: 1.0 | I164: 1.0 | J164: 1.0 | K164: 1.0 | L164: 1.0 | M164: 1.0 | N164: 1.0 | O164: 1.0 | P164: 1.0 | Q164: 1.0 | R164: 1.0 | S164: 1.0 | T164: 1.0 | U164: 1.0 | V164: 1.0 | W164: 1.0 | X164: 1.0 | Y164: 1.0 | Z164: 1.0 | AA164: 1.0 | AB164: 1.0 | AC164: 0.0 | AD164: 0.0 | AE164: 0.0 | AF164: 0.0 | AG164: 0.0 | AH164: 0.0 | AI164: 0.0 | AJ164: 0.0 | AK164: 0.0 | AL164: 0.0 | AM164: 0.0 | AN164: 0.0 | AO164: 0.0 | AP164: 0.0 | AQ164: 0.0 | AR164: 0.0 | AS164: 0.0 | AT164: 0.0 | AU164: 0.0 | AV164: 0.0 | AW164: 0.0 | AX164: 0.0 | AY164: 0.0 | AZ164: 0.0 | BA164: 0.0 | BB164: 0.0 | BC164: 0.0
B165: TIR | C165: =IF(C31=1,IRR($C156:C156),"-") -> - | D165: - | E165: - | F165: - | G165: - | H165: - | I165: - | J165: - | K165: - | L165: - | M165: - | N165: - | O165: - | P165: - | Q165: - | R165: - | S165: - | T165: - | U165: - | V165: - | W165: - | X165: - | Y165: - | Z165: - | AA165: - | AB165: 0% | AC165: - | AD165: - | AE165: - | AF165: - | AG165: - | AH165: - | AI165: - | AJ165: - | AK165: - | AL165: - | AM165: - | AN165: - | AO165: - | AP165: - | AQ165: - | AR165: - | AS165: - | AT165: - | AU165: - | AV165: - | AW165: - | AX165: - | AY165: - | AZ165: - | BA165: - | BB165: - | BC165: -
B167: (+) Liberações de Empréstimos | C167: =C63*(1-$C$13) -> 107.269 | D167: 227.726 | E167: 164.581 | F167: 3.191 | G167: 2.291 | H167: 2.291 | I167: 2.291 | J167: 2.291 | K167: 2.291 | L167: 2.291 | M167: 2.291 | N167: 2.291 | O167: 2.291 | P167: 2.291 | Q167: 2.291 | R167: 2.291 | S167: 2.291 | T167: 2.291 | U167: 2.291 | V167: 2.291 | W167: 2.291 | X167: 2.291 | Y167: 2.291 | Z167: 2.291 | AA167: 2.291 | AB167: 2.291 | AC167: 2.291 | AD167: 2.291 | AE167: 2.291 | AF167: 2.291 | AG167: 2.291 | AH167: 2.291 | AI167: 2.291 | AJ167: 2.291 | AK167: 2.291 | AL167: 2.291 | AM167: 2.291 | AN167: 2.291 | AO167: 2.291 | AP167: 2.291 | AQ167: 2.291 | AR167: 2.291 | AS167: 2.291 | AT167: 2.291 | AU167: 2.291 | AV167: 2.291 | AW167: 2.291 | AX167: 2.291 | AY167: 2.291 | AZ167: 2.291 | BA167: 2.291 | BB167: 2.291 | BC167: 2.291
B168: Empréstimo Capex Acc (Dívida Antes da Amortização) | C168: =C167 -> 107.269 | D168: =C173+D167 -> 334.996 | E168: 499.576 | F168: 502.768 | G168: 505.059 | H168: 507.351 | I168: 478.890 | J168: 450.429 | K168: 421.968 | L168: 393.507 | M168: 365.046 | N168: 336.585 | O168: 308.124 | P168: 279.663 | Q168: 251.202 | R168: 222.741 | S168: 194.280 | T168: 165.819 | U168: 137.357 | V168: 108.896 | W168: 80.435 | X168: 51.974 | Y168: 23.513 | Z168: -4.948 | AA168: -33.409 | AB168: -61.870 | AC168: -59.578 | AD168: -57.287 | AE168: -54.995 | AF168: -52.704 | AG168: -50.412 | AH168: -48.121 | AI168: -45.829 | AJ168: -43.538 | AK168: -41.246 | AL168: -38.955 | AM168: -36.664 | AN168: -34.372 | AO168: -32.081 | AP168: -29.789 | AQ168: -27.498 | AR168: -25.206 | AS168: -22.915 | AT168: -20.623 | AU168: -18.332 | AV168: -16.040 | AW168: -13.749 | AX168: -11.457 | AY168: -9.166 | AZ168: -6.874 | BA168: -4.583 | BB168: -2.291 | BC168: 0.000
B169: Ano | C169: 0 | D169: 1 | E169: 2 | F169: 3 | G169: 4 | H169: 5 | I169: 6 | J169: 7 | K169: 8 | L169: 9 | M169: 10 | N169: 11 | O169: 12 | P169: 13 | Q169: 14 | R169: 15 | S169: 16 | T169: 17 | U169: 18 | V169: 19 | W169: 20 | X169: 21 | Y169: 22 | Z169: 23 | AA169: 24 | AB169: 25 | AC169: 26 | AD169: 27 | AE169: 28 | AF169: 29 | AG169: 30 | AH169: 31 | AI169: 32 | AJ169: 33 | AK169: 34 | AL169: 35 | AM169: 36 | AN169: 37 | AO169: 38 | AP169: 39 | AQ169: 40 | AR169: 41 | AS169: 42 | AT169: 43 | AU169: 44 | AV169: 45 | AW169: 46 | AX169: 47 | AY169: 48 | AZ169: 49 | BA169: 50 | BB169: 51 | BC169: 52
B170: Definição do Período de Amortização do Empréstimo | C170: =IF(C169<=$C$22,0,IF(C169<($C$22+$C$21+1),1,2)) -> 0 | D170: 0 | E170: 0 | F170: 0 | G170: 0 | H170: 1 | I170: 1 | J170: 1 | K170: 1 | L170: 1 | M170: 1 | N170: 1 | O170: 1 | P170: 1 | Q170: 1 | R170: 1 | S170: 1 | T170: 1 | U170: 1 | V170: 1 | W170: 1 | X170: 1 | Y170: 1 | Z170: 1 | AA170: 1 | AB170: 2 | AC170: 2 | AD170: 2 | AE170: 2 | AF170: 2 | AG170: 2 | AH170: 2 | AI170: 2 | AJ170: 2 | AK170: 2 | AL170: 2 | AM170: 2 | AN170: 2 | AO170: 2 | AP170: 2 | AQ170: 2 | AR170: 2 | AS170: 2 | AT170: 2 | AU170: 2 | AV170: 2 | AW170: 2 | AX170: 2 | AY170: 2 | AZ170: 2 | BA170: 2 | BB170: 2 | BC170: 2
B171: (-) Amortização de Empréstimos | C171: 0.000 | D171: =IF(D170=0,0,IF(D170=1,-1*SUM($C167:$BC167)/$C$21,0)) -> 0.000 | E171: 0.000 | F171: 0.000 | G171: 0.000 | H171: -30.752 | I171: -30.752 | J171: -30.752 | K171: -30.752 | L171: -30.752 | M171: -30.752 | N171: -30.752 | O171: -30.752 | P171: -30.752 | Q171: -30.752 | R171: -30.752 | S171: -30.752 | T171: -30.752 | U171: -30.752 | V171: -30.752 | W171: -30.752 | X171: -30.752 | Y171: -30.752 | Z171: -30.752 | AA171: -30.752 | AB171: 0.000 | AC171: 0.000 | AD171: 0.000 | AE171: 0.000 | AF171: 0.000 | AG171: 0.000 | AH171: 0.000 | AI171: 0.000 | AJ171: 0.000 | AK171: 0.000 | AL171: 0.000 | AM171: 0.000 | AN171: 0.000 | AO171: 0.000 | AP171: 0.000 | AQ171: 0.000 | AR171: 0.000 | AS171: 0.000 | AT171: 0.000 | AU171: 0.000 | AV171: 0.000 | AW171: 0.000 | AX171: 0.000 | AY171: 0.000 | AZ171: 0.000 | BA171: 0.000 | BB171: 0.000 | BC171: 0.000
B172: (-) Juros de Empréstimos | C172: 0.000 | D172: =IF(D170=0,-1*$C$23*C173,IF(D170=1,-1*$C$20*C173,0)) -> -9.654 | E172: -30.150 | F172: -44.962 | G172: -45.249 | H172: -45.455 | I172: -42.894 | J172: -40.332 | K172: -37.771 | L172: -35.209 | M172: -32.648 | N172: -30.086 | O172: -27.525 | P172: -24.963 | Q172: -22.402 | R172: -19.840 | S172: -17.279 | T172: -14.717 | U172: -12.156 | V172: -9.594 | W172: -7.033 | X172: -4.471 | Y172: -1.910 | Z172: 0.652 | AA172: 3.213 | AB172: 0.000 | AC172: 0.000 | AD172: 0.000 | AE172: 0.000 | AF172: 0.000 | AG172: 0.000 | AH172: 0.000 | AI172: 0.000 | AJ172: 0.000 | AK172: 0.000 | AL172: 0.000 | AM172: 0.000 | AN172: 0.000 | AO172: 0.000 | AP172: 0.000 | AQ172: 0.000 | AR172: 0.000 | AS172: 0.000 | AT172: 0.000 | AU172: 0.000 | AV172: 0.000 | AW172: 0.000 | AX172: 0.000 | AY172: 0.000 | AZ172: 0.000 | BA172: 0.000 | BB172: 0.000 | BC172: 0.000
B173: Empréstimo Capex Acc (Dívida Pós-Amortização) | C173: =C168+C171 -> 107.269 | D173: 334.996 | E173: 499.576 | F173: 502.768 | G173: 505.059 | H173: 476.598 | I173: 448.137 | J173: 419.676 | K173: 391.215 | L173: 362.754 | M173: 334.293 | N173: 305.832 | O173: 277.371 | P173: 248.910 | Q173: 220.449 | R173: 191.988 | S173: 163.527 | T173: 135.066 | U173: 106.605 | V173: 78.144 | W173: 49.683 | X173: 21.222 | Y173: -7.239 | Z173: -35.700 | AA173: -64.161 | AB173: -61.870 | AC173: -59.578 | AD173: -57.287 | AE173: -54.995 | AF173: -52.704 | AG173: -50.412 | AH173: -48.121 | AI173: -45.829 | AJ173: -43.538 | AK173: -41.246 | AL173: -38.955 | AM173: -36.664 | AN173: -34.372 | AO173: -32.081 | AP173: -29.789 | AQ173: -27.498 | AR173: -25.206 | AS173: -22.915 | AT173: -20.623 | AU173: -18.332 | AV173: -16.040 | AW173: -13.749 | AX173: -11.457 | AY173: -9.166 | AZ173: -6.874 | BA173: -4.583 | BB173: -2.291 | BC173: 0.000
B175: FCL Acionista (MR$) | C175: =C156+C167+C171+C172 -> -65.463 | D175: -356.184 | E175: -303.971 | F175: 6.899 | G175: 8.711 | H175: -22.247 | I175: -19.686 | J175: -17.124 | K175: -14.563 | L175: -12.001 | M175: -9.440 | N175: -6.878 | O175: -4.317 | P175: -1.755 | Q175: 0.806 | R175: 3.368 | S175: 5.929 | T175: 8.491 | U175: 11.052 | V175: 13.614 | W175: 16.175 | X175: 18.737 | Y175: 21.298 | Z175: 23.860 | AA175: 26.421 | AB175: 53.961 | AC175: 53.961 | AD175: 53.961 | AE175: 53.961 | AF175: 53.961 | AG175: 53.961 | AH175: 53.961 | AI175: 53.961 | AJ175: 53.961 | AK175: 53.961 | AL175: 53.961 | AM175: 53.961 | AN175: 53.961 | AO175: 53.961 | AP175: 53.961 | AQ175: 53.961 | AR175: 53.961 | AS175: 53.961 | AT175: 53.961 | AU175: 53.961 | AV175: 53.961 | AW175: 53.961 | AX175: 53.961 | AY175: 53.961 | AZ175: 53.961 | BA175: 53.961 | BB175: 53.961 | BC175: 53.961
B176: FCL Acionista Acc (MR$) | C176: =C175 -> -65.463 | D176: =C176+D175 -> -421.646 | E176: -725.617 | F176: -718.718 | G176: -710.007 | H176: -732.254 | I176: -751.940 | J176: -769.064 | K176: -783.627 | L176: -795.628 | M176: -805.068 | N176: -811.946 | O176: -816.263 | P176: -818.018 | Q176: -817.212 | R176: -813.845 | S176: -807.915 | T176: -799.425 | U176: -788.373 | V176: -774.759 | W176: -758.584 | X176: -739.847 | Y176: -718.549 | Z176: -694.690 | AA176: -668.268 | AB176: -614.308 | AC176: -560.347 | AD176: -506.387 | AE176: -452.426 | AF176: -398.466 | AG176: -344.505 | AH176: -290.544 | AI176: -236.584 | AJ176: -182.623 | AK176: -128.663 | AL176: -74.702 | AM176: -20.741 | AN176: 33.219 | AO176: 87.180 | AP176: 141.140 | AQ176: 195.101 | AR176: 249.061 | AS176: 303.022 | AT176: 356.983 | AU176: 410.943 | AV176: 464.904 | AW176: 518.864 | AX176: 572.825 | AY176: 626.785 | AZ176: 680.746 | BA176: 734.707 | BB176: 788.667 | BC176: 842.628
B178: VPL Acionista (MR$) | C178: =NPV($C$28,C175) -> -59.188 | D178: -322.041 | E178: -274.833 | F178: 6.237 | G178: 7.876 | H178: -20.115 | I178: -17.799 | J178: -15.483 | K178: -13.167 | L178: -10.851 | M178: -8.535 | N178: -6.219 | O178: -3.903 | P178: -1.587 | Q178: 0.729 | R178: 3.045 | S178: 5.361 | T178: 7.677 | U178: 9.993 | V178: 12.309 | W178: 14.625 | X178: 16.941 | Y178: 19.257 | Z178: 21.572 | AA178: 23.888 | AB178: 48.788 | AC178: 48.788 | AD178: 48.788 | AE178: 48.788 | AF178: 48.788 | AG178: 48.788 | AH178: 48.788 | AI178: 48.788 | AJ178: 48.788 | AK178: 48.788 | AL178: 48.788 | AM178: 48.788 | AN178: 48.788 | AO178: 48.788 | AP178: 48.788 | AQ178: 48.788 | AR178: 48.788 | AS178: 48.788 | AT178: 48.788 | AU178: 48.788 | AV178: 48.788 | AW178: 48.788 | AX178: 48.788 | AY178: 48.788 | AZ178: 48.788 | BA178: 48.788 | BB178: 48.788 | BC178: 48.788
B179: VPL Acionista Acc. (MR$) | C179: =C178 -> -59.188 | D179: =C179+D178 -> -381.228 | E179: -656.061 | F179: -649.824 | G179: -641.947 | H179: -662.062 | I179: -679.861 | J179: -695.344 | K179: -708.511 | L179: -719.361 | M179: -727.896 | N179: -734.115 | O179: -738.018 | P179: -739.605 | Q179: -738.877 | R179: -735.832 | S179: -730.471 | T179: -722.794 | U179: -712.801 | V179: -700.493 | W179: -685.868 | X179: -668.928 | Y179: -649.671 | Z179: -628.099 | AA179: -604.210 | AB179: -555.422 | AC179: -506.634 | AD179: -457.846 | AE179: -409.058 | AF179: -360.270 | AG179: -311.482 | AH179: -262.694 | AI179: -213.906 | AJ179: -165.117 | AK179: -116.329 | AL179: -67.541 | AM179: -18.753 | AN179: 30.035 | AO179: 78.823 | AP179: 127.611 | AQ179: 176.399 | AR179: 225.187 | AS179: 273.975 | AT179: 322.763 | AU179: 371.551 | AV179: 420.339 | AW179: 469.127 | AX179: 517.916 | AY179: 566.704 | AZ179: 615.492 | BA179: 664.280 | BB179: 713.068 | BC179: 761.856
B180: VPL (R$) | C180: =C175/(1+$C$28)^C32 -> -65.463 | D180: -322.041 | E180: -248.488 | F180: 5.099 | G180: 5.822 | H180: -13.442 | I180: -10.754 | J180: -8.458 | K180: -6.503 | L180: -4.846 | M180: -3.446 | N180: -2.270 | O180: -1.288 | P180: -0.474 | Q180: 0.197 | R180: 0.743 | S180: 1.182 | T180: 1.531 | U180: 1.802 | V180: 2.007 | W180: 2.156 | X180: 2.258 | Y180: 2.320 | Z180: 2.350 | AA180: 2.353 | AB180: 4.345 | AC180: 3.929 | AD180: 3.552 | AE180: 3.212 | AF180: 2.904 | AG180: 2.625 | AH180: 2.374 | AI180: 2.146 | AJ180: 1.940 | AK180: 1.754 | AL180: 1.586 | AM180: 1.434 | AN180: 1.297 | AO180: 1.172 | AP180: 1.060 | AQ180: 0.958 | AR180: 0.867 | AS180: 0.783 | AT180: 0.708 | AU180: 0.640 | AV180: 0.579 | AW180: 0.524 | AX180: 0.473 | AY180: 0.428 | AZ180: 0.387 | BA180: 0.350 | BB180: 0.316 | BC180: 0.286
B181: VPL Acc. (R$) | C181: =C180 -> -65.463 | D181: =C181+D180 -> -387.504 | E181: -635.992 | F181: -630.893 | G181: -625.071 | H181: -638.513 | I181: -649.267 | J181: -657.725 | K181: -664.229 | L181: -669.074 | M181: -672.521 | N181: -674.791 | O181: -676.079 | P181: -676.553 | Q181: -676.356 | R181: -675.613 | S181: -674.431 | T181: -672.900 | U181: -671.098 | V181: -669.091 | W181: -666.936 | X181: -664.678 | Y181: -662.358 | Z181: -660.007 | AA181: -657.654 | AB181: -653.309 | AC181: -649.381 | AD181: -645.828 | AE181: -642.617 | AF181: -639.713 | AG181: -637.088 | AH181: -634.714 | AI181: -632.568 | AJ181: -630.628 | AK181: -628.873 | AL181: -627.287 | AM181: -625.853 | AN181: -624.556 | AO181: -623.384 | AP181: -622.324 | AQ181: -621.365 | AR181: -620.499 | AS181: -619.715 | AT181: -619.007 | AU181: -618.366 | AV181: -617.787 | AW181: -617.264 | AX181: -616.790 | AY181: -616.362 | AZ181: -615.975 | BA181: -615.625 | BB181: -615.309 | BC181: -615.023
B182: VPI (R$) | C182: =C167/(1+$C$28)^C32 -> 107.269 | D182: 205.897 | E182: 134.541 | F182: 2.359 | G182: 1.531 | H182: 1.385 | I182: 1.252 | J182: 1.132 | K182: 1.023 | L182: 0.925 | M182: 0.837 | N182: 0.756 | O182: 0.684 | P182: 0.618 | Q182: 0.559 | R182: 0.505 | S182: 0.457 | T182: 0.413 | U182: 0.374 | V182: 0.338 | W182: 0.305 | X182: 0.276 | Y182: 0.250 | Z182: 0.226 | AA182: 0.204 | AB182: 0.185 | AC182: 0.167 | AD182: 0.151 | AE182: 0.136 | AF182: 0.123 | AG182: 0.111 | AH182: 0.101 | AI182: 0.091 | AJ182: 0.082 | AK182: 0.075 | AL182: 0.067 | AM182: 0.061 | AN182: 0.055 | AO182: 0.050 | AP182: 0.045 | AQ182: 0.041 | AR182: 0.037 | AS182: 0.033 | AT182: 0.030 | AU182: 0.027 | AV182: 0.025 | AW182: 0.022 | AX182: 0.020 | AY182: 0.018 | AZ182: 0.016 | BA182: 0.015 | BB182: 0.013 | BC182: 0.012
B183: Payback | C183: =IF(C$32<=3,1,IF(C176<0,1,IF(B183=1,1-(C176/C175),0))) -> 1.0 | D183: 1.0 | E183: 1.0 | F183: 1.0 | G183: 1.0 | H183: 1.0 | I183: 1.0 | J183: 1.0 | K183: 1.0 | L183: 1.0 | M183: =IF(M$32<=3,0,IF(M176<0,1,IF(L183=1,1-(M176/M175),0))) -> 1.0 | N183: 1.0 | O183: 1.0 | P183: 1.0 | Q183: 1.0 | R183: 1.0 | S183: 1.0 | T183: 1.0 | U183: 1.0 | V183: 1.0 | W183: 1.0 | X183: 1.0 | Y183: 1.0 | Z183: 1.0 | AA183: 1.0 | AB183: 1.0 | AC183: 1.0 | AD183: 1.0 | AE183: 1.0 | AF183: 1.0 | AG183: 1.0 | AH183: 1.0 | AI183: 1.0 | AJ183: 1.0 | AK183: 1.0 | AL183: 1.0 | AM183: 1.0 | AN183: 0.4 | AO183: 0.0 | AP183: 0.0 | AQ183: 0.0 | AR183: 0.0 | AS183: 0.0 | AT183: 0.0 | AU183: 0.0 | AV183: 0.0 | AW183: 0.0 | AX183: 0.0 | AY183: 0.0 | AZ183: 0.0 | BA183: 0.0 | BB183: 0.0 | BC183: 0.0
B184: TIR | C184: =IF(C31=1,IRR($C175:C175),"-") -> - | D184: - | E184: - | F184: - | G184: - | H184: - | I184: - | J184: - | K184: - | L184: - | M184: - | N184: - | O184: - | P184: - | Q184: - | R184: - | S184: - | T184: - | U184: - | V184: - | W184: - | X184: - | Y184: - | Z184: - | AA184: - | AB184: -7% | AC184: - | AD184: - | AE184: - | AF184: - | AG184: - | AH184: - | AI184: - | AJ184: - | AK184: - | AL184: - | AM184: - | AN184: - | AO184: - | AP184: - | AQ184: - | AR184: - | AS184: - | AT184: - | AU184: - | AV184: - | AW184: - | AX184: - | AY184: - | AZ184: - | BA184: - | BB184: - | BC184: -

Sheet C-Graf Simul Tarifa Avançado
C2: SIMULAÇÃO: Preço Tarifa Serviço com Prazo Contrato Constante | L2: Ferramenta de Rotas e Custos | U2: SIMULAÇÃO: Prazo de Contrato com Preço Tarifa Serviço Constante
C3: Preço da Tarifa de Destinação de RSU | D3: 335.0 | E3: R$/t RSU | L3: ='C-FCL Real'!H3 -> Versão 1.01 - Maio de 2022 | U3: Preço da Tarifa de Destinação do RSU | V3: 335.0 | W3: R$/t RSU
C4: Delta | D4: 1.0 | U4: Prazo do contrato | V4: 25 | W4: anos
C5: Prazo do contrato | D5: 25 | E5: anos | U5: Delta | V5: 1.0
AH8: PRAZO FIXO: 25 ANOS | AR8: TARIFA FIXA: 335 R$/t RSU
AI9: PROJETO | AM9: ACIONISTA | AS9: PROJETO | AW9: ACIONISTA
AH10: Preço da Tarifa de Destinação do RSU | AI10: VPL — Projeto (R$ MM) | AJ10: TIR — Projeto (%) | AK10: Payback — Projeto (anos) | AL10: Taxa de Lucratividade — Projeto | AM10: VPL — Acionista (R$ MM) | AN10: TIR — Acionista (%) | AO10: Payback — Acionista (anos) | AP10: Taxa de Lucratividade — Acionista | AR10: Prazo (anos) | AS10: VPL — Projeto (R$ MM) | AT10: TIR — Projeto (%) | AU10: Payback — Projeto (anos) | AV10: Taxa de Lucratividade — Projeto | AW10: VPL — Acionista (R$ MM) | AX10: TIR — Acionista (%) | AY10: Payback — Acionista (anos) | AZ10: Taxa de Lucratividade — Acionista
AH11: 325 | AI11: -151.1 | AJ11: -1.1% | AK11: 29.7 | AL11: 92% | AM11: -707.5 | AN11: -9.2% | AO11: 42.4 | AP11: -28% | AR11: 15 | AS11: -471.3 | AT11: -6.7% | AU11: 26.1 | AV11: 73% | AW11: -740.4 | AY11: 37.5 | AZ11: -39%
AH12: 326 | AI12: -136.5 | AJ12: -1.0% | AK12: 29.3 | AL12: 93% | AM12: -692.9 | AN12: -8.9% | AO12: 41.9 | AP12: -25% | AR12: 16 | AS12: -424.7 | AT12: -5.6% | AU12: 26.1 | AV12: 76% | AW12: -735.3 | AY12: 37.5 | AZ12: -38%
AH13: 327 | AI13: -122.0 | AJ13: -0.9% | AK13: 28.9 | AL13: 93% | AM13: -678.3 | AN13: -8.7% | AO13: 41.4 | AP13: -22% | AR13: 17 | AS13: -378.1 | AT13: -4.6% | AU13: 26.1 | AV13: 79% | AW13: -727.8 | AY13: 37.5 | AZ13: -36%
AH14: 328 | AI14: -107.4 | AJ14: -0.8% | AK14: 28.5 | AL14: 94% | AM14: -663.7 | AN14: -8.4% | AO14: 40.8 | AP14: -20% | AR14: 18 | AS14: -331.5 | AT14: -3.7% | AU14: 26.1 | AV14: 82% | AW14: -718.0 | AY14: 37.5 | AZ14: -33%
AH15: 329 | AI15: -92.8 | AJ15: -0.7% | AK15: 28.1 | AL15: 95% | AM15: -649.2 | AN15: -8.2% | AO15: 40.3 | AP15: -17% | AR15: 19 | AS15: -284.9 | AT15: -3.0% | AU15: 26.1 | AV15: 84% | AW15: -705.8 | AX15: -18.2% | AY15: 37.5 | AZ15: -31%
AH16: 330 | AI16: -78.3 | AJ16: -0.6% | AK16: 27.8 | AL16: 96% | AM16: -634.6 | AN16: -7.9% | AO16: 39.8 | AP16: -15% | AR16: 20 | AS16: -238.3 | AT16: -2.3% | AU16: 26.1 | AV16: 87% | AW16: -691.4 | AX16: -15.6% | AY16: 37.5 | AZ16: -27%
AH17: 331 | AI17: -63.7 | AJ17: -0.5% | AK17: 27.4 | AL17: 97% | AM17: -620.0 | AN17: -7.7% | AO17: 39.4 | AP17: -12% | AR17: 21 | AS17: -191.8 | AT17: -1.8% | AU17: 26.1 | AV17: 89% | AW17: -674.6 | AX17: -13.4% | AY17: 37.5 | AZ17: -24%
AH18: 332 | AI18: -49.1 | AJ18: -0.4% | AK18: 27.1 | AL18: 97% | AM18: -605.5 | AN18: -7.5% | AO18: 38.9 | AP18: -9% | AR18: 22 | AS18: -145.2 | AT18: -1.3% | AU18: 26.1 | AV18: 92% | AW18: -655.6 | AX18: -11.6% | AY18: 37.5 | AZ18: -20%
AH19: 333 | AI19: -34.6 | AJ19: -0.3% | AK19: 26.8 | AL19: 98% | AM19: -590.9 | AN19: -7.3% | AO19: 38.4 | AP19: -7% | AR19: 23 | AS19: -98.6 | AT19: -0.8% | AU19: 26.1 | AV19: 95% | AW19: -634.2 | AX19: -10.1% | AY19: 37.5 | AZ19: -15%
AH20: 334 | AI20: -20.0 | AJ20: -0.1% | AK20: 26.4 | AL20: 99% | AM20: -576.3 | AN20: -7.0% | AO20: 38.0 | AP20: -4% | AR20: 24 | AS20: -52.0 | AT20: -0.4% | AU20: 26.1 | AV20: 97% | AW20: -610.4 | AX20: -8.8% | AY20: 37.5 | AZ20: -11%
AH21: 335 | AI21: -5.4 | AJ21: -0.0% | AK21: 26.1 | AL21: 100% | AM21: -561.8 | AN21: -6.8% | AO21: 37.5 | AP21: -1% | AR21: 25 | AS21: -5.4 | AT21: -0.0% | AU21: 26.1 | AV21: 100% | AW21: -561.8 | AX21: -6.8% | AY21: 37.5 | AZ21: -1%
AH22: 336 | AI22: 9.1 | AJ22: 0.1% | AK22: 25.8 | AL22: 100% | AM22: -547.2 | AN22: -6.6% | AO22: 37.1 | AP22: 1% | AR22: 26 | AS22: 41.2 | AT22: 0.3% | AU22: 26.1 | AV22: 102% | AW22: -513.1 | AX22: -5.5% | AY22: 37.5 | AZ22: 8%
AH23: 337 | AI23: 23.7 | AJ23: 0.2% | AK23: 25.5 | AL23: 101% | AM23: -532.6 | AN23: -6.4% | AO23: 36.7 | AP23: 4% | AR23: 27 | AS23: 87.7 | AT23: 0.6% | AU23: 26.1 | AV23: 105% | AW23: -464.4 | AX23: -4.4% | AY23: 37.5 | AZ23: 17%
AH24: 338 | AI24: 38.3 | AJ24: 0.3% | AK24: 25.2 | AL24: 102% | AM24: -518.1 | AN24: -6.2% | AO24: 36.3 | AP24: 7% | AR24: 28 | AS24: 134.3 | AT24: 0.8% | AU24: 26.1 | AV24: 107% | AW24: -415.8 | AX24: -3.6% | AY24: 37.5 | AZ24: 26%
AH25: 339 | AI25: 52.8 | AJ25: 0.4% | AK25: 24.9 | AL25: 103% | AM25: -503.5 | AN25: -6.0% | AO25: 35.9 | AP25: 9% | AR25: 29 | AS25: 180.9 | AT25: 1.1% | AU25: 26.1 | AV25: 110% | AW25: -367.1 | AX25: -2.9% | AY25: 37.5 | AZ25: 35%
AH26: 340 | AI26: 67.4 | AJ26: 0.5% | AK26: 24.6 | AL26: 104% | AM26: -488.9 | AN26: -5.8% | AO26: 35.5 | AP26: 12% | AR26: 30 | AS26: 227.5 | AT26: 1.3% | AU26: 26.1 | AV26: 112% | AW26: -318.4 | AX26: -2.4% | AY26: 37.5 | AZ26: 44%
AH27: 341 | AI27: 82.0 | AJ27: 0.6% | AK27: 24.4 | AL27: 104% | AM27: -474.4 | AN27: -5.6% | AO27: 35.1 | AP27: 14% | AR27: 31 | AS27: 274.1 | AT27: 1.5% | AU27: 26.1 | AV27: 114% | AW27: -269.8 | AX27: -1.9% | AY27: 37.5 | AZ27: 53%
AH28: 342 | AI28: 96.6 | AJ28: 0.7% | AK28: 24.1 | AL28: 105% | AM28: -459.8 | AN28: -5.4% | AO28: 34.7 | AP28: 17% | AR28: 32 | AS28: 320.7 | AT28: 1.7% | AU28: 26.1 | AV28: 117% | AW28: -221.1 | AX28: -1.4% | AY28: 37.5 | AZ28: 61%
AH29: 343 | AI29: 111.1 | AJ29: 0.8% | AK29: 23.8 | AL29: 106% | AM29: -445.2 | AN29: -5.2% | AO29: 34.4 | AP29: 20% | AR29: 33 | AS29: 367.2 | AT29: 1.8% | AU29: 26.1 | AV29: 119% | AW29: -172.4 | AX29: -1.0% | AY29: 37.5 | AZ29: 70%
AH30: 344 | AI30: 125.7 | AJ30: 0.9% | AK30: 23.6 | AL30: 107% | AM30: -430.6 | AN30: -5.0% | AO30: 34.0 | AP30: 22% | AR30: 34 | AS30: 413.8 | AT30: 2.0% | AU30: 26.1 | AV30: 122% | AW30: -123.8 | AX30: -0.7% | AY30: 37.5 | AZ30: 78%
AH31: 345 | AI31: 140.3 | AJ31: 1.0% | AK31: 23.3 | AL31: 108% | AM31: -416.1 | AN31: -4.8% | AO31: 33.7 | AP31: 25% | AR31: 35 | AS31: 460.4 | AT31: 2.1% | AU31: 26.1 | AV31: 124% | AW31: -75.1 | AX31: -0.4% | AY31: 37.5 | AZ31: 87%

Sheet C-Graf Simul Tarifa Simples
B2: Município | C2: ='R-Definição'!D2 -> São Judas Tadeu | F2: Rota | G2: ='R-Definição'!D3 -> Rota Futura 1 | N2: Ferramenta de Rotas e Custos | U2: AVALIAÇÃO COMPORTAMENTO / CORRELAÇÃO Preço Tarifa Serviços Manejo vs Tempo Pay Back Investimento
N3: ='C-Graf Simul Tarifa Avançado'!L3 -> Versão 1.01 - Maio de 2022
U6: Target: "Zerar" o VPL para Diferentes Prazos de Contrato | Z6: ∆ Valor | AA6: ∆ %
U8: Diferença Prazo do Contrato = 35 a Prazo de Pay Back = 35 a | X8: R$/t RSU: | Z8: =AL53-AL53 -> 0.0 | AA8: =Z8/AL53 -> 0%
X9: R$.hab.-1.m-1: | Z9: =AL52-AL52 -> 0.0 | AA9: =Z9/AL52 -> 0%
X10: Ganho do Investidor | Z10: =AL51-AL51 -> 0% | AA10: =Z10/AL51 -> 0%
U12: Diferença Prazo do Contrato = 35 a Prazo de Pay Back = 30 a | X12: R$/t RSU: | Z12: =AG53-AL53 -> 8.4 | AA12: =Z12/AL53 -> 3%
X13: R$.hab.-1.m-1: | Z13: =AG52-AL52 -> 0.3 | AA13: =Z13/AL52 -> 3%
X14: Ganho do Investidor | Z14: =AG51-AL51 -> 10% | AA14: =Z14/AL51 -> 14%
U16: Diferença Prazo do Contrato = 35 a Prazo de Pay Back = 20 a | X16: R$/t RSU: | Z16: =W53-AL53 -> 38.0 | AA16: =Z16/AL53 -> 12%
X17: R$.hab.-1.m-1: | Z17: =W52-AL52 -> 1.4 | AA17: =Z17/AL52 -> 12%
X18: Ganho do Investidor | Z18: =W51-AL51 -> 45% | AA18: =Z18/AL51 -> 63%
U20: Diferença Prazo do Contrato = 30 a Prazo de Pay Back = 30 a | X20: R$/t RSU: | Z20: =AG53-AG53 -> 0.0 | AA20: =Z20/AG53 -> 0%
X21: R$.hab.-1.m-1: | Z21: =AG52-AG52 -> 0.0 | AA21: =Z21/AG52 -> 0%
X22: Ganho do Investidor | Z22: =AG51-AG51 -> 0% | AA22: =Z22/AG51 -> 0%
U24: Diferença Prazo do Contrato = 30 a Prazo de Pay Back = 25 a | X24: R$/t RSU: | Z24: =AB53-AG53 -> 11.8 | AA24: =Z24/AG53 -> 4%
X25: R$.hab.-1.m-1: | Z25: =AB52-AG52 -> 0.4 | AA25: =Z25/AG52 -> 4%
X26: Ganho do Investidor | Z26: =AB51-AG51 -> 14% | AA26: =Z26/AG51 -> 17%
U28: Diferença Prazo do Contrato = 30 a Prazo de Pay Back = 15 a | X28: R$/t RSU: | Z28: =R53-AG53 -> 59.1 | AA28: =Z28/AG53 -> 18%
X29: R$.hab.-1.m-1: | Z29: =R52-AG52 -> 2.1 | AA29: =Z29/AG52 -> 18%
X30: Ganho do Investidor | Z30: =R51-AG51 -> 70% | AA30: =Z30/AG51 -> 86%
C49: Qt Total de RSU Acc | D49: =(0+D50)/1000 -> 939 | E49: =D49+E50/1000 -> 1,878 | F49: =E49+D50/1000 -> 2,817 | G49: =F49+G50/1000 -> 3,756 | H49: 4,695 | I49: 5,634 | J49: 6,573 | K49: 7,512 | L49: 8,451 | M49: 9,390 | N49: 10,329 | O49: 11,268 | P49: 12,207 | Q49: 13,146 | R49: =Q49+R50/1000 -> 14,085 | S49: 15,024 | T49: 15,963 | U49: 16,902 | V49: 17,841 | W49: 18,780 | X49: 19,719 | Y49: 20,658 | Z49: 21,597 | AA49: 22,536 | AB49: 23,475 | AC49: 24,414 | AD49: 25,353 | AE49: 26,292 | AF49: 27,231 | AG49: 28,170 | AH49: 29,109 | AI49: 30,048 | AJ49: 30,987 | AK49: 31,926 | AL49: 32,865 | AM49: 33,804 | AN49: 34,743 | AO49: 35,682 | AP49: 36,621 | AQ49: 37,560 | AR49: 38,499 | AS49: 39,438 | AT49: 40,377 | AU49: 41,316 | AV49: 42,255 | AW49: 43,194 | AX49: 44,133 | AY49: 45,072 | AZ49: 46,011 | BA49: 46,950
C50: Qt Total de RSU | D50: ='R&C-Painel de Controle'!$D$8 -> 939,000 | E50: =D50*(1+'R&C-Painel de Controle'!$D$27) -> 939,000 | F50: =E50*(1+'R&C-Painel de Controle'!$D$27) -> 939,000 | G50: =F50*(1+'R&C-Painel de Controle'!$D$27) -> 939,000 | H50: =G50*(1+'R&C-Painel de Controle'!$D$27) -> 939,000 | I50: =H50*(1+'R&C-Painel de Controle'!$D$27) -> 939,000 | J50: =I50*(1+'R&C-Painel de Controle'!$D$27) -> 939,000 | K50: =J50*(1+'R&C-Painel de Controle'!$D$27) -> 939,000 | L50: =K50*(1+'R&C-Painel de Controle'!$D$27) -> 939,000 | M50: =L50*(1+'R&C-Painel de Controle'!$D$27) -> 939,000 | N50: =M50*(1+'R&C-Painel de Controle'!$D$27) -> 939,000 | O50: =N50*(1+'R&C-Painel de Controle'!$D$27) -> 939,000 | P50: =O50*(1+'R&C-Painel de Controle'!$D$27) -> 939,000 | Q50: =P50*(1+'R&C-Painel de Controle'!$D$27) -> 939,000 | R50: =Q50*(1+'R&C-Painel de Controle'!$D$27) -> 939,000 | S50: =R50*(1+'R&C-Painel de Controle'!$D$27) -> 939,000 | T50: =S50*(1+'R&C-Painel de Controle'!$D$27) -> 939,000 | U50: =T50*(1+'R&C-Painel de Controle'!$D$27) -> 939,000 | V50: =U50*(1+'R&C-Painel de Controle'!$D$27) -> 939,000 | W50: =V50*(1+'R&C-Painel de Controle'!$D$27) -> 939,000 | X50: =W50*(1+'R&C-Painel de Controle'!$D$27) -> 939,000 | Y50: =X50*(1+'R&C-Painel de Controle'!$D$27) -> 939,000 | Z50: =Y50*(1+'R&C-Painel de Controle'!$D$27) -> 939,000 | AA50: =Z50*(1+'R&C-Painel de Controle'!$D$27) -> 939,000 | AB50: =AA50*(1+'R&C-Painel de Controle'!$D$27) -> 939,000 | AC50: =AB50*(1+'R&C-Painel de Controle'!$D$27) -> 939,000 | AD50: =AC50*(1+'R&C-Painel de Controle'!$D$27) -> 939,000 | AE50: =AD50*(1+'R&C-Painel de Controle'!$D$27) -> 939,000 | AF50: =AE50*(1+'R&C-Painel de Controle'!$D$27) -> 939,000 | AG50: =AF50*(1+'R&C-Painel de Controle'!$D$27) -> 939,000 | AH50: =AG50*(1+'R&C-Painel de Controle'!$D$27) -> 939,000 | AI50: =AH50*(1+'R&C-Painel de Controle'!$D$27) -> 939,000 | AJ50: =AI50*(1+'R&C-Painel de Controle'!$D$27) -> 939,000 | AK50: =AJ50*(1+'R&C-Painel de Controle'!$D$27) -> 939,000 | AL50: =AK50*(1+'R&C-Painel de Controle'!$D$27) -> 939,000 | AM50: =AL50*(1+'R&C-Painel de Controle'!$D$27) -> 939,000 | AN50: =AM50*(1+'R&C-Painel de Controle'!$D$27) -> 939,000 | AO50: =AN50*(1+'R&C-Painel de Controle'!$D$27) -> 939,000 | AP50: =AO50*(1+'R&C-Painel de Controle'!$D$27) -> 939,000 | AQ50: =AP50*(1+'R&C-Painel de Controle'!$D$27) -> 939,000 | AR50: =AQ50*(1+'R&C-Painel de Controle'!$D$27) -> 939,000 | AS50: =AR50*(1+'R&C-Painel de Controle'!$D$27) -> 939,000 | AT50: =AS50*(1+'R&C-Painel de Controle'!$D$27) -> 939,000 | AU50: =AT50*(1+'R&C-Painel de Controle'!$D$27) -> 939,000 | AV50: =AU50*(1+'R&C-Painel de Controle'!$D$27) -> 939,000 | AW50: =AV50*(1+'R&C-Painel de Controle'!$D$27) -> 939,000 | AX50: =AW50*(1+'R&C-Painel de Controle'!$D$27) -> 939,000 | AY50: =AX50*(1+'R&C-Painel de Controle'!$D$27) -> 939,000 | AZ50: =AY50*(1+'R&C-Painel de Controle'!$D$27) -> 939,000 | BA50: =AZ50*(1+'R&C-Painel de Controle'!$D$27) -> 939,000
